{"text_format":"1","workbook":"xlsx","n_sheets":2,"sheets":["Cahier de charges BASE","Cahier de charges CLIENT"],"not_rendered":{"charts":0,"images":0,"macros":1,"external_links":0,"defined_names":10,"comments":0,"pivot_tables":0},"unopened":[],"bounds":{"document_bytes":16777216,"sheet_cells":100000,"rows_first":2000,"rows_last":500,"rows_between":2000,"halvings":0,"cell_chars":16384,"cell_head_chars":4096},"cells_cut":0,"cells_raw":0,"read":"whole","date_system":"1900"}

{"sheet":"Cahier de charges BASE","index":0,"n_rows":43372,"n_cols":27,"rows_kept":2250,"cut":true,"hidden":false,"merged":[[0,0,3,17]],"bounds":{"rows_first":1000,"rows_last":250,"rows_between":1000,"halvings":1}}
["CAHIER DE CHARGES DE BASE: TÂCHES"]
[]
[]
[]
[]
[null,"Hall d'entrée","Bureau simple","Open Space","Local sanitaire","Douche","Vestiaires","Couloirs","Cuisine","Salle de conférence","Chambre","Cafétéria","Coin à manger","Buanderie","Salon","Ateliers","Cage d'escaliers","Ascenseur",null,null,null,null,{"$f":"_xlfn.LET(_xlpm.data,_xlfn.REDUCE(\"\",_xlfn.SEQUENCE(17),_xlfn.LAMBDA(_xlpm.x,_xlpm.y,_xlfn.VSTACK(_xlpm.x,OFFSET(B7:B156,,_xlpm.y-1)))),_xlpm.data)","v":""},{"$f":"_xlfn.LET(_xlpm.locaux,_xlfn.REDUCE(\"\",_xlfn.SEQUENCE(17),_xlfn.LAMBDA(_xlpm.x,_xlpm.y,_xlfn.VSTACK(_xlpm.x,_xlfn.TEXTSPLIT(REPT(OFFSET(B6,,_xlpm.y-1)&\"|\",149),,\"|\")))),_xlpm.locaux)","v":""},{"$f":"_xlfn.LET(_xlpm.tbl,_xlfn.REDUCE(\"\",_xlfn.SEQUENCE(17),_xlfn.LAMBDA(_xlpm.x,_xlpm.y,_xlfn.VSTACK(_xlpm.x,_xlfn.HSTACK(A7:A156,OFFSET('Cahier de charges BASE'!B7:B156,,_xlpm.y-1),_xlfn.REDUCE(\"\",_xlfn.SEQUENCE(17),_xlfn.LAMBDA(_xlpm.a,_xlpm.b,_xlfn.VSTACK(_xlpm.a,_xlfn.TEXTSPLIT(REPT(OFFSET(B6,,_xlpm.b-1)&\"|\",149),,\"|\")))))))),_xlfn._xlws.FILTER(_xlpm.tbl,NOT(ISNA(_xlfn.TAKE(_xlpm.tbl,,-1)))))","v":"Enlever les déchets"},0,""]
["Enlever les déchets",null,null,null,null,null,null,null,null,null,null,null,null,null,null,null,null,null,null,null,null,null,0,"Hall d'entrée",0,0,"Hall d'entrée"]
[null,null,null,null,null,null,null,null,null,null,null,null,null,null,null,null,null,null,null,null,null,null,0,"Hall d'entrée","Vider les poubelles à papier","x","Hall d'entrée"]
["Vider les poubelles à papier","x",null,null,null,null,null,null,null,null,null,null,null,null,null,null,null,null,null,null,null,null,"x","Hall d'entrée","Vider les poubelles à déchets",0,"Hall d'entrée"]
["Vider les poubelles à déchets",null,null,null,null,"x","x","x",null,null,null,null,null,null,null,null,null,null,null,null,null,null,0,"Hall d'entrée","Vider la poubelle à PET",0,"Hall d'entrée"]
["Vider la poubelle à PET",null,null,null,null,null,null,null,null,null,null,null,null,null,null,null,null,null,null,null,null,null,0,"Hall d'entrée","Changer le sac taxé",0,"Hall d'entrée"]
["Changer le sac taxé",null,null,null,null,null,null,null,null,null,null,null,null,null,null,null,null,null,null,null,null,null,0,"Hall d'entrée","Changer le sac noir",0,"Hall d'entrée"]
["Changer le sac noir",null,null,null,null,null,null,null,null,null,null,null,null,null,null,null,null,null,null,null,null,null,0,"Hall d'entrée","Ramasser les déchets au sol si besoin",0,"Hall d'entrée"]
["Ramasser les déchets au sol si besoin",null,null,null,"x",null,null,null,null,null,null,null,null,null,null,null,null,null,null,null,null,null,0,"Hall d'entrée",0,0,"Hall d'entrée"]
[null,null,null,null,null,null,null,null,null,null,null,null,null,null,null,null,null,null,null,null,null,null,0,"Hall d'entrée","Nettoyer les sols lisses",0,"Hall d'entrée"]
["Nettoyer les sols lisses",null,null,null,null,null,null,null,null,null,null,null,null,null,null,null,null,null,null,null,null,null,0,"Hall d'entrée",0,0,"Hall d'entrée"]
[null,null,null,null,null,null,null,null,null,null,null,null,null,null,null,null,null,null,null,null,null,null,0,"Hall d'entrée","Lavage manuel","x","Hall d'entrée"]
["Lavage manuel","x",null,null,null,null,null,null,null,null,null,null,null,null,null,null,null,null,null,null,null,null,"x","Hall d'entrée","Aspiration à sec",0,"Hall d'entrée"]
["Aspiration à sec",null,null,null,null,null,null,null,null,null,null,null,null,null,null,null,null,null,null,null,null,null,0,"Hall d'entrée","Balayage humide",0,"Hall d'entrée"]
["Balayage humide",null,null,null,null,null,null,null,null,"x",null,null,null,null,null,null,null,null,null,null,null,null,0,"Hall d'entrée","Récurage à l'auto-laveuse",0,"Hall d'entrée"]
["Récurage à l'auto-laveuse",null,null,null,null,null,null,null,null,null,null,null,null,null,null,null,null,null,null,null,null,null,0,"Hall d'entrée","Récurage à l'eau avec monobrosse",0,"Hall d'entrée"]
["Récurage à l'eau avec monobrosse",null,null,null,null,null,null,null,null,null,null,null,null,null,null,null,null,"x",null,null,null,null,0,"Hall d'entrée",0,0,"Hall d'entrée"]
[null,null,null,null,null,null,null,null,null,null,null,null,null,null,null,null,null,null,null,null,null,null,0,"Hall d'entrée","Nettoyer les sols en tapis",0,"Hall d'entrée"]
["Nettoyer les sols en tapis",null,null,null,null,null,null,null,null,null,null,null,null,null,null,null,null,null,null,null,null,null,0,"Hall d'entrée",0,0,"Hall d'entrée"]
[null,null,null,null,null,null,null,null,null,null,null,null,null,null,null,null,null,null,null,null,null,null,0,"Hall d'entrée","Aspiration à sec",0,"Hall d'entrée"]
["Aspiration à sec",null,null,null,null,null,null,null,null,null,null,null,null,null,null,null,null,null,null,null,null,null,0,"Hall d'entrée","Détachage du tapis",0,"Hall d'entrée"]
["Détachage du tapis",null,null,null,null,null,null,null,null,null,null,null,null,null,null,null,null,null,null,null,null,null,0,"Hall d'entrée",0,0,"Hall d'entrée"]
[null,null,null,null,null,null,null,null,null,null,null,null,null,null,null,null,null,null,null,null,null,null,0,"Hall d'entrée","Nettoyer les surfaces au-dessus du sol",0,"Hall d'entrée"]
["Nettoyer les surfaces au-dessus du sol",null,null,null,null,null,null,null,null,null,null,null,null,null,null,null,null,null,null,null,null,null,0,"Hall d'entrée",0,0,"Hall d'entrée"]
[null,null,null,null,null,null,null,null,null,null,null,null,null,null,null,null,null,null,null,null,null,null,0,"Hall d'entrée","Enlever les toiles d'araignée",0,"Hall d'entrée"]
["Enlever les toiles d'araignée",null,null,null,null,null,null,null,null,null,null,null,null,null,null,null,null,null,null,null,null,null,0,"Hall d'entrée","Dépoussiérer le mobilier",0,"Hall d'entrée"]
["Dépoussiérer le mobilier",null,null,null,null,null,null,null,null,null,null,null,null,null,null,null,null,null,null,null,null,null,0,"Hall d'entrée","Dépoussiérer les cadres photos",0,"Hall d'entrée"]
["Dépoussiérer les cadres photos",null,null,null,null,null,null,null,null,null,null,null,null,null,null,null,null,null,null,null,null,null,0,"Hall d'entrée","Dépoussiérer les radiateurs",0,"Hall d'entrée"]
["Dépoussiérer les radiateurs",null,null,null,null,null,null,null,null,null,null,null,null,null,null,null,null,null,null,null,null,null,0,"Hall d'entrée","Dépoussiérer les plinthes",0,"Hall d'entrée"]
["Dépoussiérer les plinthes",null,null,null,null,null,null,null,null,null,null,null,null,null,null,null,null,null,null,null,null,null,0,"Hall d'entrée",0,0,"Hall d'entrée"]
[null,null,null,null,null,null,null,null,null,null,null,null,null,null,null,null,null,null,null,null,null,null,0,"Hall d'entrée","Nettoyer les points de contact",0,"Hall d'entrée"]
["Nettoyer les points de contact",null,null,null,null,null,null,null,null,null,null,null,null,null,null,null,null,null,null,null,null,null,0,"Hall d'entrée",0,0,"Hall d'entrée"]
[null,null,null,null,null,null,null,null,null,null,null,null,null,null,null,null,null,null,null,null,null,null,0,"Hall d'entrée","Nettoyer les interrupteurs",0,"Hall d'entrée"]
["Nettoyer les interrupteurs",null,null,null,null,null,null,null,null,null,null,null,null,null,null,null,null,null,null,null,null,null,0,"Hall d'entrée","Nettoyer les traces de doigts",0,"Hall d'entrée"]
["Nettoyer les traces de doigts",null,null,null,null,null,null,null,null,null,null,null,null,null,null,null,null,null,null,null,null,null,0,"Hall d'entrée","Nettoyer les poignées de porte",0,"Hall d'entrée"]
["Nettoyer les poignées de porte",null,null,null,null,null,null,null,null,null,null,null,null,null,null,null,null,null,null,null,null,null,0,"Hall d'entrée",0,0,"Hall d'entrée"]
[null,null,null,null,null,null,null,null,null,null,null,null,null,null,null,null,null,null,null,null,null,null,0,"Hall d'entrée",0,0,"Hall d'entrée"]
[null,null,null,null,null,null,null,null,null,null,null,null,null,null,null,null,null,null,null,null,null,null,0,"Hall d'entrée",0,0,"Hall d'entrée"]
[null,null,null,null,null,null,null,null,null,null,null,null,null,null,null,null,null,null,null,null,null,null,0,"Hall d'entrée","Nettoyer le bureau",0,"Hall d'entrée"]
["Nettoyer le bureau",null,null,null,null,null,null,null,null,null,null,null,null,null,null,null,null,null,null,null,null,null,0,"Hall d'entrée",0,0,"Hall d'entrée"]
[null,null,null,null,null,null,null,null,null,null,null,null,null,null,null,null,null,null,null,null,null,null,0,"Hall d'entrée","Nettoyer les chaises",0,"Hall d'entrée"]
["Nettoyer les chaises",null,null,null,null,null,null,null,null,null,null,null,null,null,null,null,null,null,null,null,null,null,0,"Hall d'entrée","Nettoyer les pieds des chaises",0,"Hall d'entrée"]
["Nettoyer les pieds des chaises",null,null,null,null,null,null,null,null,null,null,null,null,null,null,null,null,null,null,null,null,null,0,"Hall d'entrée","Nettoyer le plateau du bureau",0,"Hall d'entrée"]
["Nettoyer le plateau du bureau",null,null,null,null,null,null,null,null,null,null,null,null,null,null,null,null,null,null,null,null,null,0,"Hall d'entrée","Nettoyer les pieds de bureau",0,"Hall d'entrée"]
["Nettoyer les pieds de bureau",null,null,null,null,null,null,null,null,null,null,null,null,null,null,null,null,null,null,null,null,null,0,"Hall d'entrée","Retouner le clavier",0,"Hall d'entrée"]
["Retouner le clavier",null,null,null,null,null,null,null,null,null,null,null,null,null,null,null,null,null,null,null,null,null,0,"Hall d'entrée","Nettoyer le téléphone",0,"Hall d'entrée"]
["Nettoyer le téléphone",null,null,null,null,null,null,null,null,null,null,null,null,null,null,null,null,null,null,null,null,null,0,"Hall d'entrée","Nettoyer les vitres",0,"Hall d'entrée"]
["Nettoyer les vitres",null,null,null,null,null,null,null,null,null,null,null,null,null,null,null,null,null,null,null,null,null,0,"Hall d'entrée","Nettoyer le rebord des fenêtres intérieur",0,"Hall d'entrée"]
["Nettoyer le rebord des fenêtres intérieur",null,null,null,null,null,null,null,null,null,null,null,null,null,null,null,null,null,null,null,null,null,0,"Hall d'entrée","Nettoyer le rebord des fenêtres extérieur",0,"Hall d'entrée"]
["Nettoyer le rebord des fenêtres extérieur",null,null,null,null,null,null,null,null,null,null,null,null,null,null,null,null,null,null,null,null,null,0,"Hall d'entrée",0,0,"Hall d'entrée"]
[null,null,null,null,null,null,null,null,null,null,null,null,null,null,null,null,null,null,null,null,null,null,0,"Hall d'entrée","Nettoyer le WC",0,"Hall d'entrée"]
["Nettoyer le WC",null,null,null,null,null,null,null,null,null,null,null,null,null,null,null,null,null,null,null,null,null,0,"Hall d'entrée",0,0,"Hall d'entrée"]
[null,null,null,null,null,null,null,null,null,null,null,null,null,null,null,null,null,null,null,null,null,null,0,"Hall d'entrée","Appliquer le détartrant WC + frotter",0,"Hall d'entrée"]
["Appliquer le détartrant WC + frotter",null,null,null,null,null,null,null,null,null,null,null,null,null,null,null,null,null,null,null,null,null,0,"Hall d'entrée","Nettoyer les murs",0,"Hall d'entrée"]
["Nettoyer les murs",null,null,null,null,null,null,null,null,null,null,null,null,null,null,null,null,null,null,null,null,null,0,"Hall d'entrée","Nettoyer les supports papier",0,"Hall d'entrée"]
["Nettoyer les supports papier",null,null,null,null,null,null,null,null,null,null,null,null,null,null,null,null,null,null,null,null,null,0,"Hall d'entrée","Nettoyer la chasse d'eau",0,"Hall d'entrée"]
["Nettoyer la chasse d'eau",null,null,null,null,null,null,null,null,null,null,null,null,null,null,null,null,null,null,null,null,null,0,"Hall d'entrée","Nettoyage le couvercle WC",0,"Hall d'entrée"]
["Nettoyage le couvercle WC",null,null,null,null,null,null,null,null,null,null,null,null,null,null,null,null,null,null,null,null,null,0,"Hall d'entrée","Nettoyer la lunette des WC",0,"Hall d'entrée"]
["Nettoyer la lunette des WC",null,null,null,null,null,null,null,null,null,null,null,null,null,null,null,null,null,null,null,null,null,0,"Hall d'entrée","Nettoyer la cuvette extérieur",0,"Hall d'entrée"]
["Nettoyer la cuvette extérieur",null,null,null,null,null,null,null,null,null,null,null,null,null,null,null,null,null,null,null,null,null,0,"Hall d'entrée","Nettoyer la brosse WC",0,"Hall d'entrée"]
["Nettoyer la brosse WC",null,null,null,null,null,null,null,null,null,null,null,null,null,null,null,null,null,null,null,null,null,0,"Hall d'entrée","Nettoyer le porte brosse WC",0,"Hall d'entrée"]
["Nettoyer le porte brosse WC",null,null,null,null,null,null,null,null,null,null,null,null,null,null,null,null,null,null,null,null,null,0,"Hall d'entrée",0,0,"Hall d'entrée"]
[null,null,null,null,null,null,null,null,null,null,null,null,null,null,null,null,null,null,null,null,null,null,0,"Hall d'entrée","Nettoyer la douche",0,"Hall d'entrée"]
["Nettoyer la douche",null,null,null,null,null,null,null,null,null,null,null,null,null,null,null,null,null,null,null,null,null,0,"Hall d'entrée",0,0,"Hall d'entrée"]
[null,null,null,null,null,null,null,null,null,null,null,null,null,null,null,null,null,null,null,null,null,null,0,"Hall d'entrée","Nettoyer la robinetterie",0,"Hall d'entrée"]
["Nettoyer la robinetterie",null,null,null,null,null,null,null,null,null,null,null,null,null,null,null,null,null,null,null,null,null,0,"Hall d'entrée","Nettoyer le carrelage",0,"Hall d'entrée"]
["Nettoyer le carrelage",null,null,null,null,null,null,null,null,null,null,null,null,null,null,null,null,null,null,null,null,null,0,"Hall d'entrée","Nettoyer la paroi de douche",0,"Hall d'entrée"]
["Nettoyer la paroi de douche",null,null,null,null,null,null,null,null,null,null,null,null,null,null,null,null,null,null,null,null,null,0,"Hall d'entrée","Nettoyer le rideau de douche",0,"Hall d'entrée"]
["Nettoyer le rideau de douche",null,null,null,null,null,null,null,null,null,null,null,null,null,null,null,null,null,null,null,null,null,0,"Hall d'entrée","Nettoyer le bac de douche",0,"Hall d'entrée"]
["Nettoyer le bac de douche",null,null,null,null,null,null,null,null,null,null,null,null,null,null,null,null,null,null,null,null,null,0,"Hall d'entrée","Nettoyer la grille d'écoulement",0,"Hall d'entrée"]
["Nettoyer la grille d'écoulement",null,null,null,null,null,null,null,null,null,null,null,null,null,null,null,null,null,null,null,null,null,0,"Hall d'entrée",0,0,"Hall d'entrée"]
[null,null,null,null,null,null,null,null,null,null,null,null,null,null,null,null,null,null,null,null,null,null,0,"Hall d'entrée","Nettoyer le lavabo",0,"Hall d'entrée"]
["Nettoyer le lavabo",null,null,null,null,null,null,null,null,null,null,null,null,null,null,null,null,null,null,null,null,null,0,"Hall d'entrée",0,0,"Hall d'entrée"]
[null,null,null,null,null,null,null,null,null,null,null,null,null,null,null,null,null,null,null,null,null,null,0,"Hall d'entrée","Nettoyer la robinetterie",0,"Hall d'entrée"]
["Nettoyer la robinetterie",null,null,null,null,null,null,null,null,null,null,null,null,null,null,null,null,null,null,null,null,null,0,"Hall d'entrée","Nettoyer le carrelage",0,"Hall d'entrée"]
["Nettoyer le carrelage",null,null,null,null,null,null,null,null,null,null,null,null,null,null,null,null,null,null,null,null,null,0,"Hall d'entrée","Nettoyer la vasque",0,"Hall d'entrée"]
["Nettoyer la vasque",null,null,null,null,null,null,null,null,null,null,null,null,null,null,null,null,null,null,null,null,null,0,"Hall d'entrée","Nettoyer le siphon",0,"Hall d'entrée"]
["Nettoyer le siphon",null,null,null,null,null,null,null,null,null,null,null,null,null,null,null,null,null,null,null,null,null,0,"Hall d'entrée","Nettoyer le trop plein",0,"Hall d'entrée"]
["Nettoyer le trop plein",null,null,null,null,null,null,null,null,null,null,null,null,null,null,null,null,null,null,null,null,null,0,"Hall d'entrée","Détartrer la robinetterie",0,"Hall d'entrée"]
["Détartrer la robinetterie",null,null,null,null,null,null,null,null,null,null,null,null,null,null,null,null,null,null,null,null,null,0,"Hall d'entrée","Nettoyer le meuble lavabo-faces externes",0,"Hall d'entrée"]
["Nettoyer le meuble lavabo-faces externes",null,null,null,null,null,null,null,null,null,null,null,null,null,null,null,null,null,null,null,null,null,0,"Hall d'entrée","Nettoyer le meuble lavabo- intérieur",0,"Hall d'entrée"]
["Nettoyer le meuble lavabo- intérieur",null,null,null,null,null,null,null,null,null,null,null,null,null,null,null,null,null,null,null,null,null,0,"Hall d'entrée","Nettoyer le miroir",0,"Hall d'entrée"]
["Nettoyer le miroir",null,null,null,null,null,null,null,null,null,null,null,null,null,null,null,null,null,null,null,null,null,0,"Hall d'entrée",0,0,"Hall d'entrée"]
[null,null,null,null,null,null,null,null,null,null,null,null,null,null,null,null,null,null,null,null,null,null,0,"Hall d'entrée","Nettoyer les vestiaires",0,"Hall d'entrée"]
["Nettoyer les vestiaires",null,null,null,null,null,null,null,null,null,null,null,null,null,null,null,null,null,null,null,null,null,0,"Hall d'entrée",0,0,"Hall d'entrée"]
[null,null,null,null,null,null,null,null,null,null,null,null,null,null,null,null,null,null,null,null,null,null,0,"Hall d'entrée","Nettoyer les casiers - portes",0,"Hall d'entrée"]
["Nettoyer les casiers - portes",null,null,null,null,null,null,null,null,null,null,null,null,null,null,null,null,null,null,null,null,null,0,"Hall d'entrée","Nettoyer les casiers - au-dessus",0,"Hall d'entrée"]
["Nettoyer les casiers - au-dessus",null,null,null,null,null,null,null,null,null,null,null,null,null,null,null,null,null,null,null,null,null,0,"Hall d'entrée","Nettoyer les casiers - intérieur",0,"Hall d'entrée"]
["Nettoyer les casiers - intérieur",null,null,null,null,null,null,null,null,null,null,null,null,null,null,null,null,null,null,null,null,null,0,"Hall d'entrée","Nettoyer le banc",0,"Hall d'entrée"]
["Nettoyer le banc",null,null,null,null,null,null,null,null,null,null,null,null,null,null,null,null,null,null,null,null,null,0,"Hall d'entrée",0,0,"Hall d'entrée"]
[null,null,null,null,null,null,null,null,null,null,null,null,null,null,null,null,null,null,null,null,null,null,0,"Hall d'entrée","Nettoyer les vitrages",0,"Hall d'entrée"]
["Nettoyer les vitrages",null,null,null,null,null,null,null,null,null,null,null,null,null,null,null,null,null,null,null,null,null,0,"Hall d'entrée",0,0,"Hall d'entrée"]
[null,null,null,null,null,null,null,null,null,null,null,null,null,null,null,null,null,null,null,null,null,null,0,"Hall d'entrée","Nettoyer les traces de doigts",0,"Hall d'entrée"]
["Nettoyer les traces de doigts",null,null,null,null,null,null,null,null,null,null,null,null,null,null,null,null,null,null,null,null,null,0,"Hall d'entrée","Nettoyer la vitre complète intérieure",0,"Hall d'entrée"]
["Nettoyer la vitre complète intérieure",null,null,null,null,null,null,null,null,null,null,null,null,null,null,null,null,null,null,null,null,null,0,"Hall d'entrée","Nettoyer la vitre complète extérieure",0,"Hall d'entrée"]
["Nettoyer la vitre complète extérieure",null,null,null,null,null,null,null,null,null,null,null,null,null,null,null,null,null,null,null,null,null,0,"Hall d'entrée","Nettoyer le cadre de la fenêtre",0,"Hall d'entrée"]
["Nettoyer le cadre de la fenêtre",null,null,null,null,null,null,null,null,null,null,null,null,null,null,null,null,null,null,null,null,null,0,"Hall d'entrée","Nettoyer la tablette intérieure",0,"Hall d'entrée"]
["Nettoyer la tablette intérieure",null,null,null,null,null,null,null,null,null,null,null,null,null,null,null,null,null,null,null,null,null,0,"Hall d'entrée","Nettoyer le rebord extérieur",0,"Hall d'entrée"]
["Nettoyer le rebord extérieur",null,null,null,null,null,null,null,null,null,null,null,null,null,null,null,null,null,null,null,null,null,0,"Hall d'entrée",0,0,"Hall d'entrée"]
[null,null,null,null,null,null,null,null,null,null,null,null,null,null,null,null,null,null,null,null,null,null,0,"Hall d'entrée","Nettoyer la cuisine",0,"Hall d'entrée"]
["Nettoyer la cuisine",null,null,null,null,null,null,null,null,null,null,null,null,null,null,null,null,null,null,null,null,null,0,"Hall d'entrée",0,0,"Hall d'entrée"]
[null,null,null,null,null,null,null,null,null,null,null,null,null,null,null,null,null,null,null,null,null,null,0,"Hall d'entrée","Nettoyer le plan de travail",0,"Hall d'entrée"]
["Nettoyer le plan de travail",null,null,null,null,null,null,null,null,null,null,null,null,null,null,null,null,null,null,null,null,null,0,"Hall d'entrée","Nettoyer les meubles - faces extérieures",0,"Hall d'entrée"]
["Nettoyer les meubles - faces extérieures",null,null,null,null,null,null,null,null,null,null,null,null,null,null,null,null,null,null,null,null,null,0,"Hall d'entrée","Nettoyer les meubles - intérieur",0,"Hall d'entrée"]
["Nettoyer les meubles - intérieur",null,null,null,null,null,null,null,null,null,null,null,null,null,null,null,null,null,null,null,null,null,0,"Hall d'entrée","Nettoyer le frigo",0,"Hall d'entrée"]
["Nettoyer le frigo",null,null,null,null,null,null,null,null,null,null,null,null,null,null,null,null,null,null,null,null,null,0,"Hall d'entrée","Nettoyer le four",0,"Hall d'entrée"]
["Nettoyer le four",null,null,null,null,null,null,null,null,null,null,null,null,null,null,null,null,null,null,null,null,null,0,"Hall d'entrée","Nettoyer les plaques de cuisson",0,"Hall d'entrée"]
["Nettoyer les plaques de cuisson",null,null,null,null,null,null,null,null,null,null,null,null,null,null,null,null,null,null,null,null,null,0,"Hall d'entrée","Nettoyer la hotte de ventilation",0,"Hall d'entrée"]
["Nettoyer la hotte de ventilation",null,null,null,null,null,null,null,null,null,null,null,null,null,null,null,null,null,null,null,null,null,0,"Hall d'entrée","Nettoyer le lavabo",0,"Hall d'entrée"]
["Nettoyer le lavabo",null,null,null,null,null,null,null,null,null,null,null,null,null,null,null,null,null,null,null,null,null,0,"Hall d'entrée","Nettoyer la ventilation",0,"Hall d'entrée"]
["Nettoyer la ventilation",null,null,null,null,null,null,null,null,null,null,null,null,null,null,null,null,null,null,null,null,null,0,"Hall d'entrée","Nettoyer les appareils électroménagers",0,"Hall d'entrée"]
["Nettoyer les appareils électroménagers",null,null,null,null,null,null,null,null,null,null,null,null,null,null,null,null,null,null,null,null,null,0,"Hall d'entrée",0,0,"Hall d'entrée"]
[null,null,null,null,null,null,null,null,null,null,null,null,null,null,null,null,null,null,null,null,null,null,0,"Hall d'entrée","Nettoyer le salon",0,"Hall d'entrée"]
["Nettoyer le salon",null,null,null,null,null,null,null,null,null,null,null,null,null,null,null,null,null,null,null,null,null,0,"Hall d'entrée",0,0,"Hall d'entrée"]
[null,null,null,null,null,null,null,null,null,null,null,null,null,null,null,null,null,null,null,null,null,null,0,"Hall d'entrée","Dépoussiérer les étagères",0,"Hall d'entrée"]
["Dépoussiérer les étagères",null,null,null,null,null,null,null,null,null,null,null,null,null,null,null,null,null,null,null,null,null,0,"Hall d'entrée","Dépoussiérer les objets décoratifs",0,"Hall d'entrée"]
["Dépoussiérer les objets décoratifs",null,null,null,null,null,null,null,null,null,null,null,null,null,null,null,null,null,null,null,null,null,0,"Hall d'entrée","Dépoussiérer la TV",0,"Hall d'entrée"]
["Dépoussiérer la TV",null,null,null,null,null,null,null,null,null,null,null,null,null,null,null,null,null,null,null,null,null,0,"Hall d'entrée","Dépoussiérer les appareils électriques",0,"Hall d'entrée"]
["Dépoussiérer les appareils électriques",null,null,null,null,null,null,null,null,null,null,null,null,null,null,null,null,null,null,null,null,null,0,"Hall d'entrée","Dépoussiérer les plinthes",0,"Hall d'entrée"]
["Dépoussiérer les plinthes",null,null,null,null,null,null,null,null,null,null,null,null,null,null,null,null,null,null,null,null,null,0,"Hall d'entrée",0,0,"Hall d'entrée"]
[null,null,null,null,null,null,null,null,null,null,null,null,null,null,null,null,null,null,null,null,null,null,0,"Hall d'entrée","Nettoyer la buanderie",0,"Hall d'entrée"]
["Nettoyer la buanderie",null,null,null,null,null,null,null,null,null,null,null,null,null,null,null,null,null,null,null,null,null,0,"Hall d'entrée",0,0,"Hall d'entrée"]
[null,null,null,null,null,null,null,null,null,null,null,null,null,null,null,null,null,null,null,null,null,null,0,"Hall d'entrée","Aspirer le filtre du sèche-linge",0,"Hall d'entrée"]
["Aspirer le filtre du sèche-linge",null,null,null,null,null,null,null,null,null,null,null,null,null,null,null,null,null,null,null,null,null,0,"Hall d'entrée","Nettoyer les appareils électroménagers",0,"Hall d'entrée"]
["Nettoyer les appareils électroménagers",null,null,null,null,null,null,null,null,null,null,null,null,null,null,null,null,null,null,null,null,null,0,"Hall d'entrée","Nettoyer la grille d'écoulement",0,"Hall d'entrée"]
["Nettoyer la grille d'écoulement",null,null,null,null,null,null,null,null,null,null,null,null,null,null,null,null,null,null,null,null,null,0,"Hall d'entrée",0,0,"Hall d'entrée"]
[null,null,null,null,null,null,null,null,null,null,null,null,null,null,null,null,null,null,null,null,null,null,0,"Hall d'entrée","Nettoyer la cafétéria",0,"Hall d'entrée"]
["Nettoyer la cafétéria",null,null,null,null,null,null,null,null,null,null,null,null,null,null,null,null,null,null,null,null,null,0,"Hall d'entrée",0,0,"Hall d'entrée"]
[null,null,null,null,null,null,null,null,null,null,null,null,null,null,null,null,null,null,null,null,null,null,0,"Hall d'entrée","Nettoyer les tables",0,"Hall d'entrée"]
["Nettoyer les tables",null,null,null,null,null,null,null,null,null,null,null,null,null,null,null,null,null,null,null,null,null,0,"Hall d'entrée","Nettoyer les chaises",0,"Hall d'entrée"]
["Nettoyer les chaises",null,null,null,null,null,null,null,null,null,null,null,null,null,null,null,null,null,null,null,null,null,0,"Hall d'entrée","Nettoyer les pieds des tables",0,"Hall d'entrée"]
["Nettoyer les pieds des tables",null,null,null,null,null,null,null,null,null,null,null,null,null,null,null,null,null,null,null,null,null,0,"Hall d'entrée","Nettoyer les pieds des chaises",0,"Hall d'entrée"]
["Nettoyer les pieds des chaises",null,null,null,null,null,null,null,null,null,null,null,null,null,null,null,null,null,null,null,null,null,0,"Hall d'entrée","Nettoyer la fontaine à eau",0,"Hall d'entrée"]
["Nettoyer la fontaine à eau",null,null,null,null,null,null,null,null,null,null,null,null,null,null,null,null,null,null,null,null,null,0,"Hall d'entrée","Nettoyer la machine à café",0,"Hall d'entrée"]
["Nettoyer la machine à café",null,null,null,null,null,null,null,null,null,null,null,null,null,null,null,null,null,null,null,null,null,0,"Hall d'entrée","Nettoyer le micro-ondes",0,"Hall d'entrée"]
["Nettoyer le micro-ondes",null,null,null,null,null,null,null,null,null,null,null,null,null,null,null,null,null,null,null,null,null,0,"Hall d'entrée",0,0,"Hall d'entrée"]
[null,null,null,null,null,null,null,null,null,null,null,null,null,null,null,null,null,null,null,null,null,null,0,"Hall d'entrée","Nettoyer les couloirs",0,"Hall d'entrée"]
["Nettoyer les couloirs",null,null,null,null,null,null,null,null,null,null,null,null,null,null,null,null,null,null,null,null,null,0,"Hall d'entrée",0,0,"Hall d'entrée"]
[null,null,null,null,null,null,null,null,null,null,null,null,null,null,null,null,null,null,null,null,null,null,0,"Hall d'entrée","Nettoyer les mains courantes",0,"Hall d'entrée"]
["Nettoyer les mains courantes",null,null,null,null,null,null,null,null,null,null,null,null,null,null,null,null,null,null,null,null,null,0,"Hall d'entrée","Nettoyer les plinthes",0,"Hall d'entrée"]
["Nettoyer les plinthes",null,null,null,null,null,null,null,null,null,null,null,null,null,null,null,null,null,null,null,null,null,0,"Hall d'entrée",0,0,"Hall d'entrée"]
[null,null,null,null,null,null,null,null,null,null,null,null,null,null,null,null,null,null,null,null,null,null,0,"Hall d'entrée","Nettoyer les ateliers",0,"Hall d'entrée"]
["Nettoyer les ateliers",null,null,null,null,null,null,null,null,null,null,null,null,null,null,null,null,null,null,null,null,null,0,"Hall d'entrée",0,0,"Hall d'entrée"]
[null,null,null,null,null,null,null,null,null,null,null,null,null,null,null,null,null,null,null,null,null,null,0,"Hall d'entrée","Nettoyer les établis",0,"Hall d'entrée"]
["Nettoyer les établis",null,null,null,null,null,null,null,null,null,null,null,null,null,null,null,null,null,null,null,null,null,0,"Hall d'entrée",0,0,"Hall d'entrée"]
[null,null,null,null,null,null,null,null,null,null,null,null,null,null,null,null,null,null,null,null,null,null,0,"Hall d'entrée","Nettoyer les ascenseurs",0,"Hall d'entrée"]
["Nettoyer les ascenseurs",null,null,null,null,null,null,null,null,null,null,null,null,null,null,null,null,null,null,null,null,null,0,"Hall d'entrée",0,0,"Hall d'entrée"]
[null,null,null,null,null,null,null,null,null,null,null,null,null,null,null,null,null,null,null,null,null,null,0,"Hall d'entrée","Aspirer les rainures du sol",0,"Hall d'entrée"]
["Aspirer les rainures du sol",null,null,null,null,null,null,null,null,null,null,null,null,null,null,null,null,null,null,null,null,null,0,"Hall d'entrée","Nettoyer les parties inox",0,"Hall d'entrée"]
["Nettoyer les parties inox",null,null,null,null,null,null,null,null,null,null,null,null,null,null,null,null,null,null,null,null,null,0,"Hall d'entrée","Nettoyer les parties vitrées",0,"Hall d'entrée"]
["Nettoyer les parties vitrées",null,null,null,null,null,null,null,null,null,null,null,null,null,null,null,null,"x",null,null,null,null,0,"",{"$error":"#N/A"},{"$error":"#N/A"},""]
[null,null,null,null,null,null,null,null,null,null,null,null,null,null,null,null,null,null,null,null,null,null,0,"Bureau simple",{"$error":"#N/A"},{"$error":"#N/A"},"Bureau simple"]
[null,null,null,null,null,null,null,null,null,null,null,null,null,null,null,null,null,null,null,null,null,null,0,"Bureau simple",{"$error":"#N/A"},{"$error":"#N/A"},"Bureau simple"]
[null,null,null,null,null,null,null,null,null,null,null,null,null,null,null,null,null,null,null,null,null,null,0,"Bureau simple",{"$error":"#N/A"},{"$error":"#N/A"},"Bureau simple"]
[null,null,null,null,null,null,null,null,null,null,null,null,null,null,null,null,null,null,null,null,null,null,0,"Bureau simple",{"$error":"#N/A"},{"$error":"#N/A"},"Bureau simple"]
[null,null,null,null,null,null,null,null,null,null,null,null,null,null,null,null,null,null,null,null,null,null,0,"Bureau simple",{"$error":"#N/A"},{"$error":"#N/A"},"Bureau simple"]
[null,null,null,null,null,null,null,null,null,null,null,null,null,null,null,null,null,null,null,null,null,null,0,"Bureau simple",{"$error":"#N/A"},{"$error":"#N/A"},"Bureau simple"]
[null,null,null,null,null,null,null,null,null,null,null,null,null,null,null,null,null,null,null,null,null,null,0,"Bureau simple",{"$error":"#N/A"},{"$error":"#N/A"},"Bureau simple"]
[null,null,null,null,null,null,null,null,null,null,null,null,null,null,null,null,null,null,null,null,null,null,0,"Bureau simple",{"$error":"#N/A"},{"$error":"#N/A"},"Bureau simple"]
[null,null,null,null,null,null,null,null,null,null,null,null,null,null,null,null,null,null,null,null,null,null,0,"Bureau simple",{"$error":"#N/A"},{"$error":"#N/A"},"Bureau simple"]
[null,null,null,null,null,null,null,null,null,null,null,null,null,null,null,null,null,null,null,null,null,null,0,"Bureau simple",{"$error":"#N/A"},{"$error":"#N/A"},"Bureau simple"]
[null,null,null,null,null,null,null,null,null,null,null,null,null,null,null,null,null,null,null,null,null,null,0,"Bureau simple",{"$error":"#N/A"},{"$error":"#N/A"},"Bureau simple"]
[null,null,null,null,null,null,null,null,null,null,null,null,null,null,null,null,null,null,null,null,null,null,0,"Bureau simple",{"$error":"#N/A"},{"$error":"#N/A"},"Bureau simple"]
[null,null,null,null,null,null,null,null,null,null,null,null,null,null,null,null,null,null,null,null,null,null,0,"Bureau simple",{"$error":"#N/A"},{"$error":"#N/A"},"Bureau simple"]
[null,null,null,null,null,null,null,null,null,null,null,null,null,null,null,null,null,null,null,null,null,null,0,"Bureau simple",{"$error":"#N/A"},{"$error":"#N/A"},"Bureau simple"]
[null,null,null,null,null,null,null,null,null,null,null,null,null,null,null,null,null,null,null,null,null,null,0,"Bureau simple",{"$error":"#N/A"},{"$error":"#N/A"},"Bureau simple"]
[null,null,null,null,null,null,null,null,null,null,null,null,null,null,null,null,null,null,null,null,null,null,0,"Bureau simple",{"$error":"#N/A"},{"$error":"#N/A"},"Bureau simple"]
[null,null,null,null,null,null,null,null,null,null,null,null,null,null,null,null,null,null,null,null,null,null,0,"Bureau simple",{"$error":"#N/A"},{"$error":"#N/A"},"Bureau simple"]
[null,null,null,null,null,null,null,null,null,null,null,null,null,null,null,null,null,null,null,null,null,null,0,"Bureau simple",{"$error":"#N/A"},{"$error":"#N/A"},"Bureau simple"]
[null,null,null,null,null,null,null,null,null,null,null,null,null,null,null,null,null,null,null,null,null,null,0,"Bureau simple",{"$error":"#N/A"},{"$error":"#N/A"},"Bureau simple"]
[null,null,null,null,null,null,null,null,null,null,null,null,null,null,null,null,null,null,null,null,null,null,0,"Bureau simple",{"$error":"#N/A"},{"$error":"#N/A"},"Bureau simple"]
[null,null,null,null,null,null,null,null,null,null,null,null,null,null,null,null,null,null,null,null,null,null,0,"Bureau simple",{"$error":"#N/A"},{"$error":"#N/A"},"Bureau simple"]
[null,null,null,null,null,null,null,null,null,null,null,null,null,null,null,null,null,null,null,null,null,null,0,"Bureau simple",{"$error":"#N/A"},{"$error":"#N/A"},"Bureau simple"]
[null,null,null,null,null,null,null,null,null,null,null,null,null,null,null,null,null,null,null,null,null,null,0,"Bureau simple",{"$error":"#N/A"},{"$error":"#N/A"},"Bureau simple"]
[null,null,null,null,null,null,null,null,null,null,null,null,null,null,null,null,null,null,null,null,null,null,0,"Bureau simple",{"$error":"#N/A"},{"$error":"#N/A"},"Bureau simple"]
[null,null,null,null,null,null,null,null,null,null,null,null,null,null,null,null,null,null,null,null,null,null,0,"Bureau simple",{"$error":"#N/A"},{"$error":"#N/A"},"Bureau simple"]
[null,null,null,null,null,null,null,null,null,null,null,null,null,null,null,null,null,null,null,null,null,null,0,"Bureau simple",{"$error":"#N/A"},{"$error":"#N/A"},"Bureau simple"]
[null,null,null,null,null,null,null,null,null,null,null,null,null,null,null,null,null,null,null,null,null,null,0,"Bureau simple",{"$error":"#N/A"},{"$error":"#N/A"},"Bureau simple"]
[null,null,null,null,null,null,null,null,null,null,null,null,null,null,null,null,null,null,null,null,null,null,0,"Bureau simple",{"$error":"#N/A"},{"$error":"#N/A"},"Bureau simple"]
[null,null,null,null,null,null,null,null,null,null,null,null,null,null,null,null,null,null,null,null,null,null,0,"Bureau simple",{"$error":"#N/A"},{"$error":"#N/A"},"Bureau simple"]
[null,null,null,null,null,null,null,null,null,null,null,null,null,null,null,null,null,null,null,null,null,null,0,"Bureau simple",{"$error":"#N/A"},{"$error":"#N/A"},"Bureau simple"]
[null,null,null,null,null,null,null,null,null,null,null,null,null,null,null,null,null,null,null,null,null,null,0,"Bureau simple",{"$error":"#N/A"},{"$error":"#N/A"},"Bureau simple"]
[null,null,null,null,null,null,null,null,null,null,null,null,null,null,null,null,null,null,null,null,null,null,0,"Bureau simple",{"$error":"#N/A"},{"$error":"#N/A"},"Bureau simple"]
[null,null,null,null,null,null,null,null,null,null,null,null,null,null,null,null,null,null,null,null,null,null,0,"Bureau simple",{"$error":"#N/A"},{"$error":"#N/A"},"Bureau simple"]
[null,null,null,null,null,null,null,null,null,null,null,null,null,null,null,null,null,null,null,null,null,null,0,"Bureau simple",{"$error":"#N/A"},{"$error":"#N/A"},"Bureau simple"]
[null,null,null,null,null,null,null,null,null,null,null,null,null,null,null,null,null,null,null,null,null,null,0,"Bureau simple",{"$error":"#N/A"},{"$error":"#N/A"},"Bureau simple"]
[null,null,null,null,null,null,null,null,null,null,null,null,null,null,null,null,null,null,null,null,null,null,0,"Bureau simple",{"$error":"#N/A"},{"$error":"#N/A"},"Bureau simple"]
[null,null,null,null,null,null,null,null,null,null,null,null,null,null,null,null,null,null,null,null,null,null,0,"Bureau simple",{"$error":"#N/A"},{"$error":"#N/A"},"Bureau simple"]
[null,null,null,null,null,null,null,null,null,null,null,null,null,null,null,null,null,null,null,null,null,null,0,"Bureau simple",{"$error":"#N/A"},{"$error":"#N/A"},"Bureau simple"]
[null,null,null,null,null,null,null,null,null,null,null,null,null,null,null,null,null,null,null,null,null,null,0,"Bureau simple",{"$error":"#N/A"},{"$error":"#N/A"},"Bureau simple"]
[null,null,null,null,null,null,null,null,null,null,null,null,null,null,null,null,null,null,null,null,null,null,0,"Bureau simple",{"$error":"#N/A"},{"$error":"#N/A"},"Bureau simple"]
[null,null,null,null,null,null,null,null,null,null,null,null,null,null,null,null,null,null,null,null,null,null,0,"Bureau simple",{"$error":"#N/A"},{"$error":"#N/A"},"Bureau simple"]
[null,null,null,null,null,null,null,null,null,null,null,null,null,null,null,null,null,null,null,null,null,null,0,"Bureau simple",{"$error":"#N/A"},{"$error":"#N/A"},"Bureau simple"]
[null,null,null,null,null,null,null,null,null,null,null,null,null,null,null,null,null,null,null,null,null,null,0,"Bureau simple",{"$error":"#N/A"},{"$error":"#N/A"},"Bureau simple"]
[null,null,null,null,null,null,null,null,null,null,null,null,null,null,null,null,null,null,null,null,null,null,0,"Bureau simple",{"$error":"#N/A"},{"$error":"#N/A"},"Bureau simple"]
[null,null,null,null,null,null,null,null,null,null,null,null,null,null,null,null,null,null,null,null,null,null,0,"Bureau simple",{"$error":"#N/A"},{"$error":"#N/A"},"Bureau simple"]
[null,null,null,null,null,null,null,null,null,null,null,null,null,null,null,null,null,null,null,null,null,null,0,"Bureau simple",{"$error":"#N/A"},{"$error":"#N/A"},"Bureau simple"]
[null,null,null,null,null,null,null,null,null,null,null,null,null,null,null,null,null,null,null,null,null,null,0,"Bureau simple",{"$error":"#N/A"},{"$error":"#N/A"},"Bureau simple"]
[null,null,null,null,null,null,null,null,null,null,null,null,null,null,null,null,null,null,null,null,null,null,0,"Bureau simple",{"$error":"#N/A"},{"$error":"#N/A"},"Bureau simple"]
[null,null,null,null,null,null,null,null,null,null,null,null,null,null,null,null,null,null,null,null,null,null,0,"Bureau simple",{"$error":"#N/A"},{"$error":"#N/A"},"Bureau simple"]
[null,null,null,null,null,null,null,null,null,null,null,null,null,null,null,null,null,null,null,null,null,null,0,"Bureau simple",{"$error":"#N/A"},{"$error":"#N/A"},"Bureau simple"]
[null,null,null,null,null,null,null,null,null,null,null,null,null,null,null,null,null,null,null,null,null,null,0,"Bureau simple",{"$error":"#N/A"},{"$error":"#N/A"},"Bureau simple"]
[null,null,null,null,null,null,null,null,null,null,null,null,null,null,null,null,null,null,null,null,null,null,0,"Bureau simple",{"$error":"#N/A"},{"$error":"#N/A"},"Bureau simple"]
[null,null,null,null,null,null,null,null,null,null,null,null,null,null,null,null,null,null,null,null,null,null,0,"Bureau simple",{"$error":"#N/A"},{"$error":"#N/A"},"Bureau simple"]
[null,null,null,null,null,null,null,null,null,null,null,null,null,null,null,null,null,null,null,null,null,null,0,"Bureau simple",{"$error":"#N/A"},{"$error":"#N/A"},"Bureau simple"]
[null,null,null,null,null,null,null,null,null,null,null,null,null,null,null,null,null,null,null,null,null,null,0,"Bureau simple",{"$error":"#N/A"},{"$error":"#N/A"},"Bureau simple"]
[null,null,null,null,null,null,null,null,null,null,null,null,null,null,null,null,null,null,null,null,null,null,0,"Bureau simple",{"$error":"#N/A"},{"$error":"#N/A"},"Bureau simple"]
[null,null,null,null,null,null,null,null,null,null,null,null,null,null,null,null,null,null,null,null,null,null,0,"Bureau simple",{"$error":"#N/A"},{"$error":"#N/A"},"Bureau simple"]
[null,null,null,null,null,null,null,null,null,null,null,null,null,null,null,null,null,null,null,null,null,null,0,"Bureau simple",{"$error":"#N/A"},{"$error":"#N/A"},"Bureau simple"]
[null,null,null,null,null,null,null,null,null,null,null,null,null,null,null,null,null,null,null,null,null,null,0,"Bureau simple",{"$error":"#N/A"},{"$error":"#N/A"},"Bureau simple"]
[null,null,null,null,null,null,null,null,null,null,null,null,null,null,null,null,null,null,null,null,null,null,0,"Bureau simple",{"$error":"#N/A"},{"$error":"#N/A"},"Bureau simple"]
[null,null,null,null,null,null,null,null,null,null,null,null,null,null,null,null,null,null,null,null,null,null,0,"Bureau simple",{"$error":"#N/A"},{"$error":"#N/A"},"Bureau simple"]
[null,null,null,null,null,null,null,null,null,null,null,null,null,null,null,null,null,null,null,null,null,null,0,"Bureau simple",{"$error":"#N/A"},{"$error":"#N/A"},"Bureau simple"]
[null,null,null,null,null,null,null,null,null,null,null,null,null,null,null,null,null,null,null,null,null,null,0,"Bureau simple",{"$error":"#N/A"},{"$error":"#N/A"},"Bureau simple"]
[null,null,null,null,null,null,null,null,null,null,null,null,null,null,null,null,null,null,null,null,null,null,0,"Bureau simple",{"$error":"#N/A"},{"$error":"#N/A"},"Bureau simple"]
[null,null,null,null,null,null,null,null,null,null,null,null,null,null,null,null,null,null,null,null,null,null,0,"Bureau simple",{"$error":"#N/A"},{"$error":"#N/A"},"Bureau simple"]
[null,null,null,null,null,null,null,null,null,null,null,null,null,null,null,null,null,null,null,null,null,null,0,"Bureau simple",{"$error":"#N/A"},{"$error":"#N/A"},"Bureau simple"]
[null,null,null,null,null,null,null,null,null,null,null,null,null,null,null,null,null,null,null,null,null,null,0,"Bureau simple",{"$error":"#N/A"},{"$error":"#N/A"},"Bureau simple"]
[null,null,null,null,null,null,null,null,null,null,null,null,null,null,null,null,null,null,null,null,null,null,0,"Bureau simple",{"$error":"#N/A"},{"$error":"#N/A"},"Bureau simple"]
[null,null,null,null,null,null,null,null,null,null,null,null,null,null,null,null,null,null,null,null,null,null,0,"Bureau simple",{"$error":"#N/A"},{"$error":"#N/A"},"Bureau simple"]
[null,null,null,null,null,null,null,null,null,null,null,null,null,null,null,null,null,null,null,null,null,null,0,"Bureau simple",{"$error":"#N/A"},{"$error":"#N/A"},"Bureau simple"]
[null,null,null,null,null,null,null,null,null,null,null,null,null,null,null,null,null,null,null,null,null,null,0,"Bureau simple",{"$error":"#N/A"},{"$error":"#N/A"},"Bureau simple"]
[null,null,null,null,null,null,null,null,null,null,null,null,null,null,null,null,null,null,null,null,null,null,0,"Bureau simple",{"$error":"#N/A"},{"$error":"#N/A"},"Bureau simple"]
[null,null,null,null,null,null,null,null,null,null,null,null,null,null,null,null,null,null,null,null,null,null,0,"Bureau simple",{"$error":"#N/A"},{"$error":"#N/A"},"Bureau simple"]
[null,null,null,null,null,null,null,null,null,null,null,null,null,null,null,null,null,null,null,null,null,null,0,"Bureau simple",{"$error":"#N/A"},{"$error":"#N/A"},"Bureau simple"]
[null,null,null,null,null,null,null,null,null,null,null,null,null,null,null,null,null,null,null,null,null,null,0,"Bureau simple",{"$error":"#N/A"},{"$error":"#N/A"},"Bureau simple"]
[null,null,null,null,null,null,null,null,null,null,null,null,null,null,null,null,null,null,null,null,null,null,0,"Bureau simple",{"$error":"#N/A"},{"$error":"#N/A"},"Bureau simple"]
[null,null,null,null,null,null,null,null,null,null,null,null,null,null,null,null,null,null,null,null,null,null,0,"Bureau simple",{"$error":"#N/A"},{"$error":"#N/A"},"Bureau simple"]
[null,null,null,null,null,null,null,null,null,null,null,null,null,null,null,null,null,null,null,null,null,null,0,"Bureau simple",{"$error":"#N/A"},{"$error":"#N/A"},"Bureau simple"]
[null,null,null,null,null,null,null,null,null,null,null,null,null,null,null,null,null,null,null,null,null,null,0,"Bureau simple",{"$error":"#N/A"},{"$error":"#N/A"},"Bureau simple"]
[null,null,null,null,null,null,null,null,null,null,null,null,null,null,null,null,null,null,null,null,null,null,0,"Bureau simple",{"$error":"#N/A"},{"$error":"#N/A"},"Bureau simple"]
[null,null,null,null,null,null,null,null,null,null,null,null,null,null,null,null,null,null,null,null,null,null,0,"Bureau simple",{"$error":"#N/A"},{"$error":"#N/A"},"Bureau simple"]
[null,null,null,null,null,null,null,null,null,null,null,null,null,null,null,null,null,null,null,null,null,null,0,"Bureau simple",{"$error":"#N/A"},{"$error":"#N/A"},"Bureau simple"]
[null,null,null,null,null,null,null,null,null,null,null,null,null,null,null,null,null,null,null,null,null,null,0,"Bureau simple",{"$error":"#N/A"},{"$error":"#N/A"},"Bureau simple"]
[null,null,null,null,null,null,null,null,null,null,null,null,null,null,null,null,null,null,null,null,null,null,0,"Bureau simple",{"$error":"#N/A"},{"$error":"#N/A"},"Bureau simple"]
[null,null,null,null,null,null,null,null,null,null,null,null,null,null,null,null,null,null,null,null,null,null,0,"Bureau simple",{"$error":"#N/A"},{"$error":"#N/A"},"Bureau simple"]
[null,null,null,null,null,null,null,null,null,null,null,null,null,null,null,null,null,null,null,null,null,null,0,"Bureau simple",{"$error":"#N/A"},{"$error":"#N/A"},"Bureau simple"]
[null,null,null,null,null,null,null,null,null,null,null,null,null,null,null,null,null,null,null,null,null,null,0,"Bureau simple",{"$error":"#N/A"},{"$error":"#N/A"},"Bureau simple"]
[null,null,null,null,null,null,null,null,null,null,null,null,null,null,null,null,null,null,null,null,null,null,0,"Bureau simple",{"$error":"#N/A"},{"$error":"#N/A"},"Bureau simple"]
[null,null,null,null,null,null,null,null,null,null,null,null,null,null,null,null,null,null,null,null,null,null,0,"Bureau simple",{"$error":"#N/A"},{"$error":"#N/A"},"Bureau simple"]
[null,null,null,null,null,null,null,null,null,null,null,null,null,null,null,null,null,null,null,null,null,null,0,"Bureau simple",{"$error":"#N/A"},{"$error":"#N/A"},"Bureau simple"]
[null,null,null,null,null,null,null,null,null,null,null,null,null,null,null,null,null,null,null,null,null,null,0,"Bureau simple",{"$error":"#N/A"},{"$error":"#N/A"},"Bureau simple"]
[null,null,null,null,null,null,null,null,null,null,null,null,null,null,null,null,null,null,null,null,null,null,0,"Bureau simple",{"$error":"#N/A"},{"$error":"#N/A"},"Bureau simple"]
[null,null,null,null,null,null,null,null,null,null,null,null,null,null,null,null,null,null,null,null,null,null,0,"Bureau simple",{"$error":"#N/A"},{"$error":"#N/A"},"Bureau simple"]
[null,null,null,null,null,null,null,null,null,null,null,null,null,null,null,null,null,null,null,null,null,null,0,"Bureau simple",{"$error":"#N/A"},{"$error":"#N/A"},"Bureau simple"]
[null,null,null,null,null,null,null,null,null,null,null,null,null,null,null,null,null,null,null,null,null,null,0,"Bureau simple",{"$error":"#N/A"},{"$error":"#N/A"},"Bureau simple"]
[null,null,null,null,null,null,null,null,null,null,null,null,null,null,null,null,null,null,null,null,null,null,0,"Bureau simple",{"$error":"#N/A"},{"$error":"#N/A"},"Bureau simple"]
[null,null,null,null,null,null,null,null,null,null,null,null,null,null,null,null,null,null,null,null,null,null,0,"Bureau simple",{"$error":"#N/A"},{"$error":"#N/A"},"Bureau simple"]
[null,null,null,null,null,null,null,null,null,null,null,null,null,null,null,null,null,null,null,null,null,null,0,"Bureau simple",{"$error":"#N/A"},{"$error":"#N/A"},"Bureau simple"]
[null,null,null,null,null,null,null,null,null,null,null,null,null,null,null,null,null,null,null,null,null,null,0,"Bureau simple",{"$error":"#N/A"},{"$error":"#N/A"},"Bureau simple"]
[null,null,null,null,null,null,null,null,null,null,null,null,null,null,null,null,null,null,null,null,null,null,0,"Bureau simple",{"$error":"#N/A"},{"$error":"#N/A"},"Bureau simple"]
[null,null,null,null,null,null,null,null,null,null,null,null,null,null,null,null,null,null,null,null,null,null,0,"Bureau simple",{"$error":"#N/A"},{"$error":"#N/A"},"Bureau simple"]
[null,null,null,null,null,null,null,null,null,null,null,null,null,null,null,null,null,null,null,null,null,null,0,"Bureau simple",{"$error":"#N/A"},{"$error":"#N/A"},"Bureau simple"]
[null,null,null,null,null,null,null,null,null,null,null,null,null,null,null,null,null,null,null,null,null,null,0,"Bureau simple",{"$error":"#N/A"},{"$error":"#N/A"},"Bureau simple"]
[null,null,null,null,null,null,null,null,null,null,null,null,null,null,null,null,null,null,null,null,null,null,0,"Bureau simple",{"$error":"#N/A"},{"$error":"#N/A"},"Bureau simple"]
[null,null,null,null,null,null,null,null,null,null,null,null,null,null,null,null,null,null,null,null,null,null,0,"Bureau simple",{"$error":"#N/A"},{"$error":"#N/A"},"Bureau simple"]
[null,null,null,null,null,null,null,null,null,null,null,null,null,null,null,null,null,null,null,null,null,null,0,"Bureau simple",{"$error":"#N/A"},{"$error":"#N/A"},"Bureau simple"]
[null,null,null,null,null,null,null,null,null,null,null,null,null,null,null,null,null,null,null,null,null,null,0,"Bureau simple",{"$error":"#N/A"},{"$error":"#N/A"},"Bureau simple"]
[null,null,null,null,null,null,null,null,null,null,null,null,null,null,null,null,null,null,null,null,null,null,0,"Bureau simple",{"$error":"#N/A"},{"$error":"#N/A"},"Bureau simple"]
[null,null,null,null,null,null,null,null,null,null,null,null,null,null,null,null,null,null,null,null,null,null,0,"Bureau simple",{"$error":"#N/A"},{"$error":"#N/A"},"Bureau simple"]
[null,null,null,null,null,null,null,null,null,null,null,null,null,null,null,null,null,null,null,null,null,null,0,"Bureau simple",{"$error":"#N/A"},{"$error":"#N/A"},"Bureau simple"]
[null,null,null,null,null,null,null,null,null,null,null,null,null,null,null,null,null,null,null,null,null,null,0,"Bureau simple",{"$error":"#N/A"},{"$error":"#N/A"},"Bureau simple"]
[null,null,null,null,null,null,null,null,null,null,null,null,null,null,null,null,null,null,null,null,null,null,0,"Bureau simple",{"$error":"#N/A"},{"$error":"#N/A"},"Bureau simple"]
[null,null,null,null,null,null,null,null,null,null,null,null,null,null,null,null,null,null,null,null,null,null,0,"Bureau simple",{"$error":"#N/A"},{"$error":"#N/A"},"Bureau simple"]
[null,null,null,null,null,null,null,null,null,null,null,null,null,null,null,null,null,null,null,null,null,null,0,"Bureau simple",{"$error":"#N/A"},{"$error":"#N/A"},"Bureau simple"]
[null,null,null,null,null,null,null,null,null,null,null,null,null,null,null,null,null,null,null,null,null,null,0,"Bureau simple",{"$error":"#N/A"},{"$error":"#N/A"},"Bureau simple"]
[null,null,null,null,null,null,null,null,null,null,null,null,null,null,null,null,null,null,null,null,null,null,0,"Bureau simple",{"$error":"#N/A"},{"$error":"#N/A"},"Bureau simple"]
[null,null,null,null,null,null,null,null,null,null,null,null,null,null,null,null,null,null,null,null,null,null,0,"Bureau simple",{"$error":"#N/A"},{"$error":"#N/A"},"Bureau simple"]
[null,null,null,null,null,null,null,null,null,null,null,null,null,null,null,null,null,null,null,null,null,null,0,"Bureau simple",{"$error":"#N/A"},{"$error":"#N/A"},"Bureau simple"]
[null,null,null,null,null,null,null,null,null,null,null,null,null,null,null,null,null,null,null,null,null,null,0,"Bureau simple",{"$error":"#N/A"},{"$error":"#N/A"},"Bureau simple"]
[null,null,null,null,null,null,null,null,null,null,null,null,null,null,null,null,null,null,null,null,null,null,0,"Bureau simple",{"$error":"#N/A"},{"$error":"#N/A"},"Bureau simple"]
[null,null,null,null,null,null,null,null,null,null,null,null,null,null,null,null,null,null,null,null,null,null,0,"Bureau simple",{"$error":"#N/A"},{"$error":"#N/A"},"Bureau simple"]
[null,null,null,null,null,null,null,null,null,null,null,null,null,null,null,null,null,null,null,null,null,null,0,"Bureau simple",{"$error":"#N/A"},{"$error":"#N/A"},"Bureau simple"]
[null,null,null,null,null,null,null,null,null,null,null,null,null,null,null,null,null,null,null,null,null,null,0,"Bureau simple",{"$error":"#N/A"},{"$error":"#N/A"},"Bureau simple"]
[null,null,null,null,null,null,null,null,null,null,null,null,null,null,null,null,null,null,null,null,null,null,0,"Bureau simple",{"$error":"#N/A"},{"$error":"#N/A"},"Bureau simple"]
[null,null,null,null,null,null,null,null,null,null,null,null,null,null,null,null,null,null,null,null,null,null,0,"Bureau simple",{"$error":"#N/A"},{"$error":"#N/A"},"Bureau simple"]
[null,null,null,null,null,null,null,null,null,null,null,null,null,null,null,null,null,null,null,null,null,null,0,"Bureau simple",{"$error":"#N/A"},{"$error":"#N/A"},"Bureau simple"]
[null,null,null,null,null,null,null,null,null,null,null,null,null,null,null,null,null,null,null,null,null,null,0,"Bureau simple",{"$error":"#N/A"},{"$error":"#N/A"},"Bureau simple"]
[null,null,null,null,null,null,null,null,null,null,null,null,null,null,null,null,null,null,null,null,null,null,0,"Bureau simple",{"$error":"#N/A"},{"$error":"#N/A"},"Bureau simple"]
[null,null,null,null,null,null,null,null,null,null,null,null,null,null,null,null,null,null,null,null,null,null,0,"Bureau simple",{"$error":"#N/A"},{"$error":"#N/A"},"Bureau simple"]
[null,null,null,null,null,null,null,null,null,null,null,null,null,null,null,null,null,null,null,null,null,null,0,"Bureau simple",{"$error":"#N/A"},{"$error":"#N/A"},"Bureau simple"]
[null,null,null,null,null,null,null,null,null,null,null,null,null,null,null,null,null,null,null,null,null,null,0,"Bureau simple",{"$error":"#N/A"},{"$error":"#N/A"},"Bureau simple"]
[null,null,null,null,null,null,null,null,null,null,null,null,null,null,null,null,null,null,null,null,null,null,0,"Bureau simple",{"$error":"#N/A"},{"$error":"#N/A"},"Bureau simple"]
[null,null,null,null,null,null,null,null,null,null,null,null,null,null,null,null,null,null,null,null,null,null,0,"Bureau simple",{"$error":"#N/A"},{"$error":"#N/A"},"Bureau simple"]
[null,null,null,null,null,null,null,null,null,null,null,null,null,null,null,null,null,null,null,null,null,null,0,"Bureau simple",{"$error":"#N/A"},{"$error":"#N/A"},"Bureau simple"]
[null,null,null,null,null,null,null,null,null,null,null,null,null,null,null,null,null,null,null,null,null,null,0,"Bureau simple",{"$error":"#N/A"},{"$error":"#N/A"},"Bureau simple"]
[null,null,null,null,null,null,null,null,null,null,null,null,null,null,null,null,null,null,null,null,null,null,0,"Bureau simple",{"$error":"#N/A"},{"$error":"#N/A"},"Bureau simple"]
[null,null,null,null,null,null,null,null,null,null,null,null,null,null,null,null,null,null,null,null,null,null,0,"Bureau simple",{"$error":"#N/A"},{"$error":"#N/A"},"Bureau simple"]
[null,null,null,null,null,null,null,null,null,null,null,null,null,null,null,null,null,null,null,null,null,null,0,"Bureau simple",{"$error":"#N/A"},{"$error":"#N/A"},"Bureau simple"]
[null,null,null,null,null,null,null,null,null,null,null,null,null,null,null,null,null,null,null,null,null,null,0,"Bureau simple",{"$error":"#N/A"},{"$error":"#N/A"},"Bureau simple"]
[null,null,null,null,null,null,null,null,null,null,null,null,null,null,null,null,null,null,null,null,null,null,0,"Bureau simple",{"$error":"#N/A"},{"$error":"#N/A"},"Bureau simple"]
[null,null,null,null,null,null,null,null,null,null,null,null,null,null,null,null,null,null,null,null,null,null,0,"Bureau simple",{"$error":"#N/A"},{"$error":"#N/A"},"Bureau simple"]
[null,null,null,null,null,null,null,null,null,null,null,null,null,null,null,null,null,null,null,null,null,null,0,"Bureau simple",{"$error":"#N/A"},{"$error":"#N/A"},"Bureau simple"]
[null,null,null,null,null,null,null,null,null,null,null,null,null,null,null,null,null,null,null,null,null,null,0,"Bureau simple",{"$error":"#N/A"},{"$error":"#N/A"},"Bureau simple"]
[null,null,null,null,null,null,null,null,null,null,null,null,null,null,null,null,null,null,null,null,null,null,0,"Bureau simple",{"$error":"#N/A"},{"$error":"#N/A"},"Bureau simple"]
[null,null,null,null,null,null,null,null,null,null,null,null,null,null,null,null,null,null,null,null,null,null,0,"Bureau simple",{"$error":"#N/A"},{"$error":"#N/A"},"Bureau simple"]
[null,null,null,null,null,null,null,null,null,null,null,null,null,null,null,null,null,null,null,null,null,null,0,"Bureau simple",{"$error":"#N/A"},{"$error":"#N/A"},"Bureau simple"]
[null,null,null,null,null,null,null,null,null,null,null,null,null,null,null,null,null,null,null,null,null,null,0,"Bureau simple",{"$error":"#N/A"},{"$error":"#N/A"},"Bureau simple"]
[null,null,null,null,null,null,null,null,null,null,null,null,null,null,null,null,null,null,null,null,null,null,0,"Bureau simple",{"$error":"#N/A"},{"$error":"#N/A"},"Bureau simple"]
[null,null,null,null,null,null,null,null,null,null,null,null,null,null,null,null,null,null,null,null,null,null,0,"Bureau simple",{"$error":"#N/A"},{"$error":"#N/A"},"Bureau simple"]
[null,null,null,null,null,null,null,null,null,null,null,null,null,null,null,null,null,null,null,null,null,null,0,"",{"$error":"#N/A"},{"$error":"#N/A"},""]
[null,null,null,null,null,null,null,null,null,null,null,null,null,null,null,null,null,null,null,null,null,null,0,"Open Space",{"$error":"#N/A"},{"$error":"#N/A"},"Open Space"]
[null,null,null,null,null,null,null,null,null,null,null,null,null,null,null,null,null,null,null,null,null,null,0,"Open Space",{"$error":"#N/A"},{"$error":"#N/A"},"Open Space"]
[null,null,null,null,null,null,null,null,null,null,null,null,null,null,null,null,null,null,null,null,null,null,0,"Open Space",{"$error":"#N/A"},{"$error":"#N/A"},"Open Space"]
[null,null,null,null,null,null,null,null,null,null,null,null,null,null,null,null,null,null,null,null,null,null,0,"Open Space",{"$error":"#N/A"},{"$error":"#N/A"},"Open Space"]
[null,null,null,null,null,null,null,null,null,null,null,null,null,null,null,null,null,null,null,null,null,null,0,"Open Space",{"$error":"#N/A"},{"$error":"#N/A"},"Open Space"]
[null,null,null,null,null,null,null,null,null,null,null,null,null,null,null,null,null,null,null,null,null,null,0,"Open Space",{"$error":"#N/A"},{"$error":"#N/A"},"Open Space"]
[null,null,null,null,null,null,null,null,null,null,null,null,null,null,null,null,null,null,null,null,null,null,0,"Open Space",{"$error":"#N/A"},{"$error":"#N/A"},"Open Space"]
[null,null,null,null,null,null,null,null,null,null,null,null,null,null,null,null,null,null,null,null,null,null,0,"Open Space",{"$error":"#N/A"},{"$error":"#N/A"},"Open Space"]
[null,null,null,null,null,null,null,null,null,null,null,null,null,null,null,null,null,null,null,null,null,null,0,"Open Space",{"$error":"#N/A"},{"$error":"#N/A"},"Open Space"]
[null,null,null,null,null,null,null,null,null,null,null,null,null,null,null,null,null,null,null,null,null,null,0,"Open Space",{"$error":"#N/A"},{"$error":"#N/A"},"Open Space"]
[null,null,null,null,null,null,null,null,null,null,null,null,null,null,null,null,null,null,null,null,null,null,0,"Open Space",{"$error":"#N/A"},{"$error":"#N/A"},"Open Space"]
[null,null,null,null,null,null,null,null,null,null,null,null,null,null,null,null,null,null,null,null,null,null,0,"Open Space",{"$error":"#N/A"},{"$error":"#N/A"},"Open Space"]
[null,null,null,null,null,null,null,null,null,null,null,null,null,null,null,null,null,null,null,null,null,null,0,"Open Space",{"$error":"#N/A"},{"$error":"#N/A"},"Open Space"]
[null,null,null,null,null,null,null,null,null,null,null,null,null,null,null,null,null,null,null,null,null,null,0,"Open Space",{"$error":"#N/A"},{"$error":"#N/A"},"Open Space"]
[null,null,null,null,null,null,null,null,null,null,null,null,null,null,null,null,null,null,null,null,null,null,0,"Open Space",{"$error":"#N/A"},{"$error":"#N/A"},"Open Space"]
[null,null,null,null,null,null,null,null,null,null,null,null,null,null,null,null,null,null,null,null,null,null,0,"Open Space",{"$error":"#N/A"},{"$error":"#N/A"},"Open Space"]
[null,null,null,null,null,null,null,null,null,null,null,null,null,null,null,null,null,null,null,null,null,null,0,"Open Space",{"$error":"#N/A"},{"$error":"#N/A"},"Open Space"]
[null,null,null,null,null,null,null,null,null,null,null,null,null,null,null,null,null,null,null,null,null,null,0,"Open Space",{"$error":"#N/A"},{"$error":"#N/A"},"Open Space"]
[null,null,null,null,null,null,null,null,null,null,null,null,null,null,null,null,null,null,null,null,null,null,0,"Open Space",{"$error":"#N/A"},{"$error":"#N/A"},"Open Space"]
[null,null,null,null,null,null,null,null,null,null,null,null,null,null,null,null,null,null,null,null,null,null,0,"Open Space",{"$error":"#N/A"},{"$error":"#N/A"},"Open Space"]
[null,null,null,null,null,null,null,null,null,null,null,null,null,null,null,null,null,null,null,null,null,null,0,"Open Space",{"$error":"#N/A"},{"$error":"#N/A"},"Open Space"]
[null,null,null,null,null,null,null,null,null,null,null,null,null,null,null,null,null,null,null,null,null,null,0,"Open Space",{"$error":"#N/A"},{"$error":"#N/A"},"Open Space"]
[null,null,null,null,null,null,null,null,null,null,null,null,null,null,null,null,null,null,null,null,null,null,0,"Open Space",{"$error":"#N/A"},{"$error":"#N/A"},"Open Space"]
[null,null,null,null,null,null,null,null,null,null,null,null,null,null,null,null,null,null,null,null,null,null,0,"Open Space",{"$error":"#N/A"},{"$error":"#N/A"},"Open Space"]
[null,null,null,null,null,null,null,null,null,null,null,null,null,null,null,null,null,null,null,null,null,null,0,"Open Space",{"$error":"#N/A"},{"$error":"#N/A"},"Open Space"]
[null,null,null,null,null,null,null,null,null,null,null,null,null,null,null,null,null,null,null,null,null,null,0,"Open Space",{"$error":"#N/A"},{"$error":"#N/A"},"Open Space"]
[null,null,null,null,null,null,null,null,null,null,null,null,null,null,null,null,null,null,null,null,null,null,0,"Open Space",{"$error":"#N/A"},{"$error":"#N/A"},"Open Space"]
[null,null,null,null,null,null,null,null,null,null,null,null,null,null,null,null,null,null,null,null,null,null,0,"Open Space",{"$error":"#N/A"},{"$error":"#N/A"},"Open Space"]
[null,null,null,null,null,null,null,null,null,null,null,null,null,null,null,null,null,null,null,null,null,null,0,"Open Space",{"$error":"#N/A"},{"$error":"#N/A"},"Open Space"]
[null,null,null,null,null,null,null,null,null,null,null,null,null,null,null,null,null,null,null,null,null,null,0,"Open Space",{"$error":"#N/A"},{"$error":"#N/A"},"Open Space"]
[null,null,null,null,null,null,null,null,null,null,null,null,null,null,null,null,null,null,null,null,null,null,0,"Open Space",{"$error":"#N/A"},{"$error":"#N/A"},"Open Space"]
[null,null,null,null,null,null,null,null,null,null,null,null,null,null,null,null,null,null,null,null,null,null,0,"Open Space",{"$error":"#N/A"},{"$error":"#N/A"},"Open Space"]
[null,null,null,null,null,null,null,null,null,null,null,null,null,null,null,null,null,null,null,null,null,null,0,"Open Space",{"$error":"#N/A"},{"$error":"#N/A"},"Open Space"]
[null,null,null,null,null,null,null,null,null,null,null,null,null,null,null,null,null,null,null,null,null,null,0,"Open Space",{"$error":"#N/A"},{"$error":"#N/A"},"Open Space"]
[null,null,null,null,null,null,null,null,null,null,null,null,null,null,null,null,null,null,null,null,null,null,0,"Open Space",{"$error":"#N/A"},{"$error":"#N/A"},"Open Space"]
[null,null,null,null,null,null,null,null,null,null,null,null,null,null,null,null,null,null,null,null,null,null,0,"Open Space",{"$error":"#N/A"},{"$error":"#N/A"},"Open Space"]
[null,null,null,null,null,null,null,null,null,null,null,null,null,null,null,null,null,null,null,null,null,null,0,"Open Space",{"$error":"#N/A"},{"$error":"#N/A"},"Open Space"]
[null,null,null,null,null,null,null,null,null,null,null,null,null,null,null,null,null,null,null,null,null,null,0,"Open Space",{"$error":"#N/A"},{"$error":"#N/A"},"Open Space"]
[null,null,null,null,null,null,null,null,null,null,null,null,null,null,null,null,null,null,null,null,null,null,0,"Open Space",{"$error":"#N/A"},{"$error":"#N/A"},"Open Space"]
[null,null,null,null,null,null,null,null,null,null,null,null,null,null,null,null,null,null,null,null,null,null,0,"Open Space",{"$error":"#N/A"},{"$error":"#N/A"},"Open Space"]
[null,null,null,null,null,null,null,null,null,null,null,null,null,null,null,null,null,null,null,null,null,null,0,"Open Space",{"$error":"#N/A"},{"$error":"#N/A"},"Open Space"]
[null,null,null,null,null,null,null,null,null,null,null,null,null,null,null,null,null,null,null,null,null,null,0,"Open Space",{"$error":"#N/A"},{"$error":"#N/A"},"Open Space"]
[null,null,null,null,null,null,null,null,null,null,null,null,null,null,null,null,null,null,null,null,null,null,0,"Open Space",{"$error":"#N/A"},{"$error":"#N/A"},"Open Space"]
[null,null,null,null,null,null,null,null,null,null,null,null,null,null,null,null,null,null,null,null,null,null,0,"Open Space",{"$error":"#N/A"},{"$error":"#N/A"},"Open Space"]
[null,null,null,null,null,null,null,null,null,null,null,null,null,null,null,null,null,null,null,null,null,null,0,"Open Space",{"$error":"#N/A"},{"$error":"#N/A"},"Open Space"]
[null,null,null,null,null,null,null,null,null,null,null,null,null,null,null,null,null,null,null,null,null,null,0,"Open Space",{"$error":"#N/A"},{"$error":"#N/A"},"Open Space"]
[null,null,null,null,null,null,null,null,null,null,null,null,null,null,null,null,null,null,null,null,null,null,0,"Open Space",{"$error":"#N/A"},{"$error":"#N/A"},"Open Space"]
[null,null,null,null,null,null,null,null,null,null,null,null,null,null,null,null,null,null,null,null,null,null,0,"Open Space",{"$error":"#N/A"},{"$error":"#N/A"},"Open Space"]
[null,null,null,null,null,null,null,null,null,null,null,null,null,null,null,null,null,null,null,null,null,null,0,"Open Space",{"$error":"#N/A"},{"$error":"#N/A"},"Open Space"]
[null,null,null,null,null,null,null,null,null,null,null,null,null,null,null,null,null,null,null,null,null,null,0,"Open Space",{"$error":"#N/A"},{"$error":"#N/A"},"Open Space"]
[null,null,null,null,null,null,null,null,null,null,null,null,null,null,null,null,null,null,null,null,null,null,0,"Open Space",{"$error":"#N/A"},{"$error":"#N/A"},"Open Space"]
[null,null,null,null,null,null,null,null,null,null,null,null,null,null,null,null,null,null,null,null,null,null,0,"Open Space",{"$error":"#N/A"},{"$error":"#N/A"},"Open Space"]
[null,null,null,null,null,null,null,null,null,null,null,null,null,null,null,null,null,null,null,null,null,null,0,"Open Space",{"$error":"#N/A"},{"$error":"#N/A"},"Open Space"]
[null,null,null,null,null,null,null,null,null,null,null,null,null,null,null,null,null,null,null,null,null,null,0,"Open Space",{"$error":"#N/A"},{"$error":"#N/A"},"Open Space"]
[null,null,null,null,null,null,null,null,null,null,null,null,null,null,null,null,null,null,null,null,null,null,0,"Open Space",{"$error":"#N/A"},{"$error":"#N/A"},"Open Space"]
[null,null,null,null,null,null,null,null,null,null,null,null,null,null,null,null,null,null,null,null,null,null,0,"Open Space",{"$error":"#N/A"},{"$error":"#N/A"},"Open Space"]
[null,null,null,null,null,null,null,null,null,null,null,null,null,null,null,null,null,null,null,null,null,null,0,"Open Space",{"$error":"#N/A"},{"$error":"#N/A"},"Open Space"]
[null,null,null,null,null,null,null,null,null,null,null,null,null,null,null,null,null,null,null,null,null,null,0,"Open Space",{"$error":"#N/A"},{"$error":"#N/A"},"Open Space"]
[null,null,null,null,null,null,null,null,null,null,null,null,null,null,null,null,null,null,null,null,null,null,0,"Open Space",{"$error":"#N/A"},{"$error":"#N/A"},"Open Space"]
[null,null,null,null,null,null,null,null,null,null,null,null,null,null,null,null,null,null,null,null,null,null,0,"Open Space",{"$error":"#N/A"},{"$error":"#N/A"},"Open Space"]
[null,null,null,null,null,null,null,null,null,null,null,null,null,null,null,null,null,null,null,null,null,null,0,"Open Space",{"$error":"#N/A"},{"$error":"#N/A"},"Open Space"]
[null,null,null,null,null,null,null,null,null,null,null,null,null,null,null,null,null,null,null,null,null,null,0,"Open Space",{"$error":"#N/A"},{"$error":"#N/A"},"Open Space"]
[null,null,null,null,null,null,null,null,null,null,null,null,null,null,null,null,null,null,null,null,null,null,0,"Open Space",{"$error":"#N/A"},{"$error":"#N/A"},"Open Space"]
[null,null,null,null,null,null,null,null,null,null,null,null,null,null,null,null,null,null,null,null,null,null,0,"Open Space",{"$error":"#N/A"},{"$error":"#N/A"},"Open Space"]
[null,null,null,null,null,null,null,null,null,null,null,null,null,null,null,null,null,null,null,null,null,null,0,"Open Space",{"$error":"#N/A"},{"$error":"#N/A"},"Open Space"]
[null,null,null,null,null,null,null,null,null,null,null,null,null,null,null,null,null,null,null,null,null,null,0,"Open Space",{"$error":"#N/A"},{"$error":"#N/A"},"Open Space"]
[null,null,null,null,null,null,null,null,null,null,null,null,null,null,null,null,null,null,null,null,null,null,0,"Open Space",{"$error":"#N/A"},{"$error":"#N/A"},"Open Space"]
[null,null,null,null,null,null,null,null,null,null,null,null,null,null,null,null,null,null,null,null,null,null,0,"Open Space",{"$error":"#N/A"},{"$error":"#N/A"},"Open Space"]
[null,null,null,null,null,null,null,null,null,null,null,null,null,null,null,null,null,null,null,null,null,null,0,"Open Space",{"$error":"#N/A"},{"$error":"#N/A"},"Open Space"]
[null,null,null,null,null,null,null,null,null,null,null,null,null,null,null,null,null,null,null,null,null,null,0,"Open Space",{"$error":"#N/A"},{"$error":"#N/A"},"Open Space"]
[null,null,null,null,null,null,null,null,null,null,null,null,null,null,null,null,null,null,null,null,null,null,0,"Open Space",{"$error":"#N/A"},{"$error":"#N/A"},"Open Space"]
[null,null,null,null,null,null,null,null,null,null,null,null,null,null,null,null,null,null,null,null,null,null,0,"Open Space",{"$error":"#N/A"},{"$error":"#N/A"},"Open Space"]
[null,null,null,null,null,null,null,null,null,null,null,null,null,null,null,null,null,null,null,null,null,null,0,"Open Space",{"$error":"#N/A"},{"$error":"#N/A"},"Open Space"]
[null,null,null,null,null,null,null,null,null,null,null,null,null,null,null,null,null,null,null,null,null,null,0,"Open Space",{"$error":"#N/A"},{"$error":"#N/A"},"Open Space"]
[null,null,null,null,null,null,null,null,null,null,null,null,null,null,null,null,null,null,null,null,null,null,0,"Open Space",{"$error":"#N/A"},{"$error":"#N/A"},"Open Space"]
[null,null,null,null,null,null,null,null,null,null,null,null,null,null,null,null,null,null,null,null,null,null,0,"Open Space",{"$error":"#N/A"},{"$error":"#N/A"},"Open Space"]
[null,null,null,null,null,null,null,null,null,null,null,null,null,null,null,null,null,null,null,null,null,null,0,"Open Space",{"$error":"#N/A"},{"$error":"#N/A"},"Open Space"]
[null,null,null,null,null,null,null,null,null,null,null,null,null,null,null,null,null,null,null,null,null,null,0,"Open Space",{"$error":"#N/A"},{"$error":"#N/A"},"Open Space"]
[null,null,null,null,null,null,null,null,null,null,null,null,null,null,null,null,null,null,null,null,null,null,0,"Open Space",{"$error":"#N/A"},{"$error":"#N/A"},"Open Space"]
[null,null,null,null,null,null,null,null,null,null,null,null,null,null,null,null,null,null,null,null,null,null,0,"Open Space",{"$error":"#N/A"},{"$error":"#N/A"},"Open Space"]
[null,null,null,null,null,null,null,null,null,null,null,null,null,null,null,null,null,null,null,null,null,null,0,"Open Space",{"$error":"#N/A"},{"$error":"#N/A"},"Open Space"]
[null,null,null,null,null,null,null,null,null,null,null,null,null,null,null,null,null,null,null,null,null,null,0,"Open Space",{"$error":"#N/A"},{"$error":"#N/A"},"Open Space"]
[null,null,null,null,null,null,null,null,null,null,null,null,null,null,null,null,null,null,null,null,null,null,0,"Open Space",{"$error":"#N/A"},{"$error":"#N/A"},"Open Space"]
[null,null,null,null,null,null,null,null,null,null,null,null,null,null,null,null,null,null,null,null,null,null,0,"Open Space",{"$error":"#N/A"},{"$error":"#N/A"},"Open Space"]
[null,null,null,null,null,null,null,null,null,null,null,null,null,null,null,null,null,null,null,null,null,null,0,"Open Space",{"$error":"#N/A"},{"$error":"#N/A"},"Open Space"]
[null,null,null,null,null,null,null,null,null,null,null,null,null,null,null,null,null,null,null,null,null,null,0,"Open Space",{"$error":"#N/A"},{"$error":"#N/A"},"Open Space"]
[null,null,null,null,null,null,null,null,null,null,null,null,null,null,null,null,null,null,null,null,null,null,0,"Open Space",{"$error":"#N/A"},{"$error":"#N/A"},"Open Space"]
[null,null,null,null,null,null,null,null,null,null,null,null,null,null,null,null,null,null,null,null,null,null,0,"Open Space",{"$error":"#N/A"},{"$error":"#N/A"},"Open Space"]
[null,null,null,null,null,null,null,null,null,null,null,null,null,null,null,null,null,null,null,null,null,null,0,"Open Space",{"$error":"#N/A"},{"$error":"#N/A"},"Open Space"]
[null,null,null,null,null,null,null,null,null,null,null,null,null,null,null,null,null,null,null,null,null,null,0,"Open Space",{"$error":"#N/A"},{"$error":"#N/A"},"Open Space"]
[null,null,null,null,null,null,null,null,null,null,null,null,null,null,null,null,null,null,null,null,null,null,0,"Open Space",{"$error":"#N/A"},{"$error":"#N/A"},"Open Space"]
[null,null,null,null,null,null,null,null,null,null,null,null,null,null,null,null,null,null,null,null,null,null,0,"Open Space",{"$error":"#N/A"},{"$error":"#N/A"},"Open Space"]
[null,null,null,null,null,null,null,null,null,null,null,null,null,null,null,null,null,null,null,null,null,null,0,"Open Space",{"$error":"#N/A"},{"$error":"#N/A"},"Open Space"]
[null,null,null,null,null,null,null,null,null,null,null,null,null,null,null,null,null,null,null,null,null,null,0,"Open Space",{"$error":"#N/A"},{"$error":"#N/A"},"Open Space"]
[null,null,null,null,null,null,null,null,null,null,null,null,null,null,null,null,null,null,null,null,null,null,0,"Open Space",{"$error":"#N/A"},{"$error":"#N/A"},"Open Space"]
[null,null,null,null,null,null,null,null,null,null,null,null,null,null,null,null,null,null,null,null,null,null,0,"Open Space",{"$error":"#N/A"},{"$error":"#N/A"},"Open Space"]
[null,null,null,null,null,null,null,null,null,null,null,null,null,null,null,null,null,null,null,null,null,null,0,"Open Space",{"$error":"#N/A"},{"$error":"#N/A"},"Open Space"]
[null,null,null,null,null,null,null,null,null,null,null,null,null,null,null,null,null,null,null,null,null,null,0,"Open Space",{"$error":"#N/A"},{"$error":"#N/A"},"Open Space"]
[null,null,null,null,null,null,null,null,null,null,null,null,null,null,null,null,null,null,null,null,null,null,0,"Open Space",{"$error":"#N/A"},{"$error":"#N/A"},"Open Space"]
[null,null,null,null,null,null,null,null,null,null,null,null,null,null,null,null,null,null,null,null,null,null,0,"Open Space",{"$error":"#N/A"},{"$error":"#N/A"},"Open Space"]
[null,null,null,null,null,null,null,null,null,null,null,null,null,null,null,null,null,null,null,null,null,null,0,"Open Space",{"$error":"#N/A"},{"$error":"#N/A"},"Open Space"]
[null,null,null,null,null,null,null,null,null,null,null,null,null,null,null,null,null,null,null,null,null,null,0,"Open Space",{"$error":"#N/A"},{"$error":"#N/A"},"Open Space"]
[null,null,null,null,null,null,null,null,null,null,null,null,null,null,null,null,null,null,null,null,null,null,0,"Open Space",{"$error":"#N/A"},{"$error":"#N/A"},"Open Space"]
[null,null,null,null,null,null,null,null,null,null,null,null,null,null,null,null,null,null,null,null,null,null,0,"Open Space",{"$error":"#N/A"},{"$error":"#N/A"},"Open Space"]
[null,null,null,null,null,null,null,null,null,null,null,null,null,null,null,null,null,null,null,null,null,null,0,"Open Space",{"$error":"#N/A"},{"$error":"#N/A"},"Open Space"]
[null,null,null,null,null,null,null,null,null,null,null,null,null,null,null,null,null,null,null,null,null,null,0,"Open Space",{"$error":"#N/A"},{"$error":"#N/A"},"Open Space"]
[null,null,null,null,null,null,null,null,null,null,null,null,null,null,null,null,null,null,null,null,null,null,0,"Open Space",{"$error":"#N/A"},{"$error":"#N/A"},"Open Space"]
[null,null,null,null,null,null,null,null,null,null,null,null,null,null,null,null,null,null,null,null,null,null,0,"Open Space",{"$error":"#N/A"},{"$error":"#N/A"},"Open Space"]
[null,null,null,null,null,null,null,null,null,null,null,null,null,null,null,null,null,null,null,null,null,null,0,"Open Space",{"$error":"#N/A"},{"$error":"#N/A"},"Open Space"]
[null,null,null,null,null,null,null,null,null,null,null,null,null,null,null,null,null,null,null,null,null,null,0,"Open Space",{"$error":"#N/A"},{"$error":"#N/A"},"Open Space"]
[null,null,null,null,null,null,null,null,null,null,null,null,null,null,null,null,null,null,null,null,null,null,0,"Open Space",{"$error":"#N/A"},{"$error":"#N/A"},"Open Space"]
[null,null,null,null,null,null,null,null,null,null,null,null,null,null,null,null,null,null,null,null,null,null,0,"Open Space",{"$error":"#N/A"},{"$error":"#N/A"},"Open Space"]
[null,null,null,null,null,null,null,null,null,null,null,null,null,null,null,null,null,null,null,null,null,null,0,"Open Space",{"$error":"#N/A"},{"$error":"#N/A"},"Open Space"]
[null,null,null,null,null,null,null,null,null,null,null,null,null,null,null,null,null,null,null,null,null,null,0,"Open Space",{"$error":"#N/A"},{"$error":"#N/A"},"Open Space"]
[null,null,null,null,null,null,null,null,null,null,null,null,null,null,null,null,null,null,null,null,null,null,0,"Open Space",{"$error":"#N/A"},{"$error":"#N/A"},"Open Space"]
[null,null,null,null,null,null,null,null,null,null,null,null,null,null,null,null,null,null,null,null,null,null,0,"Open Space",{"$error":"#N/A"},{"$error":"#N/A"},"Open Space"]
[null,null,null,null,null,null,null,null,null,null,null,null,null,null,null,null,null,null,null,null,null,null,0,"Open Space",{"$error":"#N/A"},{"$error":"#N/A"},"Open Space"]
[null,null,null,null,null,null,null,null,null,null,null,null,null,null,null,null,null,null,null,null,null,null,0,"Open Space",{"$error":"#N/A"},{"$error":"#N/A"},"Open Space"]
[null,null,null,null,null,null,null,null,null,null,null,null,null,null,null,null,null,null,null,null,null,null,0,"Open Space",{"$error":"#N/A"},{"$error":"#N/A"},"Open Space"]
[null,null,null,null,null,null,null,null,null,null,null,null,null,null,null,null,null,null,null,null,null,null,0,"Open Space",{"$error":"#N/A"},{"$error":"#N/A"},"Open Space"]
[null,null,null,null,null,null,null,null,null,null,null,null,null,null,null,null,null,null,null,null,null,null,0,"Open Space",{"$error":"#N/A"},{"$error":"#N/A"},"Open Space"]
[null,null,null,null,null,null,null,null,null,null,null,null,null,null,null,null,null,null,null,null,null,null,0,"Open Space",{"$error":"#N/A"},{"$error":"#N/A"},"Open Space"]
[null,null,null,null,null,null,null,null,null,null,null,null,null,null,null,null,null,null,null,null,null,null,0,"Open Space",{"$error":"#N/A"},{"$error":"#N/A"},"Open Space"]
[null,null,null,null,null,null,null,null,null,null,null,null,null,null,null,null,null,null,null,null,null,null,0,"Open Space",{"$error":"#N/A"},{"$error":"#N/A"},"Open Space"]
[null,null,null,null,null,null,null,null,null,null,null,null,null,null,null,null,null,null,null,null,null,null,0,"Open Space",{"$error":"#N/A"},{"$error":"#N/A"},"Open Space"]
[null,null,null,null,null,null,null,null,null,null,null,null,null,null,null,null,null,null,null,null,null,null,0,"Open Space",{"$error":"#N/A"},{"$error":"#N/A"},"Open Space"]
[null,null,null,null,null,null,null,null,null,null,null,null,null,null,null,null,null,null,null,null,null,null,0,"Open Space",{"$error":"#N/A"},{"$error":"#N/A"},"Open Space"]
[null,null,null,null,null,null,null,null,null,null,null,null,null,null,null,null,null,null,null,null,null,null,0,"Open Space",{"$error":"#N/A"},{"$error":"#N/A"},"Open Space"]
[null,null,null,null,null,null,null,null,null,null,null,null,null,null,null,null,null,null,null,null,null,null,0,"Open Space",{"$error":"#N/A"},{"$error":"#N/A"},"Open Space"]
[null,null,null,null,null,null,null,null,null,null,null,null,null,null,null,null,null,null,null,null,null,null,0,"Open Space",{"$error":"#N/A"},{"$error":"#N/A"},"Open Space"]
[null,null,null,null,null,null,null,null,null,null,null,null,null,null,null,null,null,null,null,null,null,null,0,"Open Space",{"$error":"#N/A"},{"$error":"#N/A"},"Open Space"]
[null,null,null,null,null,null,null,null,null,null,null,null,null,null,null,null,null,null,null,null,null,null,0,"Open Space",{"$error":"#N/A"},{"$error":"#N/A"},"Open Space"]
[null,null,null,null,null,null,null,null,null,null,null,null,null,null,null,null,null,null,null,null,null,null,0,"Open Space",{"$error":"#N/A"},{"$error":"#N/A"},"Open Space"]
[null,null,null,null,null,null,null,null,null,null,null,null,null,null,null,null,null,null,null,null,null,null,0,"Open Space",{"$error":"#N/A"},{"$error":"#N/A"},"Open Space"]
[null,null,null,null,null,null,null,null,null,null,null,null,null,null,null,null,null,null,null,null,null,null,0,"Open Space",{"$error":"#N/A"},{"$error":"#N/A"},"Open Space"]
[null,null,null,null,null,null,null,null,null,null,null,null,null,null,null,null,null,null,null,null,null,null,0,"Open Space",{"$error":"#N/A"},{"$error":"#N/A"},"Open Space"]
[null,null,null,null,null,null,null,null,null,null,null,null,null,null,null,null,null,null,null,null,null,null,0,"Open Space",{"$error":"#N/A"},{"$error":"#N/A"},"Open Space"]
[null,null,null,null,null,null,null,null,null,null,null,null,null,null,null,null,null,null,null,null,null,null,0,"Open Space",{"$error":"#N/A"},{"$error":"#N/A"},"Open Space"]
[null,null,null,null,null,null,null,null,null,null,null,null,null,null,null,null,null,null,null,null,null,null,0,"Open Space",{"$error":"#N/A"},{"$error":"#N/A"},"Open Space"]
[null,null,null,null,null,null,null,null,null,null,null,null,null,null,null,null,null,null,null,null,null,null,0,"Open Space",{"$error":"#N/A"},{"$error":"#N/A"},"Open Space"]
[null,null,null,null,null,null,null,null,null,null,null,null,null,null,null,null,null,null,null,null,null,null,0,"Open Space",{"$error":"#N/A"},{"$error":"#N/A"},"Open Space"]
[null,null,null,null,null,null,null,null,null,null,null,null,null,null,null,null,null,null,null,null,null,null,0,"Open Space",{"$error":"#N/A"},{"$error":"#N/A"},"Open Space"]
[null,null,null,null,null,null,null,null,null,null,null,null,null,null,null,null,null,null,null,null,null,null,0,"Open Space",{"$error":"#N/A"},{"$error":"#N/A"},"Open Space"]
[null,null,null,null,null,null,null,null,null,null,null,null,null,null,null,null,null,null,null,null,null,null,0,"Open Space",{"$error":"#N/A"},{"$error":"#N/A"},"Open Space"]
[null,null,null,null,null,null,null,null,null,null,null,null,null,null,null,null,null,null,null,null,null,null,0,"Open Space",{"$error":"#N/A"},{"$error":"#N/A"},"Open Space"]
[null,null,null,null,null,null,null,null,null,null,null,null,null,null,null,null,null,null,null,null,null,null,0,"Open Space",{"$error":"#N/A"},{"$error":"#N/A"},"Open Space"]
[null,null,null,null,null,null,null,null,null,null,null,null,null,null,null,null,null,null,null,null,null,null,0,"Open Space",{"$error":"#N/A"},{"$error":"#N/A"},"Open Space"]
[null,null,null,null,null,null,null,null,null,null,null,null,null,null,null,null,null,null,null,null,null,null,0,"Open Space",{"$error":"#N/A"},{"$error":"#N/A"},"Open Space"]
[null,null,null,null,null,null,null,null,null,null,null,null,null,null,null,null,null,null,null,null,null,null,0,"Open Space",{"$error":"#N/A"},{"$error":"#N/A"},"Open Space"]
[null,null,null,null,null,null,null,null,null,null,null,null,null,null,null,null,null,null,null,null,null,null,0,"",{"$error":"#N/A"},{"$error":"#N/A"},""]
[null,null,null,null,null,null,null,null,null,null,null,null,null,null,null,null,null,null,null,null,null,null,0,"Local sanitaire",{"$error":"#N/A"},{"$error":"#N/A"},"Local sanitaire"]
[null,null,null,null,null,null,null,null,null,null,null,null,null,null,null,null,null,null,null,null,null,null,0,"Local sanitaire",{"$error":"#N/A"},{"$error":"#N/A"},"Local sanitaire"]
[null,null,null,null,null,null,null,null,null,null,null,null,null,null,null,null,null,null,null,null,null,null,0,"Local sanitaire",{"$error":"#N/A"},{"$error":"#N/A"},"Local sanitaire"]
[null,null,null,null,null,null,null,null,null,null,null,null,null,null,null,null,null,null,null,null,null,null,0,"Local sanitaire",{"$error":"#N/A"},{"$error":"#N/A"},"Local sanitaire"]
[null,null,null,null,null,null,null,null,null,null,null,null,null,null,null,null,null,null,null,null,null,null,0,"Local sanitaire",{"$error":"#N/A"},{"$error":"#N/A"},"Local sanitaire"]
[null,null,null,null,null,null,null,null,null,null,null,null,null,null,null,null,null,null,null,null,null,null,0,"Local sanitaire",{"$error":"#N/A"},{"$error":"#N/A"},"Local sanitaire"]
[null,null,null,null,null,null,null,null,null,null,null,null,null,null,null,null,null,null,null,null,null,null,0,"Local sanitaire",{"$error":"#N/A"},{"$error":"#N/A"},"Local sanitaire"]
[null,null,null,null,null,null,null,null,null,null,null,null,null,null,null,null,null,null,null,null,null,null,"x","Local sanitaire",{"$error":"#N/A"},{"$error":"#N/A"},"Local sanitaire"]
[null,null,null,null,null,null,null,null,null,null,null,null,null,null,null,null,null,null,null,null,null,null,0,"Local sanitaire",{"$error":"#N/A"},{"$error":"#N/A"},"Local sanitaire"]
[null,null,null,null,null,null,null,null,null,null,null,null,null,null,null,null,null,null,null,null,null,null,0,"Local sanitaire",{"$error":"#N/A"},{"$error":"#N/A"},"Local sanitaire"]
[null,null,null,null,null,null,null,null,null,null,null,null,null,null,null,null,null,null,null,null,null,null,0,"Local sanitaire",{"$error":"#N/A"},{"$error":"#N/A"},"Local sanitaire"]
[null,null,null,null,null,null,null,null,null,null,null,null,null,null,null,null,null,null,null,null,null,null,0,"Local sanitaire",{"$error":"#N/A"},{"$error":"#N/A"},"Local sanitaire"]
[null,null,null,null,null,null,null,null,null,null,null,null,null,null,null,null,null,null,null,null,null,null,0,"Local sanitaire",{"$error":"#N/A"},{"$error":"#N/A"},"Local sanitaire"]
[null,null,null,null,null,null,null,null,null,null,null,null,null,null,null,null,null,null,null,null,null,null,0,"Local sanitaire",{"$error":"#N/A"},{"$error":"#N/A"},"Local sanitaire"]
[null,null,null,null,null,null,null,null,null,null,null,null,null,null,null,null,null,null,null,null,null,null,0,"Local sanitaire",{"$error":"#N/A"},{"$error":"#N/A"},"Local sanitaire"]
[null,null,null,null,null,null,null,null,null,null,null,null,null,null,null,null,null,null,null,null,null,null,0,"Local sanitaire",{"$error":"#N/A"},{"$error":"#N/A"},"Local sanitaire"]
[null,null,null,null,null,null,null,null,null,null,null,null,null,null,null,null,null,null,null,null,null,null,0,"Local sanitaire",{"$error":"#N/A"},{"$error":"#N/A"},"Local sanitaire"]
[null,null,null,null,null,null,null,null,null,null,null,null,null,null,null,null,null,null,null,null,null,null,0,"Local sanitaire",{"$error":"#N/A"},{"$error":"#N/A"},"Local sanitaire"]
[null,null,null,null,null,null,null,null,null,null,null,null,null,null,null,null,null,null,null,null,null,null,0,"Local sanitaire",{"$error":"#N/A"},{"$error":"#N/A"},"Local sanitaire"]
[null,null,null,null,null,null,null,null,null,null,null,null,null,null,null,null,null,null,null,null,null,null,0,"Local sanitaire",{"$error":"#N/A"},{"$error":"#N/A"},"Local sanitaire"]
[null,null,null,null,null,null,null,null,null,null,null,null,null,null,null,null,null,null,null,null,null,null,0,"Local sanitaire",{"$error":"#N/A"},{"$error":"#N/A"},"Local sanitaire"]
[null,null,null,null,null,null,null,null,null,null,null,null,null,null,null,null,null,null,null,null,null,null,0,"Local sanitaire",{"$error":"#N/A"},{"$error":"#N/A"},"Local sanitaire"]
[null,null,null,null,null,null,null,null,null,null,null,null,null,null,null,null,null,null,null,null,null,null,0,"Local sanitaire",{"$error":"#N/A"},{"$error":"#N/A"},"Local sanitaire"]
[null,null,null,null,null,null,null,null,null,null,null,null,null,null,null,null,null,null,null,null,null,null,0,"Local sanitaire",{"$error":"#N/A"},{"$error":"#N/A"},"Local sanitaire"]
[null,null,null,null,null,null,null,null,null,null,null,null,null,null,null,null,null,null,null,null,null,null,0,"Local sanitaire",{"$error":"#N/A"},{"$error":"#N/A"},"Local sanitaire"]
[null,null,null,null,null,null,null,null,null,null,null,null,null,null,null,null,null,null,null,null,null,null,0,"Local sanitaire",{"$error":"#N/A"},{"$error":"#N/A"},"Local sanitaire"]
[null,null,null,null,null,null,null,null,null,null,null,null,null,null,null,null,null,null,null,null,null,null,0,"Local sanitaire",{"$error":"#N/A"},{"$error":"#N/A"},"Local sanitaire"]
[null,null,null,null,null,null,null,null,null,null,null,null,null,null,null,null,null,null,null,null,null,null,0,"Local sanitaire",{"$error":"#N/A"},{"$error":"#N/A"},"Local sanitaire"]
[null,null,null,null,null,null,null,null,null,null,null,null,null,null,null,null,null,null,null,null,null,null,0,"Local sanitaire",{"$error":"#N/A"},{"$error":"#N/A"},"Local sanitaire"]
[null,null,null,null,null,null,null,null,null,null,null,null,null,null,null,null,null,null,null,null,null,null,0,"Local sanitaire",{"$error":"#N/A"},{"$error":"#N/A"},"Local sanitaire"]
[null,null,null,null,null,null,null,null,null,null,null,null,null,null,null,null,null,null,null,null,null,null,0,"Local sanitaire",{"$error":"#N/A"},{"$error":"#N/A"},"Local sanitaire"]
[null,null,null,null,null,null,null,null,null,null,null,null,null,null,null,null,null,null,null,null,null,null,0,"Local sanitaire",{"$error":"#N/A"},{"$error":"#N/A"},"Local sanitaire"]
[null,null,null,null,null,null,null,null,null,null,null,null,null,null,null,null,null,null,null,null,null,null,0,"Local sanitaire",{"$error":"#N/A"},{"$error":"#N/A"},"Local sanitaire"]
[null,null,null,null,null,null,null,null,null,null,null,null,null,null,null,null,null,null,null,null,null,null,0,"Local sanitaire",{"$error":"#N/A"},{"$error":"#N/A"},"Local sanitaire"]
[null,null,null,null,null,null,null,null,null,null,null,null,null,null,null,null,null,null,null,null,null,null,0,"Local sanitaire",{"$error":"#N/A"},{"$error":"#N/A"},"Local sanitaire"]
[null,null,null,null,null,null,null,null,null,null,null,null,null,null,null,null,null,null,null,null,null,null,0,"Local sanitaire",{"$error":"#N/A"},{"$error":"#N/A"},"Local sanitaire"]
[null,null,null,null,null,null,null,null,null,null,null,null,null,null,null,null,null,null,null,null,null,null,0,"Local sanitaire",{"$error":"#N/A"},{"$error":"#N/A"},"Local sanitaire"]
[null,null,null,null,null,null,null,null,null,null,null,null,null,null,null,null,null,null,null,null,null,null,0,"Local sanitaire",{"$error":"#N/A"},{"$error":"#N/A"},"Local sanitaire"]
[null,null,null,null,null,null,null,null,null,null,null,null,null,null,null,null,null,null,null,null,null,null,0,"Local sanitaire",{"$error":"#N/A"},{"$error":"#N/A"},"Local sanitaire"]
[null,null,null,null,null,null,null,null,null,null,null,null,null,null,null,null,null,null,null,null,null,null,0,"Local sanitaire",{"$error":"#N/A"},{"$error":"#N/A"},"Local sanitaire"]
[null,null,null,null,null,null,null,null,null,null,null,null,null,null,null,null,null,null,null,null,null,null,0,"Local sanitaire",{"$error":"#N/A"},{"$error":"#N/A"},"Local sanitaire"]
[null,null,null,null,null,null,null,null,null,null,null,null,null,null,null,null,null,null,null,null,null,null,0,"Local sanitaire",{"$error":"#N/A"},{"$error":"#N/A"},"Local sanitaire"]
[null,null,null,null,null,null,null,null,null,null,null,null,null,null,null,null,null,null,null,null,null,null,0,"Local sanitaire",{"$error":"#N/A"},{"$error":"#N/A"},"Local sanitaire"]
[null,null,null,null,null,null,null,null,null,null,null,null,null,null,null,null,null,null,null,null,null,null,0,"Local sanitaire",{"$error":"#N/A"},{"$error":"#N/A"},"Local sanitaire"]
[null,null,null,null,null,null,null,null,null,null,null,null,null,null,null,null,null,null,null,null,null,null,0,"Local sanitaire",{"$error":"#N/A"},{"$error":"#N/A"},"Local sanitaire"]
[null,null,null,null,null,null,null,null,null,null,null,null,null,null,null,null,null,null,null,null,null,null,0,"Local sanitaire",{"$error":"#N/A"},{"$error":"#N/A"},"Local sanitaire"]
[null,null,null,null,null,null,null,null,null,null,null,null,null,null,null,null,null,null,null,null,null,null,0,"Local sanitaire",{"$error":"#N/A"},{"$error":"#N/A"},"Local sanitaire"]
[null,null,null,null,null,null,null,null,null,null,null,null,null,null,null,null,null,null,null,null,null,null,0,"Local sanitaire",{"$error":"#N/A"},{"$error":"#N/A"},"Local sanitaire"]
[null,null,null,null,null,null,null,null,null,null,null,null,null,null,null,null,null,null,null,null,null,null,0,"Local sanitaire",{"$error":"#N/A"},{"$error":"#N/A"},"Local sanitaire"]
[null,null,null,null,null,null,null,null,null,null,null,null,null,null,null,null,null,null,null,null,null,null,0,"Local sanitaire",{"$error":"#N/A"},{"$error":"#N/A"},"Local sanitaire"]
[null,null,null,null,null,null,null,null,null,null,null,null,null,null,null,null,null,null,null,null,null,null,0,"Local sanitaire",{"$error":"#N/A"},{"$error":"#N/A"},"Local sanitaire"]
[null,null,null,null,null,null,null,null,null,null,null,null,null,null,null,null,null,null,null,null,null,null,0,"Local sanitaire",{"$error":"#N/A"},{"$error":"#N/A"},"Local sanitaire"]
[null,null,null,null,null,null,null,null,null,null,null,null,null,null,null,null,null,null,null,null,null,null,0,"Local sanitaire",{"$error":"#N/A"},{"$error":"#N/A"},"Local sanitaire"]
[null,null,null,null,null,null,null,null,null,null,null,null,null,null,null,null,null,null,null,null,null,null,0,"Local sanitaire",{"$error":"#N/A"},{"$error":"#N/A"},"Local sanitaire"]
[null,null,null,null,null,null,null,null,null,null,null,null,null,null,null,null,null,null,null,null,null,null,0,"Local sanitaire",{"$error":"#N/A"},{"$error":"#N/A"},"Local sanitaire"]
[null,null,null,null,null,null,null,null,null,null,null,null,null,null,null,null,null,null,null,null,null,null,0,"Local sanitaire",{"$error":"#N/A"},{"$error":"#N/A"},"Local sanitaire"]
[null,null,null,null,null,null,null,null,null,null,null,null,null,null,null,null,null,null,null,null,null,null,0,"Local sanitaire",{"$error":"#N/A"},{"$error":"#N/A"},"Local sanitaire"]
[null,null,null,null,null,null,null,null,null,null,null,null,null,null,null,null,null,null,null,null,null,null,0,"Local sanitaire",{"$error":"#N/A"},{"$error":"#N/A"},"Local sanitaire"]
[null,null,null,null,null,null,null,null,null,null,null,null,null,null,null,null,null,null,null,null,null,null,0,"Local sanitaire",{"$error":"#N/A"},{"$error":"#N/A"},"Local sanitaire"]
[null,null,null,null,null,null,null,null,null,null,null,null,null,null,null,null,null,null,null,null,null,null,0,"Local sanitaire",{"$error":"#N/A"},{"$error":"#N/A"},"Local sanitaire"]
[null,null,null,null,null,null,null,null,null,null,null,null,null,null,null,null,null,null,null,null,null,null,0,"Local sanitaire",{"$error":"#N/A"},{"$error":"#N/A"},"Local sanitaire"]
[null,null,null,null,null,null,null,null,null,null,null,null,null,null,null,null,null,null,null,null,null,null,0,"Local sanitaire",{"$error":"#N/A"},{"$error":"#N/A"},"Local sanitaire"]
[null,null,null,null,null,null,null,null,null,null,null,null,null,null,null,null,null,null,null,null,null,null,0,"Local sanitaire",{"$error":"#N/A"},{"$error":"#N/A"},"Local sanitaire"]
[null,null,null,null,null,null,null,null,null,null,null,null,null,null,null,null,null,null,null,null,null,null,0,"Local sanitaire",{"$error":"#N/A"},{"$error":"#N/A"},"Local sanitaire"]
[null,null,null,null,null,null,null,null,null,null,null,null,null,null,null,null,null,null,null,null,null,null,0,"Local sanitaire",{"$error":"#N/A"},{"$error":"#N/A"},"Local sanitaire"]
[null,null,null,null,null,null,null,null,null,null,null,null,null,null,null,null,null,null,null,null,null,null,0,"Local sanitaire",{"$error":"#N/A"},{"$error":"#N/A"},"Local sanitaire"]
[null,null,null,null,null,null,null,null,null,null,null,null,null,null,null,null,null,null,null,null,null,null,0,"Local sanitaire",{"$error":"#N/A"},{"$error":"#N/A"},"Local sanitaire"]
[null,null,null,null,null,null,null,null,null,null,null,null,null,null,null,null,null,null,null,null,null,null,0,"Local sanitaire",{"$error":"#N/A"},{"$error":"#N/A"},"Local sanitaire"]
[null,null,null,null,null,null,null,null,null,null,null,null,null,null,null,null,null,null,null,null,null,null,0,"Local sanitaire",{"$error":"#N/A"},{"$error":"#N/A"},"Local sanitaire"]
[null,null,null,null,null,null,null,null,null,null,null,null,null,null,null,null,null,null,null,null,null,null,0,"Local sanitaire",{"$error":"#N/A"},{"$error":"#N/A"},"Local sanitaire"]
[null,null,null,null,null,null,null,null,null,null,null,null,null,null,null,null,null,null,null,null,null,null,0,"Local sanitaire",{"$error":"#N/A"},{"$error":"#N/A"},"Local sanitaire"]
[null,null,null,null,null,null,null,null,null,null,null,null,null,null,null,null,null,null,null,null,null,null,0,"Local sanitaire",{"$error":"#N/A"},{"$error":"#N/A"},"Local sanitaire"]
[null,null,null,null,null,null,null,null,null,null,null,null,null,null,null,null,null,null,null,null,null,null,0,"Local sanitaire",{"$error":"#N/A"},{"$error":"#N/A"},"Local sanitaire"]
[null,null,null,null,null,null,null,null,null,null,null,null,null,null,null,null,null,null,null,null,null,null,0,"Local sanitaire",{"$error":"#N/A"},{"$error":"#N/A"},"Local sanitaire"]
[null,null,null,null,null,null,null,null,null,null,null,null,null,null,null,null,null,null,null,null,null,null,0,"Local sanitaire",{"$error":"#N/A"},{"$error":"#N/A"},"Local sanitaire"]
[null,null,null,null,null,null,null,null,null,null,null,null,null,null,null,null,null,null,null,null,null,null,0,"Local sanitaire",{"$error":"#N/A"},{"$error":"#N/A"},"Local sanitaire"]
[null,null,null,null,null,null,null,null,null,null,null,null,null,null,null,null,null,null,null,null,null,null,0,"Local sanitaire",{"$error":"#N/A"},{"$error":"#N/A"},"Local sanitaire"]
[null,null,null,null,null,null,null,null,null,null,null,null,null,null,null,null,null,null,null,null,null,null,0,"Local sanitaire",{"$error":"#N/A"},{"$error":"#N/A"},"Local sanitaire"]
[null,null,null,null,null,null,null,null,null,null,null,null,null,null,null,null,null,null,null,null,null,null,0,"Local sanitaire",{"$error":"#N/A"},{"$error":"#N/A"},"Local sanitaire"]
[null,null,null,null,null,null,null,null,null,null,null,null,null,null,null,null,null,null,null,null,null,null,0,"Local sanitaire",{"$error":"#N/A"},{"$error":"#N/A"},"Local sanitaire"]
[null,null,null,null,null,null,null,null,null,null,null,null,null,null,null,null,null,null,null,null,null,null,0,"Local sanitaire",{"$error":"#N/A"},{"$error":"#N/A"},"Local sanitaire"]
[null,null,null,null,null,null,null,null,null,null,null,null,null,null,null,null,null,null,null,null,null,null,0,"Local sanitaire",{"$error":"#N/A"},{"$error":"#N/A"},"Local sanitaire"]
[null,null,null,null,null,null,null,null,null,null,null,null,null,null,null,null,null,null,null,null,null,null,0,"Local sanitaire",{"$error":"#N/A"},{"$error":"#N/A"},"Local sanitaire"]
[null,null,null,null,null,null,null,null,null,null,null,null,null,null,null,null,null,null,null,null,null,null,0,"Local sanitaire",{"$error":"#N/A"},{"$error":"#N/A"},"Local sanitaire"]
[null,null,null,null,null,null,null,null,null,null,null,null,null,null,null,null,null,null,null,null,null,null,0,"Local sanitaire",{"$error":"#N/A"},{"$error":"#N/A"},"Local sanitaire"]
[null,null,null,null,null,null,null,null,null,null,null,null,null,null,null,null,null,null,null,null,null,null,0,"Local sanitaire",{"$error":"#N/A"},{"$error":"#N/A"},"Local sanitaire"]
[null,null,null,null,null,null,null,null,null,null,null,null,null,null,null,null,null,null,null,null,null,null,0,"Local sanitaire",{"$error":"#N/A"},{"$error":"#N/A"},"Local sanitaire"]
[null,null,null,null,null,null,null,null,null,null,null,null,null,null,null,null,null,null,null,null,null,null,0,"Local sanitaire",{"$error":"#N/A"},{"$error":"#N/A"},"Local sanitaire"]
[null,null,null,null,null,null,null,null,null,null,null,null,null,null,null,null,null,null,null,null,null,null,0,"Local sanitaire",{"$error":"#N/A"},{"$error":"#N/A"},"Local sanitaire"]
[null,null,null,null,null,null,null,null,null,null,null,null,null,null,null,null,null,null,null,null,null,null,0,"Local sanitaire",{"$error":"#N/A"},{"$error":"#N/A"},"Local sanitaire"]
[null,null,null,null,null,null,null,null,null,null,null,null,null,null,null,null,null,null,null,null,null,null,0,"Local sanitaire",{"$error":"#N/A"},{"$error":"#N/A"},"Local sanitaire"]
[null,null,null,null,null,null,null,null,null,null,null,null,null,null,null,null,null,null,null,null,null,null,0,"Local sanitaire",{"$error":"#N/A"},{"$error":"#N/A"},"Local sanitaire"]
[null,null,null,null,null,null,null,null,null,null,null,null,null,null,null,null,null,null,null,null,null,null,0,"Local sanitaire",{"$error":"#N/A"},{"$error":"#N/A"},"Local sanitaire"]
[null,null,null,null,null,null,null,null,null,null,null,null,null,null,null,null,null,null,null,null,null,null,0,"Local sanitaire",{"$error":"#N/A"},{"$error":"#N/A"},"Local sanitaire"]
[null,null,null,null,null,null,null,null,null,null,null,null,null,null,null,null,null,null,null,null,null,null,0,"Local sanitaire",{"$error":"#N/A"},{"$error":"#N/A"},"Local sanitaire"]
[null,null,null,null,null,null,null,null,null,null,null,null,null,null,null,null,null,null,null,null,null,null,0,"Local sanitaire",{"$error":"#N/A"},{"$error":"#N/A"},"Local sanitaire"]
[null,null,null,null,null,null,null,null,null,null,null,null,null,null,null,null,null,null,null,null,null,null,0,"Local sanitaire",{"$error":"#N/A"},{"$error":"#N/A"},"Local sanitaire"]
[null,null,null,null,null,null,null,null,null,null,null,null,null,null,null,null,null,null,null,null,null,null,0,"Local sanitaire",{"$error":"#N/A"},{"$error":"#N/A"},"Local sanitaire"]
[null,null,null,null,null,null,null,null,null,null,null,null,null,null,null,null,null,null,null,null,null,null,0,"Local sanitaire",{"$error":"#N/A"},{"$error":"#N/A"},"Local sanitaire"]
[null,null,null,null,null,null,null,null,null,null,null,null,null,null,null,null,null,null,null,null,null,null,0,"Local sanitaire",{"$error":"#N/A"},{"$error":"#N/A"},"Local sanitaire"]
[null,null,null,null,null,null,null,null,null,null,null,null,null,null,null,null,null,null,null,null,null,null,0,"Local sanitaire",{"$error":"#N/A"},{"$error":"#N/A"},"Local sanitaire"]
[null,null,null,null,null,null,null,null,null,null,null,null,null,null,null,null,null,null,null,null,null,null,0,"Local sanitaire",{"$error":"#N/A"},{"$error":"#N/A"},"Local sanitaire"]
[null,null,null,null,null,null,null,null,null,null,null,null,null,null,null,null,null,null,null,null,null,null,0,"Local sanitaire",{"$error":"#N/A"},{"$error":"#N/A"},"Local sanitaire"]
[null,null,null,null,null,null,null,null,null,null,null,null,null,null,null,null,null,null,null,null,null,null,0,"Local sanitaire",{"$error":"#N/A"},{"$error":"#N/A"},"Local sanitaire"]
[null,null,null,null,null,null,null,null,null,null,null,null,null,null,null,null,null,null,null,null,null,null,0,"Local sanitaire",{"$error":"#N/A"},{"$error":"#N/A"},"Local sanitaire"]
[null,null,null,null,null,null,null,null,null,null,null,null,null,null,null,null,null,null,null,null,null,null,0,"Local sanitaire",{"$error":"#N/A"},{"$error":"#N/A"},"Local sanitaire"]
[null,null,null,null,null,null,null,null,null,null,null,null,null,null,null,null,null,null,null,null,null,null,0,"Local sanitaire",{"$error":"#N/A"},{"$error":"#N/A"},"Local sanitaire"]
[null,null,null,null,null,null,null,null,null,null,null,null,null,null,null,null,null,null,null,null,null,null,0,"Local sanitaire",{"$error":"#N/A"},{"$error":"#N/A"},"Local sanitaire"]
[null,null,null,null,null,null,null,null,null,null,null,null,null,null,null,null,null,null,null,null,null,null,0,"Local sanitaire",{"$error":"#N/A"},{"$error":"#N/A"},"Local sanitaire"]
[null,null,null,null,null,null,null,null,null,null,null,null,null,null,null,null,null,null,null,null,null,null,0,"Local sanitaire",{"$error":"#N/A"},{"$error":"#N/A"},"Local sanitaire"]
[null,null,null,null,null,null,null,null,null,null,null,null,null,null,null,null,null,null,null,null,null,null,0,"Local sanitaire",{"$error":"#N/A"},{"$error":"#N/A"},"Local sanitaire"]
[null,null,null,null,null,null,null,null,null,null,null,null,null,null,null,null,null,null,null,null,null,null,0,"Local sanitaire",{"$error":"#N/A"},{"$error":"#N/A"},"Local sanitaire"]
[null,null,null,null,null,null,null,null,null,null,null,null,null,null,null,null,null,null,null,null,null,null,0,"Local sanitaire",{"$error":"#N/A"},{"$error":"#N/A"},"Local sanitaire"]
[null,null,null,null,null,null,null,null,null,null,null,null,null,null,null,null,null,null,null,null,null,null,0,"Local sanitaire",{"$error":"#N/A"},{"$error":"#N/A"},"Local sanitaire"]
[null,null,null,null,null,null,null,null,null,null,null,null,null,null,null,null,null,null,null,null,null,null,0,"Local sanitaire",{"$error":"#N/A"},{"$error":"#N/A"},"Local sanitaire"]
[null,null,null,null,null,null,null,null,null,null,null,null,null,null,null,null,null,null,null,null,null,null,0,"Local sanitaire",{"$error":"#N/A"},{"$error":"#N/A"},"Local sanitaire"]
[null,null,null,null,null,null,null,null,null,null,null,null,null,null,null,null,null,null,null,null,null,null,0,"Local sanitaire",{"$error":"#N/A"},{"$error":"#N/A"},"Local sanitaire"]
[null,null,null,null,null,null,null,null,null,null,null,null,null,null,null,null,null,null,null,null,null,null,0,"Local sanitaire",{"$error":"#N/A"},{"$error":"#N/A"},"Local sanitaire"]
[null,null,null,null,null,null,null,null,null,null,null,null,null,null,null,null,null,null,null,null,null,null,0,"Local sanitaire",{"$error":"#N/A"},{"$error":"#N/A"},"Local sanitaire"]
[null,null,null,null,null,null,null,null,null,null,null,null,null,null,null,null,null,null,null,null,null,null,0,"Local sanitaire",{"$error":"#N/A"},{"$error":"#N/A"},"Local sanitaire"]
[null,null,null,null,null,null,null,null,null,null,null,null,null,null,null,null,null,null,null,null,null,null,0,"Local sanitaire",{"$error":"#N/A"},{"$error":"#N/A"},"Local sanitaire"]
[null,null,null,null,null,null,null,null,null,null,null,null,null,null,null,null,null,null,null,null,null,null,0,"Local sanitaire",{"$error":"#N/A"},{"$error":"#N/A"},"Local sanitaire"]
[null,null,null,null,null,null,null,null,null,null,null,null,null,null,null,null,null,null,null,null,null,null,0,"Local sanitaire",{"$error":"#N/A"},{"$error":"#N/A"},"Local sanitaire"]
[null,null,null,null,null,null,null,null,null,null,null,null,null,null,null,null,null,null,null,null,null,null,0,"Local sanitaire",{"$error":"#N/A"},{"$error":"#N/A"},"Local sanitaire"]
[null,null,null,null,null,null,null,null,null,null,null,null,null,null,null,null,null,null,null,null,null,null,0,"Local sanitaire",{"$error":"#N/A"},{"$error":"#N/A"},"Local sanitaire"]
[null,null,null,null,null,null,null,null,null,null,null,null,null,null,null,null,null,null,null,null,null,null,0,"Local sanitaire",{"$error":"#N/A"},{"$error":"#N/A"},"Local sanitaire"]
[null,null,null,null,null,null,null,null,null,null,null,null,null,null,null,null,null,null,null,null,null,null,0,"Local sanitaire",{"$error":"#N/A"},{"$error":"#N/A"},"Local sanitaire"]
[null,null,null,null,null,null,null,null,null,null,null,null,null,null,null,null,null,null,null,null,null,null,0,"Local sanitaire",{"$error":"#N/A"},{"$error":"#N/A"},"Local sanitaire"]
[null,null,null,null,null,null,null,null,null,null,null,null,null,null,null,null,null,null,null,null,null,null,0,"Local sanitaire",{"$error":"#N/A"},{"$error":"#N/A"},"Local sanitaire"]
[null,null,null,null,null,null,null,null,null,null,null,null,null,null,null,null,null,null,null,null,null,null,0,"Local sanitaire",{"$error":"#N/A"},{"$error":"#N/A"},"Local sanitaire"]
[null,null,null,null,null,null,null,null,null,null,null,null,null,null,null,null,null,null,null,null,null,null,0,"Local sanitaire",{"$error":"#N/A"},{"$error":"#N/A"},"Local sanitaire"]
[null,null,null,null,null,null,null,null,null,null,null,null,null,null,null,null,null,null,null,null,null,null,0,"Local sanitaire",{"$error":"#N/A"},{"$error":"#N/A"},"Local sanitaire"]
[null,null,null,null,null,null,null,null,null,null,null,null,null,null,null,null,null,null,null,null,null,null,0,"Local sanitaire",{"$error":"#N/A"},{"$error":"#N/A"},"Local sanitaire"]
[null,null,null,null,null,null,null,null,null,null,null,null,null,null,null,null,null,null,null,null,null,null,0,"Local sanitaire",{"$error":"#N/A"},{"$error":"#N/A"},"Local sanitaire"]
[null,null,null,null,null,null,null,null,null,null,null,null,null,null,null,null,null,null,null,null,null,null,0,"Local sanitaire",{"$error":"#N/A"},{"$error":"#N/A"},"Local sanitaire"]
[null,null,null,null,null,null,null,null,null,null,null,null,null,null,null,null,null,null,null,null,null,null,0,"Local sanitaire",{"$error":"#N/A"},{"$error":"#N/A"},"Local sanitaire"]
[null,null,null,null,null,null,null,null,null,null,null,null,null,null,null,null,null,null,null,null,null,null,0,"Local sanitaire",{"$error":"#N/A"},{"$error":"#N/A"},"Local sanitaire"]
[null,null,null,null,null,null,null,null,null,null,null,null,null,null,null,null,null,null,null,null,null,null,0,"Local sanitaire",{"$error":"#N/A"},{"$error":"#N/A"},"Local sanitaire"]
[null,null,null,null,null,null,null,null,null,null,null,null,null,null,null,null,null,null,null,null,null,null,0,"Local sanitaire",{"$error":"#N/A"},{"$error":"#N/A"},"Local sanitaire"]
[null,null,null,null,null,null,null,null,null,null,null,null,null,null,null,null,null,null,null,null,null,null,0,"Local sanitaire",{"$error":"#N/A"},{"$error":"#N/A"},"Local sanitaire"]
[null,null,null,null,null,null,null,null,null,null,null,null,null,null,null,null,null,null,null,null,null,null,0,"Local sanitaire",{"$error":"#N/A"},{"$error":"#N/A"},"Local sanitaire"]
[null,null,null,null,null,null,null,null,null,null,null,null,null,null,null,null,null,null,null,null,null,null,0,"Local sanitaire",{"$error":"#N/A"},{"$error":"#N/A"},"Local sanitaire"]
[null,null,null,null,null,null,null,null,null,null,null,null,null,null,null,null,null,null,null,null,null,null,0,"Local sanitaire",{"$error":"#N/A"},{"$error":"#N/A"},"Local sanitaire"]
[null,null,null,null,null,null,null,null,null,null,null,null,null,null,null,null,null,null,null,null,null,null,0,"Local sanitaire",{"$error":"#N/A"},{"$error":"#N/A"},"Local sanitaire"]
[null,null,null,null,null,null,null,null,null,null,null,null,null,null,null,null,null,null,null,null,null,null,0,"Local sanitaire",{"$error":"#N/A"},{"$error":"#N/A"},"Local sanitaire"]
[null,null,null,null,null,null,null,null,null,null,null,null,null,null,null,null,null,null,null,null,null,null,0,"Local sanitaire",{"$error":"#N/A"},{"$error":"#N/A"},"Local sanitaire"]
[null,null,null,null,null,null,null,null,null,null,null,null,null,null,null,null,null,null,null,null,null,null,0,"Local sanitaire",{"$error":"#N/A"},{"$error":"#N/A"},"Local sanitaire"]
[null,null,null,null,null,null,null,null,null,null,null,null,null,null,null,null,null,null,null,null,null,null,0,"Local sanitaire",{"$error":"#N/A"},{"$error":"#N/A"},"Local sanitaire"]
[null,null,null,null,null,null,null,null,null,null,null,null,null,null,null,null,null,null,null,null,null,null,0,"Local sanitaire",{"$error":"#N/A"},{"$error":"#N/A"},"Local sanitaire"]
[null,null,null,null,null,null,null,null,null,null,null,null,null,null,null,null,null,null,null,null,null,null,0,"",{"$error":"#N/A"},{"$error":"#N/A"},""]
[null,null,null,null,null,null,null,null,null,null,null,null,null,null,null,null,null,null,null,null,null,null,0,"Douche",{"$error":"#N/A"},{"$error":"#N/A"},"Douche"]
[null,null,null,null,null,null,null,null,null,null,null,null,null,null,null,null,null,null,null,null,null,null,0,"Douche",{"$error":"#N/A"},{"$error":"#N/A"},"Douche"]
[null,null,null,null,null,null,null,null,null,null,null,null,null,null,null,null,null,null,null,null,null,null,0,"Douche",{"$error":"#N/A"},{"$error":"#N/A"},"Douche"]
[null,null,null,null,null,null,null,null,null,null,null,null,null,null,null,null,null,null,null,null,null,null,"x","Douche",{"$error":"#N/A"},{"$error":"#N/A"},"Douche"]
[null,null,null,null,null,null,null,null,null,null,null,null,null,null,null,null,null,null,null,null,null,null,0,"Douche",{"$error":"#N/A"},{"$error":"#N/A"},"Douche"]
[null,null,null,null,null,null,null,null,null,null,null,null,null,null,null,null,null,null,null,null,null,null,0,"Douche",{"$error":"#N/A"},{"$error":"#N/A"},"Douche"]
[null,null,null,null,null,null,null,null,null,null,null,null,null,null,null,null,null,null,null,null,null,null,0,"Douche",{"$error":"#N/A"},{"$error":"#N/A"},"Douche"]
[null,null,null,null,null,null,null,null,null,null,null,null,null,null,null,null,null,null,null,null,null,null,0,"Douche",{"$error":"#N/A"},{"$error":"#N/A"},"Douche"]
[null,null,null,null,null,null,null,null,null,null,null,null,null,null,null,null,null,null,null,null,null,null,0,"Douche",{"$error":"#N/A"},{"$error":"#N/A"},"Douche"]
[null,null,null,null,null,null,null,null,null,null,null,null,null,null,null,null,null,null,null,null,null,null,0,"Douche",{"$error":"#N/A"},{"$error":"#N/A"},"Douche"]
[null,null,null,null,null,null,null,null,null,null,null,null,null,null,null,null,null,null,null,null,null,null,0,"Douche",{"$error":"#N/A"},{"$error":"#N/A"},"Douche"]
[null,null,null,null,null,null,null,null,null,null,null,null,null,null,null,null,null,null,null,null,null,null,0,"Douche",{"$error":"#N/A"},{"$error":"#N/A"},"Douche"]
[null,null,null,null,null,null,null,null,null,null,null,null,null,null,null,null,null,null,null,null,null,null,0,"Douche",{"$error":"#N/A"},{"$error":"#N/A"},"Douche"]
[null,null,null,null,null,null,null,null,null,null,null,null,null,null,null,null,null,null,null,null,null,null,0,"Douche",{"$error":"#N/A"},{"$error":"#N/A"},"Douche"]
[null,null,null,null,null,null,null,null,null,null,null,null,null,null,null,null,null,null,null,null,null,null,0,"Douche",{"$error":"#N/A"},{"$error":"#N/A"},"Douche"]
[null,null,null,null,null,null,null,null,null,null,null,null,null,null,null,null,null,null,null,null,null,null,0,"Douche",{"$error":"#N/A"},{"$error":"#N/A"},"Douche"]
[null,null,null,null,null,null,null,null,null,null,null,null,null,null,null,null,null,null,null,null,null,null,0,"Douche",{"$error":"#N/A"},{"$error":"#N/A"},"Douche"]
[null,null,null,null,null,null,null,null,null,null,null,null,null,null,null,null,null,null,null,null,null,null,0,"Douche",{"$error":"#N/A"},{"$error":"#N/A"},"Douche"]
[null,null,null,null,null,null,null,null,null,null,null,null,null,null,null,null,null,null,null,null,null,null,0,"Douche",{"$error":"#N/A"},{"$error":"#N/A"},"Douche"]
[null,null,null,null,null,null,null,null,null,null,null,null,null,null,null,null,null,null,null,null,null,null,0,"Douche",{"$error":"#N/A"},{"$error":"#N/A"},"Douche"]
[null,null,null,null,null,null,null,null,null,null,null,null,null,null,null,null,null,null,null,null,null,null,0,"Douche",{"$error":"#N/A"},{"$error":"#N/A"},"Douche"]
[null,null,null,null,null,null,null,null,null,null,null,null,null,null,null,null,null,null,null,null,null,null,0,"Douche",{"$error":"#N/A"},{"$error":"#N/A"},"Douche"]
[null,null,null,null,null,null,null,null,null,null,null,null,null,null,null,null,null,null,null,null,null,null,0,"Douche",{"$error":"#N/A"},{"$error":"#N/A"},"Douche"]
[null,null,null,null,null,null,null,null,null,null,null,null,null,null,null,null,null,null,null,null,null,null,0,"Douche",{"$error":"#N/A"},{"$error":"#N/A"},"Douche"]
[null,null,null,null,null,null,null,null,null,null,null,null,null,null,null,null,null,null,null,null,null,null,0,"Douche",{"$error":"#N/A"},{"$error":"#N/A"},"Douche"]
[null,null,null,null,null,null,null,null,null,null,null,null,null,null,null,null,null,null,null,null,null,null,0,"Douche",{"$error":"#N/A"},{"$error":"#N/A"},"Douche"]
[null,null,null,null,null,null,null,null,null,null,null,null,null,null,null,null,null,null,null,null,null,null,0,"Douche",{"$error":"#N/A"},{"$error":"#N/A"},"Douche"]
[null,null,null,null,null,null,null,null,null,null,null,null,null,null,null,null,null,null,null,null,null,null,0,"Douche",{"$error":"#N/A"},{"$error":"#N/A"},"Douche"]
[null,null,null,null,null,null,null,null,null,null,null,null,null,null,null,null,null,null,null,null,null,null,0,"Douche",{"$error":"#N/A"},{"$error":"#N/A"},"Douche"]
[null,null,null,null,null,null,null,null,null,null,null,null,null,null,null,null,null,null,null,null,null,null,0,"Douche",{"$error":"#N/A"},{"$error":"#N/A"},"Douche"]
[null,null,null,null,null,null,null,null,null,null,null,null,null,null,null,null,null,null,null,null,null,null,0,"Douche",{"$error":"#N/A"},{"$error":"#N/A"},"Douche"]
[null,null,null,null,null,null,null,null,null,null,null,null,null,null,null,null,null,null,null,null,null,null,0,"Douche",{"$error":"#N/A"},{"$error":"#N/A"},"Douche"]
[null,null,null,null,null,null,null,null,null,null,null,null,null,null,null,null,null,null,null,null,null,null,0,"Douche",{"$error":"#N/A"},{"$error":"#N/A"},"Douche"]
[null,null,null,null,null,null,null,null,null,null,null,null,null,null,null,null,null,null,null,null,null,null,0,"Douche",{"$error":"#N/A"},{"$error":"#N/A"},"Douche"]
[null,null,null,null,null,null,null,null,null,null,null,null,null,null,null,null,null,null,null,null,null,null,0,"Douche",{"$error":"#N/A"},{"$error":"#N/A"},"Douche"]
[null,null,null,null,null,null,null,null,null,null,null,null,null,null,null,null,null,null,null,null,null,null,0,"Douche",{"$error":"#N/A"},{"$error":"#N/A"},"Douche"]
[null,null,null,null,null,null,null,null,null,null,null,null,null,null,null,null,null,null,null,null,null,null,0,"Douche",{"$error":"#N/A"},{"$error":"#N/A"},"Douche"]
[null,null,null,null,null,null,null,null,null,null,null,null,null,null,null,null,null,null,null,null,null,null,0,"Douche",{"$error":"#N/A"},{"$error":"#N/A"},"Douche"]
[null,null,null,null,null,null,null,null,null,null,null,null,null,null,null,null,null,null,null,null,null,null,0,"Douche",{"$error":"#N/A"},{"$error":"#N/A"},"Douche"]
[null,null,null,null,null,null,null,null,null,null,null,null,null,null,null,null,null,null,null,null,null,null,0,"Douche",{"$error":"#N/A"},{"$error":"#N/A"},"Douche"]
[null,null,null,null,null,null,null,null,null,null,null,null,null,null,null,null,null,null,null,null,null,null,0,"Douche",{"$error":"#N/A"},{"$error":"#N/A"},"Douche"]
[null,null,null,null,null,null,null,null,null,null,null,null,null,null,null,null,null,null,null,null,null,null,0,"Douche",{"$error":"#N/A"},{"$error":"#N/A"},"Douche"]
[null,null,null,null,null,null,null,null,null,null,null,null,null,null,null,null,null,null,null,null,null,null,0,"Douche",{"$error":"#N/A"},{"$error":"#N/A"},"Douche"]
[null,null,null,null,null,null,null,null,null,null,null,null,null,null,null,null,null,null,null,null,null,null,0,"Douche",{"$error":"#N/A"},{"$error":"#N/A"},"Douche"]
[null,null,null,null,null,null,null,null,null,null,null,null,null,null,null,null,null,null,null,null,null,null,0,"Douche",{"$error":"#N/A"},{"$error":"#N/A"},"Douche"]
[null,null,null,null,null,null,null,null,null,null,null,null,null,null,null,null,null,null,null,null,null,null,0,"Douche",{"$error":"#N/A"},{"$error":"#N/A"},"Douche"]
[null,null,null,null,null,null,null,null,null,null,null,null,null,null,null,null,null,null,null,null,null,null,0,"Douche",{"$error":"#N/A"},{"$error":"#N/A"},"Douche"]
[null,null,null,null,null,null,null,null,null,null,null,null,null,null,null,null,null,null,null,null,null,null,0,"Douche",{"$error":"#N/A"},{"$error":"#N/A"},"Douche"]
[null,null,null,null,null,null,null,null,null,null,null,null,null,null,null,null,null,null,null,null,null,null,0,"Douche",{"$error":"#N/A"},{"$error":"#N/A"},"Douche"]
[null,null,null,null,null,null,null,null,null,null,null,null,null,null,null,null,null,null,null,null,null,null,0,"Douche",{"$error":"#N/A"},{"$error":"#N/A"},"Douche"]
[null,null,null,null,null,null,null,null,null,null,null,null,null,null,null,null,null,null,null,null,null,null,0,"Douche",{"$error":"#N/A"},{"$error":"#N/A"},"Douche"]
[null,null,null,null,null,null,null,null,null,null,null,null,null,null,null,null,null,null,null,null,null,null,0,"Douche",{"$error":"#N/A"},{"$error":"#N/A"},"Douche"]
[null,null,null,null,null,null,null,null,null,null,null,null,null,null,null,null,null,null,null,null,null,null,0,"Douche",{"$error":"#N/A"},{"$error":"#N/A"},"Douche"]
[null,null,null,null,null,null,null,null,null,null,null,null,null,null,null,null,null,null,null,null,null,null,0,"Douche",{"$error":"#N/A"},{"$error":"#N/A"},"Douche"]
[null,null,null,null,null,null,null,null,null,null,null,null,null,null,null,null,null,null,null,null,null,null,0,"Douche",{"$error":"#N/A"},{"$error":"#N/A"},"Douche"]
[null,null,null,null,null,null,null,null,null,null,null,null,null,null,null,null,null,null,null,null,null,null,0,"Douche",{"$error":"#N/A"},{"$error":"#N/A"},"Douche"]
[null,null,null,null,null,null,null,null,null,null,null,null,null,null,null,null,null,null,null,null,null,null,0,"Douche",{"$error":"#N/A"},{"$error":"#N/A"},"Douche"]
[null,null,null,null,null,null,null,null,null,null,null,null,null,null,null,null,null,null,null,null,null,null,0,"Douche",{"$error":"#N/A"},{"$error":"#N/A"},"Douche"]
[null,null,null,null,null,null,null,null,null,null,null,null,null,null,null,null,null,null,null,null,null,null,0,"Douche",{"$error":"#N/A"},{"$error":"#N/A"},"Douche"]
[null,null,null,null,null,null,null,null,null,null,null,null,null,null,null,null,null,null,null,null,null,null,0,"Douche",{"$error":"#N/A"},{"$error":"#N/A"},"Douche"]
[null,null,null,null,null,null,null,null,null,null,null,null,null,null,null,null,null,null,null,null,null,null,0,"Douche",{"$error":"#N/A"},{"$error":"#N/A"},"Douche"]
[null,null,null,null,null,null,null,null,null,null,null,null,null,null,null,null,null,null,null,null,null,null,0,"Douche",{"$error":"#N/A"},{"$error":"#N/A"},"Douche"]
[null,null,null,null,null,null,null,null,null,null,null,null,null,null,null,null,null,null,null,null,null,null,0,"Douche",{"$error":"#N/A"},{"$error":"#N/A"},"Douche"]
[null,null,null,null,null,null,null,null,null,null,null,null,null,null,null,null,null,null,null,null,null,null,0,"Douche",{"$error":"#N/A"},{"$error":"#N/A"},"Douche"]
[null,null,null,null,null,null,null,null,null,null,null,null,null,null,null,null,null,null,null,null,null,null,0,"Douche",{"$error":"#N/A"},{"$error":"#N/A"},"Douche"]
[null,null,null,null,null,null,null,null,null,null,null,null,null,null,null,null,null,null,null,null,null,null,0,"Douche",{"$error":"#N/A"},{"$error":"#N/A"},"Douche"]
[null,null,null,null,null,null,null,null,null,null,null,null,null,null,null,null,null,null,null,null,null,null,0,"Douche",{"$error":"#N/A"},{"$error":"#N/A"},"Douche"]
[null,null,null,null,null,null,null,null,null,null,null,null,null,null,null,null,null,null,null,null,null,null,0,"Douche",{"$error":"#N/A"},{"$error":"#N/A"},"Douche"]
[null,null,null,null,null,null,null,null,null,null,null,null,null,null,null,null,null,null,null,null,null,null,0,"Douche",{"$error":"#N/A"},{"$error":"#N/A"},"Douche"]
[null,null,null,null,null,null,null,null,null,null,null,null,null,null,null,null,null,null,null,null,null,null,0,"Douche",{"$error":"#N/A"},{"$error":"#N/A"},"Douche"]
[null,null,null,null,null,null,null,null,null,null,null,null,null,null,null,null,null,null,null,null,null,null,0,"Douche",{"$error":"#N/A"},{"$error":"#N/A"},"Douche"]
[null,null,null,null,null,null,null,null,null,null,null,null,null,null,null,null,null,null,null,null,null,null,0,"Douche",{"$error":"#N/A"},{"$error":"#N/A"},"Douche"]
[null,null,null,null,null,null,null,null,null,null,null,null,null,null,null,null,null,null,null,null,null,null,0,"Douche",{"$error":"#N/A"},{"$error":"#N/A"},"Douche"]
[null,null,null,null,null,null,null,null,null,null,null,null,null,null,null,null,null,null,null,null,null,null,0,"Douche",{"$error":"#N/A"},{"$error":"#N/A"},"Douche"]
[null,null,null,null,null,null,null,null,null,null,null,null,null,null,null,null,null,null,null,null,null,null,0,"Douche",{"$error":"#N/A"},{"$error":"#N/A"},"Douche"]
[null,null,null,null,null,null,null,null,null,null,null,null,null,null,null,null,null,null,null,null,null,null,0,"Douche",{"$error":"#N/A"},{"$error":"#N/A"},"Douche"]
[null,null,null,null,null,null,null,null,null,null,null,null,null,null,null,null,null,null,null,null,null,null,0,"Douche",{"$error":"#N/A"},{"$error":"#N/A"},"Douche"]
[null,null,null,null,null,null,null,null,null,null,null,null,null,null,null,null,null,null,null,null,null,null,0,"Douche",{"$error":"#N/A"},{"$error":"#N/A"},"Douche"]
[null,null,null,null,null,null,null,null,null,null,null,null,null,null,null,null,null,null,null,null,null,null,0,"Douche",{"$error":"#N/A"},{"$error":"#N/A"},"Douche"]
[null,null,null,null,null,null,null,null,null,null,null,null,null,null,null,null,null,null,null,null,null,null,0,"Douche",{"$error":"#N/A"},{"$error":"#N/A"},"Douche"]
[null,null,null,null,null,null,null,null,null,null,null,null,null,null,null,null,null,null,null,null,null,null,0,"Douche",{"$error":"#N/A"},{"$error":"#N/A"},"Douche"]
[null,null,null,null,null,null,null,null,null,null,null,null,null,null,null,null,null,null,null,null,null,null,0,"Douche",{"$error":"#N/A"},{"$error":"#N/A"},"Douche"]
[null,null,null,null,null,null,null,null,null,null,null,null,null,null,null,null,null,null,null,null,null,null,0,"Douche",{"$error":"#N/A"},{"$error":"#N/A"},"Douche"]
[null,null,null,null,null,null,null,null,null,null,null,null,null,null,null,null,null,null,null,null,null,null,0,"Douche",{"$error":"#N/A"},{"$error":"#N/A"},"Douche"]
[null,null,null,null,null,null,null,null,null,null,null,null,null,null,null,null,null,null,null,null,null,null,0,"Douche",{"$error":"#N/A"},{"$error":"#N/A"},"Douche"]
[null,null,null,null,null,null,null,null,null,null,null,null,null,null,null,null,null,null,null,null,null,null,0,"Douche",{"$error":"#N/A"},{"$error":"#N/A"},"Douche"]
[null,null,null,null,null,null,null,null,null,null,null,null,null,null,null,null,null,null,null,null,null,null,0,"Douche",{"$error":"#N/A"},{"$error":"#N/A"},"Douche"]
[null,null,null,null,null,null,null,null,null,null,null,null,null,null,null,null,null,null,null,null,null,null,0,"Douche",{"$error":"#N/A"},{"$error":"#N/A"},"Douche"]
[null,null,null,null,null,null,null,null,null,null,null,null,null,null,null,null,null,null,null,null,null,null,0,"Douche",{"$error":"#N/A"},{"$error":"#N/A"},"Douche"]
[null,null,null,null,null,null,null,null,null,null,null,null,null,null,null,null,null,null,null,null,null,null,0,"Douche",{"$error":"#N/A"},{"$error":"#N/A"},"Douche"]
[null,null,null,null,null,null,null,null,null,null,null,null,null,null,null,null,null,null,null,null,null,null,0,"Douche",{"$error":"#N/A"},{"$error":"#N/A"},"Douche"]
[null,null,null,null,null,null,null,null,null,null,null,null,null,null,null,null,null,null,null,null,null,null,0,"Douche",{"$error":"#N/A"},{"$error":"#N/A"},"Douche"]
[null,null,null,null,null,null,null,null,null,null,null,null,null,null,null,null,null,null,null,null,null,null,0,"Douche",{"$error":"#N/A"},{"$error":"#N/A"},"Douche"]
[null,null,null,null,null,null,null,null,null,null,null,null,null,null,null,null,null,null,null,null,null,null,0,"Douche",{"$error":"#N/A"},{"$error":"#N/A"},"Douche"]
[null,null,null,null,null,null,null,null,null,null,null,null,null,null,null,null,null,null,null,null,null,null,0,"Douche",{"$error":"#N/A"},{"$error":"#N/A"},"Douche"]
[null,null,null,null,null,null,null,null,null,null,null,null,null,null,null,null,null,null,null,null,null,null,0,"Douche",{"$error":"#N/A"},{"$error":"#N/A"},"Douche"]
[null,null,null,null,null,null,null,null,null,null,null,null,null,null,null,null,null,null,null,null,null,null,0,"Douche",{"$error":"#N/A"},{"$error":"#N/A"},"Douche"]
[null,null,null,null,null,null,null,null,null,null,null,null,null,null,null,null,null,null,null,null,null,null,0,"Douche",{"$error":"#N/A"},{"$error":"#N/A"},"Douche"]
[null,null,null,null,null,null,null,null,null,null,null,null,null,null,null,null,null,null,null,null,null,null,0,"Douche",{"$error":"#N/A"},{"$error":"#N/A"},"Douche"]
[null,null,null,null,null,null,null,null,null,null,null,null,null,null,null,null,null,null,null,null,null,null,0,"Douche",{"$error":"#N/A"},{"$error":"#N/A"},"Douche"]
[null,null,null,null,null,null,null,null,null,null,null,null,null,null,null,null,null,null,null,null,null,null,0,"Douche",{"$error":"#N/A"},{"$error":"#N/A"},"Douche"]
[null,null,null,null,null,null,null,null,null,null,null,null,null,null,null,null,null,null,null,null,null,null,0,"Douche",{"$error":"#N/A"},{"$error":"#N/A"},"Douche"]
[null,null,null,null,null,null,null,null,null,null,null,null,null,null,null,null,null,null,null,null,null,null,0,"Douche",{"$error":"#N/A"},{"$error":"#N/A"},"Douche"]
[null,null,null,null,null,null,null,null,null,null,null,null,null,null,null,null,null,null,null,null,null,null,0,"Douche",{"$error":"#N/A"},{"$error":"#N/A"},"Douche"]
[null,null,null,null,null,null,null,null,null,null,null,null,null,null,null,null,null,null,null,null,null,null,0,"Douche",{"$error":"#N/A"},{"$error":"#N/A"},"Douche"]
[null,null,null,null,null,null,null,null,null,null,null,null,null,null,null,null,null,null,null,null,null,null,0,"Douche",{"$error":"#N/A"},{"$error":"#N/A"},"Douche"]
[null,null,null,null,null,null,null,null,null,null,null,null,null,null,null,null,null,null,null,null,null,null,0,"Douche",{"$error":"#N/A"},{"$error":"#N/A"},"Douche"]
[null,null,null,null,null,null,null,null,null,null,null,null,null,null,null,null,null,null,null,null,null,null,0,"Douche",{"$error":"#N/A"},{"$error":"#N/A"},"Douche"]
[null,null,null,null,null,null,null,null,null,null,null,null,null,null,null,null,null,null,null,null,null,null,0,"Douche",{"$error":"#N/A"},{"$error":"#N/A"},"Douche"]
[null,null,null,null,null,null,null,null,null,null,null,null,null,null,null,null,null,null,null,null,null,null,0,"Douche",{"$error":"#N/A"},{"$error":"#N/A"},"Douche"]
[null,null,null,null,null,null,null,null,null,null,null,null,null,null,null,null,null,null,null,null,null,null,0,"Douche",{"$error":"#N/A"},{"$error":"#N/A"},"Douche"]
[null,null,null,null,null,null,null,null,null,null,null,null,null,null,null,null,null,null,null,null,null,null,0,"Douche",{"$error":"#N/A"},{"$error":"#N/A"},"Douche"]
[null,null,null,null,null,null,null,null,null,null,null,null,null,null,null,null,null,null,null,null,null,null,0,"Douche",{"$error":"#N/A"},{"$error":"#N/A"},"Douche"]
[null,null,null,null,null,null,null,null,null,null,null,null,null,null,null,null,null,null,null,null,null,null,0,"Douche",{"$error":"#N/A"},{"$error":"#N/A"},"Douche"]
[null,null,null,null,null,null,null,null,null,null,null,null,null,null,null,null,null,null,null,null,null,null,0,"Douche",{"$error":"#N/A"},{"$error":"#N/A"},"Douche"]
[null,null,null,null,null,null,null,null,null,null,null,null,null,null,null,null,null,null,null,null,null,null,0,"Douche",{"$error":"#N/A"},{"$error":"#N/A"},"Douche"]
[null,null,null,null,null,null,null,null,null,null,null,null,null,null,null,null,null,null,null,null,null,null,0,"Douche",{"$error":"#N/A"},{"$error":"#N/A"},"Douche"]
[null,null,null,null,null,null,null,null,null,null,null,null,null,null,null,null,null,null,null,null,null,null,0,"Douche",{"$error":"#N/A"},{"$error":"#N/A"},"Douche"]
[null,null,null,null,null,null,null,null,null,null,null,null,null,null,null,null,null,null,null,null,null,null,0,"Douche",{"$error":"#N/A"},{"$error":"#N/A"},"Douche"]
[null,null,null,null,null,null,null,null,null,null,null,null,null,null,null,null,null,null,null,null,null,null,0,"Douche",{"$error":"#N/A"},{"$error":"#N/A"},"Douche"]
[null,null,null,null,null,null,null,null,null,null,null,null,null,null,null,null,null,null,null,null,null,null,0,"Douche",{"$error":"#N/A"},{"$error":"#N/A"},"Douche"]
[null,null,null,null,null,null,null,null,null,null,null,null,null,null,null,null,null,null,null,null,null,null,0,"Douche",{"$error":"#N/A"},{"$error":"#N/A"},"Douche"]
[null,null,null,null,null,null,null,null,null,null,null,null,null,null,null,null,null,null,null,null,null,null,0,"Douche",{"$error":"#N/A"},{"$error":"#N/A"},"Douche"]
[null,null,null,null,null,null,null,null,null,null,null,null,null,null,null,null,null,null,null,null,null,null,0,"Douche",{"$error":"#N/A"},{"$error":"#N/A"},"Douche"]
[null,null,null,null,null,null,null,null,null,null,null,null,null,null,null,null,null,null,null,null,null,null,0,"Douche",{"$error":"#N/A"},{"$error":"#N/A"},"Douche"]
[null,null,null,null,null,null,null,null,null,null,null,null,null,null,null,null,null,null,null,null,null,null,0,"Douche",{"$error":"#N/A"},{"$error":"#N/A"},"Douche"]
[null,null,null,null,null,null,null,null,null,null,null,null,null,null,null,null,null,null,null,null,null,null,0,"Douche",{"$error":"#N/A"},{"$error":"#N/A"},"Douche"]
[null,null,null,null,null,null,null,null,null,null,null,null,null,null,null,null,null,null,null,null,null,null,0,"Douche",{"$error":"#N/A"},{"$error":"#N/A"},"Douche"]
[null,null,null,null,null,null,null,null,null,null,null,null,null,null,null,null,null,null,null,null,null,null,0,"Douche",{"$error":"#N/A"},{"$error":"#N/A"},"Douche"]
[null,null,null,null,null,null,null,null,null,null,null,null,null,null,null,null,null,null,null,null,null,null,0,"Douche",{"$error":"#N/A"},{"$error":"#N/A"},"Douche"]
[null,null,null,null,null,null,null,null,null,null,null,null,null,null,null,null,null,null,null,null,null,null,0,"Douche",{"$error":"#N/A"},{"$error":"#N/A"},"Douche"]
[null,null,null,null,null,null,null,null,null,null,null,null,null,null,null,null,null,null,null,null,null,null,0,"Douche",{"$error":"#N/A"},{"$error":"#N/A"},"Douche"]
[null,null,null,null,null,null,null,null,null,null,null,null,null,null,null,null,null,null,null,null,null,null,0,"Douche",{"$error":"#N/A"},{"$error":"#N/A"},"Douche"]
[null,null,null,null,null,null,null,null,null,null,null,null,null,null,null,null,null,null,null,null,null,null,0,"Douche",{"$error":"#N/A"},{"$error":"#N/A"},"Douche"]
[null,null,null,null,null,null,null,null,null,null,null,null,null,null,null,null,null,null,null,null,null,null,0,"Douche",{"$error":"#N/A"},{"$error":"#N/A"},"Douche"]
[null,null,null,null,null,null,null,null,null,null,null,null,null,null,null,null,null,null,null,null,null,null,0,"Douche",{"$error":"#N/A"},{"$error":"#N/A"},"Douche"]
[null,null,null,null,null,null,null,null,null,null,null,null,null,null,null,null,null,null,null,null,null,null,0,"Douche",{"$error":"#N/A"},{"$error":"#N/A"},"Douche"]
[null,null,null,null,null,null,null,null,null,null,null,null,null,null,null,null,null,null,null,null,null,null,0,"Douche",{"$error":"#N/A"},{"$error":"#N/A"},"Douche"]
[null,null,null,null,null,null,null,null,null,null,null,null,null,null,null,null,null,null,null,null,null,null,0,"Douche",{"$error":"#N/A"},{"$error":"#N/A"},"Douche"]
[null,null,null,null,null,null,null,null,null,null,null,null,null,null,null,null,null,null,null,null,null,null,0,"Douche",{"$error":"#N/A"},{"$error":"#N/A"},"Douche"]
[null,null,null,null,null,null,null,null,null,null,null,null,null,null,null,null,null,null,null,null,null,null,0,"Douche",{"$error":"#N/A"},{"$error":"#N/A"},"Douche"]
[null,null,null,null,null,null,null,null,null,null,null,null,null,null,null,null,null,null,null,null,null,null,0,"Douche",{"$error":"#N/A"},{"$error":"#N/A"},"Douche"]
[null,null,null,null,null,null,null,null,null,null,null,null,null,null,null,null,null,null,null,null,null,null,0,"Douche",{"$error":"#N/A"},{"$error":"#N/A"},"Douche"]
[null,null,null,null,null,null,null,null,null,null,null,null,null,null,null,null,null,null,null,null,null,null,0,"Douche",{"$error":"#N/A"},{"$error":"#N/A"},"Douche"]
[null,null,null,null,null,null,null,null,null,null,null,null,null,null,null,null,null,null,null,null,null,null,0,"Douche",{"$error":"#N/A"},{"$error":"#N/A"},"Douche"]
[null,null,null,null,null,null,null,null,null,null,null,null,null,null,null,null,null,null,null,null,null,null,0,"Douche",{"$error":"#N/A"},{"$error":"#N/A"},"Douche"]
[null,null,null,null,null,null,null,null,null,null,null,null,null,null,null,null,null,null,null,null,null,null,0,"Douche",{"$error":"#N/A"},{"$error":"#N/A"},"Douche"]
[null,null,null,null,null,null,null,null,null,null,null,null,null,null,null,null,null,null,null,null,null,null,0,"Douche",{"$error":"#N/A"},{"$error":"#N/A"},"Douche"]
[null,null,null,null,null,null,null,null,null,null,null,null,null,null,null,null,null,null,null,null,null,null,0,"Douche",{"$error":"#N/A"},{"$error":"#N/A"},"Douche"]
[null,null,null,null,null,null,null,null,null,null,null,null,null,null,null,null,null,null,null,null,null,null,0,"",{"$error":"#N/A"},{"$error":"#N/A"},""]
[null,null,null,null,null,null,null,null,null,null,null,null,null,null,null,null,null,null,null,null,null,null,0,"Vestiaires",{"$error":"#N/A"},{"$error":"#N/A"},"Vestiaires"]
[null,null,null,null,null,null,null,null,null,null,null,null,null,null,null,null,null,null,null,null,null,null,0,"Vestiaires",{"$error":"#N/A"},{"$error":"#N/A"},"Vestiaires"]
[null,null,null,null,null,null,null,null,null,null,null,null,null,null,null,null,null,null,null,null,null,null,0,"Vestiaires",{"$error":"#N/A"},{"$error":"#N/A"},"Vestiaires"]
[null,null,null,null,null,null,null,null,null,null,null,null,null,null,null,null,null,null,null,null,null,null,"x","Vestiaires",{"$error":"#N/A"},{"$error":"#N/A"},"Vestiaires"]
[null,null,null,null,null,null,null,null,null,null,null,null,null,null,null,null,null,null,null,null,null,null,0,"Vestiaires",{"$error":"#N/A"},{"$error":"#N/A"},"Vestiaires"]
[null,null,null,null,null,null,null,null,null,null,null,null,null,null,null,null,null,null,null,null,null,null,0,"Vestiaires",{"$error":"#N/A"},{"$error":"#N/A"},"Vestiaires"]
[null,null,null,null,null,null,null,null,null,null,null,null,null,null,null,null,null,null,null,null,null,null,0,"Vestiaires",{"$error":"#N/A"},{"$error":"#N/A"},"Vestiaires"]
[null,null,null,null,null,null,null,null,null,null,null,null,null,null,null,null,null,null,null,null,null,null,0,"Vestiaires",{"$error":"#N/A"},{"$error":"#N/A"},"Vestiaires"]
[null,null,null,null,null,null,null,null,null,null,null,null,null,null,null,null,null,null,null,null,null,null,0,"Vestiaires",{"$error":"#N/A"},{"$error":"#N/A"},"Vestiaires"]
[null,null,null,null,null,null,null,null,null,null,null,null,null,null,null,null,null,null,null,null,null,null,0,"Vestiaires",{"$error":"#N/A"},{"$error":"#N/A"},"Vestiaires"]
[null,null,null,null,null,null,null,null,null,null,null,null,null,null,null,null,null,null,null,null,null,null,0,"Vestiaires",{"$error":"#N/A"},{"$error":"#N/A"},"Vestiaires"]
[null,null,null,null,null,null,null,null,null,null,null,null,null,null,null,null,null,null,null,null,null,null,0,"Vestiaires",{"$error":"#N/A"},{"$error":"#N/A"},"Vestiaires"]
[null,null,null,null,null,null,null,null,null,null,null,null,null,null,null,null,null,null,null,null,null,null,0,"Vestiaires",{"$error":"#N/A"},{"$error":"#N/A"},"Vestiaires"]
[null,null,null,null,null,null,null,null,null,null,null,null,null,null,null,null,null,null,null,null,null,null,0,"Vestiaires",{"$error":"#N/A"},{"$error":"#N/A"},"Vestiaires"]
[null,null,null,null,null,null,null,null,null,null,null,null,null,null,null,null,null,null,null,null,null,null,0,"Vestiaires",{"$error":"#N/A"},{"$error":"#N/A"},"Vestiaires"]
[null,null,null,null,null,null,null,null,null,null,null,null,null,null,null,null,null,null,null,null,null,null,0,"Vestiaires",{"$error":"#N/A"},{"$error":"#N/A"},"Vestiaires"]
[null,null,null,null,null,null,null,null,null,null,null,null,null,null,null,null,null,null,null,null,null,null,0,"Vestiaires",{"$error":"#N/A"},{"$error":"#N/A"},"Vestiaires"]
[null,null,null,null,null,null,null,null,null,null,null,null,null,null,null,null,null,null,null,null,null,null,0,"Vestiaires",{"$error":"#N/A"},{"$error":"#N/A"},"Vestiaires"]
[null,null,null,null,null,null,null,null,null,null,null,null,null,null,null,null,null,null,null,null,null,null,0,"Vestiaires",{"$error":"#N/A"},{"$error":"#N/A"},"Vestiaires"]
[null,null,null,null,null,null,null,null,null,null,null,null,null,null,null,null,null,null,null,null,null,null,0,"Vestiaires",{"$error":"#N/A"},{"$error":"#N/A"},"Vestiaires"]
[null,null,null,null,null,null,null,null,null,null,null,null,null,null,null,null,null,null,null,null,null,null,0,"Vestiaires",{"$error":"#N/A"},{"$error":"#N/A"},"Vestiaires"]
[null,null,null,null,null,null,null,null,null,null,null,null,null,null,null,null,null,null,null,null,null,null,0,"Vestiaires",{"$error":"#N/A"},{"$error":"#N/A"},"Vestiaires"]
[null,null,null,null,null,null,null,null,null,null,null,null,null,null,null,null,null,null,null,null,null,null,0,"Vestiaires",{"$error":"#N/A"},{"$error":"#N/A"},"Vestiaires"]
[null,null,null,null,null,null,null,null,null,null,null,null,null,null,null,null,null,null,null,null,null,null,0,"Vestiaires",{"$error":"#N/A"},{"$error":"#N/A"},"Vestiaires"]
[null,null,null,null,null,null,null,null,null,null,null,null,null,null,null,null,null,null,null,null,null,null,0,"Vestiaires",{"$error":"#N/A"},{"$error":"#N/A"},"Vestiaires"]
[null,null,null,null,null,null,null,null,null,null,null,null,null,null,null,null,null,null,null,null,null,null,0,"Vestiaires",{"$error":"#N/A"},{"$error":"#N/A"},"Vestiaires"]
[null,null,null,null,null,null,null,null,null,null,null,null,null,null,null,null,null,null,null,null,null,null,0,"Vestiaires",{"$error":"#N/A"},{"$error":"#N/A"},"Vestiaires"]
[null,null,null,null,null,null,null,null,null,null,null,null,null,null,null,null,null,null,null,null,null,null,0,"Vestiaires",{"$error":"#N/A"},{"$error":"#N/A"},"Vestiaires"]
[null,null,null,null,null,null,null,null,null,null,null,null,null,null,null,null,null,null,null,null,null,null,0,"Vestiaires",{"$error":"#N/A"},{"$error":"#N/A"},"Vestiaires"]
[null,null,null,null,null,null,null,null,null,null,null,null,null,null,null,null,null,null,null,null,null,null,0,"Vestiaires",{"$error":"#N/A"},{"$error":"#N/A"},"Vestiaires"]
[null,null,null,null,null,null,null,null,null,null,null,null,null,null,null,null,null,null,null,null,null,null,0,"Vestiaires",{"$error":"#N/A"},{"$error":"#N/A"},"Vestiaires"]
[null,null,null,null,null,null,null,null,null,null,null,null,null,null,null,null,null,null,null,null,null,null,0,"Vestiaires",{"$error":"#N/A"},{"$error":"#N/A"},"Vestiaires"]
[null,null,null,null,null,null,null,null,null,null,null,null,null,null,null,null,null,null,null,null,null,null,0,"Vestiaires",{"$error":"#N/A"},{"$error":"#N/A"},"Vestiaires"]
[null,null,null,null,null,null,null,null,null,null,null,null,null,null,null,null,null,null,null,null,null,null,0,"Vestiaires",{"$error":"#N/A"},{"$error":"#N/A"},"Vestiaires"]
[null,null,null,null,null,null,null,null,null,null,null,null,null,null,null,null,null,null,null,null,null,null,0,"Vestiaires",{"$error":"#N/A"},{"$error":"#N/A"},"Vestiaires"]
[null,null,null,null,null,null,null,null,null,null,null,null,null,null,null,null,null,null,null,null,null,null,0,"Vestiaires",{"$error":"#N/A"},{"$error":"#N/A"},"Vestiaires"]
[null,null,null,null,null,null,null,null,null,null,null,null,null,null,null,null,null,null,null,null,null,null,0,"Vestiaires",{"$error":"#N/A"},{"$error":"#N/A"},"Vestiaires"]
[null,null,null,null,null,null,null,null,null,null,null,null,null,null,null,null,null,null,null,null,null,null,0,"Vestiaires",{"$error":"#N/A"},{"$error":"#N/A"},"Vestiaires"]
[null,null,null,null,null,null,null,null,null,null,null,null,null,null,null,null,null,null,null,null,null,null,0,"Vestiaires",{"$error":"#N/A"},{"$error":"#N/A"},"Vestiaires"]
[null,null,null,null,null,null,null,null,null,null,null,null,null,null,null,null,null,null,null,null,null,null,0,"Vestiaires",{"$error":"#N/A"},{"$error":"#N/A"},"Vestiaires"]
[null,null,null,null,null,null,null,null,null,null,null,null,null,null,null,null,null,null,null,null,null,null,0,"Vestiaires",{"$error":"#N/A"},{"$error":"#N/A"},"Vestiaires"]
[null,null,null,null,null,null,null,null,null,null,null,null,null,null,null,null,null,null,null,null,null,null,0,"Vestiaires",{"$error":"#N/A"},{"$error":"#N/A"},"Vestiaires"]
[null,null,null,null,null,null,null,null,null,null,null,null,null,null,null,null,null,null,null,null,null,null,0,"Vestiaires",{"$error":"#N/A"},{"$error":"#N/A"},"Vestiaires"]
[null,null,null,null,null,null,null,null,null,null,null,null,null,null,null,null,null,null,null,null,null,null,0,"Vestiaires",{"$error":"#N/A"},{"$error":"#N/A"},"Vestiaires"]
[null,null,null,null,null,null,null,null,null,null,null,null,null,null,null,null,null,null,null,null,null,null,0,"Vestiaires",{"$error":"#N/A"},{"$error":"#N/A"},"Vestiaires"]
[null,null,null,null,null,null,null,null,null,null,null,null,null,null,null,null,null,null,null,null,null,null,0,"Vestiaires",{"$error":"#N/A"},{"$error":"#N/A"},"Vestiaires"]
[null,null,null,null,null,null,null,null,null,null,null,null,null,null,null,null,null,null,null,null,null,null,0,"Vestiaires",{"$error":"#N/A"},{"$error":"#N/A"},"Vestiaires"]
[null,null,null,null,null,null,null,null,null,null,null,null,null,null,null,null,null,null,null,null,null,null,0,"Vestiaires",{"$error":"#N/A"},{"$error":"#N/A"},"Vestiaires"]
[null,null,null,null,null,null,null,null,null,null,null,null,null,null,null,null,null,null,null,null,null,null,0,"Vestiaires",{"$error":"#N/A"},{"$error":"#N/A"},"Vestiaires"]
[null,null,null,null,null,null,null,null,null,null,null,null,null,null,null,null,null,null,null,null,null,null,0,"Vestiaires",{"$error":"#N/A"},{"$error":"#N/A"},"Vestiaires"]
[null,null,null,null,null,null,null,null,null,null,null,null,null,null,null,null,null,null,null,null,null,null,0,"Vestiaires",{"$error":"#N/A"},{"$error":"#N/A"},"Vestiaires"]
[null,null,null,null,null,null,null,null,null,null,null,null,null,null,null,null,null,null,null,null,null,null,0,"Vestiaires",{"$error":"#N/A"},{"$error":"#N/A"},"Vestiaires"]
[null,null,null,null,null,null,null,null,null,null,null,null,null,null,null,null,null,null,null,null,null,null,0,"Vestiaires",{"$error":"#N/A"},{"$error":"#N/A"},"Vestiaires"]
[null,null,null,null,null,null,null,null,null,null,null,null,null,null,null,null,null,null,null,null,null,null,0,"Vestiaires",{"$error":"#N/A"},{"$error":"#N/A"},"Vestiaires"]
[null,null,null,null,null,null,null,null,null,null,null,null,null,null,null,null,null,null,null,null,null,null,0,"Vestiaires",{"$error":"#N/A"},{"$error":"#N/A"},"Vestiaires"]
[null,null,null,null,null,null,null,null,null,null,null,null,null,null,null,null,null,null,null,null,null,null,0,"Vestiaires",{"$error":"#N/A"},{"$error":"#N/A"},"Vestiaires"]
[null,null,null,null,null,null,null,null,null,null,null,null,null,null,null,null,null,null,null,null,null,null,0,"Vestiaires",{"$error":"#N/A"},{"$error":"#N/A"},"Vestiaires"]
[null,null,null,null,null,null,null,null,null,null,null,null,null,null,null,null,null,null,null,null,null,null,0,"Vestiaires",{"$error":"#N/A"},{"$error":"#N/A"},"Vestiaires"]
[null,null,null,null,null,null,null,null,null,null,null,null,null,null,null,null,null,null,null,null,null,null,0,"Vestiaires",{"$error":"#N/A"},{"$error":"#N/A"},"Vestiaires"]
[null,null,null,null,null,null,null,null,null,null,null,null,null,null,null,null,null,null,null,null,null,null,0,"Vestiaires",{"$error":"#N/A"},{"$error":"#N/A"},"Vestiaires"]
[null,null,null,null,null,null,null,null,null,null,null,null,null,null,null,null,null,null,null,null,null,null,0,"Vestiaires",{"$error":"#N/A"},{"$error":"#N/A"},"Vestiaires"]
[null,null,null,null,null,null,null,null,null,null,null,null,null,null,null,null,null,null,null,null,null,null,0,"Vestiaires",{"$error":"#N/A"},{"$error":"#N/A"},"Vestiaires"]
[null,null,null,null,null,null,null,null,null,null,null,null,null,null,null,null,null,null,null,null,null,null,0,"Vestiaires",{"$error":"#N/A"},{"$error":"#N/A"},"Vestiaires"]
[null,null,null,null,null,null,null,null,null,null,null,null,null,null,null,null,null,null,null,null,null,null,0,"Vestiaires",{"$error":"#N/A"},{"$error":"#N/A"},"Vestiaires"]
[null,null,null,null,null,null,null,null,null,null,null,null,null,null,null,null,null,null,null,null,null,null,0,"Vestiaires",{"$error":"#N/A"},{"$error":"#N/A"},"Vestiaires"]
[null,null,null,null,null,null,null,null,null,null,null,null,null,null,null,null,null,null,null,null,null,null,0,"Vestiaires",{"$error":"#N/A"},{"$error":"#N/A"},"Vestiaires"]
[null,null,null,null,null,null,null,null,null,null,null,null,null,null,null,null,null,null,null,null,null,null,0,"Vestiaires",{"$error":"#N/A"},{"$error":"#N/A"},"Vestiaires"]
[null,null,null,null,null,null,null,null,null,null,null,null,null,null,null,null,null,null,null,null,null,null,0,"Vestiaires",{"$error":"#N/A"},{"$error":"#N/A"},"Vestiaires"]
[null,null,null,null,null,null,null,null,null,null,null,null,null,null,null,null,null,null,null,null,null,null,0,"Vestiaires",{"$error":"#N/A"},{"$error":"#N/A"},"Vestiaires"]
[null,null,null,null,null,null,null,null,null,null,null,null,null,null,null,null,null,null,null,null,null,null,0,"Vestiaires",{"$error":"#N/A"},{"$error":"#N/A"},"Vestiaires"]
[null,null,null,null,null,null,null,null,null,null,null,null,null,null,null,null,null,null,null,null,null,null,0,"Vestiaires",{"$error":"#N/A"},{"$error":"#N/A"},"Vestiaires"]
[null,null,null,null,null,null,null,null,null,null,null,null,null,null,null,null,null,null,null,null,null,null,0,"Vestiaires",{"$error":"#N/A"},{"$error":"#N/A"},"Vestiaires"]
[null,null,null,null,null,null,null,null,null,null,null,null,null,null,null,null,null,null,null,null,null,null,0,"Vestiaires",{"$error":"#N/A"},{"$error":"#N/A"},"Vestiaires"]
[null,null,null,null,null,null,null,null,null,null,null,null,null,null,null,null,null,null,null,null,null,null,0,"Vestiaires",{"$error":"#N/A"},{"$error":"#N/A"},"Vestiaires"]
[null,null,null,null,null,null,null,null,null,null,null,null,null,null,null,null,null,null,null,null,null,null,0,"Vestiaires",{"$error":"#N/A"},{"$error":"#N/A"},"Vestiaires"]
[null,null,null,null,null,null,null,null,null,null,null,null,null,null,null,null,null,null,null,null,null,null,0,"Vestiaires",{"$error":"#N/A"},{"$error":"#N/A"},"Vestiaires"]
[null,null,null,null,null,null,null,null,null,null,null,null,null,null,null,null,null,null,null,null,null,null,0,"Vestiaires",{"$error":"#N/A"},{"$error":"#N/A"},"Vestiaires"]
[null,null,null,null,null,null,null,null,null,null,null,null,null,null,null,null,null,null,null,null,null,null,0,"Vestiaires",{"$error":"#N/A"},{"$error":"#N/A"},"Vestiaires"]
[null,null,null,null,null,null,null,null,null,null,null,null,null,null,null,null,null,null,null,null,null,null,0,"Vestiaires",{"$error":"#N/A"},{"$error":"#N/A"},"Vestiaires"]
[null,null,null,null,null,null,null,null,null,null,null,null,null,null,null,null,null,null,null,null,null,null,0,"Vestiaires",{"$error":"#N/A"},{"$error":"#N/A"},"Vestiaires"]
[null,null,null,null,null,null,null,null,null,null,null,null,null,null,null,null,null,null,null,null,null,null,0,"Vestiaires",{"$error":"#N/A"},{"$error":"#N/A"},"Vestiaires"]
[null,null,null,null,null,null,null,null,null,null,null,null,null,null,null,null,null,null,null,null,null,null,0,"Vestiaires",{"$error":"#N/A"},{"$error":"#N/A"},"Vestiaires"]
[null,null,null,null,null,null,null,null,null,null,null,null,null,null,null,null,null,null,null,null,null,null,0,"Vestiaires",{"$error":"#N/A"},{"$error":"#N/A"},"Vestiaires"]
[null,null,null,null,null,null,null,null,null,null,null,null,null,null,null,null,null,null,null,null,null,null,0,"Vestiaires",{"$error":"#N/A"},{"$error":"#N/A"},"Vestiaires"]
[null,null,null,null,null,null,null,null,null,null,null,null,null,null,null,null,null,null,null,null,null,null,0,"Vestiaires",{"$error":"#N/A"},{"$error":"#N/A"},"Vestiaires"]
[null,null,null,null,null,null,null,null,null,null,null,null,null,null,null,null,null,null,null,null,null,null,0,"Vestiaires",{"$error":"#N/A"},{"$error":"#N/A"},"Vestiaires"]
[null,null,null,null,null,null,null,null,null,null,null,null,null,null,null,null,null,null,null,null,null,null,0,"Vestiaires",{"$error":"#N/A"},{"$error":"#N/A"},"Vestiaires"]
[null,null,null,null,null,null,null,null,null,null,null,null,null,null,null,null,null,null,null,null,null,null,0,"Vestiaires",{"$error":"#N/A"},{"$error":"#N/A"},"Vestiaires"]
[null,null,null,null,null,null,null,null,null,null,null,null,null,null,null,null,null,null,null,null,null,null,0,"Vestiaires",{"$error":"#N/A"},{"$error":"#N/A"},"Vestiaires"]
[null,null,null,null,null,null,null,null,null,null,null,null,null,null,null,null,null,null,null,null,null,null,0,"Vestiaires",{"$error":"#N/A"},{"$error":"#N/A"},"Vestiaires"]
[null,null,null,null,null,null,null,null,null,null,null,null,null,null,null,null,null,null,null,null,null,null,0,"Vestiaires",{"$error":"#N/A"},{"$error":"#N/A"},"Vestiaires"]
[null,null,null,null,null,null,null,null,null,null,null,null,null,null,null,null,null,null,null,null,null,null,0,"Vestiaires",{"$error":"#N/A"},{"$error":"#N/A"},"Vestiaires"]
[null,null,null,null,null,null,null,null,null,null,null,null,null,null,null,null,null,null,null,null,null,null,0,"Vestiaires",{"$error":"#N/A"},{"$error":"#N/A"},"Vestiaires"]
[null,null,null,null,null,null,null,null,null,null,null,null,null,null,null,null,null,null,null,null,null,null,0,"Vestiaires",{"$error":"#N/A"},{"$error":"#N/A"},"Vestiaires"]
[null,null,null,null,null,null,null,null,null,null,null,null,null,null,null,null,null,null,null,null,null,null,0,"Vestiaires",{"$error":"#N/A"},{"$error":"#N/A"},"Vestiaires"]
[null,null,null,null,null,null,null,null,null,null,null,null,null,null,null,null,null,null,null,null,null,null,0,"Vestiaires",{"$error":"#N/A"},{"$error":"#N/A"},"Vestiaires"]
[null,null,null,null,null,null,null,null,null,null,null,null,null,null,null,null,null,null,null,null,null,null,0,"Vestiaires",{"$error":"#N/A"},{"$error":"#N/A"},"Vestiaires"]
[null,null,null,null,null,null,null,null,null,null,null,null,null,null,null,null,null,null,null,null,null,null,0,"Vestiaires",{"$error":"#N/A"},{"$error":"#N/A"},"Vestiaires"]
[null,null,null,null,null,null,null,null,null,null,null,null,null,null,null,null,null,null,null,null,null,null,0,"Vestiaires",{"$error":"#N/A"},{"$error":"#N/A"},"Vestiaires"]
[null,null,null,null,null,null,null,null,null,null,null,null,null,null,null,null,null,null,null,null,null,null,0,"Vestiaires",{"$error":"#N/A"},{"$error":"#N/A"},"Vestiaires"]
[null,null,null,null,null,null,null,null,null,null,null,null,null,null,null,null,null,null,null,null,null,null,0,"Vestiaires",{"$error":"#N/A"},{"$error":"#N/A"},"Vestiaires"]
[null,null,null,null,null,null,null,null,null,null,null,null,null,null,null,null,null,null,null,null,null,null,0,"Vestiaires",{"$error":"#N/A"},{"$error":"#N/A"},"Vestiaires"]
[null,null,null,null,null,null,null,null,null,null,null,null,null,null,null,null,null,null,null,null,null,null,0,"Vestiaires",{"$error":"#N/A"},{"$error":"#N/A"},"Vestiaires"]
[null,null,null,null,null,null,null,null,null,null,null,null,null,null,null,null,null,null,null,null,null,null,0,"Vestiaires",{"$error":"#N/A"},{"$error":"#N/A"},"Vestiaires"]
[null,null,null,null,null,null,null,null,null,null,null,null,null,null,null,null,null,null,null,null,null,null,0,"Vestiaires",{"$error":"#N/A"},{"$error":"#N/A"},"Vestiaires"]
[null,null,null,null,null,null,null,null,null,null,null,null,null,null,null,null,null,null,null,null,null,null,0,"Vestiaires",{"$error":"#N/A"},{"$error":"#N/A"},"Vestiaires"]
[null,null,null,null,null,null,null,null,null,null,null,null,null,null,null,null,null,null,null,null,null,null,0,"Vestiaires",{"$error":"#N/A"},{"$error":"#N/A"},"Vestiaires"]
[null,null,null,null,null,null,null,null,null,null,null,null,null,null,null,null,null,null,null,null,null,null,0,"Vestiaires",{"$error":"#N/A"},{"$error":"#N/A"},"Vestiaires"]
[null,null,null,null,null,null,null,null,null,null,null,null,null,null,null,null,null,null,null,null,null,null,0,"Vestiaires",{"$error":"#N/A"},{"$error":"#N/A"},"Vestiaires"]
[null,null,null,null,null,null,null,null,null,null,null,null,null,null,null,null,null,null,null,null,null,null,0,"Vestiaires",{"$error":"#N/A"},{"$error":"#N/A"},"Vestiaires"]
[null,null,null,null,null,null,null,null,null,null,null,null,null,null,null,null,null,null,null,null,null,null,0,"Vestiaires",{"$error":"#N/A"},{"$error":"#N/A"},"Vestiaires"]
[null,null,null,null,null,null,null,null,null,null,null,null,null,null,null,null,null,null,null,null,null,null,0,"Vestiaires",{"$error":"#N/A"},{"$error":"#N/A"},"Vestiaires"]
[null,null,null,null,null,null,null,null,null,null,null,null,null,null,null,null,null,null,null,null,null,null,0,"Vestiaires",{"$error":"#N/A"},{"$error":"#N/A"},"Vestiaires"]
[null,null,null,null,null,null,null,null,null,null,null,null,null,null,null,null,null,null,null,null,null,null,0,"Vestiaires",{"$error":"#N/A"},{"$error":"#N/A"},"Vestiaires"]
[null,null,null,null,null,null,null,null,null,null,null,null,null,null,null,null,null,null,null,null,null,null,0,"Vestiaires",{"$error":"#N/A"},{"$error":"#N/A"},"Vestiaires"]
[null,null,null,null,null,null,null,null,null,null,null,null,null,null,null,null,null,null,null,null,null,null,0,"Vestiaires",{"$error":"#N/A"},{"$error":"#N/A"},"Vestiaires"]
[null,null,null,null,null,null,null,null,null,null,null,null,null,null,null,null,null,null,null,null,null,null,0,"Vestiaires",{"$error":"#N/A"},{"$error":"#N/A"},"Vestiaires"]
[null,null,null,null,null,null,null,null,null,null,null,null,null,null,null,null,null,null,null,null,null,null,0,"Vestiaires",{"$error":"#N/A"},{"$error":"#N/A"},"Vestiaires"]
[null,null,null,null,null,null,null,null,null,null,null,null,null,null,null,null,null,null,null,null,null,null,0,"Vestiaires",{"$error":"#N/A"},{"$error":"#N/A"},"Vestiaires"]
[null,null,null,null,null,null,null,null,null,null,null,null,null,null,null,null,null,null,null,null,null,null,0,"Vestiaires",{"$error":"#N/A"},{"$error":"#N/A"},"Vestiaires"]
[null,null,null,null,null,null,null,null,null,null,null,null,null,null,null,null,null,null,null,null,null,null,0,"Vestiaires",{"$error":"#N/A"},{"$error":"#N/A"},"Vestiaires"]
[null,null,null,null,null,null,null,null,null,null,null,null,null,null,null,null,null,null,null,null,null,null,0,"Vestiaires",{"$error":"#N/A"},{"$error":"#N/A"},"Vestiaires"]
[null,null,null,null,null,null,null,null,null,null,null,null,null,null,null,null,null,null,null,null,null,null,0,"Vestiaires",{"$error":"#N/A"},{"$error":"#N/A"},"Vestiaires"]
[null,null,null,null,null,null,null,null,null,null,null,null,null,null,null,null,null,null,null,null,null,null,0,"Vestiaires",{"$error":"#N/A"},{"$error":"#N/A"},"Vestiaires"]
[null,null,null,null,null,null,null,null,null,null,null,null,null,null,null,null,null,null,null,null,null,null,0,"Vestiaires",{"$error":"#N/A"},{"$error":"#N/A"},"Vestiaires"]
[null,null,null,null,null,null,null,null,null,null,null,null,null,null,null,null,null,null,null,null,null,null,0,"Vestiaires",{"$error":"#N/A"},{"$error":"#N/A"},"Vestiaires"]
[null,null,null,null,null,null,null,null,null,null,null,null,null,null,null,null,null,null,null,null,null,null,0,"Vestiaires",{"$error":"#N/A"},{"$error":"#N/A"},"Vestiaires"]
[null,null,null,null,null,null,null,null,null,null,null,null,null,null,null,null,null,null,null,null,null,null,0,"Vestiaires",{"$error":"#N/A"},{"$error":"#N/A"},"Vestiaires"]
[null,null,null,null,null,null,null,null,null,null,null,null,null,null,null,null,null,null,null,null,null,null,0,"Vestiaires",{"$error":"#N/A"},{"$error":"#N/A"},"Vestiaires"]
[null,null,null,null,null,null,null,null,null,null,null,null,null,null,null,null,null,null,null,null,null,null,0,"Vestiaires",{"$error":"#N/A"},{"$error":"#N/A"},"Vestiaires"]
[null,null,null,null,null,null,null,null,null,null,null,null,null,null,null,null,null,null,null,null,null,null,0,"Vestiaires",{"$error":"#N/A"},{"$error":"#N/A"},"Vestiaires"]
[null,null,null,null,null,null,null,null,null,null,null,null,null,null,null,null,null,null,null,null,null,null,0,"Vestiaires",{"$error":"#N/A"},{"$error":"#N/A"},"Vestiaires"]
[null,null,null,null,null,null,null,null,null,null,null,null,null,null,null,null,null,null,null,null,null,null,0,"Vestiaires",{"$error":"#N/A"},{"$error":"#N/A"},"Vestiaires"]
[null,null,null,null,null,null,null,null,null,null,null,null,null,null,null,null,null,null,null,null,null,null,0,"Vestiaires",{"$error":"#N/A"},{"$error":"#N/A"},"Vestiaires"]
[null,null,null,null,null,null,null,null,null,null,null,null,null,null,null,null,null,null,null,null,null,null,0,"Vestiaires",{"$error":"#N/A"},{"$error":"#N/A"},"Vestiaires"]
[null,null,null,null,null,null,null,null,null,null,null,null,null,null,null,null,null,null,null,null,null,null,0,"Vestiaires",{"$error":"#N/A"},{"$error":"#N/A"},"Vestiaires"]
[null,null,null,null,null,null,null,null,null,null,null,null,null,null,null,null,null,null,null,null,null,null,0,"Vestiaires",{"$error":"#N/A"},{"$error":"#N/A"},"Vestiaires"]
[null,null,null,null,null,null,null,null,null,null,null,null,null,null,null,null,null,null,null,null,null,null,0,"Vestiaires",{"$error":"#N/A"},{"$error":"#N/A"},"Vestiaires"]
[null,null,null,null,null,null,null,null,null,null,null,null,null,null,null,null,null,null,null,null,null,null,0,"Vestiaires",{"$error":"#N/A"},{"$error":"#N/A"},"Vestiaires"]
[null,null,null,null,null,null,null,null,null,null,null,null,null,null,null,null,null,null,null,null,null,null,0,"Vestiaires",{"$error":"#N/A"},{"$error":"#N/A"},"Vestiaires"]
[null,null,null,null,null,null,null,null,null,null,null,null,null,null,null,null,null,null,null,null,null,null,0,"Vestiaires",{"$error":"#N/A"},{"$error":"#N/A"},"Vestiaires"]
[null,null,null,null,null,null,null,null,null,null,null,null,null,null,null,null,null,null,null,null,null,null,0,"Vestiaires",{"$error":"#N/A"},{"$error":"#N/A"},"Vestiaires"]
[null,null,null,null,null,null,null,null,null,null,null,null,null,null,null,null,null,null,null,null,null,null,0,"Vestiaires",{"$error":"#N/A"},{"$error":"#N/A"},"Vestiaires"]
[null,null,null,null,null,null,null,null,null,null,null,null,null,null,null,null,null,null,null,null,null,null,0,"Vestiaires",{"$error":"#N/A"},{"$error":"#N/A"},"Vestiaires"]
[null,null,null,null,null,null,null,null,null,null,null,null,null,null,null,null,null,null,null,null,null,null,0,"Vestiaires",{"$error":"#N/A"},{"$error":"#N/A"},"Vestiaires"]
[null,null,null,null,null,null,null,null,null,null,null,null,null,null,null,null,null,null,null,null,null,null,0,"Vestiaires",{"$error":"#N/A"},{"$error":"#N/A"},"Vestiaires"]
[null,null,null,null,null,null,null,null,null,null,null,null,null,null,null,null,null,null,null,null,null,null,0,"Vestiaires",{"$error":"#N/A"},{"$error":"#N/A"},"Vestiaires"]
[null,null,null,null,null,null,null,null,null,null,null,null,null,null,null,null,null,null,null,null,null,null,0,"Vestiaires",{"$error":"#N/A"},{"$error":"#N/A"},"Vestiaires"]
[null,null,null,null,null,null,null,null,null,null,null,null,null,null,null,null,null,null,null,null,null,null,0,"Vestiaires",{"$error":"#N/A"},{"$error":"#N/A"},"Vestiaires"]
[null,null,null,null,null,null,null,null,null,null,null,null,null,null,null,null,null,null,null,null,null,null,0,"",{"$error":"#N/A"},{"$error":"#N/A"},""]
[null,null,null,null,null,null,null,null,null,null,null,null,null,null,null,null,null,null,null,null,null,null,0,"Couloirs",{"$error":"#N/A"},{"$error":"#N/A"},"Couloirs"]
[null,null,null,null,null,null,null,null,null,null,null,null,null,null,null,null,null,null,null,null,null,null,0,"Couloirs",{"$error":"#N/A"},{"$error":"#N/A"},"Couloirs"]
[null,null,null,null,null,null,null,null,null,null,null,null,null,null,null,null,null,null,null,null,null,null,0,"Couloirs",{"$error":"#N/A"},{"$error":"#N/A"},"Couloirs"]
[null,null,null,null,null,null,null,null,null,null,null,null,null,null,null,null,null,null,null,null,null,null,"x","Couloirs",{"$error":"#N/A"},{"$error":"#N/A"},"Couloirs"]
[null,null,null,null,null,null,null,null,null,null,null,null,null,null,null,null,null,null,null,null,null,null,0,"Couloirs",{"$error":"#N/A"},{"$error":"#N/A"},"Couloirs"]
[null,null,null,null,null,null,null,null,null,null,null,null,null,null,null,null,null,null,null,null,null,null,0,"Couloirs",{"$error":"#N/A"},{"$error":"#N/A"},"Couloirs"]
[null,null,null,null,null,null,null,null,null,null,null,null,null,null,null,null,null,null,null,null,null,null,0,"Couloirs",{"$error":"#N/A"},{"$error":"#N/A"},"Couloirs"]
[null,null,null,null,null,null,null,null,null,null,null,null,null,null,null,null,null,null,null,null,null,null,0,"Couloirs",{"$error":"#N/A"},{"$error":"#N/A"},"Couloirs"]
[null,null,null,null,null,null,null,null,null,null,null,null,null,null,null,null,null,null,null,null,null,null,0,"Couloirs",{"$error":"#N/A"},{"$error":"#N/A"},"Couloirs"]
[null,null,null,null,null,null,null,null,null,null,null,null,null,null,null,null,null,null,null,null,null,null,0,"Couloirs",{"$error":"#N/A"},{"$error":"#N/A"},"Couloirs"]
[null,null,null,null,null,null,null,null,null,null,null,null,null,null,null,null,null,null,null,null,null,null,0,"Couloirs",{"$error":"#N/A"},{"$error":"#N/A"},"Couloirs"]
[null,null,null,null,null,null,null,null,null,null,null,null,null,null,null,null,null,null,null,null,null,null,0,"Couloirs",{"$error":"#N/A"},{"$error":"#N/A"},"Couloirs"]
[null,null,null,null,null,null,null,null,null,null,null,null,null,null,null,null,null,null,null,null,null,null,0,"Couloirs",{"$error":"#N/A"},{"$error":"#N/A"},"Couloirs"]
[null,null,null,null,null,null,null,null,null,null,null,null,null,null,null,null,null,null,null,null,null,null,0,"Couloirs",{"$error":"#N/A"},{"$error":"#N/A"},"Couloirs"]
[null,null,null,null,null,null,null,null,null,null,null,null,null,null,null,null,null,null,null,null,null,null,0,"Couloirs",{"$error":"#N/A"},{"$error":"#N/A"},"Couloirs"]
[null,null,null,null,null,null,null,null,null,null,null,null,null,null,null,null,null,null,null,null,null,null,0,"Couloirs",{"$error":"#N/A"},{"$error":"#N/A"},"Couloirs"]
[null,null,null,null,null,null,null,null,null,null,null,null,null,null,null,null,null,null,null,null,null,null,0,"Couloirs",{"$error":"#N/A"},{"$error":"#N/A"},"Couloirs"]
[null,null,null,null,null,null,null,null,null,null,null,null,null,null,null,null,null,null,null,null,null,null,0,"Couloirs",{"$error":"#N/A"},{"$error":"#N/A"},"Couloirs"]
[null,null,null,null,null,null,null,null,null,null,null,null,null,null,null,null,null,null,null,null,null,null,0,"Couloirs",{"$error":"#N/A"},{"$error":"#N/A"},"Couloirs"]
[null,null,null,null,null,null,null,null,null,null,null,null,null,null,null,null,null,null,null,null,null,null,0,"Couloirs",{"$error":"#N/A"},{"$error":"#N/A"},"Couloirs"]
[null,null,null,null,null,null,null,null,null,null,null,null,null,null,null,null,null,null,null,null,null,null,0,"Couloirs",{"$error":"#N/A"},{"$error":"#N/A"},"Couloirs"]
[null,null,null,null,null,null,null,null,null,null,null,null,null,null,null,null,null,null,null,null,null,null,0,"Couloirs",{"$error":"#N/A"},{"$error":"#N/A"},"Couloirs"]
[null,null,null,null,null,null,null,null,null,null,null,null,null,null,null,null,null,null,null,null,null,null,0,"Couloirs",{"$error":"#N/A"},{"$error":"#N/A"},"Couloirs"]
[null,null,null,null,null,null,null,null,null,null,null,null,null,null,null,null,null,null,null,null,null,null,0,"Couloirs",{"$error":"#N/A"},{"$error":"#N/A"},"Couloirs"]
[null,null,null,null,null,null,null,null,null,null,null,null,null,null,null,null,null,null,null,null,null,null,0,"Couloirs",{"$error":"#N/A"},{"$error":"#N/A"},"Couloirs"]
[null,null,null,null,null,null,null,null,null,null,null,null,null,null,null,null,null,null,null,null,null,null,0,"Couloirs",{"$error":"#N/A"},{"$error":"#N/A"},"Couloirs"]
[null,null,null,null,null,null,null,null,null,null,null,null,null,null,null,null,null,null,null,null,null,null,0,"Couloirs",{"$error":"#N/A"},{"$error":"#N/A"},"Couloirs"]
[null,null,null,null,null,null,null,null,null,null,null,null,null,null,null,null,null,null,null,null,null,null,0,"Couloirs",{"$error":"#N/A"},{"$error":"#N/A"},"Couloirs"]
[null,null,null,null,null,null,null,null,null,null,null,null,null,null,null,null,null,null,null,null,null,null,0,"Couloirs",{"$error":"#N/A"},{"$error":"#N/A"},"Couloirs"]
[null,null,null,null,null,null,null,null,null,null,null,null,null,null,null,null,null,null,null,null,null,null,0,"Couloirs",{"$error":"#N/A"},{"$error":"#N/A"},"Couloirs"]
[null,null,null,null,null,null,null,null,null,null,null,null,null,null,null,null,null,null,null,null,null,null,0,"Couloirs",{"$error":"#N/A"},{"$error":"#N/A"},"Couloirs"]
[null,null,null,null,null,null,null,null,null,null,null,null,null,null,null,null,null,null,null,null,null,null,0,"Couloirs",{"$error":"#N/A"},{"$error":"#N/A"},"Couloirs"]
[null,null,null,null,null,null,null,null,null,null,null,null,null,null,null,null,null,null,null,null,null,null,0,"Couloirs",{"$error":"#N/A"},{"$error":"#N/A"},"Couloirs"]
[null,null,null,null,null,null,null,null,null,null,null,null,null,null,null,null,null,null,null,null,null,null,0,"Couloirs",{"$error":"#N/A"},{"$error":"#N/A"},"Couloirs"]
[null,null,null,null,null,null,null,null,null,null,null,null,null,null,null,null,null,null,null,null,null,null,0,"Couloirs",{"$error":"#N/A"},{"$error":"#N/A"},"Couloirs"]
[null,null,null,null,null,null,null,null,null,null,null,null,null,null,null,null,null,null,null,null,null,null,0,"Couloirs",{"$error":"#N/A"},{"$error":"#N/A"},"Couloirs"]
[null,null,null,null,null,null,null,null,null,null,null,null,null,null,null,null,null,null,null,null,null,null,0,"Couloirs",{"$error":"#N/A"},{"$error":"#N/A"},"Couloirs"]
[null,null,null,null,null,null,null,null,null,null,null,null,null,null,null,null,null,null,null,null,null,null,0,"Couloirs",{"$error":"#N/A"},{"$error":"#N/A"},"Couloirs"]
[null,null,null,null,null,null,null,null,null,null,null,null,null,null,null,null,null,null,null,null,null,null,0,"Couloirs",{"$error":"#N/A"},{"$error":"#N/A"},"Couloirs"]
[null,null,null,null,null,null,null,null,null,null,null,null,null,null,null,null,null,null,null,null,null,null,0,"Couloirs",{"$error":"#N/A"},{"$error":"#N/A"},"Couloirs"]
[null,null,null,null,null,null,null,null,null,null,null,null,null,null,null,null,null,null,null,null,null,null,0,"Couloirs",{"$error":"#N/A"},{"$error":"#N/A"},"Couloirs"]
[null,null,null,null,null,null,null,null,null,null,null,null,null,null,null,null,null,null,null,null,null,null,0,"Couloirs",{"$error":"#N/A"},{"$error":"#N/A"},"Couloirs"]
[null,null,null,null,null,null,null,null,null,null,null,null,null,null,null,null,null,null,null,null,null,null,0,"Couloirs",{"$error":"#N/A"},{"$error":"#N/A"},"Couloirs"]
[null,null,null,null,null,null,null,null,null,null,null,null,null,null,null,null,null,null,null,null,null,null,0,"Couloirs",{"$error":"#N/A"},{"$error":"#N/A"},"Couloirs"]
[null,null,null,null,null,null,null,null,null,null,null,null,null,null,null,null,null,null,null,null,null,null,0,"Couloirs",{"$error":"#N/A"},{"$error":"#N/A"},"Couloirs"]
[null,null,null,null,null,null,null,null,null,null,null,null,null,null,null,null,null,null,null,null,null,null,0,"Couloirs",{"$error":"#N/A"},{"$error":"#N/A"},"Couloirs"]
[null,null,null,null,null,null,null,null,null,null,null,null,null,null,null,null,null,null,null,null,null,null,0,"Couloirs",{"$error":"#N/A"},{"$error":"#N/A"},"Couloirs"]
[null,null,null,null,null,null,null,null,null,null,null,null,null,null,null,null,null,null,null,null,null,null,0,"Couloirs",{"$error":"#N/A"},{"$error":"#N/A"},"Couloirs"]
[null,null,null,null,null,null,null,null,null,null,null,null,null,null,null,null,null,null,null,null,null,null,0,"Couloirs",{"$error":"#N/A"},{"$error":"#N/A"},"Couloirs"]
[null,null,null,null,null,null,null,null,null,null,null,null,null,null,null,null,null,null,null,null,null,null,0,"Couloirs",{"$error":"#N/A"},{"$error":"#N/A"},"Couloirs"]
[null,null,null,null,null,null,null,null,null,null,null,null,null,null,null,null,null,null,null,null,null,null,0,"Couloirs",{"$error":"#N/A"},{"$error":"#N/A"},"Couloirs"]
[null,null,null,null,null,null,null,null,null,null,null,null,null,null,null,null,null,null,null,null,null,null,0,"Couloirs",{"$error":"#N/A"},{"$error":"#N/A"},"Couloirs"]
[null,null,null,null,null,null,null,null,null,null,null,null,null,null,null,null,null,null,null,null,null,null,0,"Couloirs",{"$error":"#N/A"},{"$error":"#N/A"},"Couloirs"]
[null,null,null,null,null,null,null,null,null,null,null,null,null,null,null,null,null,null,null,null,null,null,0,"Couloirs",{"$error":"#N/A"},{"$error":"#N/A"},"Couloirs"]
[null,null,null,null,null,null,null,null,null,null,null,null,null,null,null,null,null,null,null,null,null,null,0,"Couloirs",{"$error":"#N/A"},{"$error":"#N/A"},"Couloirs"]
[null,null,null,null,null,null,null,null,null,null,null,null,null,null,null,null,null,null,null,null,null,null,0,"Couloirs",{"$error":"#N/A"},{"$error":"#N/A"},"Couloirs"]
[null,null,null,null,null,null,null,null,null,null,null,null,null,null,null,null,null,null,null,null,null,null,0,"Couloirs",{"$error":"#N/A"},{"$error":"#N/A"},"Couloirs"]
[null,null,null,null,null,null,null,null,null,null,null,null,null,null,null,null,null,null,null,null,null,null,0,"Couloirs",{"$error":"#N/A"},{"$error":"#N/A"},"Couloirs"]
[null,null,null,null,null,null,null,null,null,null,null,null,null,null,null,null,null,null,null,null,null,null,0,"Couloirs",{"$error":"#N/A"},{"$error":"#N/A"},"Couloirs"]
[null,null,null,null,null,null,null,null,null,null,null,null,null,null,null,null,null,null,null,null,null,null,0,"Couloirs",{"$error":"#N/A"},{"$error":"#N/A"},"Couloirs"]
[null,null,null,null,null,null,null,null,null,null,null,null,null,null,null,null,null,null,null,null,null,null,0,"Couloirs",{"$error":"#N/A"},{"$error":"#N/A"},"Couloirs"]
[null,null,null,null,null,null,null,null,null,null,null,null,null,null,null,null,null,null,null,null,null,null,0,"Couloirs",{"$error":"#N/A"},{"$error":"#N/A"},"Couloirs"]
[null,null,null,null,null,null,null,null,null,null,null,null,null,null,null,null,null,null,null,null,null,null,0,"Couloirs",{"$error":"#N/A"},{"$error":"#N/A"},"Couloirs"]
[null,null,null,null,null,null,null,null,null,null,null,null,null,null,null,null,null,null,null,null,null,null,0,"Couloirs",{"$error":"#N/A"},{"$error":"#N/A"},"Couloirs"]
[null,null,null,null,null,null,null,null,null,null,null,null,null,null,null,null,null,null,null,null,null,null,0,"Couloirs",{"$error":"#N/A"},{"$error":"#N/A"},"Couloirs"]
[null,null,null,null,null,null,null,null,null,null,null,null,null,null,null,null,null,null,null,null,null,null,0,"Couloirs",{"$error":"#N/A"},{"$error":"#N/A"},"Couloirs"]
[null,null,null,null,null,null,null,null,null,null,null,null,null,null,null,null,null,null,null,null,null,null,0,"Couloirs",{"$error":"#N/A"},{"$error":"#N/A"},"Couloirs"]
[null,null,null,null,null,null,null,null,null,null,null,null,null,null,null,null,null,null,null,null,null,null,0,"Couloirs",{"$error":"#N/A"},{"$error":"#N/A"},"Couloirs"]
[null,null,null,null,null,null,null,null,null,null,null,null,null,null,null,null,null,null,null,null,null,null,0,"Couloirs",{"$error":"#N/A"},{"$error":"#N/A"},"Couloirs"]
[null,null,null,null,null,null,null,null,null,null,null,null,null,null,null,null,null,null,null,null,null,null,0,"Couloirs",{"$error":"#N/A"},{"$error":"#N/A"},"Couloirs"]
[null,null,null,null,null,null,null,null,null,null,null,null,null,null,null,null,null,null,null,null,null,null,0,"Couloirs",{"$error":"#N/A"},{"$error":"#N/A"},"Couloirs"]
[null,null,null,null,null,null,null,null,null,null,null,null,null,null,null,null,null,null,null,null,null,null,0,"Couloirs",{"$error":"#N/A"},{"$error":"#N/A"},"Couloirs"]
[null,null,null,null,null,null,null,null,null,null,null,null,null,null,null,null,null,null,null,null,null,null,0,"Couloirs",{"$error":"#N/A"},{"$error":"#N/A"},"Couloirs"]
[null,null,null,null,null,null,null,null,null,null,null,null,null,null,null,null,null,null,null,null,null,null,0,"Couloirs",{"$error":"#N/A"},{"$error":"#N/A"},"Couloirs"]
[null,null,null,null,null,null,null,null,null,null,null,null,null,null,null,null,null,null,null,null,null,null,0,"Couloirs",{"$error":"#N/A"},{"$error":"#N/A"},"Couloirs"]
[null,null,null,null,null,null,null,null,null,null,null,null,null,null,null,null,null,null,null,null,null,null,0,"Couloirs",{"$error":"#N/A"},{"$error":"#N/A"},"Couloirs"]
[null,null,null,null,null,null,null,null,null,null,null,null,null,null,null,null,null,null,null,null,null,null,0,"Couloirs",{"$error":"#N/A"},{"$error":"#N/A"},"Couloirs"]
[null,null,null,null,null,null,null,null,null,null,null,null,null,null,null,null,null,null,null,null,null,null,0,"Couloirs",{"$error":"#N/A"},{"$error":"#N/A"},"Couloirs"]
[null,null,null,null,null,null,null,null,null,null,null,null,null,null,null,null,null,null,null,null,null,null,0,"Couloirs",{"$error":"#N/A"},{"$error":"#N/A"},"Couloirs"]
[null,null,null,null,null,null,null,null,null,null,null,null,null,null,null,null,null,null,null,null,null,null,0,"Couloirs",{"$error":"#N/A"},{"$error":"#N/A"},"Couloirs"]
[null,null,null,null,null,null,null,null,null,null,null,null,null,null,null,null,null,null,null,null,null,null,0,"Couloirs",{"$error":"#N/A"},{"$error":"#N/A"},"Couloirs"]
[null,null,null,null,null,null,null,null,null,null,null,null,null,null,null,null,null,null,null,null,null,null,0,"Couloirs",{"$error":"#N/A"},{"$error":"#N/A"},"Couloirs"]
[null,null,null,null,null,null,null,null,null,null,null,null,null,null,null,null,null,null,null,null,null,null,0,"Couloirs",{"$error":"#N/A"},{"$error":"#N/A"},"Couloirs"]
[null,null,null,null,null,null,null,null,null,null,null,null,null,null,null,null,null,null,null,null,null,null,0,"Couloirs",{"$error":"#N/A"},{"$error":"#N/A"},"Couloirs"]
[null,null,null,null,null,null,null,null,null,null,null,null,null,null,null,null,null,null,null,null,null,null,0,"Couloirs",{"$error":"#N/A"},{"$error":"#N/A"},"Couloirs"]
[null,null,null,null,null,null,null,null,null,null,null,null,null,null,null,null,null,null,null,null,null,null,0,"Couloirs",{"$error":"#N/A"},{"$error":"#N/A"},"Couloirs"]
[null,null,null,null,null,null,null,null,null,null,null,null,null,null,null,null,null,null,null,null,null,null,0,"Couloirs",{"$error":"#N/A"},{"$error":"#N/A"},"Couloirs"]
[null,null,null,null,null,null,null,null,null,null,null,null,null,null,null,null,null,null,null,null,null,null,0,"Couloirs",{"$error":"#N/A"},{"$error":"#N/A"},"Couloirs"]
[null,null,null,null,null,null,null,null,null,null,null,null,null,null,null,null,null,null,null,null,null,null,0,"Couloirs",{"$error":"#N/A"},{"$error":"#N/A"},"Couloirs"]
[null,null,null,null,null,null,null,null,null,null,null,null,null,null,null,null,null,null,null,null,null,null,0,"Couloirs",{"$error":"#N/A"},{"$error":"#N/A"},"Couloirs"]
[null,null,null,null,null,null,null,null,null,null,null,null,null,null,null,null,null,null,null,null,null,null,0,"Couloirs",{"$error":"#N/A"},{"$error":"#N/A"},"Couloirs"]
[null,null,null,null,null,null,null,null,null,null,null,null,null,null,null,null,null,null,null,null,null,null,0,"Couloirs",{"$error":"#N/A"},{"$error":"#N/A"},"Couloirs"]
[null,null,null,null,null,null,null,null,null,null,null,null,null,null,null,null,null,null,null,null,null,null,0,"Couloirs",{"$error":"#N/A"},{"$error":"#N/A"},"Couloirs"]
[null,null,null,null,null,null,null,null,null,null,null,null,null,null,null,null,null,null,null,null,null,null,0,"Couloirs",{"$error":"#N/A"},{"$error":"#N/A"},"Couloirs"]
[null,null,null,null,null,null,null,null,null,null,null,null,null,null,null,null,null,null,null,null,null,null,0,"Couloirs",{"$error":"#N/A"},{"$error":"#N/A"},"Couloirs"]
[null,null,null,null,null,null,null,null,null,null,null,null,null,null,null,null,null,null,null,null,null,null,0,"Cuisine",{"$error":"#N/A"},{"$error":"#N/A"},"Cuisine"]
[null,null,null,null,null,null,null,null,null,null,null,null,null,null,null,null,null,null,null,null,null,null,0,"Cuisine",{"$error":"#N/A"},{"$error":"#N/A"},"Cuisine"]
[null,null,null,null,null,null,null,null,null,null,null,null,null,null,null,null,null,null,null,null,null,null,0,"Cuisine",{"$error":"#N/A"},{"$error":"#N/A"},"Cuisine"]
[null,null,null,null,null,null,null,null,null,null,null,null,null,null,null,null,null,null,null,null,null,null,0,"Cuisine",{"$error":"#N/A"},{"$error":"#N/A"},"Cuisine"]
[null,null,null,null,null,null,null,null,null,null,null,null,null,null,null,null,null,null,null,null,null,null,0,"Salle de conférence",{"$error":"#N/A"},{"$error":"#N/A"},"Salle de conférence"]
[null,null,null,null,null,null,null,null,null,null,null,null,null,null,null,null,null,null,null,null,null,null,0,"Salle de conférence",{"$error":"#N/A"},{"$error":"#N/A"},"Salle de conférence"]
[null,null,null,null,null,null,null,null,null,null,null,null,null,null,null,null,null,null,null,null,null,null,0,"Salle de conférence",{"$error":"#N/A"},{"$error":"#N/A"},"Salle de conférence"]
[null,null,null,null,null,null,null,null,null,null,null,null,null,null,null,null,null,null,null,null,null,null,0,"Salle de conférence",{"$error":"#N/A"},{"$error":"#N/A"},"Salle de conférence"]
[null,null,null,null,null,null,null,null,null,null,null,null,null,null,null,null,null,null,null,null,null,null,0,"Chambre",{"$error":"#N/A"},{"$error":"#N/A"},"Chambre"]
[null,null,null,null,null,null,null,null,null,null,null,null,null,null,null,null,null,null,null,null,null,null,0,"Chambre",{"$error":"#N/A"},{"$error":"#N/A"},"Chambre"]
[null,null,null,null,null,null,null,null,null,null,null,null,null,null,null,null,null,null,null,null,null,null,0,"Chambre",{"$error":"#N/A"},{"$error":"#N/A"},"Chambre"]
[null,null,null,null,null,null,null,null,null,null,null,null,null,null,null,null,null,null,null,null,null,null,0,"Cafétéria",{"$error":"#N/A"},{"$error":"#N/A"},"Cafétéria"]
[null,null,null,null,null,null,null,null,null,null,null,null,null,null,null,null,null,null,null,null,null,null,0,"Cafétéria",{"$error":"#N/A"},{"$error":"#N/A"},"Cafétéria"]
[null,null,null,null,null,null,null,null,null,null,null,null,null,null,null,null,null,null,null,null,null,null,0,"Cafétéria",{"$error":"#N/A"},{"$error":"#N/A"},"Cafétéria"]
[null,null,null,null,null,null,null,null,null,null,null,null,null,null,null,null,null,null,null,null,null,null,0,"Coin à manger",{"$error":"#N/A"},{"$error":"#N/A"},"Coin à manger"]
[null,null,null,null,null,null,null,null,null,null,null,null,null,null,null,null,null,null,null,null,null,null,0,"Coin à manger",{"$error":"#N/A"},{"$error":"#N/A"},"Coin à manger"]
[null,null,null,null,null,null,null,null,null,null,null,null,null,null,null,null,null,null,null,null,null,null,0,"Coin à manger",{"$error":"#N/A"},{"$error":"#N/A"},"Coin à manger"]
[null,null,null,null,null,null,null,null,null,null,null,null,null,null,null,null,null,null,null,null,null,null,0,"Coin à manger",{"$error":"#N/A"},{"$error":"#N/A"},"Coin à manger"]
[null,null,null,null,null,null,null,null,null,null,null,null,null,null,null,null,null,null,null,null,null,null,0,"Buanderie",{"$error":"#N/A"},{"$error":"#N/A"},"Buanderie"]
[null,null,null,null,null,null,null,null,null,null,null,null,null,null,null,null,null,null,null,null,null,null,0,"Buanderie",{"$error":"#N/A"},{"$error":"#N/A"},"Buanderie"]
[null,null,null,null,null,null,null,null,null,null,null,null,null,null,null,null,null,null,null,null,null,null,0,"Buanderie",{"$error":"#N/A"},{"$error":"#N/A"},"Buanderie"]
[null,null,null,null,null,null,null,null,null,null,null,null,null,null,null,null,null,null,null,null,null,null,0,"Buanderie",{"$error":"#N/A"},{"$error":"#N/A"},"Buanderie"]
[null,null,null,null,null,null,null,null,null,null,null,null,null,null,null,null,null,null,null,null,null,null,0,"Salon",{"$error":"#N/A"},{"$error":"#N/A"},"Salon"]
[null,null,null,null,null,null,null,null,null,null,null,null,null,null,null,null,null,null,null,null,null,null,0,"Salon",{"$error":"#N/A"},{"$error":"#N/A"},"Salon"]
[null,null,null,null,null,null,null,null,null,null,null,null,null,null,null,null,null,null,null,null,null,null,0,"Salon",{"$error":"#N/A"},{"$error":"#N/A"},"Salon"]
[null,null,null,null,null,null,null,null,null,null,null,null,null,null,null,null,null,null,null,null,null,null,0,"Salon",{"$error":"#N/A"},{"$error":"#N/A"},"Salon"]
[null,null,null,null,null,null,null,null,null,null,null,null,null,null,null,null,null,null,null,null,null,null,0,"Ateliers",{"$error":"#N/A"},{"$error":"#N/A"},"Ateliers"]
[null,null,null,null,null,null,null,null,null,null,null,null,null,null,null,null,null,null,null,null,null,null,0,"Ateliers",{"$error":"#N/A"},{"$error":"#N/A"},"Ateliers"]
[null,null,null,null,null,null,null,null,null,null,null,null,null,null,null,null,null,null,null,null,null,null,0,"Ateliers",{"$error":"#N/A"},{"$error":"#N/A"},"Ateliers"]
[null,null,null,null,null,null,null,null,null,null,null,null,null,null,null,null,null,null,null,null,null,null,0,"Cage d'escaliers",{"$error":"#N/A"},{"$error":"#N/A"},"Cage d'escaliers"]
[null,null,null,null,null,null,null,null,null,null,null,null,null,null,null,null,null,null,null,null,null,null,0,"Cage d'escaliers",{"$error":"#N/A"},{"$error":"#N/A"},"Cage d'escaliers"]
[null,null,null,null,null,null,null,null,null,null,null,null,null,null,null,null,null,null,null,null,null,null,0,"Cage d'escaliers",{"$error":"#N/A"},{"$error":"#N/A"},"Cage d'escaliers"]
[null,null,null,null,null,null,null,null,null,null,null,null,null,null,null,null,null,null,null,null,null,null,0,"Ascenseur",{"$error":"#N/A"},{"$error":"#N/A"},"Ascenseur"]
[null,null,null,null,null,null,null,null,null,null,null,null,null,null,null,null,null,null,null,null,null,null,0,"Ascenseur",{"$error":"#N/A"},{"$error":"#N/A"},"Ascenseur"]
[null,null,null,null,null,null,null,null,null,null,null,null,null,null,null,null,null,null,null,null,null,null,0,"Ascenseur",{"$error":"#N/A"},{"$error":"#N/A"},"Ascenseur"]
[null,null,null,null,null,null,null,null,null,null,null,null,null,null,null,null,null,null,null,null,null,null,0,"Ascenseur",{"$error":"#N/A"},{"$error":"#N/A"},"Ascenseur"]
[null,null,null,null,null,null,null,null,null,null,null,null,null,null,null,null,null,null,null,null,null,null,null,null,"Dépoussiérer les cadres photos",0,"Hall d'entrée"]
[null,null,null,null,null,null,null,null,null,null,null,null,null,null,null,null,null,null,null,null,null,null,null,null,"Nettoyer les vestiaires",0,"Hall d'entrée"]
[null,null,null,null,null,null,null,null,null,null,null,null,null,null,null,null,null,null,null,null,null,null,null,null,0,0,"Hall d'entrée"]
[null,null,null,null,null,null,null,null,null,null,null,null,null,null,null,null,null,null,null,null,null,null,null,null,{"$error":"#N/A"},{"$error":"#N/A"},"Bureau simple"]
[null,null,null,null,null,null,null,null,null,null,null,null,null,null,null,null,null,null,null,null,null,null,null,null,{"$error":"#N/A"},{"$error":"#N/A"},"Bureau simple"]
[null,null,null,null,null,null,null,null,null,null,null,null,null,null,null,null,null,null,null,null,null,null,null,null,{"$error":"#N/A"},{"$error":"#N/A"},"Bureau simple"]
[null,null,null,null,null,null,null,null,null,null,null,null,null,null,null,null,null,null,null,null,null,null,null,null,{"$error":"#N/A"},{"$error":"#N/A"},"Bureau simple"]
[null,null,null,null,null,null,null,null,null,null,null,null,null,null,null,null,null,null,null,null,null,null,null,null,{"$error":"#N/A"},{"$error":"#N/A"},"Open Space"]
[null,null,null,null,null,null,null,null,null,null,null,null,null,null,null,null,null,null,null,null,null,null,null,null,{"$error":"#N/A"},{"$error":"#N/A"},"Open Space"]
[null,null,null,null,null,null,null,null,null,null,null,null,null,null,null,null,null,null,null,null,null,null,null,null,{"$error":"#N/A"},{"$error":"#N/A"},"Open Space"]
[null,null,null,null,null,null,null,null,null,null,null,null,null,null,null,null,null,null,null,null,null,null,null,null,{"$error":"#N/A"},{"$error":"#N/A"},"Open Space"]
[null,null,null,null,null,null,null,null,null,null,null,null,null,null,null,null,null,null,null,null,null,null,null,null,{"$error":"#N/A"},{"$error":"#N/A"},"Local sanitaire"]
[null,null,null,null,null,null,null,null,null,null,null,null,null,null,null,null,null,null,null,null,null,null,null,null,{"$error":"#N/A"},{"$error":"#N/A"},"Local sanitaire"]
[null,null,null,null,null,null,null,null,null,null,null,null,null,null,null,null,null,null,null,null,null,null,null,null,{"$error":"#N/A"},{"$error":"#N/A"},"Local sanitaire"]
[null,null,null,null,null,null,null,null,null,null,null,null,null,null,null,null,null,null,null,null,null,null,null,null,{"$error":"#N/A"},{"$error":"#N/A"},"Local sanitaire"]
[null,null,null,null,null,null,null,null,null,null,null,null,null,null,null,null,null,null,null,null,null,null,null,null,{"$error":"#N/A"},{"$error":"#N/A"},"Douche"]
[null,null,null,null,null,null,null,null,null,null,null,null,null,null,null,null,null,null,null,null,null,null,null,null,{"$error":"#N/A"},{"$error":"#N/A"},"Douche"]
[null,null,null,null,null,null,null,null,null,null,null,null,null,null,null,null,null,null,null,null,null,null,null,null,{"$error":"#N/A"},{"$error":"#N/A"},"Douche"]
[null,null,null,null,null,null,null,null,null,null,null,null,null,null,null,null,null,null,null,null,null,null,null,null,{"$error":"#N/A"},{"$error":"#N/A"},"Vestiaires"]
[null,null,null,null,null,null,null,null,null,null,null,null,null,null,null,null,null,null,null,null,null,null,null,null,{"$error":"#N/A"},{"$error":"#N/A"},"Vestiaires"]
[null,null,null,null,null,null,null,null,null,null,null,null,null,null,null,null,null,null,null,null,null,null,null,null,{"$error":"#N/A"},{"$error":"#N/A"},"Vestiaires"]
[null,null,null,null,null,null,null,null,null,null,null,null,null,null,null,null,null,null,null,null,null,null,null,null,{"$error":"#N/A"},{"$error":"#N/A"},"Couloirs"]
[null,null,null,null,null,null,null,null,null,null,null,null,null,null,null,null,null,null,null,null,null,null,null,null,{"$error":"#N/A"},{"$error":"#N/A"},"Couloirs"]
[null,null,null,null,null,null,null,null,null,null,null,null,null,null,null,null,null,null,null,null,null,null,null,null,{"$error":"#N/A"},{"$error":"#N/A"},"Couloirs"]
[null,null,null,null,null,null,null,null,null,null,null,null,null,null,null,null,null,null,null,null,null,null,null,null,{"$error":"#N/A"},{"$error":"#N/A"},"Couloirs"]
[null,null,null,null,null,null,null,null,null,null,null,null,null,null,null,null,null,null,null,null,null,null,null,null,{"$error":"#N/A"},{"$error":"#N/A"},"Cuisine"]
[null,null,null,null,null,null,null,null,null,null,null,null,null,null,null,null,null,null,null,null,null,null,null,null,{"$error":"#N/A"},{"$error":"#N/A"},"Cuisine"]
[null,null,null,null,null,null,null,null,null,null,null,null,null,null,null,null,null,null,null,null,null,null,null,null,{"$error":"#N/A"},{"$error":"#N/A"},"Cuisine"]
[null,null,null,null,null,null,null,null,null,null,null,null,null,null,null,null,null,null,null,null,null,null,null,null,{"$error":"#N/A"},{"$error":"#N/A"},"Salle de conférence"]
[null,null,null,null,null,null,null,null,null,null,null,null,null,null,null,null,null,null,null,null,null,null,null,null,{"$error":"#N/A"},{"$error":"#N/A"},"Salle de conférence"]
[null,null,null,null,null,null,null,null,null,null,null,null,null,null,null,null,null,null,null,null,null,null,null,null,{"$error":"#N/A"},{"$error":"#N/A"},"Salle de conférence"]
[null,null,null,null,null,null,null,null,null,null,null,null,null,null,null,null,null,null,null,null,null,null,null,null,{"$error":"#N/A"},{"$error":"#N/A"},"Salle de conférence"]
[null,null,null,null,null,null,null,null,null,null,null,null,null,null,null,null,null,null,null,null,null,null,null,null,{"$error":"#N/A"},{"$error":"#N/A"},"Chambre"]
[null,null,null,null,null,null,null,null,null,null,null,null,null,null,null,null,null,null,null,null,null,null,null,null,{"$error":"#N/A"},{"$error":"#N/A"},"Chambre"]
[null,null,null,null,null,null,null,null,null,null,null,null,null,null,null,null,null,null,null,null,null,null,null,null,{"$error":"#N/A"},{"$error":"#N/A"},"Chambre"]
[null,null,null,null,null,null,null,null,null,null,null,null,null,null,null,null,null,null,null,null,null,null,null,null,{"$error":"#N/A"},{"$error":"#N/A"},"Chambre"]
[null,null,null,null,null,null,null,null,null,null,null,null,null,null,null,null,null,null,null,null,null,null,null,null,{"$error":"#N/A"},{"$error":"#N/A"},"Cafétéria"]
[null,null,null,null,null,null,null,null,null,null,null,null,null,null,null,null,null,null,null,null,null,null,null,null,{"$error":"#N/A"},{"$error":"#N/A"},"Cafétéria"]
[null,null,null,null,null,null,null,null,null,null,null,null,null,null,null,null,null,null,null,null,null,null,null,null,{"$error":"#N/A"},{"$error":"#N/A"},"Cafétéria"]
[null,null,null,null,null,null,null,null,null,null,null,null,null,null,null,null,null,null,null,null,null,null,null,null,{"$error":"#N/A"},{"$error":"#N/A"},"Coin à manger"]
[null,null,null,null,null,null,null,null,null,null,null,null,null,null,null,null,null,null,null,null,null,null,null,null,{"$error":"#N/A"},{"$error":"#N/A"},"Coin à manger"]
[null,null,null,null,null,null,null,null,null,null,null,null,null,null,null,null,null,null,null,null,null,null,null,null,{"$error":"#N/A"},{"$error":"#N/A"},"Coin à manger"]
[null,null,null,null,null,null,null,null,null,null,null,null,null,null,null,null,null,null,null,null,null,null,null,null,{"$error":"#N/A"},{"$error":"#N/A"},"Coin à manger"]
[null,null,null,null,null,null,null,null,null,null,null,null,null,null,null,null,null,null,null,null,null,null,null,null,{"$error":"#N/A"},{"$error":"#N/A"},"Buanderie"]
[null,null,null,null,null,null,null,null,null,null,null,null,null,null,null,null,null,null,null,null,null,null,null,null,{"$error":"#N/A"},{"$error":"#N/A"},"Buanderie"]
[null,null,null,null,null,null,null,null,null,null,null,null,null,null,null,null,null,null,null,null,null,null,null,null,{"$error":"#N/A"},{"$error":"#N/A"},"Buanderie"]
[null,null,null,null,null,null,null,null,null,null,null,null,null,null,null,null,null,null,null,null,null,null,null,null,{"$error":"#N/A"},{"$error":"#N/A"},"Salon"]
[null,null,null,null,null,null,null,null,null,null,null,null,null,null,null,null,null,null,null,null,null,null,null,null,{"$error":"#N/A"},{"$error":"#N/A"},"Salon"]
[null,null,null,null,null,null,null,null,null,null,null,null,null,null,null,null,null,null,null,null,null,null,null,null,{"$error":"#N/A"},{"$error":"#N/A"},"Salon"]
[null,null,null,null,null,null,null,null,null,null,null,null,null,null,null,null,null,null,null,null,null,null,null,null,{"$error":"#N/A"},{"$error":"#N/A"},"Salon"]
[null,null,null,null,null,null,null,null,null,null,null,null,null,null,null,null,null,null,null,null,null,null,null,null,{"$error":"#N/A"},{"$error":"#N/A"},"Ateliers"]
[null,null,null,null,null,null,null,null,null,null,null,null,null,null,null,null,null,null,null,null,null,null,null,null,{"$error":"#N/A"},{"$error":"#N/A"},"Ateliers"]
[null,null,null,null,null,null,null,null,null,null,null,null,null,null,null,null,null,null,null,null,null,null,null,null,{"$error":"#N/A"},{"$error":"#N/A"},"Ateliers"]
[null,null,null,null,null,null,null,null,null,null,null,null,null,null,null,null,null,null,null,null,null,null,null,null,{"$error":"#N/A"},{"$error":"#N/A"},"Cage d'escaliers"]
[null,null,null,null,null,null,null,null,null,null,null,null,null,null,null,null,null,null,null,null,null,null,null,null,{"$error":"#N/A"},{"$error":"#N/A"},"Cage d'escaliers"]
[null,null,null,null,null,null,null,null,null,null,null,null,null,null,null,null,null,null,null,null,null,null,null,null,{"$error":"#N/A"},{"$error":"#N/A"},"Cage d'escaliers"]
[null,null,null,null,null,null,null,null,null,null,null,null,null,null,null,null,null,null,null,null,null,null,null,null,{"$error":"#N/A"},{"$error":"#N/A"},"Cage d'escaliers"]
[null,null,null,null,null,null,null,null,null,null,null,null,null,null,null,null,null,null,null,null,null,null,null,null,{"$error":"#N/A"},{"$error":"#N/A"},"Ascenseur"]
[null,null,null,null,null,null,null,null,null,null,null,null,null,null,null,null,null,null,null,null,null,null,null,null,{"$error":"#N/A"},{"$error":"#N/A"},"Ascenseur"]
[null,null,null,null,null,null,null,null,null,null,null,null,null,null,null,null,null,null,null,null,null,null,null,null,{"$error":"#N/A"},{"$error":"#N/A"},"Ascenseur"]
[null,null,null,null,null,null,null,null,null,null,null,null,null,null,null,null,null,null,null,null,null,null,null,null,{"$error":"#N/A"},{"$error":"#N/A"},"Ascenseur"]
[null,null,null,null,null,null,null,null,null,null,null,null,null,null,null,null,null,null,null,null,null,null,null,null,"Nettoyer les interrupteurs",0,"Hall d'entrée"]
[null,null,null,null,null,null,null,null,null,null,null,null,null,null,null,null,null,null,null,null,null,null,null,null,"Nettoyer le plan de travail",0,"Hall d'entrée"]
[null,null,null,null,null,null,null,null,null,null,null,null,null,null,null,null,null,null,null,null,null,null,null,null,"Nettoyer la buanderie",0,"Hall d'entrée"]
[null,null,null,null,null,null,null,null,null,null,null,null,null,null,null,null,null,null,null,null,null,null,null,null,{"$error":"#N/A"},{"$error":"#N/A"},"Bureau simple"]
[null,null,null,null,null,null,null,null,null,null,null,null,null,null,null,null,null,null,null,null,null,null,null,null,{"$error":"#N/A"},{"$error":"#N/A"},"Bureau simple"]
[null,null,null,null,null,null,null,null,null,null,null,null,null,null,null,null,null,null,null,null,null,null,null,null,{"$error":"#N/A"},{"$error":"#N/A"},"Bureau simple"]
[null,null,null,null,null,null,null,null,null,null,null,null,null,null,null,null,null,null,null,null,null,null,null,null,{"$error":"#N/A"},{"$error":"#N/A"},"Open Space"]
[null,null,null,null,null,null,null,null,null,null,null,null,null,null,null,null,null,null,null,null,null,null,null,null,{"$error":"#N/A"},{"$error":"#N/A"},"Open Space"]
[null,null,null,null,null,null,null,null,null,null,null,null,null,null,null,null,null,null,null,null,null,null,null,null,{"$error":"#N/A"},{"$error":"#N/A"},"Open Space"]
[null,null,null,null,null,null,null,null,null,null,null,null,null,null,null,null,null,null,null,null,null,null,null,null,{"$error":"#N/A"},{"$error":"#N/A"},"Open Space"]
[null,null,null,null,null,null,null,null,null,null,null,null,null,null,null,null,null,null,null,null,null,null,null,null,{"$error":"#N/A"},{"$error":"#N/A"},"Local sanitaire"]
[null,null,null,null,null,null,null,null,null,null,null,null,null,null,null,null,null,null,null,null,null,null,null,null,{"$error":"#N/A"},{"$error":"#N/A"},"Local sanitaire"]
[null,null,null,null,null,null,null,null,null,null,null,null,null,null,null,null,null,null,null,null,null,null,null,null,{"$error":"#N/A"},{"$error":"#N/A"},"Local sanitaire"]
[null,null,null,null,null,null,null,null,null,null,null,null,null,null,null,null,null,null,null,null,null,null,null,null,{"$error":"#N/A"},{"$error":"#N/A"},"Local sanitaire"]
[null,null,null,null,null,null,null,null,null,null,null,null,null,null,null,null,null,null,null,null,null,null,null,null,{"$error":"#N/A"},{"$error":"#N/A"},"Douche"]
[null,null,null,null,null,null,null,null,null,null,null,null,null,null,null,null,null,null,null,null,null,null,null,null,{"$error":"#N/A"},{"$error":"#N/A"},"Douche"]
[null,null,null,null,null,null,null,null,null,null,null,null,null,null,null,null,null,null,null,null,null,null,null,null,{"$error":"#N/A"},{"$error":"#N/A"},"Douche"]
[null,null,null,null,null,null,null,null,null,null,null,null,null,null,null,null,null,null,null,null,null,null,null,null,{"$error":"#N/A"},{"$error":"#N/A"},"Douche"]
[null,null,null,null,null,null,null,null,null,null,null,null,null,null,null,null,null,null,null,null,null,null,null,null,{"$error":"#N/A"},{"$error":"#N/A"},"Vestiaires"]
[null,null,null,null,null,null,null,null,null,null,null,null,null,null,null,null,null,null,null,null,null,null,null,null,{"$error":"#N/A"},{"$error":"#N/A"},"Vestiaires"]
[null,null,null,null,null,null,null,null,null,null,null,null,null,null,null,null,null,null,null,null,null,null,null,null,{"$error":"#N/A"},{"$error":"#N/A"},"Vestiaires"]
[null,null,null,null,null,null,null,null,null,null,null,null,null,null,null,null,null,null,null,null,null,null,null,null,{"$error":"#N/A"},{"$error":"#N/A"},"Couloirs"]
[null,null,null,null,null,null,null,null,null,null,null,null,null,null,null,null,null,null,null,null,null,null,null,null,{"$error":"#N/A"},{"$error":"#N/A"},"Couloirs"]
[null,null,null,null,null,null,null,null,null,null,null,null,null,null,null,null,null,null,null,null,null,null,null,null,{"$error":"#N/A"},{"$error":"#N/A"},"Couloirs"]
[null,null,null,null,null,null,null,null,null,null,null,null,null,null,null,null,null,null,null,null,null,null,null,null,{"$error":"#N/A"},{"$error":"#N/A"},"Cuisine"]
[null,null,null,null,null,null,null,null,null,null,null,null,null,null,null,null,null,null,null,null,null,null,null,null,{"$error":"#N/A"},{"$error":"#N/A"},"Cuisine"]
[null,null,null,null,null,null,null,null,null,null,null,null,null,null,null,null,null,null,null,null,null,null,null,null,{"$error":"#N/A"},{"$error":"#N/A"},"Cuisine"]
[null,null,null,null,null,null,null,null,null,null,null,null,null,null,null,null,null,null,null,null,null,null,null,null,{"$error":"#N/A"},{"$error":"#N/A"},"Cuisine"]
[null,null,null,null,null,null,null,null,null,null,null,null,null,null,null,null,null,null,null,null,null,null,null,null,{"$error":"#N/A"},{"$error":"#N/A"},"Salle de conférence"]
[null,null,null,null,null,null,null,null,null,null,null,null,null,null,null,null,null,null,null,null,null,null,null,null,{"$error":"#N/A"},{"$error":"#N/A"},"Salle de conférence"]
[null,null,null,null,null,null,null,null,null,null,null,null,null,null,null,null,null,null,null,null,null,null,null,null,{"$error":"#N/A"},{"$error":"#N/A"},"Salle de conférence"]
[null,null,null,null,null,null,null,null,null,null,null,null,null,null,null,null,null,null,null,null,null,null,null,null,{"$error":"#N/A"},{"$error":"#N/A"},"Chambre"]
[null,null,null,null,null,null,null,null,null,null,null,null,null,null,null,null,null,null,null,null,null,null,null,null,{"$error":"#N/A"},{"$error":"#N/A"},"Chambre"]
[null,null,null,null,null,null,null,null,null,null,null,null,null,null,null,null,null,null,null,null,null,null,null,null,{"$error":"#N/A"},{"$error":"#N/A"},"Chambre"]
[null,null,null,null,null,null,null,null,null,null,null,null,null,null,null,null,null,null,null,null,null,null,null,null,{"$error":"#N/A"},{"$error":"#N/A"},"Chambre"]
[null,null,null,null,null,null,null,null,null,null,null,null,null,null,null,null,null,null,null,null,null,null,null,null,{"$error":"#N/A"},{"$error":"#N/A"},"Cafétéria"]
[null,null,null,null,null,null,null,null,null,null,null,null,null,null,null,null,null,null,null,null,null,null,null,null,{"$error":"#N/A"},{"$error":"#N/A"},"Cafétéria"]
[null,null,null,null,null,null,null,null,null,null,null,null,null,null,null,null,null,null,null,null,null,null,null,null,{"$error":"#N/A"},{"$error":"#N/A"},"Cafétéria"]
[null,null,null,null,null,null,null,null,null,null,null,null,null,null,null,null,null,null,null,null,null,null,null,null,{"$error":"#N/A"},{"$error":"#N/A"},"Cafétéria"]
[null,null,null,null,null,null,null,null,null,null,null,null,null,null,null,null,null,null,null,null,null,null,null,null,{"$error":"#N/A"},{"$error":"#N/A"},"Coin à manger"]
[null,null,null,null,null,null,null,null,null,null,null,null,null,null,null,null,null,null,null,null,null,null,null,null,{"$error":"#N/A"},{"$error":"#N/A"},"Coin à manger"]
[null,null,null,null,null,null,null,null,null,null,null,null,null,null,null,null,null,null,null,null,null,null,null,null,{"$error":"#N/A"},{"$error":"#N/A"},"Coin à manger"]
[null,null,null,null,null,null,null,null,null,null,null,null,null,null,null,null,null,null,null,null,null,null,null,null,{"$error":"#N/A"},{"$error":"#N/A"},"Coin à manger"]
[null,null,null,null,null,null,null,null,null,null,null,null,null,null,null,null,null,null,null,null,null,null,null,null,{"$error":"#N/A"},{"$error":"#N/A"},"Buanderie"]
[null,null,null,null,null,null,null,null,null,null,null,null,null,null,null,null,null,null,null,null,null,null,null,null,{"$error":"#N/A"},{"$error":"#N/A"},"Buanderie"]
[null,null,null,null,null,null,null,null,null,null,null,null,null,null,null,null,null,null,null,null,null,null,null,null,{"$error":"#N/A"},{"$error":"#N/A"},"Buanderie"]
[null,null,null,null,null,null,null,null,null,null,null,null,null,null,null,null,null,null,null,null,null,null,null,null,{"$error":"#N/A"},{"$error":"#N/A"},"Salon"]
[null,null,null,null,null,null,null,null,null,null,null,null,null,null,null,null,null,null,null,null,null,null,null,null,{"$error":"#N/A"},{"$error":"#N/A"},"Salon"]
[null,null,null,null,null,null,null,null,null,null,null,null,null,null,null,null,null,null,null,null,null,null,null,null,{"$error":"#N/A"},{"$error":"#N/A"},"Salon"]
[null,null,null,null,null,null,null,null,null,null,null,null,null,null,null,null,null,null,null,null,null,null,null,null,{"$error":"#N/A"},{"$error":"#N/A"},""]
[null,null,null,null,null,null,null,null,null,null,null,null,null,null,null,null,null,null,null,null,null,null,null,null,{"$error":"#N/A"},{"$error":"#N/A"},"Ateliers"]
[null,null,null,null,null,null,null,null,null,null,null,null,null,null,null,null,null,null,null,null,null,null,null,null,{"$error":"#N/A"},{"$error":"#N/A"},"Ateliers"]
[null,null,null,null,null,null,null,null,null,null,null,null,null,null,null,null,null,null,null,null,null,null,null,null,{"$error":"#N/A"},{"$error":"#N/A"},"Ateliers"]
[null,null,null,null,null,null,null,null,null,null,null,null,null,null,null,null,null,null,null,null,null,null,null,null,{"$error":"#N/A"},{"$error":"#N/A"},"Cage d'escaliers"]
[null,null,null,null,null,null,null,null,null,null,null,null,null,null,null,null,null,null,null,null,null,null,null,null,{"$error":"#N/A"},{"$error":"#N/A"},"Cage d'escaliers"]
[null,null,null,null,null,null,null,null,null,null,null,null,null,null,null,null,null,null,null,null,null,null,null,null,{"$error":"#N/A"},{"$error":"#N/A"},"Cage d'escaliers"]
[null,null,null,null,null,null,null,null,null,null,null,null,null,null,null,null,null,null,null,null,null,null,null,null,{"$error":"#N/A"},{"$error":"#N/A"},"Ascenseur"]
[null,null,null,null,null,null,null,null,null,null,null,null,null,null,null,null,null,null,null,null,null,null,null,null,{"$error":"#N/A"},{"$error":"#N/A"},"Ascenseur"]
[null,null,null,null,null,null,null,null,null,null,null,null,null,null,null,null,null,null,null,null,null,null,null,null,{"$error":"#N/A"},{"$error":"#N/A"},"Ascenseur"]
[null,null,null,null,null,null,null,null,null,null,null,null,null,null,null,null,null,null,null,null,null,null,null,null,{"$error":"#N/A"},{"$error":"#N/A"},"Ascenseur"]
[null,null,null,null,null,null,null,null,null,null,null,null,null,null,null,null,null,null,null,null,null,null,null,null,"Vider la poubelle à PET",0,"Hall d'entrée"]
[null,null,null,null,null,null,null,null,null,null,null,null,null,null,null,null,null,null,null,null,null,null,null,null,0,0,"Hall d'entrée"]
[null,null,null,null,null,null,null,null,null,null,null,null,null,null,null,null,null,null,null,null,null,null,null,null,"Aspirer le filtre du sèche-linge",0,"Hall d'entrée"]
[null,null,null,null,null,null,null,null,null,null,null,null,null,null,null,null,null,null,null,null,null,null,null,null,0,0,"Hall d'entrée"]
[null,null,null,null,null,null,null,null,null,null,null,null,null,null,null,null,null,null,null,null,null,null,null,null,{"$error":"#N/A"},{"$error":"#N/A"},"Bureau simple"]
[null,null,null,null,null,null,null,null,null,null,null,null,null,null,null,null,null,null,null,null,null,null,null,null,{"$error":"#N/A"},{"$error":"#N/A"},"Bureau simple"]
[null,null,null,null,null,null,null,null,null,null,null,null,null,null,null,null,null,null,null,null,null,null,null,null,{"$error":"#N/A"},{"$error":"#N/A"},"Bureau simple"]
[null,null,null,null,null,null,null,null,null,null,null,null,null,null,null,null,null,null,null,null,null,null,null,null,{"$error":"#N/A"},{"$error":"#N/A"},"Open Space"]
[null,null,null,null,null,null,null,null,null,null,null,null,null,null,null,null,null,null,null,null,null,null,null,null,{"$error":"#N/A"},{"$error":"#N/A"},"Open Space"]
[null,null,null,null,null,null,null,null,null,null,null,null,null,null,null,null,null,null,null,null,null,null,null,null,{"$error":"#N/A"},{"$error":"#N/A"},"Open Space"]
[null,null,null,null,null,null,null,null,null,null,null,null,null,null,null,null,null,null,null,null,null,null,null,null,{"$error":"#N/A"},{"$error":"#N/A"},"Open Space"]
[null,null,null,null,null,null,null,null,null,null,null,null,null,null,null,null,null,null,null,null,null,null,null,null,{"$error":"#N/A"},{"$error":"#N/A"},"Local sanitaire"]
[null,null,null,null,null,null,null,null,null,null,null,null,null,null,null,null,null,null,null,null,null,null,null,null,{"$error":"#N/A"},{"$error":"#N/A"},"Local sanitaire"]
[null,null,null,null,null,null,null,null,null,null,null,null,null,null,null,null,null,null,null,null,null,null,null,null,{"$error":"#N/A"},{"$error":"#N/A"},"Local sanitaire"]
[null,null,null,null,null,null,null,null,null,null,null,null,null,null,null,null,null,null,null,null,null,null,null,null,{"$error":"#N/A"},{"$error":"#N/A"},"Douche"]
[null,null,null,null,null,null,null,null,null,null,null,null,null,null,null,null,null,null,null,null,null,null,null,null,{"$error":"#N/A"},{"$error":"#N/A"},"Douche"]
[null,null,null,null,null,null,null,null,null,null,null,null,null,null,null,null,null,null,null,null,null,null,null,null,{"$error":"#N/A"},{"$error":"#N/A"},"Douche"]
[null,null,null,null,null,null,null,null,null,null,null,null,null,null,null,null,null,null,null,null,null,null,null,null,{"$error":"#N/A"},{"$error":"#N/A"},"Douche"]
[null,null,null,null,null,null,null,null,null,null,null,null,null,null,null,null,null,null,null,null,null,null,null,null,{"$error":"#N/A"},{"$error":"#N/A"},"Vestiaires"]
[null,null,null,null,null,null,null,null,null,null,null,null,null,null,null,null,null,null,null,null,null,null,null,null,{"$error":"#N/A"},{"$error":"#N/A"},"Vestiaires"]
[null,null,null,null,null,null,null,null,null,null,null,null,null,null,null,null,null,null,null,null,null,null,null,null,{"$error":"#N/A"},{"$error":"#N/A"},"Vestiaires"]
[null,null,null,null,null,null,null,null,null,null,null,null,null,null,null,null,null,null,null,null,null,null,null,null,{"$error":"#N/A"},{"$error":"#N/A"},"Vestiaires"]
[null,null,null,null,null,null,null,null,null,null,null,null,null,null,null,null,null,null,null,null,null,null,null,null,{"$error":"#N/A"},{"$error":"#N/A"},"Couloirs"]
[null,null,null,null,null,null,null,null,null,null,null,null,null,null,null,null,null,null,null,null,null,null,null,null,{"$error":"#N/A"},{"$error":"#N/A"},"Couloirs"]
[null,null,null,null,null,null,null,null,null,null,null,null,null,null,null,null,null,null,null,null,null,null,null,null,{"$error":"#N/A"},{"$error":"#N/A"},"Couloirs"]
[null,null,null,null,null,null,null,null,null,null,null,null,null,null,null,null,null,null,null,null,null,null,null,null,{"$error":"#N/A"},{"$error":"#N/A"},"Cuisine"]
[null,null,null,null,null,null,null,null,null,null,null,null,null,null,null,null,null,null,null,null,null,null,null,null,{"$error":"#N/A"},{"$error":"#N/A"},"Cuisine"]
[null,null,null,null,null,null,null,null,null,null,null,null,null,null,null,null,null,null,null,null,null,null,null,null,{"$error":"#N/A"},{"$error":"#N/A"},"Cuisine"]
[null,null,null,null,null,null,null,null,null,null,null,null,null,null,null,null,null,null,null,null,null,null,null,null,{"$error":"#N/A"},{"$error":"#N/A"},"Cuisine"]
[null,null,null,null,null,null,null,null,null,null,null,null,null,null,null,null,null,null,null,null,null,null,null,null,{"$error":"#N/A"},{"$error":"#N/A"},"Salle de conférence"]
[null,null,null,null,null,null,null,null,null,null,null,null,null,null,null,null,null,null,null,null,null,null,null,null,{"$error":"#N/A"},{"$error":"#N/A"},"Salle de conférence"]
[null,null,null,null,null,null,null,null,null,null,null,null,null,null,null,null,null,null,null,null,null,null,null,null,{"$error":"#N/A"},{"$error":"#N/A"},"Salle de conférence"]
[null,null,null,null,null,null,null,null,null,null,null,null,null,null,null,null,null,null,null,null,null,null,null,null,{"$error":"#N/A"},{"$error":"#N/A"},"Chambre"]
[null,null,null,null,null,null,null,null,null,null,null,null,null,null,null,null,null,null,null,null,null,null,null,null,{"$error":"#N/A"},{"$error":"#N/A"},"Chambre"]
[null,null,null,null,null,null,null,null,null,null,null,null,null,null,null,null,null,null,null,null,null,null,null,null,{"$error":"#N/A"},{"$error":"#N/A"},"Chambre"]
[null,null,null,null,null,null,null,null,null,null,null,null,null,null,null,null,null,null,null,null,null,null,null,null,{"$error":"#N/A"},{"$error":"#N/A"},"Cafétéria"]
[null,null,null,null,null,null,null,null,null,null,null,null,null,null,null,null,null,null,null,null,null,null,null,null,{"$error":"#N/A"},{"$error":"#N/A"},"Cafétéria"]
[null,null,null,null,null,null,null,null,null,null,null,null,null,null,null,null,null,null,null,null,null,null,null,null,{"$error":"#N/A"},{"$error":"#N/A"},"Cafétéria"]
[null,null,null,null,null,null,null,null,null,null,null,null,null,null,null,null,null,null,null,null,null,null,null,null,{"$error":"#N/A"},{"$error":"#N/A"},"Cafétéria"]
[null,null,null,null,null,null,null,null,null,null,null,null,null,null,null,null,null,null,null,null,null,null,null,null,{"$error":"#N/A"},{"$error":"#N/A"},"Coin à manger"]
[null,null,null,null,null,null,null,null,null,null,null,null,null,null,null,null,null,null,null,null,null,null,null,null,{"$error":"#N/A"},{"$error":"#N/A"},"Coin à manger"]
[null,null,null,null,null,null,null,null,null,null,null,null,null,null,null,null,null,null,null,null,null,null,null,null,{"$error":"#N/A"},{"$error":"#N/A"},"Coin à manger"]
[null,null,null,null,null,null,null,null,null,null,null,null,null,null,null,null,null,null,null,null,null,null,null,null,{"$error":"#N/A"},{"$error":"#N/A"},"Coin à manger"]
[null,null,null,null,null,null,null,null,null,null,null,null,null,null,null,null,null,null,null,null,null,null,null,null,{"$error":"#N/A"},{"$error":"#N/A"},"Buanderie"]
[null,null,null,null,null,null,null,null,null,null,null,null,null,null,null,null,null,null,null,null,null,null,null,null,{"$error":"#N/A"},{"$error":"#N/A"},"Buanderie"]
[null,null,null,null,null,null,null,null,null,null,null,null,null,null,null,null,null,null,null,null,null,null,null,null,{"$error":"#N/A"},{"$error":"#N/A"},"Buanderie"]
[null,null,null,null,null,null,null,null,null,null,null,null,null,null,null,null,null,null,null,null,null,null,null,null,{"$error":"#N/A"},{"$error":"#N/A"},"Salon"]
[null,null,null,null,null,null,null,null,null,null,null,null,null,null,null,null,null,null,null,null,null,null,null,null,{"$error":"#N/A"},{"$error":"#N/A"},"Salon"]
[null,null,null,null,null,null,null,null,null,null,null,null,null,null,null,null,null,null,null,null,null,null,null,null,{"$error":"#N/A"},{"$error":"#N/A"},"Salon"]
[null,null,null,null,null,null,null,null,null,null,null,null,null,null,null,null,null,null,null,null,null,null,null,null,{"$error":"#N/A"},{"$error":"#N/A"},"Salon"]
[null,null,null,null,null,null,null,null,null,null,null,null,null,null,null,null,null,null,null,null,null,null,null,null,{"$error":"#N/A"},{"$error":"#N/A"},"Ateliers"]
[null,null,null,null,null,null,null,null,null,null,null,null,null,null,null,null,null,null,null,null,null,null,null,null,{"$error":"#N/A"},{"$error":"#N/A"},"Ateliers"]
[null,null,null,null,null,null,null,null,null,null,null,null,null,null,null,null,null,null,null,null,null,null,null,null,{"$error":"#N/A"},{"$error":"#N/A"},"Ateliers"]
[null,null,null,null,null,null,null,null,null,null,null,null,null,null,null,null,null,null,null,null,null,null,null,null,{"$error":"#N/A"},{"$error":"#N/A"},"Ateliers"]
[null,null,null,null,null,null,null,null,null,null,null,null,null,null,null,null,null,null,null,null,null,null,null,null,{"$error":"#N/A"},{"$error":"#N/A"},"Cage d'escaliers"]
[null,null,null,null,null,null,null,null,null,null,null,null,null,null,null,null,null,null,null,null,null,null,null,null,{"$error":"#N/A"},{"$error":"#N/A"},"Cage d'escaliers"]
[null,null,null,null,null,null,null,null,null,null,null,null,null,null,null,null,null,null,null,null,null,null,null,null,{"$error":"#N/A"},{"$error":"#N/A"},"Cage d'escaliers"]
[null,null,null,null,null,null,null,null,null,null,null,null,null,null,null,null,null,null,null,null,null,null,null,null,{"$error":"#N/A"},{"$error":"#N/A"},"Ascenseur"]
[null,null,null,null,null,null,null,null,null,null,null,null,null,null,null,null,null,null,null,null,null,null,null,null,{"$error":"#N/A"},{"$error":"#N/A"},"Ascenseur"]
[null,null,null,null,null,null,null,null,null,null,null,null,null,null,null,null,null,null,null,null,null,null,null,null,{"$error":"#N/A"},{"$error":"#N/A"},"Ascenseur"]
[null,null,null,null,null,null,null,null,null,null,null,null,null,null,null,null,null,null,null,null,null,null,null,null,"Changer le sac noir",0,"Hall d'entrée"]
[null,null,null,null,null,null,null,null,null,null,null,null,null,null,null,null,null,null,null,null,null,null,null,null,0,0,"Hall d'entrée"]
[null,null,null,null,null,null,null,null,null,null,null,null,null,null,null,null,null,null,null,null,null,null,null,null,0,0,"Hall d'entrée"]
[null,null,null,null,null,null,null,null,null,null,null,null,null,null,null,null,null,null,null,null,null,null,null,null,"Nettoyer les pieds des chaises",0,"Hall d'entrée"]
[null,null,null,null,null,null,null,null,null,null,null,null,null,null,null,null,null,null,null,null,null,null,null,null,{"$error":"#N/A"},{"$error":"#N/A"},"Bureau simple"]
[null,null,null,null,null,null,null,null,null,null,null,null,null,null,null,null,null,null,null,null,null,null,null,null,{"$error":"#N/A"},{"$error":"#N/A"},"Bureau simple"]
[null,null,null,null,null,null,null,null,null,null,null,null,null,null,null,null,null,null,null,null,null,null,null,null,{"$error":"#N/A"},{"$error":"#N/A"},"Bureau simple"]
[null,null,null,null,null,null,null,null,null,null,null,null,null,null,null,null,null,null,null,null,null,null,null,null,{"$error":"#N/A"},{"$error":"#N/A"},"Bureau simple"]
[null,null,null,null,null,null,null,null,null,null,null,null,null,null,null,null,null,null,null,null,null,null,null,null,{"$error":"#N/A"},{"$error":"#N/A"},"Open Space"]
[null,null,null,null,null,null,null,null,null,null,null,null,null,null,null,null,null,null,null,null,null,null,null,null,{"$error":"#N/A"},{"$error":"#N/A"},"Open Space"]
[null,null,null,null,null,null,null,null,null,null,null,null,null,null,null,null,null,null,null,null,null,null,null,null,{"$error":"#N/A"},{"$error":"#N/A"},"Open Space"]
[null,null,null,null,null,null,null,null,null,null,null,null,null,null,null,null,null,null,null,null,null,null,null,null,{"$error":"#N/A"},{"$error":"#N/A"},"Local sanitaire"]
[null,null,null,null,null,null,null,null,null,null,null,null,null,null,null,null,null,null,null,null,null,null,null,null,{"$error":"#N/A"},{"$error":"#N/A"},"Local sanitaire"]
[null,null,null,null,null,null,null,null,null,null,null,null,null,null,null,null,null,null,null,null,null,null,null,null,{"$error":"#N/A"},{"$error":"#N/A"},"Local sanitaire"]
[null,null,null,null,null,null,null,null,null,null,null,null,null,null,null,null,null,null,null,null,null,null,null,null,{"$error":"#N/A"},{"$error":"#N/A"},"Local sanitaire"]
[null,null,null,null,null,null,null,null,null,null,null,null,null,null,null,null,null,null,null,null,null,null,null,null,{"$error":"#N/A"},{"$error":"#N/A"},"Douche"]
[null,null,null,null,null,null,null,null,null,null,null,null,null,null,null,null,null,null,null,null,null,null,null,null,{"$error":"#N/A"},{"$error":"#N/A"},"Douche"]
[null,null,null,null,null,null,null,null,null,null,null,null,null,null,null,null,null,null,null,null,null,null,null,null,{"$error":"#N/A"},{"$error":"#N/A"},"Douche"]
[null,null,null,null,null,null,null,null,null,null,null,null,null,null,null,null,null,null,null,null,null,null,null,null,{"$error":"#N/A"},{"$error":"#N/A"},"Vestiaires"]
[null,null,null,null,null,null,null,null,null,null,null,null,null,null,null,null,null,null,null,null,null,null,null,null,{"$error":"#N/A"},{"$error":"#N/A"},"Vestiaires"]
[null,null,null,null,null,null,null,null,null,null,null,null,null,null,null,null,null,null,null,null,null,null,null,null,{"$error":"#N/A"},{"$error":"#N/A"},"Vestiaires"]
[null,null,null,null,null,null,null,null,null,null,null,null,null,null,null,null,null,null,null,null,null,null,null,null,{"$error":"#N/A"},{"$error":"#N/A"},"Vestiaires"]
[null,null,null,null,null,null,null,null,null,null,null,null,null,null,null,null,null,null,null,null,null,null,null,null,{"$error":"#N/A"},{"$error":"#N/A"},"Couloirs"]
[null,null,null,null,null,null,null,null,null,null,null,null,null,null,null,null,null,null,null,null,null,null,null,null,{"$error":"#N/A"},{"$error":"#N/A"},"Couloirs"]
[null,null,null,null,null,null,null,null,null,null,null,null,null,null,null,null,null,null,null,null,null,null,null,null,{"$error":"#N/A"},{"$error":"#N/A"},"Couloirs"]
[null,null,null,null,null,null,null,null,null,null,null,null,null,null,null,null,null,null,null,null,null,null,null,null,{"$error":"#N/A"},{"$error":"#N/A"},""]
[null,null,null,null,null,null,null,null,null,null,null,null,null,null,null,null,null,null,null,null,null,null,null,null,{"$error":"#N/A"},{"$error":"#N/A"},"Cuisine"]
[null,null,null,null,null,null,null,null,null,null,null,null,null,null,null,null,null,null,null,null,null,null,null,null,{"$error":"#N/A"},{"$error":"#N/A"},"Cuisine"]
[null,null,null,null,null,null,null,null,null,null,null,null,null,null,null,null,null,null,null,null,null,null,null,null,{"$error":"#N/A"},{"$error":"#N/A"},"Cuisine"]
[null,null,null,null,null,null,null,null,null,null,null,null,null,null,null,null,null,null,null,null,null,null,null,null,{"$error":"#N/A"},{"$error":"#N/A"},"Salle de conférence"]
[null,null,null,null,null,null,null,null,null,null,null,null,null,null,null,null,null,null,null,null,null,null,null,null,{"$error":"#N/A"},{"$error":"#N/A"},"Salle de conférence"]
[null,null,null,null,null,null,null,null,null,null,null,null,null,null,null,null,null,null,null,null,null,null,null,null,{"$error":"#N/A"},{"$error":"#N/A"},"Salle de conférence"]
[null,null,null,null,null,null,null,null,null,null,null,null,null,null,null,null,null,null,null,null,null,null,null,null,{"$error":"#N/A"},{"$error":"#N/A"},"Salle de conférence"]
[null,null,null,null,null,null,null,null,null,null,null,null,null,null,null,null,null,null,null,null,null,null,null,null,{"$error":"#N/A"},{"$error":"#N/A"},"Chambre"]
[null,null,null,null,null,null,null,null,null,null,null,null,null,null,null,null,null,null,null,null,null,null,null,null,{"$error":"#N/A"},{"$error":"#N/A"},"Chambre"]
[null,null,null,null,null,null,null,null,null,null,null,null,null,null,null,null,null,null,null,null,null,null,null,null,{"$error":"#N/A"},{"$error":"#N/A"},"Chambre"]
[null,null,null,null,null,null,null,null,null,null,null,null,null,null,null,null,null,null,null,null,null,null,null,null,{"$error":"#N/A"},{"$error":"#N/A"},"Chambre"]
[null,null,null,null,null,null,null,null,null,null,null,null,null,null,null,null,null,null,null,null,null,null,null,null,{"$error":"#N/A"},{"$error":"#N/A"},"Cafétéria"]
[null,null,null,null,null,null,null,null,null,null,null,null,null,null,null,null,null,null,null,null,null,null,null,null,{"$error":"#N/A"},{"$error":"#N/A"},"Cafétéria"]
[null,null,null,null,null,null,null,null,null,null,null,null,null,null,null,null,null,null,null,null,null,null,null,null,{"$error":"#N/A"},{"$error":"#N/A"},"Cafétéria"]
[null,null,null,null,null,null,null,null,null,null,null,null,null,null,null,null,null,null,null,null,null,null,null,null,{"$error":"#N/A"},{"$error":"#N/A"},"Coin à manger"]
[null,null,null,null,null,null,null,null,null,null,null,null,null,null,null,null,null,null,null,null,null,null,null,null,{"$error":"#N/A"},{"$error":"#N/A"},"Coin à manger"]
[null,null,null,null,null,null,null,null,null,null,null,null,null,null,null,null,null,null,null,null,null,null,null,null,{"$error":"#N/A"},{"$error":"#N/A"},"Coin à manger"]
[null,null,null,null,null,null,null,null,null,null,null,null,null,null,null,null,null,null,null,null,null,null,null,null,{"$error":"#N/A"},{"$error":"#N/A"},"Buanderie"]
[null,null,null,null,null,null,null,null,null,null,null,null,null,null,null,null,null,null,null,null,null,null,null,null,{"$error":"#N/A"},{"$error":"#N/A"},"Buanderie"]
[null,null,null,null,null,null,null,null,null,null,null,null,null,null,null,null,null,null,null,null,null,null,null,null,{"$error":"#N/A"},{"$error":"#N/A"},"Buanderie"]
[null,null,null,null,null,null,null,null,null,null,null,null,null,null,null,null,null,null,null,null,null,null,null,null,{"$error":"#N/A"},{"$error":"#N/A"},"Buanderie"]
[null,null,null,null,null,null,null,null,null,null,null,null,null,null,null,null,null,null,null,null,null,null,null,null,{"$error":"#N/A"},{"$error":"#N/A"},"Salon"]
[null,null,null,null,null,null,null,null,null,null,null,null,null,null,null,null,null,null,null,null,null,null,null,null,{"$error":"#N/A"},{"$error":"#N/A"},"Salon"]
[null,null,null,null,null,null,null,null,null,null,null,null,null,null,null,null,null,null,null,null,null,null,null,null,{"$error":"#N/A"},{"$error":"#N/A"},"Salon"]
[null,null,null,null,null,null,null,null,null,null,null,null,null,null,null,null,null,null,null,null,null,null,null,null,{"$error":"#N/A"},{"$error":"#N/A"},"Salon"]
[null,null,null,null,null,null,null,null,null,null,null,null,null,null,null,null,null,null,null,null,null,null,null,null,{"$error":"#N/A"},{"$error":"#N/A"},"Ateliers"]
[null,null,null,null,null,null,null,null,null,null,null,null,null,null,null,null,null,null,null,null,null,null,null,null,{"$error":"#N/A"},{"$error":"#N/A"},"Ateliers"]
[null,null,null,null,null,null,null,null,null,null,null,null,null,null,null,null,null,null,null,null,null,null,null,null,{"$error":"#N/A"},{"$error":"#N/A"},"Ateliers"]
[null,null,null,null,null,null,null,null,null,null,null,null,null,null,null,null,null,null,null,null,null,null,null,null,{"$error":"#N/A"},{"$error":"#N/A"},"Cage d'escaliers"]
[null,null,null,null,null,null,null,null,null,null,null,null,null,null,null,null,null,null,null,null,null,null,null,null,{"$error":"#N/A"},{"$error":"#N/A"},"Cage d'escaliers"]
[null,null,null,null,null,null,null,null,null,null,null,null,null,null,null,null,null,null,null,null,null,null,null,null,{"$error":"#N/A"},{"$error":"#N/A"},"Cage d'escaliers"]
[null,null,null,null,null,null,null,null,null,null,null,null,null,null,null,null,null,null,null,null,null,null,null,null,{"$error":"#N/A"},{"$error":"#N/A"},"Cage d'escaliers"]
[null,null,null,null,null,null,null,null,null,null,null,null,null,null,null,null,null,null,null,null,null,null,null,null,{"$error":"#N/A"},{"$error":"#N/A"},"Ascenseur"]
[null,null,null,null,null,null,null,null,null,null,null,null,null,null,null,null,null,null,null,null,null,null,null,null,{"$error":"#N/A"},{"$error":"#N/A"},"Ascenseur"]
[null,null,null,null,null,null,null,null,null,null,null,null,null,null,null,null,null,null,null,null,null,null,null,null,{"$error":"#N/A"},{"$error":"#N/A"},"Ascenseur"]
[null,null,null,null,null,null,null,null,null,null,null,null,null,null,null,null,null,null,null,null,null,null,null,null,"Enlever les toiles d'araignée",0,"Hall d'entrée"]
[null,null,null,null,null,null,null,null,null,null,null,null,null,null,null,null,null,null,null,null,null,null,null,null,0,0,"Hall d'entrée"]
[null,null,null,null,null,null,null,null,null,null,null,null,null,null,null,null,null,null,null,null,null,null,null,null,0,0,"Hall d'entrée"]
[null,null,null,null,null,null,null,null,null,null,null,null,null,null,null,null,null,null,null,null,null,null,null,null,{"$error":"#N/A"},{"$error":"#N/A"},"Bureau simple"]
[null,null,null,null,null,null,null,null,null,null,null,null,null,null,null,null,null,null,null,null,null,null,null,null,{"$error":"#N/A"},{"$error":"#N/A"},"Bureau simple"]
[null,null,null,null,null,null,null,null,null,null,null,null,null,null,null,null,null,null,null,null,null,null,null,null,{"$error":"#N/A"},{"$error":"#N/A"},"Bureau simple"]
[null,null,null,null,null,null,null,null,null,null,null,null,null,null,null,null,null,null,null,null,null,null,null,null,{"$error":"#N/A"},{"$error":"#N/A"},"Bureau simple"]
[null,null,null,null,null,null,null,null,null,null,null,null,null,null,null,null,null,null,null,null,null,null,null,null,{"$error":"#N/A"},{"$error":"#N/A"},"Open Space"]
[null,null,null,null,null,null,null,null,null,null,null,null,null,null,null,null,null,null,null,null,null,null,null,null,{"$error":"#N/A"},{"$error":"#N/A"},"Open Space"]
[null,null,null,null,null,null,null,null,null,null,null,null,null,null,null,null,null,null,null,null,null,null,null,null,{"$error":"#N/A"},{"$error":"#N/A"},"Open Space"]
[null,null,null,null,null,null,null,null,null,null,null,null,null,null,null,null,null,null,null,null,null,null,null,null,{"$error":"#N/A"},{"$error":"#N/A"},"Open Space"]
[null,null,null,null,null,null,null,null,null,null,null,null,null,null,null,null,null,null,null,null,null,null,null,null,{"$error":"#N/A"},{"$error":"#N/A"},"Local sanitaire"]
[null,null,null,null,null,null,null,null,null,null,null,null,null,null,null,null,null,null,null,null,null,null,null,null,{"$error":"#N/A"},{"$error":"#N/A"},"Local sanitaire"]
[null,null,null,null,null,null,null,null,null,null,null,null,null,null,null,null,null,null,null,null,null,null,null,null,{"$error":"#N/A"},{"$error":"#N/A"},"Local sanitaire"]
[null,null,null,null,null,null,null,null,null,null,null,null,null,null,null,null,null,null,null,null,null,null,null,null,{"$error":"#N/A"},{"$error":"#N/A"},"Local sanitaire"]
[null,null,null,null,null,null,null,null,null,null,null,null,null,null,null,null,null,null,null,null,null,null,null,null,{"$error":"#N/A"},{"$error":"#N/A"},"Douche"]
[null,null,null,null,null,null,null,null,null,null,null,null,null,null,null,null,null,null,null,null,null,null,null,null,{"$error":"#N/A"},{"$error":"#N/A"},"Douche"]
[null,null,null,null,null,null,null,null,null,null,null,null,null,null,null,null,null,null,null,null,null,null,null,null,{"$error":"#N/A"},{"$error":"#N/A"},"Douche"]
[null,null,null,null,null,null,null,null,null,null,null,null,null,null,null,null,null,null,null,null,null,null,null,null,{"$error":"#N/A"},{"$error":"#N/A"},"Vestiaires"]
[null,null,null,null,null,null,null,null,null,null,null,null,null,null,null,null,null,null,null,null,null,null,null,null,{"$error":"#N/A"},{"$error":"#N/A"},"Vestiaires"]
[null,null,null,null,null,null,null,null,null,null,null,null,null,null,null,null,null,null,null,null,null,null,null,null,{"$error":"#N/A"},{"$error":"#N/A"},"Vestiaires"]
[null,null,null,null,null,null,null,null,null,null,null,null,null,null,null,null,null,null,null,null,null,null,null,null,{"$error":"#N/A"},{"$error":"#N/A"},"Vestiaires"]
[null,null,null,null,null,null,null,null,null,null,null,null,null,null,null,null,null,null,null,null,null,null,null,null,{"$error":"#N/A"},{"$error":"#N/A"},"Couloirs"]
[null,null,null,null,null,null,null,null,null,null,null,null,null,null,null,null,null,null,null,null,null,null,null,null,{"$error":"#N/A"},{"$error":"#N/A"},"Couloirs"]
[null,null,null,null,null,null,null,null,null,null,null,null,null,null,null,null,null,null,null,null,null,null,null,null,{"$error":"#N/A"},{"$error":"#N/A"},"Couloirs"]
[null,null,null,null,null,null,null,null,null,null,null,null,null,null,null,null,null,null,null,null,null,null,null,null,{"$error":"#N/A"},{"$error":"#N/A"},"Cuisine"]
[null,null,null,null,null,null,null,null,null,null,null,null,null,null,null,null,null,null,null,null,null,null,null,null,{"$error":"#N/A"},{"$error":"#N/A"},"Cuisine"]
[null,null,null,null,null,null,null,null,null,null,null,null,null,null,null,null,null,null,null,null,null,null,null,null,{"$error":"#N/A"},{"$error":"#N/A"},"Cuisine"]
[null,null,null,null,null,null,null,null,null,null,null,null,null,null,null,null,null,null,null,null,null,null,null,null,{"$error":"#N/A"},{"$error":"#N/A"},"Salle de conférence"]
[null,null,null,null,null,null,null,null,null,null,null,null,null,null,null,null,null,null,null,null,null,null,null,null,{"$error":"#N/A"},{"$error":"#N/A"},"Salle de conférence"]
[null,null,null,null,null,null,null,null,null,null,null,null,null,null,null,null,null,null,null,null,null,null,null,null,{"$error":"#N/A"},{"$error":"#N/A"},"Salle de conférence"]
[null,null,null,null,null,null,null,null,null,null,null,null,null,null,null,null,null,null,null,null,null,null,null,null,{"$error":"#N/A"},{"$error":"#N/A"},"Salle de conférence"]
[null,null,null,null,null,null,null,null,null,null,null,null,null,null,null,null,null,null,null,null,null,null,null,null,{"$error":"#N/A"},{"$error":"#N/A"},"Chambre"]
[null,null,null,null,null,null,null,null,null,null,null,null,null,null,null,null,null,null,null,null,null,null,null,null,{"$error":"#N/A"},{"$error":"#N/A"},"Chambre"]
[null,null,null,null,null,null,null,null,null,null,null,null,null,null,null,null,null,null,null,null,null,null,null,null,{"$error":"#N/A"},{"$error":"#N/A"},"Chambre"]
[null,null,null,null,null,null,null,null,null,null,null,null,null,null,null,null,null,null,null,null,null,null,null,null,{"$error":"#N/A"},{"$error":"#N/A"},"Chambre"]
[null,null,null,null,null,null,null,null,null,null,null,null,null,null,null,null,null,null,null,null,null,null,null,null,{"$error":"#N/A"},{"$error":"#N/A"},"Cafétéria"]
[null,null,null,null,null,null,null,null,null,null,null,null,null,null,null,null,null,null,null,null,null,null,null,null,{"$error":"#N/A"},{"$error":"#N/A"},"Cafétéria"]
[null,null,null,null,null,null,null,null,null,null,null,null,null,null,null,null,null,null,null,null,null,null,null,null,{"$error":"#N/A"},{"$error":"#N/A"},"Cafétéria"]
[null,null,null,null,null,null,null,null,null,null,null,null,null,null,null,null,null,null,null,null,null,null,null,null,{"$error":"#N/A"},{"$error":"#N/A"},"Cafétéria"]
[null,null,null,null,null,null,null,null,null,null,null,null,null,null,null,null,null,null,null,null,null,null,null,null,{"$error":"#N/A"},{"$error":"#N/A"},"Coin à manger"]
[null,null,null,null,null,null,null,null,null,null,null,null,null,null,null,null,null,null,null,null,null,null,null,null,{"$error":"#N/A"},{"$error":"#N/A"},"Coin à manger"]
[null,null,null,null,null,null,null,null,null,null,null,null,null,null,null,null,null,null,null,null,null,null,null,null,{"$error":"#N/A"},{"$error":"#N/A"},"Coin à manger"]
[null,null,null,null,null,null,null,null,null,null,null,null,null,null,null,null,null,null,null,null,null,null,null,null,{"$error":"#N/A"},{"$error":"#N/A"},"Buanderie"]
[null,null,null,null,null,null,null,null,null,null,null,null,null,null,null,null,null,null,null,null,null,null,null,null,{"$error":"#N/A"},{"$error":"#N/A"},"Buanderie"]
[null,null,null,null,null,null,null,null,null,null,null,null,null,null,null,null,null,null,null,null,null,null,null,null,{"$error":"#N/A"},{"$error":"#N/A"},"Buanderie"]
[null,null,null,null,null,null,null,null,null,null,null,null,null,null,null,null,null,null,null,null,null,null,null,null,{"$error":"#N/A"},{"$error":"#N/A"},"Salon"]
[null,null,null,null,null,null,null,null,null,null,null,null,null,null,null,null,null,null,null,null,null,null,null,null,{"$error":"#N/A"},{"$error":"#N/A"},"Salon"]
[null,null,null,null,null,null,null,null,null,null,null,null,null,null,null,null,null,null,null,null,null,null,null,null,{"$error":"#N/A"},{"$error":"#N/A"},"Salon"]
[null,null,null,null,null,null,null,null,null,null,null,null,null,null,null,null,null,null,null,null,null,null,null,null,{"$error":"#N/A"},{"$error":"#N/A"},"Salon"]
[null,null,null,null,null,null,null,null,null,null,null,null,null,null,null,null,null,null,null,null,null,null,null,null,{"$error":"#N/A"},{"$error":"#N/A"},"Ateliers"]
[null,null,null,null,null,null,null,null,null,null,null,null,null,null,null,null,null,null,null,null,null,null,null,null,{"$error":"#N/A"},{"$error":"#N/A"},"Ateliers"]
[null,null,null,null,null,null,null,null,null,null,null,null,null,null,null,null,null,null,null,null,null,null,null,null,{"$error":"#N/A"},{"$error":"#N/A"},"Ateliers"]
[null,null,null,null,null,null,null,null,null,null,null,null,null,null,null,null,null,null,null,null,null,null,null,null,{"$error":"#N/A"},{"$error":"#N/A"},"Ateliers"]
[null,null,null,null,null,null,null,null,null,null,null,null,null,null,null,null,null,null,null,null,null,null,null,null,{"$error":"#N/A"},{"$error":"#N/A"},"Cage d'escaliers"]
[null,null,null,null,null,null,null,null,null,null,null,null,null,null,null,null,null,null,null,null,null,null,null,null,{"$error":"#N/A"},{"$error":"#N/A"},"Cage d'escaliers"]
[null,null,null,null,null,null,null,null,null,null,null,null,null,null,null,null,null,null,null,null,null,null,null,null,{"$error":"#N/A"},{"$error":"#N/A"},"Cage d'escaliers"]
[null,null,null,null,null,null,null,null,null,null,null,null,null,null,null,null,null,null,null,null,null,null,null,null,{"$error":"#N/A"},{"$error":"#N/A"},"Ascenseur"]
[null,null,null,null,null,null,null,null,null,null,null,null,null,null,null,null,null,null,null,null,null,null,null,null,{"$error":"#N/A"},{"$error":"#N/A"},"Ascenseur"]
[null,null,null,null,null,null,null,null,null,null,null,null,null,null,null,null,null,null,null,null,null,null,null,null,{"$error":"#N/A"},{"$error":"#N/A"},"Ascenseur"]
[null,null,null,null,null,null,null,null,null,null,null,null,null,null,null,null,null,null,null,null,null,null,null,null,{"$error":"#N/A"},{"$error":"#N/A"},"Ascenseur"]
[null,null,null,null,null,null,null,null,null,null,null,null,null,null,null,null,null,null,null,null,null,null,null,null,"Nettoyer les pieds des chaises",0,"Hall d'entrée"]
[null,null,null,null,null,null,null,null,null,null,null,null,null,null,null,null,null,null,null,null,null,null,null,null,"Nettoyer le porte brosse WC",0,"Hall d'entrée"]
[null,null,null,null,null,null,null,null,null,null,null,null,null,null,null,null,null,null,null,null,null,null,null,null,"Dépoussiérer les appareils électriques",0,"Hall d'entrée"]
[null,null,null,null,null,null,null,null,null,null,null,null,null,null,null,null,null,null,null,null,null,null,null,null,"Nettoyer les couloirs",0,"Hall d'entrée"]
[null,null,null,null,null,null,null,null,null,null,null,null,null,null,null,null,null,null,null,null,null,null,null,null,{"$error":"#N/A"},{"$error":"#N/A"},"Bureau simple"]
[null,null,null,null,null,null,null,null,null,null,null,null,null,null,null,null,null,null,null,null,null,null,null,null,{"$error":"#N/A"},{"$error":"#N/A"},"Bureau simple"]
[null,null,null,null,null,null,null,null,null,null,null,null,null,null,null,null,null,null,null,null,null,null,null,null,{"$error":"#N/A"},{"$error":"#N/A"},"Bureau simple"]
[null,null,null,null,null,null,null,null,null,null,null,null,null,null,null,null,null,null,null,null,null,null,null,null,{"$error":"#N/A"},{"$error":"#N/A"},"Open Space"]
[null,null,null,null,null,null,null,null,null,null,null,null,null,null,null,null,null,null,null,null,null,null,null,null,{"$error":"#N/A"},{"$error":"#N/A"},"Open Space"]
[null,null,null,null,null,null,null,null,null,null,null,null,null,null,null,null,null,null,null,null,null,null,null,null,{"$error":"#N/A"},{"$error":"#N/A"},"Open Space"]
[null,null,null,null,null,null,null,null,null,null,null,null,null,null,null,null,null,null,null,null,null,null,null,null,{"$error":"#N/A"},{"$error":"#N/A"},"Local sanitaire"]
[null,null,null,null,null,null,null,null,null,null,null,null,null,null,null,null,null,null,null,null,null,null,null,null,{"$error":"#N/A"},{"$error":"#N/A"},"Local sanitaire"]
[null,null,null,null,null,null,null,null,null,null,null,null,null,null,null,null,null,null,null,null,null,null,null,null,{"$error":"#N/A"},{"$error":"#N/A"},"Local sanitaire"]
[null,null,null,null,null,null,null,null,null,null,null,null,null,null,null,null,null,null,null,null,null,null,null,null,{"$error":"#N/A"},{"$error":"#N/A"},"Local sanitaire"]
[null,null,null,null,null,null,null,null,null,null,null,null,null,null,null,null,null,null,null,null,null,null,null,null,{"$error":"#N/A"},{"$error":"#N/A"},"Douche"]
[null,null,null,null,null,null,null,null,null,null,null,null,null,null,null,null,null,null,null,null,null,null,null,null,{"$error":"#N/A"},{"$error":"#N/A"},"Douche"]
[null,null,null,null,null,null,null,null,null,null,null,null,null,null,null,null,null,null,null,null,null,null,null,null,{"$error":"#N/A"},{"$error":"#N/A"},"Douche"]
[null,null,null,null,null,null,null,null,null,null,null,null,null,null,null,null,null,null,null,null,null,null,null,null,{"$error":"#N/A"},{"$error":"#N/A"},"Douche"]
[null,null,null,null,null,null,null,null,null,null,null,null,null,null,null,null,null,null,null,null,null,null,null,null,{"$error":"#N/A"},{"$error":"#N/A"},"Vestiaires"]
[null,null,null,null,null,null,null,null,null,null,null,null,null,null,null,null,null,null,null,null,null,null,null,null,{"$error":"#N/A"},{"$error":"#N/A"},"Vestiaires"]
[null,null,null,null,null,null,null,null,null,null,null,null,null,null,null,null,null,null,null,null,null,null,null,null,{"$error":"#N/A"},{"$error":"#N/A"},"Vestiaires"]
[null,null,null,null,null,null,null,null,null,null,null,null,null,null,null,null,null,null,null,null,null,null,null,null,{"$error":"#N/A"},{"$error":"#N/A"},"Vestiaires"]
[null,null,null,null,null,null,null,null,null,null,null,null,null,null,null,null,null,null,null,null,null,null,null,null,{"$error":"#N/A"},{"$error":"#N/A"},"Couloirs"]
[null,null,null,null,null,null,null,null,null,null,null,null,null,null,null,null,null,null,null,null,null,null,null,null,{"$error":"#N/A"},{"$error":"#N/A"},"Couloirs"]
[null,null,null,null,null,null,null,null,null,null,null,null,null,null,null,null,null,null,null,null,null,null,null,null,{"$error":"#N/A"},{"$error":"#N/A"},"Couloirs"]
[null,null,null,null,null,null,null,null,null,null,null,null,null,null,null,null,null,null,null,null,null,null,null,null,{"$error":"#N/A"},{"$error":"#N/A"},"Cuisine"]
[null,null,null,null,null,null,null,null,null,null,null,null,null,null,null,null,null,null,null,null,null,null,null,null,{"$error":"#N/A"},{"$error":"#N/A"},"Cuisine"]
[null,null,null,null,null,null,null,null,null,null,null,null,null,null,null,null,null,null,null,null,null,null,null,null,{"$error":"#N/A"},{"$error":"#N/A"},"Cuisine"]
[null,null,null,null,null,null,null,null,null,null,null,null,null,null,null,null,null,null,null,null,null,null,null,null,{"$error":"#N/A"},{"$error":"#N/A"},"Salle de conférence"]
[null,null,null,null,null,null,null,null,null,null,null,null,null,null,null,null,null,null,null,null,null,null,null,null,{"$error":"#N/A"},{"$error":"#N/A"},"Salle de conférence"]
[null,null,null,null,null,null,null,null,null,null,null,null,null,null,null,null,null,null,null,null,null,null,null,null,{"$error":"#N/A"},{"$error":"#N/A"},"Salle de conférence"]
[null,null,null,null,null,null,null,null,null,null,null,null,null,null,null,null,null,null,null,null,null,null,null,null,{"$error":"#N/A"},{"$error":"#N/A"},"Chambre"]
[null,null,null,null,null,null,null,null,null,null,null,null,null,null,null,null,null,null,null,null,null,null,null,null,{"$error":"#N/A"},{"$error":"#N/A"},"Chambre"]
[null,null,null,null,null,null,null,null,null,null,null,null,null,null,null,null,null,null,null,null,null,null,null,null,{"$error":"#N/A"},{"$error":"#N/A"},"Chambre"]
[null,null,null,null,null,null,null,null,null,null,null,null,null,null,null,null,null,null,null,null,null,null,null,null,{"$error":"#N/A"},{"$error":"#N/A"},"Chambre"]
[null,null,null,null,null,null,null,null,null,null,null,null,null,null,null,null,null,null,null,null,null,null,null,null,{"$error":"#N/A"},{"$error":"#N/A"},"Cafétéria"]
[null,null,null,null,null,null,null,null,null,null,null,null,null,null,null,null,null,null,null,null,null,null,null,null,{"$error":"#N/A"},{"$error":"#N/A"},"Cafétéria"]
[null,null,null,null,null,null,null,null,null,null,null,null,null,null,null,null,null,null,null,null,null,null,null,null,{"$error":"#N/A"},{"$error":"#N/A"},"Cafétéria"]
[null,null,null,null,null,null,null,null,null,null,null,null,null,null,null,null,null,null,null,null,null,null,null,null,{"$error":"#N/A"},{"$error":"#N/A"},"Cafétéria"]
[null,null,null,null,null,null,null,null,null,null,null,null,null,null,null,null,null,null,null,null,null,null,null,null,{"$error":"#N/A"},{"$error":"#N/A"},"Coin à manger"]
[null,null,null,null,null,null,null,null,null,null,null,null,null,null,null,null,null,null,null,null,null,null,null,null,{"$error":"#N/A"},{"$error":"#N/A"},"Coin à manger"]
[null,null,null,null,null,null,null,null,null,null,null,null,null,null,null,null,null,null,null,null,null,null,null,null,{"$error":"#N/A"},{"$error":"#N/A"},"Coin à manger"]
[null,null,null,null,null,null,null,null,null,null,null,null,null,null,null,null,null,null,null,null,null,null,null,null,{"$error":"#N/A"},{"$error":"#N/A"},"Coin à manger"]
[null,null,null,null,null,null,null,null,null,null,null,null,null,null,null,null,null,null,null,null,null,null,null,null,{"$error":"#N/A"},{"$error":"#N/A"},"Buanderie"]
[null,null,null,null,null,null,null,null,null,null,null,null,null,null,null,null,null,null,null,null,null,null,null,null,{"$error":"#N/A"},{"$error":"#N/A"},"Buanderie"]
[null,null,null,null,null,null,null,null,null,null,null,null,null,null,null,null,null,null,null,null,null,null,null,null,{"$error":"#N/A"},{"$error":"#N/A"},"Buanderie"]
[null,null,null,null,null,null,null,null,null,null,null,null,null,null,null,null,null,null,null,null,null,null,null,null,{"$error":"#N/A"},{"$error":"#N/A"},"Salon"]
[null,null,null,null,null,null,null,null,null,null,null,null,null,null,null,null,null,null,null,null,null,null,null,null,{"$error":"#N/A"},{"$error":"#N/A"},"Salon"]
[null,null,null,null,null,null,null,null,null,null,null,null,null,null,null,null,null,null,null,null,null,null,null,null,{"$error":"#N/A"},{"$error":"#N/A"},"Salon"]
[null,null,null,null,null,null,null,null,null,null,null,null,null,null,null,null,null,null,null,null,null,null,null,null,{"$error":"#N/A"},{"$error":"#N/A"},"Salon"]
[null,null,null,null,null,null,null,null,null,null,null,null,null,null,null,null,null,null,null,null,null,null,null,null,{"$error":"#N/A"},{"$error":"#N/A"},"Ateliers"]
[null,null,null,null,null,null,null,null,null,null,null,null,null,null,null,null,null,null,null,null,null,null,null,null,{"$error":"#N/A"},{"$error":"#N/A"},"Ateliers"]
[null,null,null,null,null,null,null,null,null,null,null,null,null,null,null,null,null,null,null,null,null,null,null,null,{"$error":"#N/A"},{"$error":"#N/A"},"Ateliers"]
[null,null,null,null,null,null,null,null,null,null,null,null,null,null,null,null,null,null,null,null,null,null,null,null,{"$error":"#N/A"},{"$error":"#N/A"},"Cage d'escaliers"]
[null,null,null,null,null,null,null,null,null,null,null,null,null,null,null,null,null,null,null,null,null,null,null,null,{"$error":"#N/A"},{"$error":"#N/A"},"Cage d'escaliers"]
[null,null,null,null,null,null,null,null,null,null,null,null,null,null,null,null,null,null,null,null,null,null,null,null,{"$error":"#N/A"},{"$error":"#N/A"},"Cage d'escaliers"]
[null,null,null,null,null,null,null,null,null,null,null,null,null,null,null,null,null,null,null,null,null,null,null,null,{"$error":"#N/A"},{"$error":"#N/A"},"Ascenseur"]
[null,null,null,null,null,null,null,null,null,null,null,null,null,null,null,null,null,null,null,null,null,null,null,null,{"$error":"#N/A"},{"$error":"#N/A"},"Ascenseur"]
[null,null,null,null,null,null,null,null,null,null,null,null,null,null,null,null,null,null,null,null,null,null,null,null,{"$error":"#N/A"},{"$error":"#N/A"},"Ascenseur"]
[null,null,null,null,null,null,null,null,null,null,null,null,null,null,null,null,null,null,null,null,null,null,null,null,{"$error":"#N/A"},{"$error":"#N/A"},"Ascenseur"]
[null,null,null,null,null,null,null,null,null,null,null,null,null,null,null,null,null,null,null,null,null,null,null,null,0,0,"Hall d'entrée"]
[null,null,null,null,null,null,null,null,null,null,null,null,null,null,null,null,null,null,null,null,null,null,null,null,"Nettoyer les traces de doigts",0,"Hall d'entrée"]
[null,null,null,null,null,null,null,null,null,null,null,null,null,null,null,null,null,null,null,null,null,null,null,null,"Détartrer la robinetterie",0,"Hall d'entrée"]
[null,null,null,null,null,null,null,null,null,null,null,null,null,null,null,null,null,null,null,null,null,null,null,null,0,0,"Hall d'entrée"]
[null,null,null,null,null,null,null,null,null,null,null,null,null,null,null,null,null,null,null,null,null,null,null,null,{"$error":"#N/A"},{"$error":"#N/A"},"Bureau simple"]
[null,null,null,null,null,null,null,null,null,null,null,null,null,null,null,null,null,null,null,null,null,null,null,null,{"$error":"#N/A"},{"$error":"#N/A"},"Bureau simple"]
[null,null,null,null,null,null,null,null,null,null,null,null,null,null,null,null,null,null,null,null,null,null,null,null,{"$error":"#N/A"},{"$error":"#N/A"},"Bureau simple"]
[null,null,null,null,null,null,null,null,null,null,null,null,null,null,null,null,null,null,null,null,null,null,null,null,{"$error":"#N/A"},{"$error":"#N/A"},"Bureau simple"]
[null,null,null,null,null,null,null,null,null,null,null,null,null,null,null,null,null,null,null,null,null,null,null,null,{"$error":"#N/A"},{"$error":"#N/A"},"Open Space"]
[null,null,null,null,null,null,null,null,null,null,null,null,null,null,null,null,null,null,null,null,null,null,null,null,{"$error":"#N/A"},{"$error":"#N/A"},"Open Space"]
[null,null,null,null,null,null,null,null,null,null,null,null,null,null,null,null,null,null,null,null,null,null,null,null,{"$error":"#N/A"},{"$error":"#N/A"},"Open Space"]
[null,null,null,null,null,null,null,null,null,null,null,null,null,null,null,null,null,null,null,null,null,null,null,null,{"$error":"#N/A"},{"$error":"#N/A"},"Local sanitaire"]
[null,null,null,null,null,null,null,null,null,null,null,null,null,null,null,null,null,null,null,null,null,null,null,null,{"$error":"#N/A"},{"$error":"#N/A"},"Local sanitaire"]
[null,null,null,null,null,null,null,null,null,null,null,null,null,null,null,null,null,null,null,null,null,null,null,null,{"$error":"#N/A"},{"$error":"#N/A"},"Local sanitaire"]
[null,null,null,null,null,null,null,null,null,null,null,null,null,null,null,null,null,null,null,null,null,null,null,null,{"$error":"#N/A"},{"$error":"#N/A"},"Douche"]
[null,null,null,null,null,null,null,null,null,null,null,null,null,null,null,null,null,null,null,null,null,null,null,null,{"$error":"#N/A"},{"$error":"#N/A"},"Douche"]
[null,null,null,null,null,null,null,null,null,null,null,null,null,null,null,null,null,null,null,null,null,null,null,null,{"$error":"#N/A"},{"$error":"#N/A"},"Douche"]
[null,null,null,null,null,null,null,null,null,null,null,null,null,null,null,null,null,null,null,null,null,null,null,null,{"$error":"#N/A"},{"$error":"#N/A"},"Douche"]
[null,null,null,null,null,null,null,null,null,null,null,null,null,null,null,null,null,null,null,null,null,null,null,null,{"$error":"#N/A"},{"$error":"#N/A"},"Vestiaires"]
[null,null,null,null,null,null,null,null,null,null,null,null,null,null,null,null,null,null,null,null,null,null,null,null,{"$error":"#N/A"},{"$error":"#N/A"},"Vestiaires"]
[null,null,null,null,null,null,null,null,null,null,null,null,null,null,null,null,null,null,null,null,null,null,null,null,{"$error":"#N/A"},{"$error":"#N/A"},"Vestiaires"]
[null,null,null,null,null,null,null,null,null,null,null,null,null,null,null,null,null,null,null,null,null,null,null,null,{"$error":"#N/A"},{"$error":"#N/A"},"Vestiaires"]
[null,null,null,null,null,null,null,null,null,null,null,null,null,null,null,null,null,null,null,null,null,null,null,null,{"$error":"#N/A"},{"$error":"#N/A"},"Couloirs"]
[null,null,null,null,null,null,null,null,null,null,null,null,null,null,null,null,null,null,null,null,null,null,null,null,{"$error":"#N/A"},{"$error":"#N/A"},"Couloirs"]
[null,null,null,null,null,null,null,null,null,null,null,null,null,null,null,null,null,null,null,null,null,null,null,null,{"$error":"#N/A"},{"$error":"#N/A"},"Couloirs"]
[null,null,null,null,null,null,null,null,null,null,null,null,null,null,null,null,null,null,null,null,null,null,null,null,{"$error":"#N/A"},{"$error":"#N/A"},"Couloirs"]
[null,null,null,null,null,null,null,null,null,null,null,null,null,null,null,null,null,null,null,null,null,null,null,null,{"$error":"#N/A"},{"$error":"#N/A"},"Cuisine"]
[null,null,null,null,null,null,null,null,null,null,null,null,null,null,null,null,null,null,null,null,null,null,null,null,{"$error":"#N/A"},{"$error":"#N/A"},"Cuisine"]
[null,null,null,null,null,null,null,null,null,null,null,null,null,null,null,null,null,null,null,null,null,null,null,null,{"$error":"#N/A"},{"$error":"#N/A"},"Cuisine"]
[null,null,null,null,null,null,null,null,null,null,null,null,null,null,null,null,null,null,null,null,null,null,null,null,{"$error":"#N/A"},{"$error":"#N/A"},"Salle de conférence"]
[null,null,null,null,null,null,null,null,null,null,null,null,null,null,null,null,null,null,null,null,null,null,null,null,{"$error":"#N/A"},{"$error":"#N/A"},"Salle de conférence"]
[null,null,null,null,null,null,null,null,null,null,null,null,null,null,null,null,null,null,null,null,null,null,null,null,{"$error":"#N/A"},{"$error":"#N/A"},"Salle de conférence"]
[null,null,null,null,null,null,null,null,null,null,null,null,null,null,null,null,null,null,null,null,null,null,null,null,{"$error":"#N/A"},{"$error":"#N/A"},"Salle de conférence"]
[null,null,null,null,null,null,null,null,null,null,null,null,null,null,null,null,null,null,null,null,null,null,null,null,{"$error":"#N/A"},{"$error":"#N/A"},"Chambre"]
[null,null,null,null,null,null,null,null,null,null,null,null,null,null,null,null,null,null,null,null,null,null,null,null,{"$error":"#N/A"},{"$error":"#N/A"},"Chambre"]
[null,null,null,null,null,null,null,null,null,null,null,null,null,null,null,null,null,null,null,null,null,null,null,null,{"$error":"#N/A"},{"$error":"#N/A"},"Chambre"]
[null,null,null,null,null,null,null,null,null,null,null,null,null,null,null,null,null,null,null,null,null,null,null,null,{"$error":"#N/A"},{"$error":"#N/A"},"Cafétéria"]
[null,null,null,null,null,null,null,null,null,null,null,null,null,null,null,null,null,null,null,null,null,null,null,null,{"$error":"#N/A"},{"$error":"#N/A"},"Cafétéria"]
[null,null,null,null,null,null,null,null,null,null,null,null,null,null,null,null,null,null,null,null,null,null,null,null,{"$error":"#N/A"},{"$error":"#N/A"},"Cafétéria"]
[null,null,null,null,null,null,null,null,null,null,null,null,null,null,null,null,null,null,null,null,null,null,null,null,{"$error":"#N/A"},{"$error":"#N/A"},"Coin à manger"]
[null,null,null,null,null,null,null,null,null,null,null,null,null,null,null,null,null,null,null,null,null,null,null,null,{"$error":"#N/A"},{"$error":"#N/A"},"Coin à manger"]
[null,null,null,null,null,null,null,null,null,null,null,null,null,null,null,null,null,null,null,null,null,null,null,null,{"$error":"#N/A"},{"$error":"#N/A"},"Coin à manger"]
[null,null,null,null,null,null,null,null,null,null,null,null,null,null,null,null,null,null,null,null,null,null,null,null,{"$error":"#N/A"},{"$error":"#N/A"},"Coin à manger"]
[null,null,null,null,null,null,null,null,null,null,null,null,null,null,null,null,null,null,null,null,null,null,null,null,{"$error":"#N/A"},{"$error":"#N/A"},"Buanderie"]
[null,null,null,null,null,null,null,null,null,null,null,null,null,null,null,null,null,null,null,null,null,null,null,null,{"$error":"#N/A"},{"$error":"#N/A"},"Buanderie"]
[null,null,null,null,null,null,null,null,null,null,null,null,null,null,null,null,null,null,null,null,null,null,null,null,{"$error":"#N/A"},{"$error":"#N/A"},"Buanderie"]
[null,null,null,null,null,null,null,null,null,null,null,null,null,null,null,null,null,null,null,null,null,null,null,null,{"$error":"#N/A"},{"$error":"#N/A"},"Buanderie"]
[null,null,null,null,null,null,null,null,null,null,null,null,null,null,null,null,null,null,null,null,null,null,null,null,{"$error":"#N/A"},{"$error":"#N/A"},"Salon"]
[null,null,null,null,null,null,null,null,null,null,null,null,null,null,null,null,null,null,null,null,null,null,null,null,{"$error":"#N/A"},{"$error":"#N/A"},"Salon"]
[null,null,null,null,null,null,null,null,null,null,null,null,null,null,null,null,null,null,null,null,null,null,null,null,{"$error":"#N/A"},{"$error":"#N/A"},"Salon"]
[null,null,null,null,null,null,null,null,null,null,null,null,null,null,null,null,null,null,null,null,null,null,null,null,{"$error":"#N/A"},{"$error":"#N/A"},"Ateliers"]
[null,null,null,null,null,null,null,null,null,null,null,null,null,null,null,null,null,null,null,null,null,null,null,null,{"$error":"#N/A"},{"$error":"#N/A"},"Ateliers"]
[null,null,null,null,null,null,null,null,null,null,null,null,null,null,null,null,null,null,null,null,null,null,null,null,{"$error":"#N/A"},{"$error":"#N/A"},"Ateliers"]
[null,null,null,null,null,null,null,null,null,null,null,null,null,null,null,null,null,null,null,null,null,null,null,null,{"$error":"#N/A"},{"$error":"#N/A"},"Ateliers"]
[null,null,null,null,null,null,null,null,null,null,null,null,null,null,null,null,null,null,null,null,null,null,null,null,{"$error":"#N/A"},{"$error":"#N/A"},"Cage d'escaliers"]
[null,null,null,null,null,null,null,null,null,null,null,null,null,null,null,null,null,null,null,null,null,null,null,null,{"$error":"#N/A"},{"$error":"#N/A"},"Cage d'escaliers"]
[null,null,null,null,null,null,null,null,null,null,null,null,null,null,null,null,null,null,null,null,null,null,null,null,{"$error":"#N/A"},{"$error":"#N/A"},"Cage d'escaliers"]
[null,null,null,null,null,null,null,null,null,null,null,null,null,null,null,null,null,null,null,null,null,null,null,null,{"$error":"#N/A"},{"$error":"#N/A"},"Ascenseur"]
[null,null,null,null,null,null,null,null,null,null,null,null,null,null,null,null,null,null,null,null,null,null,null,null,{"$error":"#N/A"},{"$error":"#N/A"},"Ascenseur"]
[null,null,null,null,null,null,null,null,null,null,null,null,null,null,null,null,null,null,null,null,null,null,null,null,{"$error":"#N/A"},{"$error":"#N/A"},"Ascenseur"]
[null,null,null,null,null,null,null,null,null,null,null,null,null,null,null,null,null,null,null,null,null,null,null,null,"Vider la poubelle à PET",0,"Hall d'entrée"]
[null,null,null,null,null,null,null,null,null,null,null,null,null,null,null,null,null,null,null,null,null,null,null,null,0,0,"Hall d'entrée"]
[null,null,null,null,null,null,null,null,null,null,null,null,null,null,null,null,null,null,null,null,null,null,null,null,"Nettoyer le meuble lavabo- intérieur",0,"Hall d'entrée"]
[null,null,null,null,null,null,null,null,null,null,null,null,null,null,null,null,null,null,null,null,null,null,null,null,"Nettoyer le cadre de la fenêtre",0,"Hall d'entrée"]
[null,null,null,null,null,null,null,null,null,null,null,null,null,null,null,null,null,null,null,null,null,null,null,null,{"$error":"#N/A"},{"$error":"#N/A"},"Bureau simple"]
[null,null,null,null,null,null,null,null,null,null,null,null,null,null,null,null,null,null,null,null,null,null,null,null,{"$error":"#N/A"},{"$error":"#N/A"},"Bureau simple"]
[null,null,null,null,null,null,null,null,null,null,null,null,null,null,null,null,null,null,null,null,null,null,null,null,{"$error":"#N/A"},{"$error":"#N/A"},"Bureau simple"]
[null,null,null,null,null,null,null,null,null,null,null,null,null,null,null,null,null,null,null,null,null,null,null,null,{"$error":"#N/A"},{"$error":"#N/A"},"Bureau simple"]
[null,null,null,null,null,null,null,null,null,null,null,null,null,null,null,null,null,null,null,null,null,null,null,null,{"$error":"#N/A"},{"$error":"#N/A"},"Open Space"]
[null,null,null,null,null,null,null,null,null,null,null,null,null,null,null,null,null,null,null,null,null,null,null,null,{"$error":"#N/A"},{"$error":"#N/A"},"Open Space"]
[null,null,null,null,null,null,null,null,null,null,null,null,null,null,null,null,null,null,null,null,null,null,null,null,{"$error":"#N/A"},{"$error":"#N/A"},"Open Space"]
[null,null,null,null,null,null,null,null,null,null,null,null,null,null,null,null,null,null,null,null,null,null,null,null,{"$error":"#N/A"},{"$error":"#N/A"},"Open Space"]
[null,null,null,null,null,null,null,null,null,null,null,null,null,null,null,null,null,null,null,null,null,null,null,null,{"$error":"#N/A"},{"$error":"#N/A"},"Local sanitaire"]
[null,null,null,null,null,null,null,null,null,null,null,null,null,null,null,null,null,null,null,null,null,null,null,null,{"$error":"#N/A"},{"$error":"#N/A"},"Local sanitaire"]
[null,null,null,null,null,null,null,null,null,null,null,null,null,null,null,null,null,null,null,null,null,null,null,null,{"$error":"#N/A"},{"$error":"#N/A"},"Local sanitaire"]
[null,null,null,null,null,null,null,null,null,null,null,null,null,null,null,null,null,null,null,null,null,null,null,null,{"$error":"#N/A"},{"$error":"#N/A"},"Douche"]
[null,null,null,null,null,null,null,null,null,null,null,null,null,null,null,null,null,null,null,null,null,null,null,null,{"$error":"#N/A"},{"$error":"#N/A"},"Douche"]
[null,null,null,null,null,null,null,null,null,null,null,null,null,null,null,null,null,null,null,null,null,null,null,null,{"$error":"#N/A"},{"$error":"#N/A"},"Douche"]
[null,null,null,null,null,null,null,null,null,null,null,null,null,null,null,null,null,null,null,null,null,null,null,null,{"$error":"#N/A"},{"$error":"#N/A"},"Douche"]
[null,null,null,null,null,null,null,null,null,null,null,null,null,null,null,null,null,null,null,null,null,null,null,null,{"$error":"#N/A"},{"$error":"#N/A"},"Vestiaires"]
[null,null,null,null,null,null,null,null,null,null,null,null,null,null,null,null,null,null,null,null,null,null,null,null,{"$error":"#N/A"},{"$error":"#N/A"},"Vestiaires"]
[null,null,null,null,null,null,null,null,null,null,null,null,null,null,null,null,null,null,null,null,null,null,null,null,{"$error":"#N/A"},{"$error":"#N/A"},"Vestiaires"]
[null,null,null,null,null,null,null,null,null,null,null,null,null,null,null,null,null,null,null,null,null,null,null,null,{"$error":"#N/A"},{"$error":"#N/A"},"Couloirs"]
[null,null,null,null,null,null,null,null,null,null,null,null,null,null,null,null,null,null,null,null,null,null,null,null,{"$error":"#N/A"},{"$error":"#N/A"},"Couloirs"]
[null,null,null,null,null,null,null,null,null,null,null,null,null,null,null,null,null,null,null,null,null,null,null,null,{"$error":"#N/A"},{"$error":"#N/A"},"Couloirs"]
[null,null,null,null,null,null,null,null,null,null,null,null,null,null,null,null,null,null,null,null,null,null,null,null,{"$error":"#N/A"},{"$error":"#N/A"},"Cuisine"]
[null,null,null,null,null,null,null,null,null,null,null,null,null,null,null,null,null,null,null,null,null,null,null,null,{"$error":"#N/A"},{"$error":"#N/A"},"Cuisine"]
[null,null,null,null,null,null,null,null,null,null,null,null,null,null,null,null,null,null,null,null,null,null,null,null,{"$error":"#N/A"},{"$error":"#N/A"},"Cuisine"]
[null,null,null,null,null,null,null,null,null,null,null,null,null,null,null,null,null,null,null,null,null,null,null,null,{"$error":"#N/A"},{"$error":"#N/A"},"Cuisine"]
[null,null,null,null,null,null,null,null,null,null,null,null,null,null,null,null,null,null,null,null,null,null,null,null,{"$error":"#N/A"},{"$error":"#N/A"},""]
[null,null,null,null,null,null,null,null,null,null,null,null,null,null,null,null,null,null,null,null,null,null,null,null,{"$error":"#N/A"},{"$error":"#N/A"},"Salle de conférence"]
[null,null,null,null,null,null,null,null,null,null,null,null,null,null,null,null,null,null,null,null,null,null,null,null,{"$error":"#N/A"},{"$error":"#N/A"},"Salle de conférence"]
[null,null,null,null,null,null,null,null,null,null,null,null,null,null,null,null,null,null,null,null,null,null,null,null,{"$error":"#N/A"},{"$error":"#N/A"},"Salle de conférence"]
[null,null,null,null,null,null,null,null,null,null,null,null,null,null,null,null,null,null,null,null,null,null,null,null,{"$error":"#N/A"},{"$error":"#N/A"},"Chambre"]
[null,null,null,null,null,null,null,null,null,null,null,null,null,null,null,null,null,null,null,null,null,null,null,null,{"$error":"#N/A"},{"$error":"#N/A"},"Chambre"]
[null,null,null,null,null,null,null,null,null,null,null,null,null,null,null,null,null,null,null,null,null,null,null,null,{"$error":"#N/A"},{"$error":"#N/A"},"Chambre"]
[null,null,null,null,null,null,null,null,null,null,null,null,null,null,null,null,null,null,null,null,null,null,null,null,{"$error":"#N/A"},{"$error":"#N/A"},"Chambre"]
[null,null,null,null,null,null,null,null,null,null,null,null,null,null,null,null,null,null,null,null,null,null,null,null,{"$error":"#N/A"},{"$error":"#N/A"},"Cafétéria"]
[null,null,null,null,null,null,null,null,null,null,null,null,null,null,null,null,null,null,null,null,null,null,null,null,{"$error":"#N/A"},{"$error":"#N/A"},"Cafétéria"]
[null,null,null,null,null,null,null,null,null,null,null,null,null,null,null,null,null,null,null,null,null,null,null,null,{"$error":"#N/A"},{"$error":"#N/A"},"Cafétéria"]
[null,null,null,null,null,null,null,null,null,null,null,null,null,null,null,null,null,null,null,null,null,null,null,null,{"$error":"#N/A"},{"$error":"#N/A"},"Coin à manger"]
[null,null,null,null,null,null,null,null,null,null,null,null,null,null,null,null,null,null,null,null,null,null,null,null,{"$error":"#N/A"},{"$error":"#N/A"},"Coin à manger"]
[null,null,null,null,null,null,null,null,null,null,null,null,null,null,null,null,null,null,null,null,null,null,null,null,{"$error":"#N/A"},{"$error":"#N/A"},"Coin à manger"]
[null,null,null,null,null,null,null,null,null,null,null,null,null,null,null,null,null,null,null,null,null,null,null,null,{"$error":"#N/A"},{"$error":"#N/A"},"Buanderie"]
[null,null,null,null,null,null,null,null,null,null,null,null,null,null,null,null,null,null,null,null,null,null,null,null,{"$error":"#N/A"},{"$error":"#N/A"},"Buanderie"]
[null,null,null,null,null,null,null,null,null,null,null,null,null,null,null,null,null,null,null,null,null,null,null,null,{"$error":"#N/A"},{"$error":"#N/A"},"Buanderie"]
[null,null,null,null,null,null,null,null,null,null,null,null,null,null,null,null,null,null,null,null,null,null,null,null,{"$error":"#N/A"},{"$error":"#N/A"},"Buanderie"]
[null,null,null,null,null,null,null,null,null,null,null,null,null,null,null,null,null,null,null,null,null,null,null,null,{"$error":"#N/A"},{"$error":"#N/A"},"Salon"]
[null,null,null,null,null,null,null,null,null,null,null,null,null,null,null,null,null,null,null,null,null,null,null,null,{"$error":"#N/A"},{"$error":"#N/A"},"Salon"]
[null,null,null,null,null,null,null,null,null,null,null,null,null,null,null,null,null,null,null,null,null,null,null,null,{"$error":"#N/A"},{"$error":"#N/A"},"Salon"]
[null,null,null,null,null,null,null,null,null,null,null,null,null,null,null,null,null,null,null,null,null,null,null,null,{"$error":"#N/A"},{"$error":"#N/A"},"Salon"]
[null,null,null,null,null,null,null,null,null,null,null,null,null,null,null,null,null,null,null,null,null,null,null,null,{"$error":"#N/A"},{"$error":"#N/A"},"Ateliers"]
[null,null,null,null,null,null,null,null,null,null,null,null,null,null,null,null,null,null,null,null,null,null,null,null,{"$error":"#N/A"},{"$error":"#N/A"},"Ateliers"]
[null,null,null,null,null,null,null,null,null,null,null,null,null,null,null,null,null,null,null,null,null,null,null,null,{"$error":"#N/A"},{"$error":"#N/A"},"Ateliers"]
[null,null,null,null,null,null,null,null,null,null,null,null,null,null,null,null,null,null,null,null,null,null,null,null,{"$error":"#N/A"},{"$error":"#N/A"},"Ateliers"]
[null,null,null,null,null,null,null,null,null,null,null,null,null,null,null,null,null,null,null,null,null,null,null,null,{"$error":"#N/A"},{"$error":"#N/A"},"Cage d'escaliers"]
[null,null,null,null,null,null,null,null,null,null,null,null,null,null,null,null,null,null,null,null,null,null,null,null,{"$error":"#N/A"},{"$error":"#N/A"},"Cage d'escaliers"]
[null,null,null,null,null,null,null,null,null,null,null,null,null,null,null,null,null,null,null,null,null,null,null,null,{"$error":"#N/A"},{"$error":"#N/A"},"Cage d'escaliers"]
[null,null,null,null,null,null,null,null,null,null,null,null,null,null,null,null,null,null,null,null,null,null,null,null,{"$error":"#N/A"},{"$error":"#N/A"},"Ascenseur"]
[null,null,null,null,null,null,null,null,null,null,null,null,null,null,null,null,null,null,null,null,null,null,null,null,{"$error":"#N/A"},{"$error":"#N/A"},"Ascenseur"]
[null,null,null,null,null,null,null,null,null,null,null,null,null,null,null,null,null,null,null,null,null,null,null,null,{"$error":"#N/A"},{"$error":"#N/A"},"Ascenseur"]
[null,null,null,null,null,null,null,null,null,null,null,null,null,null,null,null,null,null,null,null,null,null,null,null,{"$error":"#N/A"},{"$error":"#N/A"},"Ascenseur"]
[null,null,null,null,null,null,null,null,null,null,null,null,null,null,null,null,null,null,null,null,null,null,null,null,"Nettoyer les chaises",0,"Hall d'entrée"]
[null,null,null,null,null,null,null,null,null,null,null,null,null,null,null,null,null,null,null,null,null,null,null,null,"Nettoyer le rebord extérieur",0,"Hall d'entrée"]
[null,null,null,null,null,null,null,null,null,null,null,null,null,null,null,null,null,null,null,null,null,null,null,null,"Nettoyer la fontaine à eau",0,"Hall d'entrée"]
[null,null,null,null,null,null,null,null,null,null,null,null,null,null,null,null,null,null,null,null,null,null,null,null,{"$error":"#N/A"},{"$error":"#N/A"},"Bureau simple"]
[null,null,null,null,null,null,null,null,null,null,null,null,null,null,null,null,null,null,null,null,null,null,null,null,{"$error":"#N/A"},{"$error":"#N/A"},"Bureau simple"]
[null,null,null,null,null,null,null,null,null,null,null,null,null,null,null,null,null,null,null,null,null,null,null,null,{"$error":"#N/A"},{"$error":"#N/A"},"Bureau simple"]
[null,null,null,null,null,null,null,null,null,null,null,null,null,null,null,null,null,null,null,null,null,null,null,null,{"$error":"#N/A"},{"$error":"#N/A"},"Open Space"]
[null,null,null,null,null,null,null,null,null,null,null,null,null,null,null,null,null,null,null,null,null,null,null,null,{"$error":"#N/A"},{"$error":"#N/A"},"Open Space"]
[null,null,null,null,null,null,null,null,null,null,null,null,null,null,null,null,null,null,null,null,null,null,null,null,{"$error":"#N/A"},{"$error":"#N/A"},"Open Space"]
[null,null,null,null,null,null,null,null,null,null,null,null,null,null,null,null,null,null,null,null,null,null,null,null,{"$error":"#N/A"},{"$error":"#N/A"},"Open Space"]
[null,null,null,null,null,null,null,null,null,null,null,null,null,null,null,null,null,null,null,null,null,null,null,null,{"$error":"#N/A"},{"$error":"#N/A"},"Local sanitaire"]
[null,null,null,null,null,null,null,null,null,null,null,null,null,null,null,null,null,null,null,null,null,null,null,null,{"$error":"#N/A"},{"$error":"#N/A"},"Local sanitaire"]
[null,null,null,null,null,null,null,null,null,null,null,null,null,null,null,null,null,null,null,null,null,null,null,null,{"$error":"#N/A"},{"$error":"#N/A"},"Local sanitaire"]
[null,null,null,null,null,null,null,null,null,null,null,null,null,null,null,null,null,null,null,null,null,null,null,null,{"$error":"#N/A"},{"$error":"#N/A"},"Local sanitaire"]
[null,null,null,null,null,null,null,null,null,null,null,null,null,null,null,null,null,null,null,null,null,null,null,null,{"$error":"#N/A"},{"$error":"#N/A"},"Douche"]
[null,null,null,null,null,null,null,null,null,null,null,null,null,null,null,null,null,null,null,null,null,null,null,null,{"$error":"#N/A"},{"$error":"#N/A"},"Douche"]
[null,null,null,null,null,null,null,null,null,null,null,null,null,null,null,null,null,null,null,null,null,null,null,null,{"$error":"#N/A"},{"$error":"#N/A"},"Douche"]
[null,null,null,null,null,null,null,null,null,null,null,null,null,null,null,null,null,null,null,null,null,null,null,null,{"$error":"#N/A"},{"$error":"#N/A"},"Douche"]
[null,null,null,null,null,null,null,null,null,null,null,null,null,null,null,null,null,null,null,null,null,null,null,null,{"$error":"#N/A"},{"$error":"#N/A"},"Vestiaires"]
[null,null,null,null,null,null,null,null,null,null,null,null,null,null,null,null,null,null,null,null,null,null,null,null,{"$error":"#N/A"},{"$error":"#N/A"},"Vestiaires"]
[null,null,null,null,null,null,null,null,null,null,null,null,null,null,null,null,null,null,null,null,null,null,null,null,{"$error":"#N/A"},{"$error":"#N/A"},"Vestiaires"]
[null,null,null,null,null,null,null,null,null,null,null,null,null,null,null,null,null,null,null,null,null,null,null,null,{"$error":"#N/A"},{"$error":"#N/A"},"Couloirs"]
[null,null,null,null,null,null,null,null,null,null,null,null,null,null,null,null,null,null,null,null,null,null,null,null,{"$error":"#N/A"},{"$error":"#N/A"},"Couloirs"]
[null,null,null,null,null,null,null,null,null,null,null,null,null,null,null,null,null,null,null,null,null,null,null,null,{"$error":"#N/A"},{"$error":"#N/A"},"Couloirs"]
[null,null,null,null,null,null,null,null,null,null,null,null,null,null,null,null,null,null,null,null,null,null,null,null,{"$error":"#N/A"},{"$error":"#N/A"},"Cuisine"]
[null,null,null,null,null,null,null,null,null,null,null,null,null,null,null,null,null,null,null,null,null,null,null,null,{"$error":"#N/A"},{"$error":"#N/A"},"Cuisine"]
[null,null,null,null,null,null,null,null,null,null,null,null,null,null,null,null,null,null,null,null,null,null,null,null,{"$error":"#N/A"},{"$error":"#N/A"},"Cuisine"]
[null,null,null,null,null,null,null,null,null,null,null,null,null,null,null,null,null,null,null,null,null,null,null,null,{"$error":"#N/A"},{"$error":"#N/A"},"Cuisine"]
[null,null,null,null,null,null,null,null,null,null,null,null,null,null,null,null,null,null,null,null,null,null,null,null,{"$error":"#N/A"},{"$error":"#N/A"},"Salle de conférence"]
[null,null,null,null,null,null,null,null,null,null,null,null,null,null,null,null,null,null,null,null,null,null,null,null,{"$error":"#N/A"},{"$error":"#N/A"},"Salle de conférence"]
[null,null,null,null,null,null,null,null,null,null,null,null,null,null,null,null,null,null,null,null,null,null,null,null,{"$error":"#N/A"},{"$error":"#N/A"},"Salle de conférence"]
[null,null,null,null,null,null,null,null,null,null,null,null,null,null,null,null,null,null,null,null,null,null,null,null,{"$error":"#N/A"},{"$error":"#N/A"},"Chambre"]
[null,null,null,null,null,null,null,null,null,null,null,null,null,null,null,null,null,null,null,null,null,null,null,null,{"$error":"#N/A"},{"$error":"#N/A"},"Chambre"]
[null,null,null,null,null,null,null,null,null,null,null,null,null,null,null,null,null,null,null,null,null,null,null,null,{"$error":"#N/A"},{"$error":"#N/A"},"Chambre"]
[null,null,null,null,null,null,null,null,null,null,null,null,null,null,null,null,null,null,null,null,null,null,null,null,{"$error":"#N/A"},{"$error":"#N/A"},"Chambre"]
[null,null,null,null,null,null,null,null,null,null,null,null,null,null,null,null,null,null,null,null,null,null,null,null,{"$error":"#N/A"},{"$error":"#N/A"},"Cafétéria"]
[null,null,null,null,null,null,null,null,null,null,null,null,null,null,null,null,null,null,null,null,null,null,null,null,{"$error":"#N/A"},{"$error":"#N/A"},"Cafétéria"]
[null,null,null,null,null,null,null,null,null,null,null,null,null,null,null,null,null,null,null,null,null,null,null,null,{"$error":"#N/A"},{"$error":"#N/A"},"Cafétéria"]
[null,null,null,null,null,null,null,null,null,null,null,null,null,null,null,null,null,null,null,null,null,null,null,null,{"$error":"#N/A"},{"$error":"#N/A"},"Cafétéria"]
[null,null,null,null,null,null,null,null,null,null,null,null,null,null,null,null,null,null,null,null,null,null,null,null,{"$error":"#N/A"},{"$error":"#N/A"},"Coin à manger"]
[null,null,null,null,null,null,null,null,null,null,null,null,null,null,null,null,null,null,null,null,null,null,null,null,{"$error":"#N/A"},{"$error":"#N/A"},"Coin à manger"]
[null,null,null,null,null,null,null,null,null,null,null,null,null,null,null,null,null,null,null,null,null,null,null,null,{"$error":"#N/A"},{"$error":"#N/A"},"Coin à manger"]
[null,null,null,null,null,null,null,null,null,null,null,null,null,null,null,null,null,null,null,null,null,null,null,null,{"$error":"#N/A"},{"$error":"#N/A"},"Buanderie"]
[null,null,null,null,null,null,null,null,null,null,null,null,null,null,null,null,null,null,null,null,null,null,null,null,{"$error":"#N/A"},{"$error":"#N/A"},"Buanderie"]
[null,null,null,null,null,null,null,null,null,null,null,null,null,null,null,null,null,null,null,null,null,null,null,null,{"$error":"#N/A"},{"$error":"#N/A"},"Buanderie"]
[null,null,null,null,null,null,null,null,null,null,null,null,null,null,null,null,null,null,null,null,null,null,null,null,{"$error":"#N/A"},{"$error":"#N/A"},"Buanderie"]
[null,null,null,null,null,null,null,null,null,null,null,null,null,null,null,null,null,null,null,null,null,null,null,null,{"$error":"#N/A"},{"$error":"#N/A"},"Salon"]
[null,null,null,null,null,null,null,null,null,null,null,null,null,null,null,null,null,null,null,null,null,null,null,null,{"$error":"#N/A"},{"$error":"#N/A"},"Salon"]
[null,null,null,null,null,null,null,null,null,null,null,null,null,null,null,null,null,null,null,null,null,null,null,null,{"$error":"#N/A"},{"$error":"#N/A"},"Salon"]
[null,null,null,null,null,null,null,null,null,null,null,null,null,null,null,null,null,null,null,null,null,null,null,null,{"$error":"#N/A"},{"$error":"#N/A"},"Ateliers"]
[null,null,null,null,null,null,null,null,null,null,null,null,null,null,null,null,null,null,null,null,null,null,null,null,{"$error":"#N/A"},{"$error":"#N/A"},"Ateliers"]
[null,null,null,null,null,null,null,null,null,null,null,null,null,null,null,null,null,null,null,null,null,null,null,null,{"$error":"#N/A"},{"$error":"#N/A"},"Ateliers"]
[null,null,null,null,null,null,null,null,null,null,null,null,null,null,null,null,null,null,null,null,null,null,null,null,{"$error":"#N/A"},{"$error":"#N/A"},"Cage d'escaliers"]
[null,null,null,null,null,null,null,null,null,null,null,null,null,null,null,null,null,null,null,null,null,null,null,null,{"$error":"#N/A"},{"$error":"#N/A"},"Cage d'escaliers"]
[null,null,null,null,null,null,null,null,null,null,null,null,null,null,null,null,null,null,null,null,null,null,null,null,{"$error":"#N/A"},{"$error":"#N/A"},"Cage d'escaliers"]
[null,null,null,null,null,null,null,null,null,null,null,null,null,null,null,null,null,null,null,null,null,null,null,null,{"$error":"#N/A"},{"$error":"#N/A"},"Cage d'escaliers"]
[null,null,null,null,null,null,null,null,null,null,null,null,null,null,null,null,null,null,null,null,null,null,null,null,{"$error":"#N/A"},{"$error":"#N/A"},"Cage d'escaliers"]
[null,null,null,null,null,null,null,null,null,null,null,null,null,null,null,null,null,null,null,null,null,null,null,null,{"$error":"#N/A"},{"$error":"#N/A"},"Ascenseur"]
[null,null,null,null,null,null,null,null,null,null,null,null,null,null,null,null,null,null,null,null,null,null,null,null,{"$error":"#N/A"},{"$error":"#N/A"},"Ascenseur"]
[null,null,null,null,null,null,null,null,null,null,null,null,null,null,null,null,null,null,null,null,null,null,null,null,{"$error":"#N/A"},{"$error":"#N/A"},"Ascenseur"]
[null,null,null,null,null,null,null,null,null,null,null,null,null,null,null,null,null,null,null,null,null,null,null,null,0,0,"Hall d'entrée"]
[null,null,null,null,null,null,null,null,null,null,null,null,null,null,null,null,null,null,null,null,null,null,null,null,"Nettoyer la cuvette extérieur",0,"Hall d'entrée"]
[null,null,null,null,null,null,null,null,null,null,null,null,null,null,null,null,null,null,null,null,null,null,null,null,0,0,"Hall d'entrée"]
[null,null,null,null,null,null,null,null,null,null,null,null,null,null,null,null,null,null,null,null,null,null,null,null,"Nettoyer le micro-ondes",0,"Hall d'entrée"]
[null,null,null,null,null,null,null,null,null,null,null,null,null,null,null,null,null,null,null,null,null,null,null,null,{"$error":"#N/A"},{"$error":"#N/A"},"Bureau simple"]
[null,null,null,null,null,null,null,null,null,null,null,null,null,null,null,null,null,null,null,null,null,null,null,null,{"$error":"#N/A"},{"$error":"#N/A"},"Bureau simple"]
[null,null,null,null,null,null,null,null,null,null,null,null,null,null,null,null,null,null,null,null,null,null,null,null,{"$error":"#N/A"},{"$error":"#N/A"},"Bureau simple"]
[null,null,null,null,null,null,null,null,null,null,null,null,null,null,null,null,null,null,null,null,null,null,null,null,{"$error":"#N/A"},{"$error":"#N/A"},"Open Space"]
[null,null,null,null,null,null,null,null,null,null,null,null,null,null,null,null,null,null,null,null,null,null,null,null,{"$error":"#N/A"},{"$error":"#N/A"},"Open Space"]
[null,null,null,null,null,null,null,null,null,null,null,null,null,null,null,null,null,null,null,null,null,null,null,null,{"$error":"#N/A"},{"$error":"#N/A"},"Open Space"]
[null,null,null,null,null,null,null,null,null,null,null,null,null,null,null,null,null,null,null,null,null,null,null,null,{"$error":"#N/A"},{"$error":"#N/A"},"Local sanitaire"]
[null,null,null,null,null,null,null,null,null,null,null,null,null,null,null,null,null,null,null,null,null,null,null,null,{"$error":"#N/A"},{"$error":"#N/A"},"Local sanitaire"]
[null,null,null,null,null,null,null,null,null,null,null,null,null,null,null,null,null,null,null,null,null,null,null,null,{"$error":"#N/A"},{"$error":"#N/A"},"Local sanitaire"]
[null,null,null,null,null,null,null,null,null,null,null,null,null,null,null,null,null,null,null,null,null,null,null,null,{"$error":"#N/A"},{"$error":"#N/A"},"Local sanitaire"]
[null,null,null,null,null,null,null,null,null,null,null,null,null,null,null,null,null,null,null,null,null,null,null,null,{"$error":"#N/A"},{"$error":"#N/A"},"Douche"]
[null,null,null,null,null,null,null,null,null,null,null,null,null,null,null,null,null,null,null,null,null,null,null,null,{"$error":"#N/A"},{"$error":"#N/A"},"Douche"]
[null,null,null,null,null,null,null,null,null,null,null,null,null,null,null,null,null,null,null,null,null,null,null,null,{"$error":"#N/A"},{"$error":"#N/A"},"Douche"]
[null,null,null,null,null,null,null,null,null,null,null,null,null,null,null,null,null,null,null,null,null,null,null,null,{"$error":"#N/A"},{"$error":"#N/A"},"Douche"]
[null,null,null,null,null,null,null,null,null,null,null,null,null,null,null,null,null,null,null,null,null,null,null,null,{"$error":"#N/A"},{"$error":"#N/A"},"Vestiaires"]
[null,null,null,null,null,null,null,null,null,null,null,null,null,null,null,null,null,null,null,null,null,null,null,null,{"$error":"#N/A"},{"$error":"#N/A"},"Vestiaires"]
[null,null,null,null,null,null,null,null,null,null,null,null,null,null,null,null,null,null,null,null,null,null,null,null,{"$error":"#N/A"},{"$error":"#N/A"},"Vestiaires"]
[null,null,null,null,null,null,null,null,null,null,null,null,null,null,null,null,null,null,null,null,null,null,null,null,{"$error":"#N/A"},{"$error":"#N/A"},"Vestiaires"]
[null,null,null,null,null,null,null,null,null,null,null,null,null,null,null,null,null,null,null,null,null,null,null,null,{"$error":"#N/A"},{"$error":"#N/A"},"Couloirs"]
[null,null,null,null,null,null,null,null,null,null,null,null,null,null,null,null,null,null,null,null,null,null,null,null,{"$error":"#N/A"},{"$error":"#N/A"},"Couloirs"]
[null,null,null,null,null,null,null,null,null,null,null,null,null,null,null,null,null,null,null,null,null,null,null,null,{"$error":"#N/A"},{"$error":"#N/A"},"Couloirs"]
[null,null,null,null,null,null,null,null,null,null,null,null,null,null,null,null,null,null,null,null,null,null,null,null,{"$error":"#N/A"},{"$error":"#N/A"},"Cuisine"]
[null,null,null,null,null,null,null,null,null,null,null,null,null,null,null,null,null,null,null,null,null,null,null,null,{"$error":"#N/A"},{"$error":"#N/A"},"Cuisine"]
[null,null,null,null,null,null,null,null,null,null,null,null,null,null,null,null,null,null,null,null,null,null,null,null,{"$error":"#N/A"},{"$error":"#N/A"},"Cuisine"]
[null,null,null,null,null,null,null,null,null,null,null,null,null,null,null,null,null,null,null,null,null,null,null,null,{"$error":"#N/A"},{"$error":"#N/A"},"Salle de conférence"]
[null,null,null,null,null,null,null,null,null,null,null,null,null,null,null,null,null,null,null,null,null,null,null,null,{"$error":"#N/A"},{"$error":"#N/A"},"Salle de conférence"]
[null,null,null,null,null,null,null,null,null,null,null,null,null,null,null,null,null,null,null,null,null,null,null,null,{"$error":"#N/A"},{"$error":"#N/A"},"Salle de conférence"]
[null,null,null,null,null,null,null,null,null,null,null,null,null,null,null,null,null,null,null,null,null,null,null,null,{"$error":"#N/A"},{"$error":"#N/A"},"Salle de conférence"]
[null,null,null,null,null,null,null,null,null,null,null,null,null,null,null,null,null,null,null,null,null,null,null,null,{"$error":"#N/A"},{"$error":"#N/A"},"Chambre"]
[null,null,null,null,null,null,null,null,null,null,null,null,null,null,null,null,null,null,null,null,null,null,null,null,{"$error":"#N/A"},{"$error":"#N/A"},"Chambre"]
[null,null,null,null,null,null,null,null,null,null,null,null,null,null,null,null,null,null,null,null,null,null,null,null,{"$error":"#N/A"},{"$error":"#N/A"},"Chambre"]
[null,null,null,null,null,null,null,null,null,null,null,null,null,null,null,null,null,null,null,null,null,null,null,null,{"$error":"#N/A"},{"$error":"#N/A"},"Cafétéria"]
[null,null,null,null,null,null,null,null,null,null,null,null,null,null,null,null,null,null,null,null,null,null,null,null,{"$error":"#N/A"},{"$error":"#N/A"},"Cafétéria"]
[null,null,null,null,null,null,null,null,null,null,null,null,null,null,null,null,null,null,null,null,null,null,null,null,{"$error":"#N/A"},{"$error":"#N/A"},"Cafétéria"]
[null,null,null,null,null,null,null,null,null,null,null,null,null,null,null,null,null,null,null,null,null,null,null,null,{"$error":"#N/A"},{"$error":"#N/A"},"Cafétéria"]
[null,null,null,null,null,null,null,null,null,null,null,null,null,null,null,null,null,null,null,null,null,null,null,null,{"$error":"#N/A"},{"$error":"#N/A"},"Coin à manger"]
[null,null,null,null,null,null,null,null,null,null,null,null,null,null,null,null,null,null,null,null,null,null,null,null,{"$error":"#N/A"},{"$error":"#N/A"},"Coin à manger"]
[null,null,null,null,null,null,null,null,null,null,null,null,null,null,null,null,null,null,null,null,null,null,null,null,{"$error":"#N/A"},{"$error":"#N/A"},"Coin à manger"]
[null,null,null,null,null,null,null,null,null,null,null,null,null,null,null,null,null,null,null,null,null,null,null,null,{"$error":"#N/A"},{"$error":"#N/A"},"Coin à manger"]
[null,null,null,null,null,null,null,null,null,null,null,null,null,null,null,null,null,null,null,null,null,null,null,null,{"$error":"#N/A"},{"$error":"#N/A"},"Buanderie"]
[null,null,null,null,null,null,null,null,null,null,null,null,null,null,null,null,null,null,null,null,null,null,null,null,{"$error":"#N/A"},{"$error":"#N/A"},"Buanderie"]
[null,null,null,null,null,null,null,null,null,null,null,null,null,null,null,null,null,null,null,null,null,null,null,null,{"$error":"#N/A"},{"$error":"#N/A"},"Buanderie"]
[null,null,null,null,null,null,null,null,null,null,null,null,null,null,null,null,null,null,null,null,null,null,null,null,{"$error":"#N/A"},{"$error":"#N/A"},"Buanderie"]
[null,null,null,null,null,null,null,null,null,null,null,null,null,null,null,null,null,null,null,null,null,null,null,null,{"$error":"#N/A"},{"$error":"#N/A"},"Salon"]
[null,null,null,null,null,null,null,null,null,null,null,null,null,null,null,null,null,null,null,null,null,null,null,null,{"$error":"#N/A"},{"$error":"#N/A"},"Salon"]
[null,null,null,null,null,null,null,null,null,null,null,null,null,null,null,null,null,null,null,null,null,null,null,null,{"$error":"#N/A"},{"$error":"#N/A"},"Salon"]
[null,null,null,null,null,null,null,null,null,null,null,null,null,null,null,null,null,null,null,null,null,null,null,null,{"$error":"#N/A"},{"$error":"#N/A"},"Ateliers"]
[null,null,null,null,null,null,null,null,null,null,null,null,null,null,null,null,null,null,null,null,null,null,null,null,{"$error":"#N/A"},{"$error":"#N/A"},"Ateliers"]
[null,null,null,null,null,null,null,null,null,null,null,null,null,null,null,null,null,null,null,null,null,null,null,null,{"$error":"#N/A"},{"$error":"#N/A"},"Ateliers"]
[null,null,null,null,null,null,null,null,null,null,null,null,null,null,null,null,null,null,null,null,null,null,null,null,{"$error":"#N/A"},{"$error":"#N/A"},"Cage d'escaliers"]
[null,null,null,null,null,null,null,null,null,null,null,null,null,null,null,null,null,null,null,null,null,null,null,null,{"$error":"#N/A"},{"$error":"#N/A"},"Cage d'escaliers"]
[null,null,null,null,null,null,null,null,null,null,null,null,null,null,null,null,null,null,null,null,null,null,null,null,{"$error":"#N/A"},{"$error":"#N/A"},"Cage d'escaliers"]
[null,null,null,null,null,null,null,null,null,null,null,null,null,null,null,null,null,null,null,null,null,null,null,null,{"$error":"#N/A"},{"$error":"#N/A"},"Cage d'escaliers"]
[null,null,null,null,null,null,null,null,null,null,null,null,null,null,null,null,null,null,null,null,null,null,null,null,{"$error":"#N/A"},{"$error":"#N/A"},"Ascenseur"]
[null,null,null,null,null,null,null,null,null,null,null,null,null,null,null,null,null,null,null,null,null,null,null,null,{"$error":"#N/A"},{"$error":"#N/A"},"Ascenseur"]
[null,null,null,null,null,null,null,null,null,null,null,null,null,null,null,null,null,null,null,null,null,null,null,null,{"$error":"#N/A"},{"$error":"#N/A"},"Ascenseur"]
[null,null,null,null,null,null,null,null,null,null,null,null,null,null,null,null,null,null,null,null,null,null,null,null,"Vider les poubelles à déchets",0,"Hall d'entrée"]
[null,null,null,null,null,null,null,null,null,null,null,null,null,null,null,null,null,null,null,null,null,null,null,null,0,0,"Hall d'entrée"]
[null,null,null,null,null,null,null,null,null,null,null,null,null,null,null,null,null,null,null,null,null,null,null,null,"Nettoyer la vasque",0,"Hall d'entrée"]
[null,null,null,null,null,null,null,null,null,null,null,null,null,null,null,null,null,null,null,null,null,null,null,null,"Nettoyer les couloirs",0,"Hall d'entrée"]
[null,null,null,null,null,null,null,null,null,null,null,null,null,null,null,null,null,null,null,null,null,null,null,null,{"$error":"#N/A"},{"$error":"#N/A"},"Bureau simple"]
[null,null,null,null,null,null,null,null,null,null,null,null,null,null,null,null,null,null,null,null,null,null,null,null,{"$error":"#N/A"},{"$error":"#N/A"},"Bureau simple"]
[null,null,null,null,null,null,null,null,null,null,null,null,null,null,null,null,null,null,null,null,null,null,null,null,{"$error":"#N/A"},{"$error":"#N/A"},"Bureau simple"]
[null,null,null,null,null,null,null,null,null,null,null,null,null,null,null,null,null,null,null,null,null,null,null,null,{"$error":"#N/A"},{"$error":"#N/A"},"Bureau simple"]
[null,null,null,null,null,null,null,null,null,null,null,null,null,null,null,null,null,null,null,null,null,null,null,null,{"$error":"#N/A"},{"$error":"#N/A"},"Open Space"]
[null,null,null,null,null,null,null,null,null,null,null,null,null,null,null,null,null,null,null,null,null,null,null,null,{"$error":"#N/A"},{"$error":"#N/A"},"Open Space"]
[null,null,null,null,null,null,null,null,null,null,null,null,null,null,null,null,null,null,null,null,null,null,null,null,{"$error":"#N/A"},{"$error":"#N/A"},"Open Space"]
[null,null,null,null,null,null,null,null,null,null,null,null,null,null,null,null,null,null,null,null,null,null,null,null,{"$error":"#N/A"},{"$error":"#N/A"},"Local sanitaire"]
[null,null,null,null,null,null,null,null,null,null,null,null,null,null,null,null,null,null,null,null,null,null,null,null,{"$error":"#N/A"},{"$error":"#N/A"},"Local sanitaire"]
[null,null,null,null,null,null,null,null,null,null,null,null,null,null,null,null,null,null,null,null,null,null,null,null,{"$error":"#N/A"},{"$error":"#N/A"},"Local sanitaire"]
[null,null,null,null,null,null,null,null,null,null,null,null,null,null,null,null,null,null,null,null,null,null,null,null,{"$error":"#N/A"},{"$error":"#N/A"},"Local sanitaire"]
[null,null,null,null,null,null,null,null,null,null,null,null,null,null,null,null,null,null,null,null,null,null,null,null,{"$error":"#N/A"},{"$error":"#N/A"},"Douche"]
[null,null,null,null,null,null,null,null,null,null,null,null,null,null,null,null,null,null,null,null,null,null,null,null,{"$error":"#N/A"},{"$error":"#N/A"},"Douche"]
[null,null,null,null,null,null,null,null,null,null,null,null,null,null,null,null,null,null,null,null,null,null,null,null,{"$error":"#N/A"},{"$error":"#N/A"},"Douche"]
[null,null,null,null,null,null,null,null,null,null,null,null,null,null,null,null,null,null,null,null,null,null,null,null,{"$error":"#N/A"},{"$error":"#N/A"},"Vestiaires"]
[null,null,null,null,null,null,null,null,null,null,null,null,null,null,null,null,null,null,null,null,null,null,null,null,{"$error":"#N/A"},{"$error":"#N/A"},"Vestiaires"]
[null,null,null,null,null,null,null,null,null,null,null,null,null,null,null,null,null,null,null,null,null,null,null,null,{"$error":"#N/A"},{"$error":"#N/A"},"Vestiaires"]
[null,null,null,null,null,null,null,null,null,null,null,null,null,null,null,null,null,null,null,null,null,null,null,null,{"$error":"#N/A"},{"$error":"#N/A"},"Vestiaires"]
[null,null,null,null,null,null,null,null,null,null,null,null,null,null,null,null,null,null,null,null,null,null,null,null,{"$error":"#N/A"},{"$error":"#N/A"},"Couloirs"]
[null,null,null,null,null,null,null,null,null,null,null,null,null,null,null,null,null,null,null,null,null,null,null,null,{"$error":"#N/A"},{"$error":"#N/A"},"Couloirs"]
[null,null,null,null,null,null,null,null,null,null,null,null,null,null,null,null,null,null,null,null,null,null,null,null,{"$error":"#N/A"},{"$error":"#N/A"},"Couloirs"]
[null,null,null,null,null,null,null,null,null,null,null,null,null,null,null,null,null,null,null,null,null,null,null,null,{"$error":"#N/A"},{"$error":"#N/A"},"Couloirs"]
[null,null,null,null,null,null,null,null,null,null,null,null,null,null,null,null,null,null,null,null,null,null,null,null,{"$error":"#N/A"},{"$error":"#N/A"},"Cuisine"]
[null,null,null,null,null,null,null,null,null,null,null,null,null,null,null,null,null,null,null,null,null,null,null,null,{"$error":"#N/A"},{"$error":"#N/A"},"Cuisine"]
[null,null,null,null,null,null,null,null,null,null,null,null,null,null,null,null,null,null,null,null,null,null,null,null,{"$error":"#N/A"},{"$error":"#N/A"},"Cuisine"]
[null,null,null,null,null,null,null,null,null,null,null,null,null,null,null,null,null,null,null,null,null,null,null,null,{"$error":"#N/A"},{"$error":"#N/A"},"Cuisine"]
[null,null,null,null,null,null,null,null,null,null,null,null,null,null,null,null,null,null,null,null,null,null,null,null,{"$error":"#N/A"},{"$error":"#N/A"},"Salle de conférence"]
[null,null,null,null,null,null,null,null,null,null,null,null,null,null,null,null,null,null,null,null,null,null,null,null,{"$error":"#N/A"},{"$error":"#N/A"},"Salle de conférence"]
[null,null,null,null,null,null,null,null,null,null,null,null,null,null,null,null,null,null,null,null,null,null,null,null,{"$error":"#N/A"},{"$error":"#N/A"},"Salle de conférence"]
[null,null,null,null,null,null,null,null,null,null,null,null,null,null,null,null,null,null,null,null,null,null,null,null,{"$error":"#N/A"},{"$error":"#N/A"},"Chambre"]
[null,null,null,null,null,null,null,null,null,null,null,null,null,null,null,null,null,null,null,null,null,null,null,null,{"$error":"#N/A"},{"$error":"#N/A"},"Chambre"]
[null,null,null,null,null,null,null,null,null,null,null,null,null,null,null,null,null,null,null,null,null,null,null,null,{"$error":"#N/A"},{"$error":"#N/A"},"Chambre"]
[null,null,null,null,null,null,null,null,null,null,null,null,null,null,null,null,null,null,null,null,null,null,null,null,{"$error":"#N/A"},{"$error":"#N/A"},"Cafétéria"]
[null,null,null,null,null,null,null,null,null,null,null,null,null,null,null,null,null,null,null,null,null,null,null,null,{"$error":"#N/A"},{"$error":"#N/A"},"Cafétéria"]
[null,null,null,null,null,null,null,null,null,null,null,null,null,null,null,null,null,null,null,null,null,null,null,null,{"$error":"#N/A"},{"$error":"#N/A"},"Cafétéria"]
[null,null,null,null,null,null,null,null,null,null,null,null,null,null,null,null,null,null,null,null,null,null,null,null,{"$error":"#N/A"},{"$error":"#N/A"},"Cafétéria"]
[null,null,null,null,null,null,null,null,null,null,null,null,null,null,null,null,null,null,null,null,null,null,null,null,{"$error":"#N/A"},{"$error":"#N/A"},"Coin à manger"]
[null,null,null,null,null,null,null,null,null,null,null,null,null,null,null,null,null,null,null,null,null,null,null,null,{"$error":"#N/A"},{"$error":"#N/A"},"Coin à manger"]
[null,null,null,null,null,null,null,null,null,null,null,null,null,null,null,null,null,null,null,null,null,null,null,null,{"$error":"#N/A"},{"$error":"#N/A"},"Coin à manger"]
[null,null,null,null,null,null,null,null,null,null,null,null,null,null,null,null,null,null,null,null,null,null,null,null,{"$error":"#N/A"},{"$error":"#N/A"},"Buanderie"]
[null,null,null,null,null,null,null,null,null,null,null,null,null,null,null,null,null,null,null,null,null,null,null,null,{"$error":"#N/A"},{"$error":"#N/A"},"Buanderie"]
[null,null,null,null,null,null,null,null,null,null,null,null,null,null,null,null,null,null,null,null,null,null,null,null,{"$error":"#N/A"},{"$error":"#N/A"},"Buanderie"]
[null,null,null,null,null,null,null,null,null,null,null,null,null,null,null,null,null,null,null,null,null,null,null,null,{"$error":"#N/A"},{"$error":"#N/A"},"Salon"]
[null,null,null,null,null,null,null,null,null,null,null,null,null,null,null,null,null,null,null,null,null,null,null,null,{"$error":"#N/A"},{"$error":"#N/A"},"Salon"]
[null,null,null,null,null,null,null,null,null,null,null,null,null,null,null,null,null,null,null,null,null,null,null,null,{"$error":"#N/A"},{"$error":"#N/A"},"Salon"]
[null,null,null,null,null,null,null,null,null,null,null,null,null,null,null,null,null,null,null,null,null,null,null,null,{"$error":"#N/A"},{"$error":"#N/A"},"Salon"]
[null,null,null,null,null,null,null,null,null,null,null,null,null,null,null,null,null,null,null,null,null,null,null,null,{"$error":"#N/A"},{"$error":"#N/A"},"Salon"]
[null,null,null,null,null,null,null,null,null,null,null,null,null,null,null,null,null,null,null,null,null,null,null,null,{"$error":"#N/A"},{"$error":"#N/A"},"Ateliers"]
[null,null,null,null,null,null,null,null,null,null,null,null,null,null,null,null,null,null,null,null,null,null,null,null,{"$error":"#N/A"},{"$error":"#N/A"},"Ateliers"]
[null,null,null,null,null,null,null,null,null,null,null,null,null,null,null,null,null,null,null,null,null,null,null,null,{"$error":"#N/A"},{"$error":"#N/A"},"Ateliers"]
[null,null,null,null,null,null,null,null,null,null,null,null,null,null,null,null,null,null,null,null,null,null,null,null,{"$error":"#N/A"},{"$error":"#N/A"},"Cage d'escaliers"]
[null,null,null,null,null,null,null,null,null,null,null,null,null,null,null,null,null,null,null,null,null,null,null,null,{"$error":"#N/A"},{"$error":"#N/A"},"Cage d'escaliers"]
[null,null,null,null,null,null,null,null,null,null,null,null,null,null,null,null,null,null,null,null,null,null,null,null,{"$error":"#N/A"},{"$error":"#N/A"},"Cage d'escaliers"]
[null,null,null,null,null,null,null,null,null,null,null,null,null,null,null,null,null,null,null,null,null,null,null,null,{"$error":"#N/A"},{"$error":"#N/A"},"Cage d'escaliers"]
[null,null,null,null,null,null,null,null,null,null,null,null,null,null,null,null,null,null,null,null,null,null,null,null,{"$error":"#N/A"},{"$error":"#N/A"},"Ascenseur"]
[null,null,null,null,null,null,null,null,null,null,null,null,null,null,null,null,null,null,null,null,null,null,null,null,{"$error":"#N/A"},{"$error":"#N/A"},"Ascenseur"]
[null,null,null,null,null,null,null,null,null,null,null,null,null,null,null,null,null,null,null,null,null,null,null,null,{"$error":"#N/A"},{"$error":"#N/A"},"Ascenseur"]
[null,null,null,null,null,null,null,null,null,null,null,null,null,null,null,null,null,null,null,null,null,null,null,null,"Détachage du tapis",0,"Hall d'entrée"]
[null,null,null,null,null,null,null,null,null,null,null,null,null,null,null,null,null,null,null,null,null,null,null,null,0,0,"Hall d'entrée"]
[null,null,null,null,null,null,null,null,null,null,null,null,null,null,null,null,null,null,null,null,null,null,null,null,"Nettoyer le rebord extérieur",0,"Hall d'entrée"]
[null,null,null,null,null,null,null,null,null,null,null,null,null,null,null,null,null,null,null,null,null,null,null,null,{"$error":"#N/A"},{"$error":"#N/A"},"Bureau simple"]
[null,null,null,null,null,null,null,null,null,null,null,null,null,null,null,null,null,null,null,null,null,null,null,null,{"$error":"#N/A"},{"$error":"#N/A"},"Bureau simple"]
[null,null,null,null,null,null,null,null,null,null,null,null,null,null,null,null,null,null,null,null,null,null,null,null,{"$error":"#N/A"},{"$error":"#N/A"},"Bureau simple"]
[null,null,null,null,null,null,null,null,null,null,null,null,null,null,null,null,null,null,null,null,null,null,null,null,{"$error":"#N/A"},{"$error":"#N/A"},"Bureau simple"]
[null,null,null,null,null,null,null,null,null,null,null,null,null,null,null,null,null,null,null,null,null,null,null,null,{"$error":"#N/A"},{"$error":"#N/A"},"Open Space"]
[null,null,null,null,null,null,null,null,null,null,null,null,null,null,null,null,null,null,null,null,null,null,null,null,{"$error":"#N/A"},{"$error":"#N/A"},"Open Space"]
[null,null,null,null,null,null,null,null,null,null,null,null,null,null,null,null,null,null,null,null,null,null,null,null,{"$error":"#N/A"},{"$error":"#N/A"},"Open Space"]
[null,null,null,null,null,null,null,null,null,null,null,null,null,null,null,null,null,null,null,null,null,null,null,null,{"$error":"#N/A"},{"$error":"#N/A"},"Open Space"]
[null,null,null,null,null,null,null,null,null,null,null,null,null,null,null,null,null,null,null,null,null,null,null,null,{"$error":"#N/A"},{"$error":"#N/A"},"Local sanitaire"]
[null,null,null,null,null,null,null,null,null,null,null,null,null,null,null,null,null,null,null,null,null,null,null,null,{"$error":"#N/A"},{"$error":"#N/A"},"Local sanitaire"]
[null,null,null,null,null,null,null,null,null,null,null,null,null,null,null,null,null,null,null,null,null,null,null,null,{"$error":"#N/A"},{"$error":"#N/A"},"Local sanitaire"]
[null,null,null,null,null,null,null,null,null,null,null,null,null,null,null,null,null,null,null,null,null,null,null,null,{"$error":"#N/A"},{"$error":"#N/A"},"Local sanitaire"]
[null,null,null,null,null,null,null,null,null,null,null,null,null,null,null,null,null,null,null,null,null,null,null,null,{"$error":"#N/A"},{"$error":"#N/A"},"Douche"]
[null,null,null,null,null,null,null,null,null,null,null,null,null,null,null,null,null,null,null,null,null,null,null,null,{"$error":"#N/A"},{"$error":"#N/A"},"Douche"]
[null,null,null,null,null,null,null,null,null,null,null,null,null,null,null,null,null,null,null,null,null,null,null,null,{"$error":"#N/A"},{"$error":"#N/A"},"Douche"]
[null,null,null,null,null,null,null,null,null,null,null,null,null,null,null,null,null,null,null,null,null,null,null,null,{"$error":"#N/A"},{"$error":"#N/A"},"Vestiaires"]
[null,null,null,null,null,null,null,null,null,null,null,null,null,null,null,null,null,null,null,null,null,null,null,null,{"$error":"#N/A"},{"$error":"#N/A"},"Vestiaires"]
[null,null,null,null,null,null,null,null,null,null,null,null,null,null,null,null,null,null,null,null,null,null,null,null,{"$error":"#N/A"},{"$error":"#N/A"},"Vestiaires"]
[null,null,null,null,null,null,null,null,null,null,null,null,null,null,null,null,null,null,null,null,null,null,null,null,{"$error":"#N/A"},{"$error":"#N/A"},"Couloirs"]
[null,null,null,null,null,null,null,null,null,null,null,null,null,null,null,null,null,null,null,null,null,null,null,null,{"$error":"#N/A"},{"$error":"#N/A"},"Couloirs"]
[null,null,null,null,null,null,null,null,null,null,null,null,null,null,null,null,null,null,null,null,null,null,null,null,{"$error":"#N/A"},{"$error":"#N/A"},"Couloirs"]
[null,null,null,null,null,null,null,null,null,null,null,null,null,null,null,null,null,null,null,null,null,null,null,null,{"$error":"#N/A"},{"$error":"#N/A"},"Couloirs"]
[null,null,null,null,null,null,null,null,null,null,null,null,null,null,null,null,null,null,null,null,null,null,null,null,{"$error":"#N/A"},{"$error":"#N/A"},"Cuisine"]
[null,null,null,null,null,null,null,null,null,null,null,null,null,null,null,null,null,null,null,null,null,null,null,null,{"$error":"#N/A"},{"$error":"#N/A"},"Cuisine"]
[null,null,null,null,null,null,null,null,null,null,null,null,null,null,null,null,null,null,null,null,null,null,null,null,{"$error":"#N/A"},{"$error":"#N/A"},"Cuisine"]
[null,null,null,null,null,null,null,null,null,null,null,null,null,null,null,null,null,null,null,null,null,null,null,null,{"$error":"#N/A"},{"$error":"#N/A"},"Salle de conférence"]
[null,null,null,null,null,null,null,null,null,null,null,null,null,null,null,null,null,null,null,null,null,null,null,null,{"$error":"#N/A"},{"$error":"#N/A"},"Salle de conférence"]
[null,null,null,null,null,null,null,null,null,null,null,null,null,null,null,null,null,null,null,null,null,null,null,null,{"$error":"#N/A"},{"$error":"#N/A"},"Salle de conférence"]
[null,null,null,null,null,null,null,null,null,null,null,null,null,null,null,null,null,null,null,null,null,null,null,null,{"$error":"#N/A"},{"$error":"#N/A"},"Salle de conférence"]
[null,null,null,null,null,null,null,null,null,null,null,null,null,null,null,null,null,null,null,null,null,null,null,null,{"$error":"#N/A"},{"$error":"#N/A"},""]
[null,null,null,null,null,null,null,null,null,null,null,null,null,null,null,null,null,null,null,null,null,null,null,null,{"$error":"#N/A"},{"$error":"#N/A"},"Chambre"]
[null,null,null,null,null,null,null,null,null,null,null,null,null,null,null,null,null,null,null,null,null,null,null,null,{"$error":"#N/A"},{"$error":"#N/A"},"Chambre"]
[null,null,null,null,null,null,null,null,null,null,null,null,null,null,null,null,null,null,null,null,null,null,null,null,{"$error":"#N/A"},{"$error":"#N/A"},"Chambre"]
[null,null,null,null,null,null,null,null,null,null,null,null,null,null,null,null,null,null,null,null,null,null,null,null,{"$error":"#N/A"},{"$error":"#N/A"},"Cafétéria"]
[null,null,null,null,null,null,null,null,null,null,null,null,null,null,null,null,null,null,null,null,null,null,null,null,{"$error":"#N/A"},{"$error":"#N/A"},"Cafétéria"]
[null,null,null,null,null,null,null,null,null,null,null,null,null,null,null,null,null,null,null,null,null,null,null,null,{"$error":"#N/A"},{"$error":"#N/A"},"Cafétéria"]
[null,null,null,null,null,null,null,null,null,null,null,null,null,null,null,null,null,null,null,null,null,null,null,null,{"$error":"#N/A"},{"$error":"#N/A"},"Coin à manger"]
[null,null,null,null,null,null,null,null,null,null,null,null,null,null,null,null,null,null,null,null,null,null,null,null,{"$error":"#N/A"},{"$error":"#N/A"},"Coin à manger"]
[null,null,null,null,null,null,null,null,null,null,null,null,null,null,null,null,null,null,null,null,null,null,null,null,{"$error":"#N/A"},{"$error":"#N/A"},"Coin à manger"]
[null,null,null,null,null,null,null,null,null,null,null,null,null,null,null,null,null,null,null,null,null,null,null,null,{"$error":"#N/A"},{"$error":"#N/A"},""]
[null,null,null,null,null,null,null,null,null,null,null,null,null,null,null,null,null,null,null,null,null,null,null,null,{"$error":"#N/A"},{"$error":"#N/A"},"Buanderie"]
[null,null,null,null,null,null,null,null,null,null,null,null,null,null,null,null,null,null,null,null,null,null,null,null,{"$error":"#N/A"},{"$error":"#N/A"},"Buanderie"]
[null,null,null,null,null,null,null,null,null,null,null,null,null,null,null,null,null,null,null,null,null,null,null,null,{"$error":"#N/A"},{"$error":"#N/A"},"Buanderie"]
[null,null,null,null,null,null,null,null,null,null,null,null,null,null,null,null,null,null,null,null,null,null,null,null,{"$error":"#N/A"},{"$error":"#N/A"},"Salon"]
[null,null,null,null,null,null,null,null,null,null,null,null,null,null,null,null,null,null,null,null,null,null,null,null,{"$error":"#N/A"},{"$error":"#N/A"},"Salon"]
[null,null,null,null,null,null,null,null,null,null,null,null,null,null,null,null,null,null,null,null,null,null,null,null,{"$error":"#N/A"},{"$error":"#N/A"},"Salon"]
[null,null,null,null,null,null,null,null,null,null,null,null,null,null,null,null,null,null,null,null,null,null,null,null,{"$error":"#N/A"},{"$error":"#N/A"},"Salon"]
[null,null,null,null,null,null,null,null,null,null,null,null,null,null,null,null,null,null,null,null,null,null,null,null,{"$error":"#N/A"},{"$error":"#N/A"},"Ateliers"]
[null,null,null,null,null,null,null,null,null,null,null,null,null,null,null,null,null,null,null,null,null,null,null,null,{"$error":"#N/A"},{"$error":"#N/A"},"Ateliers"]
[null,null,null,null,null,null,null,null,null,null,null,null,null,null,null,null,null,null,null,null,null,null,null,null,{"$error":"#N/A"},{"$error":"#N/A"},"Ateliers"]
[null,null,null,null,null,null,null,null,null,null,null,null,null,null,null,null,null,null,null,null,null,null,null,null,{"$error":"#N/A"},{"$error":"#N/A"},"Ateliers"]
[null,null,null,null,null,null,null,null,null,null,null,null,null,null,null,null,null,null,null,null,null,null,null,null,{"$error":"#N/A"},{"$error":"#N/A"},"Cage d'escaliers"]
[null,null,null,null,null,null,null,null,null,null,null,null,null,null,null,null,null,null,null,null,null,null,null,null,{"$error":"#N/A"},{"$error":"#N/A"},"Cage d'escaliers"]
[null,null,null,null,null,null,null,null,null,null,null,null,null,null,null,null,null,null,null,null,null,null,null,null,{"$error":"#N/A"},{"$error":"#N/A"},"Cage d'escaliers"]
[null,null,null,null,null,null,null,null,null,null,null,null,null,null,null,null,null,null,null,null,null,null,null,null,{"$error":"#N/A"},{"$error":"#N/A"},"Cage d'escaliers"]
[null,null,null,null,null,null,null,null,null,null,null,null,null,null,null,null,null,null,null,null,null,null,null,null,{"$error":"#N/A"},{"$error":"#N/A"},"Ascenseur"]
[null,null,null,null,null,null,null,null,null,null,null,null,null,null,null,null,null,null,null,null,null,null,null,null,{"$error":"#N/A"},{"$error":"#N/A"},"Ascenseur"]
[null,null,null,null,null,null,null,null,null,null,null,null,null,null,null,null,null,null,null,null,null,null,null,null,{"$error":"#N/A"},{"$error":"#N/A"},"Ascenseur"]
[null,null,null,null,null,null,null,null,null,null,null,null,null,null,null,null,null,null,null,null,null,null,null,null,"Nettoyer le bureau",0,"Hall d'entrée"]
[null,null,null,null,null,null,null,null,null,null,null,null,null,null,null,null,null,null,null,null,null,null,null,null,"Nettoyer la lunette des WC",0,"Hall d'entrée"]
[null,null,null,null,null,null,null,null,null,null,null,null,null,null,null,null,null,null,null,null,null,null,null,null,"Dépoussiérer les étagères",0,"Hall d'entrée"]
[null,null,null,null,null,null,null,null,null,null,null,null,null,null,null,null,null,null,null,null,null,null,null,null,{"$error":"#N/A"},{"$error":"#N/A"},"Bureau simple"]
[null,null,null,null,null,null,null,null,null,null,null,null,null,null,null,null,null,null,null,null,null,null,null,null,{"$error":"#N/A"},{"$error":"#N/A"},"Bureau simple"]
[null,null,null,null,null,null,null,null,null,null,null,null,null,null,null,null,null,null,null,null,null,null,null,null,{"$error":"#N/A"},{"$error":"#N/A"},"Bureau simple"]
[null,null,null,null,null,null,null,null,null,null,null,null,null,null,null,null,null,null,null,null,null,null,null,null,{"$error":"#N/A"},{"$error":"#N/A"},"Bureau simple"]
[null,null,null,null,null,null,null,null,null,null,null,null,null,null,null,null,null,null,null,null,null,null,null,null,{"$error":"#N/A"},{"$error":"#N/A"},"Open Space"]
[null,null,null,null,null,null,null,null,null,null,null,null,null,null,null,null,null,null,null,null,null,null,null,null,{"$error":"#N/A"},{"$error":"#N/A"},"Open Space"]
[null,null,null,null,null,null,null,null,null,null,null,null,null,null,null,null,null,null,null,null,null,null,null,null,{"$error":"#N/A"},{"$error":"#N/A"},"Open Space"]
[null,null,null,null,null,null,null,null,null,null,null,null,null,null,null,null,null,null,null,null,null,null,null,null,{"$error":"#N/A"},{"$error":"#N/A"},"Local sanitaire"]
[null,null,null,null,null,null,null,null,null,null,null,null,null,null,null,null,null,null,null,null,null,null,null,null,{"$error":"#N/A"},{"$error":"#N/A"},"Local sanitaire"]
[null,null,null,null,null,null,null,null,null,null,null,null,null,null,null,null,null,null,null,null,null,null,null,null,{"$error":"#N/A"},{"$error":"#N/A"},"Local sanitaire"]
[null,null,null,null,null,null,null,null,null,null,null,null,null,null,null,null,null,null,null,null,null,null,null,null,{"$error":"#N/A"},{"$error":"#N/A"},"Local sanitaire"]
[null,null,null,null,null,null,null,null,null,null,null,null,null,null,null,null,null,null,null,null,null,null,null,null,{"$error":"#N/A"},{"$error":"#N/A"},"Douche"]
[null,null,null,null,null,null,null,null,null,null,null,null,null,null,null,null,null,null,null,null,null,null,null,null,{"$error":"#N/A"},{"$error":"#N/A"},"Douche"]
[null,null,null,null,null,null,null,null,null,null,null,null,null,null,null,null,null,null,null,null,null,null,null,null,{"$error":"#N/A"},{"$error":"#N/A"},"Douche"]
[null,null,null,null,null,null,null,null,null,null,null,null,null,null,null,null,null,null,null,null,null,null,null,null,{"$error":"#N/A"},{"$error":"#N/A"},"Douche"]
[null,null,null,null,null,null,null,null,null,null,null,null,null,null,null,null,null,null,null,null,null,null,null,null,{"$error":"#N/A"},{"$error":"#N/A"},"Vestiaires"]
[null,null,null,null,null,null,null,null,null,null,null,null,null,null,null,null,null,null,null,null,null,null,null,null,{"$error":"#N/A"},{"$error":"#N/A"},"Vestiaires"]
[null,null,null,null,null,null,null,null,null,null,null,null,null,null,null,null,null,null,null,null,null,null,null,null,{"$error":"#N/A"},{"$error":"#N/A"},"Vestiaires"]
[null,null,null,null,null,null,null,null,null,null,null,null,null,null,null,null,null,null,null,null,null,null,null,null,{"$error":"#N/A"},{"$error":"#N/A"},"Couloirs"]
[null,null,null,null,null,null,null,null,null,null,null,null,null,null,null,null,null,null,null,null,null,null,null,null,{"$error":"#N/A"},{"$error":"#N/A"},"Couloirs"]
[null,null,null,null,null,null,null,null,null,null,null,null,null,null,null,null,null,null,null,null,null,null,null,null,{"$error":"#N/A"},{"$error":"#N/A"},"Couloirs"]
[null,null,null,null,null,null,null,null,null,null,null,null,null,null,null,null,null,null,null,null,null,null,null,null,{"$error":"#N/A"},{"$error":"#N/A"},"Couloirs"]
[null,null,null,null,null,null,null,null,null,null,null,null,null,null,null,null,null,null,null,null,null,null,null,null,{"$error":"#N/A"},{"$error":"#N/A"},"Cuisine"]
[null,null,null,null,null,null,null,null,null,null,null,null,null,null,null,null,null,null,null,null,null,null,null,null,{"$error":"#N/A"},{"$error":"#N/A"},"Cuisine"]
[null,null,null,null,null,null,null,null,null,null,null,null,null,null,null,null,null,null,null,null,null,null,null,null,{"$error":"#N/A"},{"$error":"#N/A"},"Cuisine"]
[null,null,null,null,null,null,null,null,null,null,null,null,null,null,null,null,null,null,null,null,null,null,null,null,{"$error":"#N/A"},{"$error":"#N/A"},"Salle de conférence"]
[null,null,null,null,null,null,null,null,null,null,null,null,null,null,null,null,null,null,null,null,null,null,null,null,{"$error":"#N/A"},{"$error":"#N/A"},"Salle de conférence"]
[null,null,null,null,null,null,null,null,null,null,null,null,null,null,null,null,null,null,null,null,null,null,null,null,{"$error":"#N/A"},{"$error":"#N/A"},"Salle de conférence"]
[null,null,null,null,null,null,null,null,null,null,null,null,null,null,null,null,null,null,null,null,null,null,null,null,{"$error":"#N/A"},{"$error":"#N/A"},"Chambre"]
[null,null,null,null,null,null,null,null,null,null,null,null,null,null,null,null,null,null,null,null,null,null,null,null,{"$error":"#N/A"},{"$error":"#N/A"},"Chambre"]
[null,null,null,null,null,null,null,null,null,null,null,null,null,null,null,null,null,null,null,null,null,null,null,null,{"$error":"#N/A"},{"$error":"#N/A"},"Chambre"]
[null,null,null,null,null,null,null,null,null,null,null,null,null,null,null,null,null,null,null,null,null,null,null,null,{"$error":"#N/A"},{"$error":"#N/A"},"Chambre"]
[null,null,null,null,null,null,null,null,null,null,null,null,null,null,null,null,null,null,null,null,null,null,null,null,{"$error":"#N/A"},{"$error":"#N/A"},"Cafétéria"]
[null,null,null,null,null,null,null,null,null,null,null,null,null,null,null,null,null,null,null,null,null,null,null,null,{"$error":"#N/A"},{"$error":"#N/A"},"Cafétéria"]
[null,null,null,null,null,null,null,null,null,null,null,null,null,null,null,null,null,null,null,null,null,null,null,null,{"$error":"#N/A"},{"$error":"#N/A"},"Cafétéria"]
[null,null,null,null,null,null,null,null,null,null,null,null,null,null,null,null,null,null,null,null,null,null,null,null,{"$error":"#N/A"},{"$error":"#N/A"},"Cafétéria"]
[null,null,null,null,null,null,null,null,null,null,null,null,null,null,null,null,null,null,null,null,null,null,null,null,{"$error":"#N/A"},{"$error":"#N/A"},"Coin à manger"]
[null,null,null,null,null,null,null,null,null,null,null,null,null,null,null,null,null,null,null,null,null,null,null,null,{"$error":"#N/A"},{"$error":"#N/A"},"Coin à manger"]
[null,null,null,null,null,null,null,null,null,null,null,null,null,null,null,null,null,null,null,null,null,null,null,null,{"$error":"#N/A"},{"$error":"#N/A"},"Coin à manger"]
[null,null,null,null,null,null,null,null,null,null,null,null,null,null,null,null,null,null,null,null,null,null,null,null,{"$error":"#N/A"},{"$error":"#N/A"},"Coin à manger"]
[null,null,null,null,null,null,null,null,null,null,null,null,null,null,null,null,null,null,null,null,null,null,null,null,{"$error":"#N/A"},{"$error":"#N/A"},"Buanderie"]
[null,null,null,null,null,null,null,null,null,null,null,null,null,null,null,null,null,null,null,null,null,null,null,null,{"$error":"#N/A"},{"$error":"#N/A"},"Buanderie"]
[null,null,null,null,null,null,null,null,null,null,null,null,null,null,null,null,null,null,null,null,null,null,null,null,{"$error":"#N/A"},{"$error":"#N/A"},"Buanderie"]
[null,null,null,null,null,null,null,null,null,null,null,null,null,null,null,null,null,null,null,null,null,null,null,null,{"$error":"#N/A"},{"$error":"#N/A"},"Salon"]
[null,null,null,null,null,null,null,null,null,null,null,null,null,null,null,null,null,null,null,null,null,null,null,null,{"$error":"#N/A"},{"$error":"#N/A"},"Salon"]
[null,null,null,null,null,null,null,null,null,null,null,null,null,null,null,null,null,null,null,null,null,null,null,null,{"$error":"#N/A"},{"$error":"#N/A"},"Salon"]
[null,null,null,null,null,null,null,null,null,null,null,null,null,null,null,null,null,null,null,null,null,null,null,null,{"$error":"#N/A"},{"$error":"#N/A"},"Ateliers"]
[null,null,null,null,null,null,null,null,null,null,null,null,null,null,null,null,null,null,null,null,null,null,null,null,{"$error":"#N/A"},{"$error":"#N/A"},"Ateliers"]
[null,null,null,null,null,null,null,null,null,null,null,null,null,null,null,null,null,null,null,null,null,null,null,null,{"$error":"#N/A"},{"$error":"#N/A"},"Ateliers"]
[null,null,null,null,null,null,null,null,null,null,null,null,null,null,null,null,null,null,null,null,null,null,null,null,{"$error":"#N/A"},{"$error":"#N/A"},"Ateliers"]
[null,null,null,null,null,null,null,null,null,null,null,null,null,null,null,null,null,null,null,null,null,null,null,null,{"$error":"#N/A"},{"$error":"#N/A"},"Cage d'escaliers"]
[null,null,null,null,null,null,null,null,null,null,null,null,null,null,null,null,null,null,null,null,null,null,null,null,{"$error":"#N/A"},{"$error":"#N/A"},"Cage d'escaliers"]
[null,null,null,null,null,null,null,null,null,null,null,null,null,null,null,null,null,null,null,null,null,null,null,null,{"$error":"#N/A"},{"$error":"#N/A"},"Cage d'escaliers"]
[null,null,null,null,null,null,null,null,null,null,null,null,null,null,null,null,null,null,null,null,null,null,null,null,{"$error":"#N/A"},{"$error":"#N/A"},"Ascenseur"]
[null,null,null,null,null,null,null,null,null,null,null,null,null,null,null,null,null,null,null,null,null,null,null,null,{"$error":"#N/A"},{"$error":"#N/A"},"Ascenseur"]
[null,null,null,null,null,null,null,null,null,null,null,null,null,null,null,null,null,null,null,null,null,null,null,null,{"$error":"#N/A"},{"$error":"#N/A"},"Ascenseur"]
[null,null,null,null,null,null,null,null,null,null,null,null,null,null,null,null,null,null,null,null,null,null,null,null,{"$error":"#N/A"},{"$error":"#N/A"},"Ascenseur"]
[null,null,null,null,null,null,null,null,null,null,null,null,null,null,null,null,null,null,null,null,null,null,null,null,{"$error":"#N/A"},{"$error":"#N/A"},"Ascenseur"]
[null,null,null,null,null,null,null,null,null,null,null,null,null,null,null,null,null,null,null,null,null,null,null,null,"Nettoyer la brosse WC",0,"Hall d'entrée"]
[null,null,null,null,null,null,null,null,null,null,null,null,null,null,null,null,null,null,null,null,null,null,null,null,"Nettoyer le carrelage",0,"Hall d'entrée"]
[null,null,null,null,null,null,null,null,null,null,null,null,null,null,null,null,null,null,null,null,null,null,null,null,"Dépoussiérer les appareils électriques",0,"Hall d'entrée"]
[null,null,null,null,null,null,null,null,null,null,null,null,null,null,null,null,null,null,null,null,null,null,null,null,{"$error":"#N/A"},{"$error":"#N/A"},"Bureau simple"]
[null,null,null,null,null,null,null,null,null,null,null,null,null,null,null,null,null,null,null,null,null,null,null,null,{"$error":"#N/A"},{"$error":"#N/A"},"Bureau simple"]
[null,null,null,null,null,null,null,null,null,null,null,null,null,null,null,null,null,null,null,null,null,null,null,null,{"$error":"#N/A"},{"$error":"#N/A"},"Bureau simple"]
[null,null,null,null,null,null,null,null,null,null,null,null,null,null,null,null,null,null,null,null,null,null,null,null,{"$error":"#N/A"},{"$error":"#N/A"},"Bureau simple"]
[null,null,null,null,null,null,null,null,null,null,null,null,null,null,null,null,null,null,null,null,null,null,null,null,{"$error":"#N/A"},{"$error":"#N/A"},"Open Space"]
[null,null,null,null,null,null,null,null,null,null,null,null,null,null,null,null,null,null,null,null,null,null,null,null,{"$error":"#N/A"},{"$error":"#N/A"},"Open Space"]
[null,null,null,null,null,null,null,null,null,null,null,null,null,null,null,null,null,null,null,null,null,null,null,null,{"$error":"#N/A"},{"$error":"#N/A"},"Open Space"]
[null,null,null,null,null,null,null,null,null,null,null,null,null,null,null,null,null,null,null,null,null,null,null,null,{"$error":"#N/A"},{"$error":"#N/A"},"Local sanitaire"]
[null,null,null,null,null,null,null,null,null,null,null,null,null,null,null,null,null,null,null,null,null,null,null,null,{"$error":"#N/A"},{"$error":"#N/A"},"Local sanitaire"]
[null,null,null,null,null,null,null,null,null,null,null,null,null,null,null,null,null,null,null,null,null,null,null,null,{"$error":"#N/A"},{"$error":"#N/A"},"Local sanitaire"]
[null,null,null,null,null,null,null,null,null,null,null,null,null,null,null,null,null,null,null,null,null,null,null,null,{"$error":"#N/A"},{"$error":"#N/A"},"Douche"]
[null,null,null,null,null,null,null,null,null,null,null,null,null,null,null,null,null,null,null,null,null,null,null,null,{"$error":"#N/A"},{"$error":"#N/A"},"Douche"]
[null,null,null,null,null,null,null,null,null,null,null,null,null,null,null,null,null,null,null,null,null,null,null,null,{"$error":"#N/A"},{"$error":"#N/A"},"Douche"]
[null,null,null,null,null,null,null,null,null,null,null,null,null,null,null,null,null,null,null,null,null,null,null,null,{"$error":"#N/A"},{"$error":"#N/A"},"Douche"]
[null,null,null,null,null,null,null,null,null,null,null,null,null,null,null,null,null,null,null,null,null,null,null,null,{"$error":"#N/A"},{"$error":"#N/A"},"Vestiaires"]
[null,null,null,null,null,null,null,null,null,null,null,null,null,null,null,null,null,null,null,null,null,null,null,null,{"$error":"#N/A"},{"$error":"#N/A"},"Vestiaires"]
[null,null,null,null,null,null,null,null,null,null,null,null,null,null,null,null,null,null,null,null,null,null,null,null,{"$error":"#N/A"},{"$error":"#N/A"},"Vestiaires"]
[null,null,null,null,null,null,null,null,null,null,null,null,null,null,null,null,null,null,null,null,null,null,null,null,{"$error":"#N/A"},{"$error":"#N/A"},"Vestiaires"]
[null,null,null,null,null,null,null,null,null,null,null,null,null,null,null,null,null,null,null,null,null,null,null,null,{"$error":"#N/A"},{"$error":"#N/A"},"Couloirs"]
[null,null,null,null,null,null,null,null,null,null,null,null,null,null,null,null,null,null,null,null,null,null,null,null,{"$error":"#N/A"},{"$error":"#N/A"},"Couloirs"]
[null,null,null,null,null,null,null,null,null,null,null,null,null,null,null,null,null,null,null,null,null,null,null,null,{"$error":"#N/A"},{"$error":"#N/A"},"Couloirs"]
[null,null,null,null,null,null,null,null,null,null,null,null,null,null,null,null,null,null,null,null,null,null,null,null,{"$error":"#N/A"},{"$error":"#N/A"},"Couloirs"]
[null,null,null,null,null,null,null,null,null,null,null,null,null,null,null,null,null,null,null,null,null,null,null,null,{"$error":"#N/A"},{"$error":"#N/A"},"Cuisine"]
[null,null,null,null,null,null,null,null,null,null,null,null,null,null,null,null,null,null,null,null,null,null,null,null,{"$error":"#N/A"},{"$error":"#N/A"},"Cuisine"]
[null,null,null,null,null,null,null,null,null,null,null,null,null,null,null,null,null,null,null,null,null,null,null,null,{"$error":"#N/A"},{"$error":"#N/A"},"Cuisine"]
[null,null,null,null,null,null,null,null,null,null,null,null,null,null,null,null,null,null,null,null,null,null,null,null,{"$error":"#N/A"},{"$error":"#N/A"},"Salle de conférence"]
[null,null,null,null,null,null,null,null,null,null,null,null,null,null,null,null,null,null,null,null,null,null,null,null,{"$error":"#N/A"},{"$error":"#N/A"},"Salle de conférence"]
[null,null,null,null,null,null,null,null,null,null,null,null,null,null,null,null,null,null,null,null,null,null,null,null,{"$error":"#N/A"},{"$error":"#N/A"},"Salle de conférence"]
[null,null,null,null,null,null,null,null,null,null,null,null,null,null,null,null,null,null,null,null,null,null,null,null,{"$error":"#N/A"},{"$error":"#N/A"},"Chambre"]
[null,null,null,null,null,null,null,null,null,null,null,null,null,null,null,null,null,null,null,null,null,null,null,null,{"$error":"#N/A"},{"$error":"#N/A"},"Chambre"]
[null,null,null,null,null,null,null,null,null,null,null,null,null,null,null,null,null,null,null,null,null,null,null,null,{"$error":"#N/A"},{"$error":"#N/A"},"Chambre"]
[null,null,null,null,null,null,null,null,null,null,null,null,null,null,null,null,null,null,null,null,null,null,null,null,{"$error":"#N/A"},{"$error":"#N/A"},"Chambre"]
[null,null,null,null,null,null,null,null,null,null,null,null,null,null,null,null,null,null,null,null,null,null,null,null,{"$error":"#N/A"},{"$error":"#N/A"},"Cafétéria"]
[null,null,null,null,null,null,null,null,null,null,null,null,null,null,null,null,null,null,null,null,null,null,null,null,{"$error":"#N/A"},{"$error":"#N/A"},"Cafétéria"]
[null,null,null,null,null,null,null,null,null,null,null,null,null,null,null,null,null,null,null,null,null,null,null,null,{"$error":"#N/A"},{"$error":"#N/A"},"Cafétéria"]
[null,null,null,null,null,null,null,null,null,null,null,null,null,null,null,null,null,null,null,null,null,null,null,null,{"$error":"#N/A"},{"$error":"#N/A"},"Coin à manger"]
[null,null,null,null,null,null,null,null,null,null,null,null,null,null,null,null,null,null,null,null,null,null,null,null,{"$error":"#N/A"},{"$error":"#N/A"},"Coin à manger"]
[null,null,null,null,null,null,null,null,null,null,null,null,null,null,null,null,null,null,null,null,null,null,null,null,{"$error":"#N/A"},{"$error":"#N/A"},"Coin à manger"]
[null,null,null,null,null,null,null,null,null,null,null,null,null,null,null,null,null,null,null,null,null,null,null,null,{"$error":"#N/A"},{"$error":"#N/A"},"Coin à manger"]
[null,null,null,null,null,null,null,null,null,null,null,null,null,null,null,null,null,null,null,null,null,null,null,null,{"$error":"#N/A"},{"$error":"#N/A"},"Buanderie"]
[null,null,null,null,null,null,null,null,null,null,null,null,null,null,null,null,null,null,null,null,null,null,null,null,{"$error":"#N/A"},{"$error":"#N/A"},"Buanderie"]
[null,null,null,null,null,null,null,null,null,null,null,null,null,null,null,null,null,null,null,null,null,null,null,null,{"$error":"#N/A"},{"$error":"#N/A"},"Buanderie"]
[null,null,null,null,null,null,null,null,null,null,null,null,null,null,null,null,null,null,null,null,null,null,null,null,{"$error":"#N/A"},{"$error":"#N/A"},"Buanderie"]
[null,null,null,null,null,null,null,null,null,null,null,null,null,null,null,null,null,null,null,null,null,null,null,null,{"$error":"#N/A"},{"$error":"#N/A"},"Salon"]
[null,null,null,null,null,null,null,null,null,null,null,null,null,null,null,null,null,null,null,null,null,null,null,null,{"$error":"#N/A"},{"$error":"#N/A"},"Salon"]
[null,null,null,null,null,null,null,null,null,null,null,null,null,null,null,null,null,null,null,null,null,null,null,null,{"$error":"#N/A"},{"$error":"#N/A"},"Salon"]
[null,null,null,null,null,null,null,null,null,null,null,null,null,null,null,null,null,null,null,null,null,null,null,null,{"$error":"#N/A"},{"$error":"#N/A"},"Ateliers"]
[null,null,null,null,null,null,null,null,null,null,null,null,null,null,null,null,null,null,null,null,null,null,null,null,{"$error":"#N/A"},{"$error":"#N/A"},"Ateliers"]
[null,null,null,null,null,null,null,null,null,null,null,null,null,null,null,null,null,null,null,null,null,null,null,null,{"$error":"#N/A"},{"$error":"#N/A"},"Ateliers"]
[null,null,null,null,null,null,null,null,null,null,null,null,null,null,null,null,null,null,null,null,null,null,null,null,{"$error":"#N/A"},{"$error":"#N/A"},"Cage d'escaliers"]
[null,null,null,null,null,null,null,null,null,null,null,null,null,null,null,null,null,null,null,null,null,null,null,null,{"$error":"#N/A"},{"$error":"#N/A"},"Cage d'escaliers"]
[null,null,null,null,null,null,null,null,null,null,null,null,null,null,null,null,null,null,null,null,null,null,null,null,{"$error":"#N/A"},{"$error":"#N/A"},"Cage d'escaliers"]
[null,null,null,null,null,null,null,null,null,null,null,null,null,null,null,null,null,null,null,null,null,null,null,null,{"$error":"#N/A"},{"$error":"#N/A"},"Cage d'escaliers"]
[null,null,null,null,null,null,null,null,null,null,null,null,null,null,null,null,null,null,null,null,null,null,null,null,{"$error":"#N/A"},{"$error":"#N/A"},"Ascenseur"]
[null,null,null,null,null,null,null,null,null,null,null,null,null,null,null,null,null,null,null,null,null,null,null,null,{"$error":"#N/A"},{"$error":"#N/A"},"Ascenseur"]
[null,null,null,null,null,null,null,null,null,null,null,null,null,null,null,null,null,null,null,null,null,null,null,null,{"$error":"#N/A"},{"$error":"#N/A"},"Ascenseur"]
[null,null,null,null,null,null,null,null,null,null,null,null,null,null,null,null,null,null,null,null,null,null,null,null,"Enlever les déchets",0,""]
[null,null,null,null,null,null,null,null,null,null,null,null,null,null,null,null,null,null,null,null,null,null,null,null,"Récurage à l'auto-laveuse",0,"Hall d'entrée"]
[null,null,null,null,null,null,null,null,null,null,null,null,null,null,null,null,null,null,null,null,null,null,null,null,"Nettoyer le trop plein",0,"Hall d'entrée"]
[null,null,null,null,null,null,null,null,null,null,null,null,null,null,null,null,null,null,null,null,null,null,null,null,"Nettoyer les traces de doigts",0,"Hall d'entrée"]
[null,null,null,null,null,null,null,null,null,null,null,null,null,null,null,null,null,null,null,null,null,null,null,null,{"$error":"#N/A"},{"$error":"#N/A"},"Bureau simple"]
[null,null,null,null,null,null,null,null,null,null,null,null,null,null,null,null,null,null,null,null,null,null,null,null,{"$error":"#N/A"},{"$error":"#N/A"},"Bureau simple"]
[null,null,null,null,null,null,null,null,null,null,null,null,null,null,null,null,null,null,null,null,null,null,null,null,{"$error":"#N/A"},{"$error":"#N/A"},"Bureau simple"]
[null,null,null,null,null,null,null,null,null,null,null,null,null,null,null,null,null,null,null,null,null,null,null,null,{"$error":"#N/A"},{"$error":"#N/A"},"Bureau simple"]
[null,null,null,null,null,null,null,null,null,null,null,null,null,null,null,null,null,null,null,null,null,null,null,null,{"$error":"#N/A"},{"$error":"#N/A"},"Open Space"]
[null,null,null,null,null,null,null,null,null,null,null,null,null,null,null,null,null,null,null,null,null,null,null,null,{"$error":"#N/A"},{"$error":"#N/A"},"Open Space"]
[null,null,null,null,null,null,null,null,null,null,null,null,null,null,null,null,null,null,null,null,null,null,null,null,{"$error":"#N/A"},{"$error":"#N/A"},"Open Space"]
[null,null,null,null,null,null,null,null,null,null,null,null,null,null,null,null,null,null,null,null,null,null,null,null,{"$error":"#N/A"},{"$error":"#N/A"},"Open Space"]
[null,null,null,null,null,null,null,null,null,null,null,null,null,null,null,null,null,null,null,null,null,null,null,null,{"$error":"#N/A"},{"$error":"#N/A"},"Local sanitaire"]
[null,null,null,null,null,null,null,null,null,null,null,null,null,null,null,null,null,null,null,null,null,null,null,null,{"$error":"#N/A"},{"$error":"#N/A"},"Local sanitaire"]
[null,null,null,null,null,null,null,null,null,null,null,null,null,null,null,null,null,null,null,null,null,null,null,null,{"$error":"#N/A"},{"$error":"#N/A"},"Local sanitaire"]
[null,null,null,null,null,null,null,null,null,null,null,null,null,null,null,null,null,null,null,null,null,null,null,null,{"$error":"#N/A"},{"$error":"#N/A"},"Douche"]
[null,null,null,null,null,null,null,null,null,null,null,null,null,null,null,null,null,null,null,null,null,null,null,null,{"$error":"#N/A"},{"$error":"#N/A"},"Douche"]
[null,null,null,null,null,null,null,null,null,null,null,null,null,null,null,null,null,null,null,null,null,null,null,null,{"$error":"#N/A"},{"$error":"#N/A"},"Douche"]
[null,null,null,null,null,null,null,null,null,null,null,null,null,null,null,null,null,null,null,null,null,null,null,null,{"$error":"#N/A"},{"$error":"#N/A"},"Vestiaires"]
[null,null,null,null,null,null,null,null,null,null,null,null,null,null,null,null,null,null,null,null,null,null,null,null,{"$error":"#N/A"},{"$error":"#N/A"},"Vestiaires"]
[null,null,null,null,null,null,null,null,null,null,null,null,null,null,null,null,null,null,null,null,null,null,null,null,{"$error":"#N/A"},{"$error":"#N/A"},"Vestiaires"]
[null,null,null,null,null,null,null,null,null,null,null,null,null,null,null,null,null,null,null,null,null,null,null,null,{"$error":"#N/A"},{"$error":"#N/A"},"Vestiaires"]
[null,null,null,null,null,null,null,null,null,null,null,null,null,null,null,null,null,null,null,null,null,null,null,null,{"$error":"#N/A"},{"$error":"#N/A"},"Couloirs"]
[null,null,null,null,null,null,null,null,null,null,null,null,null,null,null,null,null,null,null,null,null,null,null,null,{"$error":"#N/A"},{"$error":"#N/A"},"Couloirs"]
[null,null,null,null,null,null,null,null,null,null,null,null,null,null,null,null,null,null,null,null,null,null,null,null,{"$error":"#N/A"},{"$error":"#N/A"},"Couloirs"]
[null,null,null,null,null,null,null,null,null,null,null,null,null,null,null,null,null,null,null,null,null,null,null,null,{"$error":"#N/A"},{"$error":"#N/A"},"Couloirs"]
[null,null,null,null,null,null,null,null,null,null,null,null,null,null,null,null,null,null,null,null,null,null,null,null,{"$error":"#N/A"},{"$error":"#N/A"},"Cuisine"]
[null,null,null,null,null,null,null,null,null,null,null,null,null,null,null,null,null,null,null,null,null,null,null,null,{"$error":"#N/A"},{"$error":"#N/A"},"Cuisine"]
[null,null,null,null,null,null,null,null,null,null,null,null,null,null,null,null,null,null,null,null,null,null,null,null,{"$error":"#N/A"},{"$error":"#N/A"},"Cuisine"]
[null,null,null,null,null,null,null,null,null,null,null,null,null,null,null,null,null,null,null,null,null,null,null,null,{"$error":"#N/A"},{"$error":"#N/A"},"Cuisine"]
[null,null,null,null,null,null,null,null,null,null,null,null,null,null,null,null,null,null,null,null,null,null,null,null,{"$error":"#N/A"},{"$error":"#N/A"},"Salle de conférence"]
[null,null,null,null,null,null,null,null,null,null,null,null,null,null,null,null,null,null,null,null,null,null,null,null,{"$error":"#N/A"},{"$error":"#N/A"},"Salle de conférence"]
[null,null,null,null,null,null,null,null,null,null,null,null,null,null,null,null,null,null,null,null,null,null,null,null,{"$error":"#N/A"},{"$error":"#N/A"},"Salle de conférence"]
[null,null,null,null,null,null,null,null,null,null,null,null,null,null,null,null,null,null,null,null,null,null,null,null,{"$error":"#N/A"},{"$error":"#N/A"},"Chambre"]
[null,null,null,null,null,null,null,null,null,null,null,null,null,null,null,null,null,null,null,null,null,null,null,null,{"$error":"#N/A"},{"$error":"#N/A"},"Chambre"]
[null,null,null,null,null,null,null,null,null,null,null,null,null,null,null,null,null,null,null,null,null,null,null,null,{"$error":"#N/A"},{"$error":"#N/A"},"Chambre"]
[null,null,null,null,null,null,null,null,null,null,null,null,null,null,null,null,null,null,null,null,null,null,null,null,{"$error":"#N/A"},{"$error":"#N/A"},"Chambre"]
[null,null,null,null,null,null,null,null,null,null,null,null,null,null,null,null,null,null,null,null,null,null,null,null,{"$error":"#N/A"},{"$error":"#N/A"},"Cafétéria"]
[null,null,null,null,null,null,null,null,null,null,null,null,null,null,null,null,null,null,null,null,null,null,null,null,{"$error":"#N/A"},{"$error":"#N/A"},"Cafétéria"]
[null,null,null,null,null,null,null,null,null,null,null,null,null,null,null,null,null,null,null,null,null,null,null,null,{"$error":"#N/A"},{"$error":"#N/A"},"Cafétéria"]
[null,null,null,null,null,null,null,null,null,null,null,null,null,null,null,null,null,null,null,null,null,null,null,null,{"$error":"#N/A"},{"$error":"#N/A"},"Coin à manger"]
[null,null,null,null,null,null,null,null,null,null,null,null,null,null,null,null,null,null,null,null,null,null,null,null,{"$error":"#N/A"},{"$error":"#N/A"},"Coin à manger"]
[null,null,null,null,null,null,null,null,null,null,null,null,null,null,null,null,null,null,null,null,null,null,null,null,{"$error":"#N/A"},{"$error":"#N/A"},"Coin à manger"]
[null,null,null,null,null,null,null,null,null,null,null,null,null,null,null,null,null,null,null,null,null,null,null,null,{"$error":"#N/A"},{"$error":"#N/A"},"Buanderie"]
[null,null,null,null,null,null,null,null,null,null,null,null,null,null,null,null,null,null,null,null,null,null,null,null,{"$error":"#N/A"},{"$error":"#N/A"},"Buanderie"]
[null,null,null,null,null,null,null,null,null,null,null,null,null,null,null,null,null,null,null,null,null,null,null,null,{"$error":"#N/A"},{"$error":"#N/A"},"Buanderie"]
[null,null,null,null,null,null,null,null,null,null,null,null,null,null,null,null,null,null,null,null,null,null,null,null,{"$error":"#N/A"},{"$error":"#N/A"},"Buanderie"]
[null,null,null,null,null,null,null,null,null,null,null,null,null,null,null,null,null,null,null,null,null,null,null,null,{"$error":"#N/A"},{"$error":"#N/A"},"Salon"]
[null,null,null,null,null,null,null,null,null,null,null,null,null,null,null,null,null,null,null,null,null,null,null,null,{"$error":"#N/A"},{"$error":"#N/A"},"Salon"]
[null,null,null,null,null,null,null,null,null,null,null,null,null,null,null,null,null,null,null,null,null,null,null,null,{"$error":"#N/A"},{"$error":"#N/A"},"Salon"]
[null,null,null,null,null,null,null,null,null,null,null,null,null,null,null,null,null,null,null,null,null,null,null,null,{"$error":"#N/A"},{"$error":"#N/A"},"Ateliers"]
[null,null,null,null,null,null,null,null,null,null,null,null,null,null,null,null,null,null,null,null,null,null,null,null,{"$error":"#N/A"},{"$error":"#N/A"},"Ateliers"]
[null,null,null,null,null,null,null,null,null,null,null,null,null,null,null,null,null,null,null,null,null,null,null,null,{"$error":"#N/A"},{"$error":"#N/A"},"Ateliers"]
[null,null,null,null,null,null,null,null,null,null,null,null,null,null,null,null,null,null,null,null,null,null,null,null,{"$error":"#N/A"},{"$error":"#N/A"},"Ateliers"]
[null,null,null,null,null,null,null,null,null,null,null,null,null,null,null,null,null,null,null,null,null,null,null,null,{"$error":"#N/A"},{"$error":"#N/A"},"Ateliers"]
[null,null,null,null,null,null,null,null,null,null,null,null,null,null,null,null,null,null,null,null,null,null,null,null,{"$error":"#N/A"},{"$error":"#N/A"},"Cage d'escaliers"]
[null,null,null,null,null,null,null,null,null,null,null,null,null,null,null,null,null,null,null,null,null,null,null,null,{"$error":"#N/A"},{"$error":"#N/A"},"Cage d'escaliers"]
[null,null,null,null,null,null,null,null,null,null,null,null,null,null,null,null,null,null,null,null,null,null,null,null,{"$error":"#N/A"},{"$error":"#N/A"},"Cage d'escaliers"]
[null,null,null,null,null,null,null,null,null,null,null,null,null,null,null,null,null,null,null,null,null,null,null,null,{"$error":"#N/A"},{"$error":"#N/A"},"Ascenseur"]
[null,null,null,null,null,null,null,null,null,null,null,null,null,null,null,null,null,null,null,null,null,null,null,null,{"$error":"#N/A"},{"$error":"#N/A"},"Ascenseur"]
[null,null,null,null,null,null,null,null,null,null,null,null,null,null,null,null,null,null,null,null,null,null,null,null,{"$error":"#N/A"},{"$error":"#N/A"},"Ascenseur"]
[null,null,null,null,null,null,null,null,null,null,null,null,null,null,null,null,null,null,null,null,null,null,null,null,0,0,"Hall d'entrée"]
[null,null,null,null,null,null,null,null,null,null,null,null,null,null,null,null,null,null,null,null,null,null,null,null,0,0,"Hall d'entrée"]
[null,null,null,null,null,null,null,null,null,null,null,null,null,null,null,null,null,null,null,null,null,null,null,null,"Nettoyer la vitre complète extérieure",0,"Hall d'entrée"]
[null,null,null,null,null,null,null,null,null,null,null,null,null,null,null,null,null,null,null,null,null,null,null,null,0,0,"Hall d'entrée"]
[null,null,null,null,null,null,null,null,null,null,null,null,null,null,null,null,null,null,null,null,null,null,null,null,{"$error":"#N/A"},{"$error":"#N/A"},"Bureau simple"]
[null,null,null,null,null,null,null,null,null,null,null,null,null,null,null,null,null,null,null,null,null,null,null,null,{"$error":"#N/A"},{"$error":"#N/A"},"Bureau simple"]
[null,null,null,null,null,null,null,null,null,null,null,null,null,null,null,null,null,null,null,null,null,null,null,null,{"$error":"#N/A"},{"$error":"#N/A"},"Bureau simple"]
[null,null,null,null,null,null,null,null,null,null,null,null,null,null,null,null,null,null,null,null,null,null,null,null,{"$error":"#N/A"},{"$error":"#N/A"},"Open Space"]
[null,null,null,null,null,null,null,null,null,null,null,null,null,null,null,null,null,null,null,null,null,null,null,null,{"$error":"#N/A"},{"$error":"#N/A"},"Open Space"]
[null,null,null,null,null,null,null,null,null,null,null,null,null,null,null,null,null,null,null,null,null,null,null,null,{"$error":"#N/A"},{"$error":"#N/A"},"Open Space"]
[null,null,null,null,null,null,null,null,null,null,null,null,null,null,null,null,null,null,null,null,null,null,null,null,{"$error":"#N/A"},{"$error":"#N/A"},"Open Space"]
[null,null,null,null,null,null,null,null,null,null,null,null,null,null,null,null,null,null,null,null,null,null,null,null,{"$error":"#N/A"},{"$error":"#N/A"},"Local sanitaire"]
[null,null,null,null,null,null,null,null,null,null,null,null,null,null,null,null,null,null,null,null,null,null,null,null,{"$error":"#N/A"},{"$error":"#N/A"},"Local sanitaire"]
[null,null,null,null,null,null,null,null,null,null,null,null,null,null,null,null,null,null,null,null,null,null,null,null,{"$error":"#N/A"},{"$error":"#N/A"},"Local sanitaire"]
[null,null,null,null,null,null,null,null,null,null,null,null,null,null,null,null,null,null,null,null,null,null,null,null,{"$error":"#N/A"},{"$error":"#N/A"},"Local sanitaire"]
[null,null,null,null,null,null,null,null,null,null,null,null,null,null,null,null,null,null,null,null,null,null,null,null,{"$error":"#N/A"},{"$error":"#N/A"},"Douche"]
[null,null,null,null,null,null,null,null,null,null,null,null,null,null,null,null,null,null,null,null,null,null,null,null,{"$error":"#N/A"},{"$error":"#N/A"},"Douche"]
[null,null,null,null,null,null,null,null,null,null,null,null,null,null,null,null,null,null,null,null,null,null,null,null,{"$error":"#N/A"},{"$error":"#N/A"},"Douche"]
[null,null,null,null,null,null,null,null,null,null,null,null,null,null,null,null,null,null,null,null,null,null,null,null,{"$error":"#N/A"},{"$error":"#N/A"},"Vestiaires"]
[null,null,null,null,null,null,null,null,null,null,null,null,null,null,null,null,null,null,null,null,null,null,null,null,{"$error":"#N/A"},{"$error":"#N/A"},"Vestiaires"]
[null,null,null,null,null,null,null,null,null,null,null,null,null,null,null,null,null,null,null,null,null,null,null,null,{"$error":"#N/A"},{"$error":"#N/A"},"Vestiaires"]
[null,null,null,null,null,null,null,null,null,null,null,null,null,null,null,null,null,null,null,null,null,null,null,null,{"$error":"#N/A"},{"$error":"#N/A"},"Vestiaires"]
[null,null,null,null,null,null,null,null,null,null,null,null,null,null,null,null,null,null,null,null,null,null,null,null,{"$error":"#N/A"},{"$error":"#N/A"},"Couloirs"]
[null,null,null,null,null,null,null,null,null,null,null,null,null,null,null,null,null,null,null,null,null,null,null,null,{"$error":"#N/A"},{"$error":"#N/A"},"Couloirs"]
[null,null,null,null,null,null,null,null,null,null,null,null,null,null,null,null,null,null,null,null,null,null,null,null,{"$error":"#N/A"},{"$error":"#N/A"},"Couloirs"]
[null,null,null,null,null,null,null,null,null,null,null,null,null,null,null,null,null,null,null,null,null,null,null,null,{"$error":"#N/A"},{"$error":"#N/A"},"Cuisine"]
[null,null,null,null,null,null,null,null,null,null,null,null,null,null,null,null,null,null,null,null,null,null,null,null,{"$error":"#N/A"},{"$error":"#N/A"},"Cuisine"]
[null,null,null,null,null,null,null,null,null,null,null,null,null,null,null,null,null,null,null,null,null,null,null,null,{"$error":"#N/A"},{"$error":"#N/A"},"Cuisine"]
[null,null,null,null,null,null,null,null,null,null,null,null,null,null,null,null,null,null,null,null,null,null,null,null,{"$error":"#N/A"},{"$error":"#N/A"},"Cuisine"]
[null,null,null,null,null,null,null,null,null,null,null,null,null,null,null,null,null,null,null,null,null,null,null,null,{"$error":"#N/A"},{"$error":"#N/A"},"Salle de conférence"]
[null,null,null,null,null,null,null,null,null,null,null,null,null,null,null,null,null,null,null,null,null,null,null,null,{"$error":"#N/A"},{"$error":"#N/A"},"Salle de conférence"]
[null,null,null,null,null,null,null,null,null,null,null,null,null,null,null,null,null,null,null,null,null,null,null,null,{"$error":"#N/A"},{"$error":"#N/A"},"Salle de conférence"]
[null,null,null,null,null,null,null,null,null,null,null,null,null,null,null,null,null,null,null,null,null,null,null,null,{"$error":"#N/A"},{"$error":"#N/A"},"Chambre"]
[null,null,null,null,null,null,null,null,null,null,null,null,null,null,null,null,null,null,null,null,null,null,null,null,{"$error":"#N/A"},{"$error":"#N/A"},"Chambre"]
[null,null,null,null,null,null,null,null,null,null,null,null,null,null,null,null,null,null,null,null,null,null,null,null,{"$error":"#N/A"},{"$error":"#N/A"},"Chambre"]
[null,null,null,null,null,null,null,null,null,null,null,null,null,null,null,null,null,null,null,null,null,null,null,null,{"$error":"#N/A"},{"$error":"#N/A"},"Chambre"]
[null,null,null,null,null,null,null,null,null,null,null,null,null,null,null,null,null,null,null,null,null,null,null,null,{"$error":"#N/A"},{"$error":"#N/A"},""]
[null,null,null,null,null,null,null,null,null,null,null,null,null,null,null,null,null,null,null,null,null,null,null,null,{"$error":"#N/A"},{"$error":"#N/A"},"Cafétéria"]
[null,null,null,null,null,null,null,null,null,null,null,null,null,null,null,null,null,null,null,null,null,null,null,null,{"$error":"#N/A"},{"$error":"#N/A"},"Cafétéria"]
[null,null,null,null,null,null,null,null,null,null,null,null,null,null,null,null,null,null,null,null,null,null,null,null,{"$error":"#N/A"},{"$error":"#N/A"},"Cafétéria"]
[null,null,null,null,null,null,null,null,null,null,null,null,null,null,null,null,null,null,null,null,null,null,null,null,{"$error":"#N/A"},{"$error":"#N/A"},"Coin à manger"]
[null,null,null,null,null,null,null,null,null,null,null,null,null,null,null,null,null,null,null,null,null,null,null,null,{"$error":"#N/A"},{"$error":"#N/A"},"Coin à manger"]
[null,null,null,null,null,null,null,null,null,null,null,null,null,null,null,null,null,null,null,null,null,null,null,null,{"$error":"#N/A"},{"$error":"#N/A"},"Coin à manger"]
[null,null,null,null,null,null,null,null,null,null,null,null,null,null,null,null,null,null,null,null,null,null,null,null,{"$error":"#N/A"},{"$error":"#N/A"},"Buanderie"]
[null,null,null,null,null,null,null,null,null,null,null,null,null,null,null,null,null,null,null,null,null,null,null,null,{"$error":"#N/A"},{"$error":"#N/A"},"Buanderie"]
[null,null,null,null,null,null,null,null,null,null,null,null,null,null,null,null,null,null,null,null,null,null,null,null,{"$error":"#N/A"},{"$error":"#N/A"},"Buanderie"]
[null,null,null,null,null,null,null,null,null,null,null,null,null,null,null,null,null,null,null,null,null,null,null,null,{"$error":"#N/A"},{"$error":"#N/A"},"Salon"]
[null,null,null,null,null,null,null,null,null,null,null,null,null,null,null,null,null,null,null,null,null,null,null,null,{"$error":"#N/A"},{"$error":"#N/A"},"Salon"]
[null,null,null,null,null,null,null,null,null,null,null,null,null,null,null,null,null,null,null,null,null,null,null,null,{"$error":"#N/A"},{"$error":"#N/A"},"Salon"]
[null,null,null,null,null,null,null,null,null,null,null,null,null,null,null,null,null,null,null,null,null,null,null,null,{"$error":"#N/A"},{"$error":"#N/A"},"Salon"]
[null,null,null,null,null,null,null,null,null,null,null,null,null,null,null,null,null,null,null,null,null,null,null,null,{"$error":"#N/A"},{"$error":"#N/A"},"Ateliers"]
[null,null,null,null,null,null,null,null,null,null,null,null,null,null,null,null,null,null,null,null,null,null,null,null,{"$error":"#N/A"},{"$error":"#N/A"},"Ateliers"]
[null,null,null,null,null,null,null,null,null,null,null,null,null,null,null,null,null,null,null,null,null,null,null,null,{"$error":"#N/A"},{"$error":"#N/A"},"Ateliers"]
[null,null,null,null,null,null,null,null,null,null,null,null,null,null,null,null,null,null,null,null,null,null,null,null,{"$error":"#N/A"},{"$error":"#N/A"},"Ateliers"]
[null,null,null,null,null,null,null,null,null,null,null,null,null,null,null,null,null,null,null,null,null,null,null,null,{"$error":"#N/A"},{"$error":"#N/A"},"Cage d'escaliers"]
[null,null,null,null,null,null,null,null,null,null,null,null,null,null,null,null,null,null,null,null,null,null,null,null,{"$error":"#N/A"},{"$error":"#N/A"},"Cage d'escaliers"]
[null,null,null,null,null,null,null,null,null,null,null,null,null,null,null,null,null,null,null,null,null,null,null,null,{"$error":"#N/A"},{"$error":"#N/A"},"Cage d'escaliers"]
[null,null,null,null,null,null,null,null,null,null,null,null,null,null,null,null,null,null,null,null,null,null,null,null,{"$error":"#N/A"},{"$error":"#N/A"},"Cage d'escaliers"]
[null,null,null,null,null,null,null,null,null,null,null,null,null,null,null,null,null,null,null,null,null,null,null,null,{"$error":"#N/A"},{"$error":"#N/A"},"Cage d'escaliers"]
[null,null,null,null,null,null,null,null,null,null,null,null,null,null,null,null,null,null,null,null,null,null,null,null,{"$error":"#N/A"},{"$error":"#N/A"},"Cage d'escaliers"]
[null,null,null,null,null,null,null,null,null,null,null,null,null,null,null,null,null,null,null,null,null,null,null,null,{"$error":"#N/A"},{"$error":"#N/A"},"Cage d'escaliers"]
[null,null,null,null,null,null,null,null,null,null,null,null,null,null,null,null,null,null,null,null,null,null,null,null,{"$error":"#N/A"},{"$error":"#N/A"},"Cage d'escaliers"]
[null,null,null,null,null,null,null,null,null,null,null,null,null,null,null,null,null,null,null,null,null,null,null,null,{"$error":"#N/A"},{"$error":"#N/A"},"Cage d'escaliers"]
[null,null,null,null,null,null,null,null,null,null,null,null,null,null,null,null,null,null,null,null,null,null,null,null,{"$error":"#N/A"},{"$error":"#N/A"},"Cage d'escaliers"]
[null,null,null,null,null,null,null,null,null,null,null,null,null,null,null,null,null,null,null,null,null,null,null,null,{"$error":"#N/A"},{"$error":"#N/A"},"Cage d'escaliers"]
[null,null,null,null,null,null,null,null,null,null,null,null,null,null,null,null,null,null,null,null,null,null,null,null,{"$error":"#N/A"},{"$error":"#N/A"},"Cage d'escaliers"]
[null,null,null,null,null,null,null,null,null,null,null,null,null,null,null,null,null,null,null,null,null,null,null,null,{"$error":"#N/A"},{"$error":"#N/A"},"Cage d'escaliers"]
[null,null,null,null,null,null,null,null,null,null,null,null,null,null,null,null,null,null,null,null,null,null,null,null,{"$error":"#N/A"},{"$error":"#N/A"},"Cage d'escaliers"]
[null,null,null,null,null,null,null,null,null,null,null,null,null,null,null,null,null,null,null,null,null,null,null,null,{"$error":"#N/A"},{"$error":"#N/A"},"Cage d'escaliers"]
[null,null,null,null,null,null,null,null,null,null,null,null,null,null,null,null,null,null,null,null,null,null,null,null,{"$error":"#N/A"},{"$error":"#N/A"},"Cage d'escaliers"]
[null,null,null,null,null,null,null,null,null,null,null,null,null,null,null,null,null,null,null,null,null,null,null,null,{"$error":"#N/A"},{"$error":"#N/A"},"Cage d'escaliers"]
[null,null,null,null,null,null,null,null,null,null,null,null,null,null,null,null,null,null,null,null,null,null,null,null,{"$error":"#N/A"},{"$error":"#N/A"},"Cage d'escaliers"]
[null,null,null,null,null,null,null,null,null,null,null,null,null,null,null,null,null,null,null,null,null,null,null,null,{"$error":"#N/A"},{"$error":"#N/A"},"Cage d'escaliers"]
[null,null,null,null,null,null,null,null,null,null,null,null,null,null,null,null,null,null,null,null,null,null,null,null,{"$error":"#N/A"},{"$error":"#N/A"},"Cage d'escaliers"]
[null,null,null,null,null,null,null,null,null,null,null,null,null,null,null,null,null,null,null,null,null,null,null,null,{"$error":"#N/A"},{"$error":"#N/A"},"Cage d'escaliers"]
[null,null,null,null,null,null,null,null,null,null,null,null,null,null,null,null,null,null,null,null,null,null,null,null,{"$error":"#N/A"},{"$error":"#N/A"},"Cage d'escaliers"]
[null,null,null,null,null,null,null,null,null,null,null,null,null,null,null,null,null,null,null,null,null,null,null,null,{"$error":"#N/A"},{"$error":"#N/A"},"Cage d'escaliers"]
[null,null,null,null,null,null,null,null,null,null,null,null,null,null,null,null,null,null,null,null,null,null,null,null,{"$error":"#N/A"},{"$error":"#N/A"},"Cage d'escaliers"]
[null,null,null,null,null,null,null,null,null,null,null,null,null,null,null,null,null,null,null,null,null,null,null,null,{"$error":"#N/A"},{"$error":"#N/A"},"Cage d'escaliers"]
[null,null,null,null,null,null,null,null,null,null,null,null,null,null,null,null,null,null,null,null,null,null,null,null,{"$error":"#N/A"},{"$error":"#N/A"},"Cage d'escaliers"]
[null,null,null,null,null,null,null,null,null,null,null,null,null,null,null,null,null,null,null,null,null,null,null,null,{"$error":"#N/A"},{"$error":"#N/A"},"Cage d'escaliers"]
[null,null,null,null,null,null,null,null,null,null,null,null,null,null,null,null,null,null,null,null,null,null,null,null,{"$error":"#N/A"},{"$error":"#N/A"},"Cage d'escaliers"]
[null,null,null,null,null,null,null,null,null,null,null,null,null,null,null,null,null,null,null,null,null,null,null,null,{"$error":"#N/A"},{"$error":"#N/A"},"Cage d'escaliers"]
[null,null,null,null,null,null,null,null,null,null,null,null,null,null,null,null,null,null,null,null,null,null,null,null,{"$error":"#N/A"},{"$error":"#N/A"},"Cage d'escaliers"]
[null,null,null,null,null,null,null,null,null,null,null,null,null,null,null,null,null,null,null,null,null,null,null,null,{"$error":"#N/A"},{"$error":"#N/A"},"Cage d'escaliers"]
[null,null,null,null,null,null,null,null,null,null,null,null,null,null,null,null,null,null,null,null,null,null,null,null,{"$error":"#N/A"},{"$error":"#N/A"},"Cage d'escaliers"]
[null,null,null,null,null,null,null,null,null,null,null,null,null,null,null,null,null,null,null,null,null,null,null,null,{"$error":"#N/A"},{"$error":"#N/A"},"Cage d'escaliers"]
[null,null,null,null,null,null,null,null,null,null,null,null,null,null,null,null,null,null,null,null,null,null,null,null,{"$error":"#N/A"},{"$error":"#N/A"},"Cage d'escaliers"]
[null,null,null,null,null,null,null,null,null,null,null,null,null,null,null,null,null,null,null,null,null,null,null,null,{"$error":"#N/A"},{"$error":"#N/A"},"Cage d'escaliers"]
[null,null,null,null,null,null,null,null,null,null,null,null,null,null,null,null,null,null,null,null,null,null,null,null,{"$error":"#N/A"},{"$error":"#N/A"},"Cage d'escaliers"]
[null,null,null,null,null,null,null,null,null,null,null,null,null,null,null,null,null,null,null,null,null,null,null,null,{"$error":"#N/A"},{"$error":"#N/A"},"Cage d'escaliers"]
[null,null,null,null,null,null,null,null,null,null,null,null,null,null,null,null,null,null,null,null,null,null,null,null,{"$error":"#N/A"},{"$error":"#N/A"},"Cage d'escaliers"]
[null,null,null,null,null,null,null,null,null,null,null,null,null,null,null,null,null,null,null,null,null,null,null,null,{"$error":"#N/A"},{"$error":"#N/A"},"Cage d'escaliers"]
[null,null,null,null,null,null,null,null,null,null,null,null,null,null,null,null,null,null,null,null,null,null,null,null,{"$error":"#N/A"},{"$error":"#N/A"},"Cage d'escaliers"]
[null,null,null,null,null,null,null,null,null,null,null,null,null,null,null,null,null,null,null,null,null,null,null,null,{"$error":"#N/A"},{"$error":"#N/A"},"Cage d'escaliers"]
[null,null,null,null,null,null,null,null,null,null,null,null,null,null,null,null,null,null,null,null,null,null,null,null,{"$error":"#N/A"},{"$error":"#N/A"},"Cage d'escaliers"]
[null,null,null,null,null,null,null,null,null,null,null,null,null,null,null,null,null,null,null,null,null,null,null,null,{"$error":"#N/A"},{"$error":"#N/A"},"Cage d'escaliers"]
[null,null,null,null,null,null,null,null,null,null,null,null,null,null,null,null,null,null,null,null,null,null,null,null,{"$error":"#N/A"},{"$error":"#N/A"},"Cage d'escaliers"]
[null,null,null,null,null,null,null,null,null,null,null,null,null,null,null,null,null,null,null,null,null,null,null,null,{"$error":"#N/A"},{"$error":"#N/A"},"Cage d'escaliers"]
[null,null,null,null,null,null,null,null,null,null,null,null,null,null,null,null,null,null,null,null,null,null,null,null,{"$error":"#N/A"},{"$error":"#N/A"},"Cage d'escaliers"]
[null,null,null,null,null,null,null,null,null,null,null,null,null,null,null,null,null,null,null,null,null,null,null,null,{"$error":"#N/A"},{"$error":"#N/A"},"Cage d'escaliers"]
[null,null,null,null,null,null,null,null,null,null,null,null,null,null,null,null,null,null,null,null,null,null,null,null,{"$error":"#N/A"},{"$error":"#N/A"},"Cage d'escaliers"]
[null,null,null,null,null,null,null,null,null,null,null,null,null,null,null,null,null,null,null,null,null,null,null,null,{"$error":"#N/A"},{"$error":"#N/A"},"Cage d'escaliers"]
[null,null,null,null,null,null,null,null,null,null,null,null,null,null,null,null,null,null,null,null,null,null,null,null,{"$error":"#N/A"},{"$error":"#N/A"},"Cage d'escaliers"]
[null,null,null,null,null,null,null,null,null,null,null,null,null,null,null,null,null,null,null,null,null,null,null,null,{"$error":"#N/A"},{"$error":"#N/A"},"Cage d'escaliers"]
[null,null,null,null,null,null,null,null,null,null,null,null,null,null,null,null,null,null,null,null,null,null,null,null,{"$error":"#N/A"},{"$error":"#N/A"},"Cage d'escaliers"]
[null,null,null,null,null,null,null,null,null,null,null,null,null,null,null,null,null,null,null,null,null,null,null,null,{"$error":"#N/A"},{"$error":"#N/A"},"Cage d'escaliers"]
[null,null,null,null,null,null,null,null,null,null,null,null,null,null,null,null,null,null,null,null,null,null,null,null,{"$error":"#N/A"},{"$error":"#N/A"},"Cage d'escaliers"]
[null,null,null,null,null,null,null,null,null,null,null,null,null,null,null,null,null,null,null,null,null,null,null,null,{"$error":"#N/A"},{"$error":"#N/A"},"Cage d'escaliers"]
[null,null,null,null,null,null,null,null,null,null,null,null,null,null,null,null,null,null,null,null,null,null,null,null,{"$error":"#N/A"},{"$error":"#N/A"},"Cage d'escaliers"]
[null,null,null,null,null,null,null,null,null,null,null,null,null,null,null,null,null,null,null,null,null,null,null,null,{"$error":"#N/A"},{"$error":"#N/A"},"Cage d'escaliers"]
[null,null,null,null,null,null,null,null,null,null,null,null,null,null,null,null,null,null,null,null,null,null,null,null,{"$error":"#N/A"},{"$error":"#N/A"},"Cage d'escaliers"]
[null,null,null,null,null,null,null,null,null,null,null,null,null,null,null,null,null,null,null,null,null,null,null,null,{"$error":"#N/A"},{"$error":"#N/A"},"Cage d'escaliers"]
[null,null,null,null,null,null,null,null,null,null,null,null,null,null,null,null,null,null,null,null,null,null,null,null,{"$error":"#N/A"},{"$error":"#N/A"},"Cage d'escaliers"]
[null,null,null,null,null,null,null,null,null,null,null,null,null,null,null,null,null,null,null,null,null,null,null,null,{"$error":"#N/A"},{"$error":"#N/A"},"Cage d'escaliers"]
[null,null,null,null,null,null,null,null,null,null,null,null,null,null,null,null,null,null,null,null,null,null,null,null,{"$error":"#N/A"},{"$error":"#N/A"},"Cage d'escaliers"]
[null,null,null,null,null,null,null,null,null,null,null,null,null,null,null,null,null,null,null,null,null,null,null,null,{"$error":"#N/A"},{"$error":"#N/A"},"Cage d'escaliers"]
[null,null,null,null,null,null,null,null,null,null,null,null,null,null,null,null,null,null,null,null,null,null,null,null,{"$error":"#N/A"},{"$error":"#N/A"},"Cage d'escaliers"]
[null,null,null,null,null,null,null,null,null,null,null,null,null,null,null,null,null,null,null,null,null,null,null,null,{"$error":"#N/A"},{"$error":"#N/A"},"Cage d'escaliers"]
[null,null,null,null,null,null,null,null,null,null,null,null,null,null,null,null,null,null,null,null,null,null,null,null,{"$error":"#N/A"},{"$error":"#N/A"},"Cage d'escaliers"]
[null,null,null,null,null,null,null,null,null,null,null,null,null,null,null,null,null,null,null,null,null,null,null,null,{"$error":"#N/A"},{"$error":"#N/A"},"Cage d'escaliers"]
[null,null,null,null,null,null,null,null,null,null,null,null,null,null,null,null,null,null,null,null,null,null,null,null,{"$error":"#N/A"},{"$error":"#N/A"},"Cage d'escaliers"]
[null,null,null,null,null,null,null,null,null,null,null,null,null,null,null,null,null,null,null,null,null,null,null,null,{"$error":"#N/A"},{"$error":"#N/A"},"Cage d'escaliers"]
[null,null,null,null,null,null,null,null,null,null,null,null,null,null,null,null,null,null,null,null,null,null,null,null,{"$error":"#N/A"},{"$error":"#N/A"},"Cage d'escaliers"]
[null,null,null,null,null,null,null,null,null,null,null,null,null,null,null,null,null,null,null,null,null,null,null,null,{"$error":"#N/A"},{"$error":"#N/A"},"Cage d'escaliers"]
[null,null,null,null,null,null,null,null,null,null,null,null,null,null,null,null,null,null,null,null,null,null,null,null,{"$error":"#N/A"},{"$error":"#N/A"},"Cage d'escaliers"]
[null,null,null,null,null,null,null,null,null,null,null,null,null,null,null,null,null,null,null,null,null,null,null,null,{"$error":"#N/A"},{"$error":"#N/A"},"Cage d'escaliers"]
[null,null,null,null,null,null,null,null,null,null,null,null,null,null,null,null,null,null,null,null,null,null,null,null,{"$error":"#N/A"},{"$error":"#N/A"},"Cage d'escaliers"]
[null,null,null,null,null,null,null,null,null,null,null,null,null,null,null,null,null,null,null,null,null,null,null,null,{"$error":"#N/A"},{"$error":"#N/A"},"Cage d'escaliers"]
[null,null,null,null,null,null,null,null,null,null,null,null,null,null,null,null,null,null,null,null,null,null,null,null,{"$error":"#N/A"},{"$error":"#N/A"},"Cage d'escaliers"]
[null,null,null,null,null,null,null,null,null,null,null,null,null,null,null,null,null,null,null,null,null,null,null,null,{"$error":"#N/A"},{"$error":"#N/A"},"Cage d'escaliers"]
[null,null,null,null,null,null,null,null,null,null,null,null,null,null,null,null,null,null,null,null,null,null,null,null,{"$error":"#N/A"},{"$error":"#N/A"},"Cage d'escaliers"]
[null,null,null,null,null,null,null,null,null,null,null,null,null,null,null,null,null,null,null,null,null,null,null,null,{"$error":"#N/A"},{"$error":"#N/A"},"Cage d'escaliers"]
[null,null,null,null,null,null,null,null,null,null,null,null,null,null,null,null,null,null,null,null,null,null,null,null,{"$error":"#N/A"},{"$error":"#N/A"},"Cage d'escaliers"]
[null,null,null,null,null,null,null,null,null,null,null,null,null,null,null,null,null,null,null,null,null,null,null,null,{"$error":"#N/A"},{"$error":"#N/A"},"Cage d'escaliers"]
[null,null,null,null,null,null,null,null,null,null,null,null,null,null,null,null,null,null,null,null,null,null,null,null,{"$error":"#N/A"},{"$error":"#N/A"},"Cage d'escaliers"]
[null,null,null,null,null,null,null,null,null,null,null,null,null,null,null,null,null,null,null,null,null,null,null,null,{"$error":"#N/A"},{"$error":"#N/A"},"Cage d'escaliers"]
[null,null,null,null,null,null,null,null,null,null,null,null,null,null,null,null,null,null,null,null,null,null,null,null,{"$error":"#N/A"},{"$error":"#N/A"},"Cage d'escaliers"]
[null,null,null,null,null,null,null,null,null,null,null,null,null,null,null,null,null,null,null,null,null,null,null,null,{"$error":"#N/A"},{"$error":"#N/A"},"Cage d'escaliers"]
[null,null,null,null,null,null,null,null,null,null,null,null,null,null,null,null,null,null,null,null,null,null,null,null,{"$error":"#N/A"},{"$error":"#N/A"},"Cage d'escaliers"]
[null,null,null,null,null,null,null,null,null,null,null,null,null,null,null,null,null,null,null,null,null,null,null,null,{"$error":"#N/A"},{"$error":"#N/A"},"Cage d'escaliers"]
[null,null,null,null,null,null,null,null,null,null,null,null,null,null,null,null,null,null,null,null,null,null,null,null,{"$error":"#N/A"},{"$error":"#N/A"},"Cage d'escaliers"]
[null,null,null,null,null,null,null,null,null,null,null,null,null,null,null,null,null,null,null,null,null,null,null,null,{"$error":"#N/A"},{"$error":"#N/A"},"Cage d'escaliers"]
[null,null,null,null,null,null,null,null,null,null,null,null,null,null,null,null,null,null,null,null,null,null,null,null,{"$error":"#N/A"},{"$error":"#N/A"},"Cage d'escaliers"]
[null,null,null,null,null,null,null,null,null,null,null,null,null,null,null,null,null,null,null,null,null,null,null,null,{"$error":"#N/A"},{"$error":"#N/A"},"Cage d'escaliers"]
[null,null,null,null,null,null,null,null,null,null,null,null,null,null,null,null,null,null,null,null,null,null,null,null,{"$error":"#N/A"},{"$error":"#N/A"},"Cage d'escaliers"]
[null,null,null,null,null,null,null,null,null,null,null,null,null,null,null,null,null,null,null,null,null,null,null,null,{"$error":"#N/A"},{"$error":"#N/A"},"Cage d'escaliers"]
[null,null,null,null,null,null,null,null,null,null,null,null,null,null,null,null,null,null,null,null,null,null,null,null,{"$error":"#N/A"},{"$error":"#N/A"},"Cage d'escaliers"]
[null,null,null,null,null,null,null,null,null,null,null,null,null,null,null,null,null,null,null,null,null,null,null,null,{"$error":"#N/A"},{"$error":"#N/A"},"Cage d'escaliers"]
[null,null,null,null,null,null,null,null,null,null,null,null,null,null,null,null,null,null,null,null,null,null,null,null,{"$error":"#N/A"},{"$error":"#N/A"},"Cage d'escaliers"]
[null,null,null,null,null,null,null,null,null,null,null,null,null,null,null,null,null,null,null,null,null,null,null,null,{"$error":"#N/A"},{"$error":"#N/A"},"Cage d'escaliers"]
[null,null,null,null,null,null,null,null,null,null,null,null,null,null,null,null,null,null,null,null,null,null,null,null,{"$error":"#N/A"},{"$error":"#N/A"},"Cage d'escaliers"]
[null,null,null,null,null,null,null,null,null,null,null,null,null,null,null,null,null,null,null,null,null,null,null,null,{"$error":"#N/A"},{"$error":"#N/A"},"Cage d'escaliers"]
[null,null,null,null,null,null,null,null,null,null,null,null,null,null,null,null,null,null,null,null,null,null,null,null,{"$error":"#N/A"},{"$error":"#N/A"},"Cage d'escaliers"]
[null,null,null,null,null,null,null,null,null,null,null,null,null,null,null,null,null,null,null,null,null,null,null,null,{"$error":"#N/A"},{"$error":"#N/A"},""]
[null,null,null,null,null,null,null,null,null,null,null,null,null,null,null,null,null,null,null,null,null,null,null,null,{"$error":"#N/A"},{"$error":"#N/A"},"Ascenseur"]
[null,null,null,null,null,null,null,null,null,null,null,null,null,null,null,null,null,null,null,null,null,null,null,null,{"$error":"#N/A"},{"$error":"#N/A"},"Ascenseur"]
[null,null,null,null,null,null,null,null,null,null,null,null,null,null,null,null,null,null,null,null,null,null,null,null,{"$error":"#N/A"},{"$error":"#N/A"},"Ascenseur"]
[null,null,null,null,null,null,null,null,null,null,null,null,null,null,null,null,null,null,null,null,null,null,null,null,{"$error":"#N/A"},{"$error":"#N/A"},"Ascenseur"]
[null,null,null,null,null,null,null,null,null,null,null,null,null,null,null,null,null,null,null,null,null,null,null,null,{"$error":"#N/A"},{"$error":"#N/A"},"Ascenseur"]
[null,null,null,null,null,null,null,null,null,null,null,null,null,null,null,null,null,null,null,null,null,null,null,null,{"$error":"#N/A"},{"$error":"#N/A"},"Ascenseur"]
[null,null,null,null,null,null,null,null,null,null,null,null,null,null,null,null,null,null,null,null,null,null,null,null,{"$error":"#N/A"},{"$error":"#N/A"},"Ascenseur"]
[null,null,null,null,null,null,null,null,null,null,null,null,null,null,null,null,null,null,null,null,null,null,null,null,{"$error":"#N/A"},{"$error":"#N/A"},"Ascenseur"]
[null,null,null,null,null,null,null,null,null,null,null,null,null,null,null,null,null,null,null,null,null,null,null,null,{"$error":"#N/A"},{"$error":"#N/A"},"Ascenseur"]
[null,null,null,null,null,null,null,null,null,null,null,null,null,null,null,null,null,null,null,null,null,null,null,null,{"$error":"#N/A"},{"$error":"#N/A"},"Ascenseur"]
[null,null,null,null,null,null,null,null,null,null,null,null,null,null,null,null,null,null,null,null,null,null,null,null,{"$error":"#N/A"},{"$error":"#N/A"},"Ascenseur"]
[null,null,null,null,null,null,null,null,null,null,null,null,null,null,null,null,null,null,null,null,null,null,null,null,{"$error":"#N/A"},{"$error":"#N/A"},"Ascenseur"]
[null,null,null,null,null,null,null,null,null,null,null,null,null,null,null,null,null,null,null,null,null,null,null,null,{"$error":"#N/A"},{"$error":"#N/A"},"Ascenseur"]
[null,null,null,null,null,null,null,null,null,null,null,null,null,null,null,null,null,null,null,null,null,null,null,null,{"$error":"#N/A"},{"$error":"#N/A"},"Ascenseur"]
[null,null,null,null,null,null,null,null,null,null,null,null,null,null,null,null,null,null,null,null,null,null,null,null,{"$error":"#N/A"},{"$error":"#N/A"},"Ascenseur"]
[null,null,null,null,null,null,null,null,null,null,null,null,null,null,null,null,null,null,null,null,null,null,null,null,{"$error":"#N/A"},{"$error":"#N/A"},"Ascenseur"]
[null,null,null,null,null,null,null,null,null,null,null,null,null,null,null,null,null,null,null,null,null,null,null,null,{"$error":"#N/A"},{"$error":"#N/A"},"Ascenseur"]
[null,null,null,null,null,null,null,null,null,null,null,null,null,null,null,null,null,null,null,null,null,null,null,null,{"$error":"#N/A"},{"$error":"#N/A"},"Ascenseur"]
[null,null,null,null,null,null,null,null,null,null,null,null,null,null,null,null,null,null,null,null,null,null,null,null,{"$error":"#N/A"},{"$error":"#N/A"},"Ascenseur"]
[null,null,null,null,null,null,null,null,null,null,null,null,null,null,null,null,null,null,null,null,null,null,null,null,{"$error":"#N/A"},{"$error":"#N/A"},"Ascenseur"]
[null,null,null,null,null,null,null,null,null,null,null,null,null,null,null,null,null,null,null,null,null,null,null,null,{"$error":"#N/A"},{"$error":"#N/A"},"Ascenseur"]
[null,null,null,null,null,null,null,null,null,null,null,null,null,null,null,null,null,null,null,null,null,null,null,null,{"$error":"#N/A"},{"$error":"#N/A"},"Ascenseur"]
[null,null,null,null,null,null,null,null,null,null,null,null,null,null,null,null,null,null,null,null,null,null,null,null,{"$error":"#N/A"},{"$error":"#N/A"},"Ascenseur"]
[null,null,null,null,null,null,null,null,null,null,null,null,null,null,null,null,null,null,null,null,null,null,null,null,{"$error":"#N/A"},{"$error":"#N/A"},"Ascenseur"]
[null,null,null,null,null,null,null,null,null,null,null,null,null,null,null,null,null,null,null,null,null,null,null,null,{"$error":"#N/A"},{"$error":"#N/A"},"Ascenseur"]
[null,null,null,null,null,null,null,null,null,null,null,null,null,null,null,null,null,null,null,null,null,null,null,null,{"$error":"#N/A"},{"$error":"#N/A"},"Ascenseur"]
[null,null,null,null,null,null,null,null,null,null,null,null,null,null,null,null,null,null,null,null,null,null,null,null,{"$error":"#N/A"},{"$error":"#N/A"},"Ascenseur"]
[null,null,null,null,null,null,null,null,null,null,null,null,null,null,null,null,null,null,null,null,null,null,null,null,{"$error":"#N/A"},{"$error":"#N/A"},"Ascenseur"]
[null,null,null,null,null,null,null,null,null,null,null,null,null,null,null,null,null,null,null,null,null,null,null,null,{"$error":"#N/A"},{"$error":"#N/A"},"Ascenseur"]
[null,null,null,null,null,null,null,null,null,null,null,null,null,null,null,null,null,null,null,null,null,null,null,null,{"$error":"#N/A"},{"$error":"#N/A"},"Ascenseur"]
[null,null,null,null,null,null,null,null,null,null,null,null,null,null,null,null,null,null,null,null,null,null,null,null,{"$error":"#N/A"},{"$error":"#N/A"},"Ascenseur"]
[null,null,null,null,null,null,null,null,null,null,null,null,null,null,null,null,null,null,null,null,null,null,null,null,{"$error":"#N/A"},{"$error":"#N/A"},"Ascenseur"]
[null,null,null,null,null,null,null,null,null,null,null,null,null,null,null,null,null,null,null,null,null,null,null,null,{"$error":"#N/A"},{"$error":"#N/A"},"Ascenseur"]
[null,null,null,null,null,null,null,null,null,null,null,null,null,null,null,null,null,null,null,null,null,null,null,null,{"$error":"#N/A"},{"$error":"#N/A"},"Ascenseur"]
[null,null,null,null,null,null,null,null,null,null,null,null,null,null,null,null,null,null,null,null,null,null,null,null,{"$error":"#N/A"},{"$error":"#N/A"},"Ascenseur"]
[null,null,null,null,null,null,null,null,null,null,null,null,null,null,null,null,null,null,null,null,null,null,null,null,{"$error":"#N/A"},{"$error":"#N/A"},"Ascenseur"]
[null,null,null,null,null,null,null,null,null,null,null,null,null,null,null,null,null,null,null,null,null,null,null,null,{"$error":"#N/A"},{"$error":"#N/A"},"Ascenseur"]
[null,null,null,null,null,null,null,null,null,null,null,null,null,null,null,null,null,null,null,null,null,null,null,null,{"$error":"#N/A"},{"$error":"#N/A"},"Ascenseur"]
[null,null,null,null,null,null,null,null,null,null,null,null,null,null,null,null,null,null,null,null,null,null,null,null,{"$error":"#N/A"},{"$error":"#N/A"},"Ascenseur"]
[null,null,null,null,null,null,null,null,null,null,null,null,null,null,null,null,null,null,null,null,null,null,null,null,{"$error":"#N/A"},{"$error":"#N/A"},"Ascenseur"]
[null,null,null,null,null,null,null,null,null,null,null,null,null,null,null,null,null,null,null,null,null,null,null,null,{"$error":"#N/A"},{"$error":"#N/A"},"Ascenseur"]
[null,null,null,null,null,null,null,null,null,null,null,null,null,null,null,null,null,null,null,null,null,null,null,null,{"$error":"#N/A"},{"$error":"#N/A"},"Ascenseur"]
[null,null,null,null,null,null,null,null,null,null,null,null,null,null,null,null,null,null,null,null,null,null,null,null,{"$error":"#N/A"},{"$error":"#N/A"},"Ascenseur"]
[null,null,null,null,null,null,null,null,null,null,null,null,null,null,null,null,null,null,null,null,null,null,null,null,{"$error":"#N/A"},{"$error":"#N/A"},"Ascenseur"]
[null,null,null,null,null,null,null,null,null,null,null,null,null,null,null,null,null,null,null,null,null,null,null,null,{"$error":"#N/A"},{"$error":"#N/A"},"Ascenseur"]
[null,null,null,null,null,null,null,null,null,null,null,null,null,null,null,null,null,null,null,null,null,null,null,null,{"$error":"#N/A"},{"$error":"#N/A"},"Ascenseur"]
[null,null,null,null,null,null,null,null,null,null,null,null,null,null,null,null,null,null,null,null,null,null,null,null,{"$error":"#N/A"},{"$error":"#N/A"},"Ascenseur"]
[null,null,null,null,null,null,null,null,null,null,null,null,null,null,null,null,null,null,null,null,null,null,null,null,{"$error":"#N/A"},{"$error":"#N/A"},"Ascenseur"]
[null,null,null,null,null,null,null,null,null,null,null,null,null,null,null,null,null,null,null,null,null,null,null,null,{"$error":"#N/A"},{"$error":"#N/A"},"Ascenseur"]
[null,null,null,null,null,null,null,null,null,null,null,null,null,null,null,null,null,null,null,null,null,null,null,null,{"$error":"#N/A"},{"$error":"#N/A"},"Ascenseur"]
[null,null,null,null,null,null,null,null,null,null,null,null,null,null,null,null,null,null,null,null,null,null,null,null,{"$error":"#N/A"},{"$error":"#N/A"},"Ascenseur"]
[null,null,null,null,null,null,null,null,null,null,null,null,null,null,null,null,null,null,null,null,null,null,null,null,{"$error":"#N/A"},{"$error":"#N/A"},"Ascenseur"]
[null,null,null,null,null,null,null,null,null,null,null,null,null,null,null,null,null,null,null,null,null,null,null,null,{"$error":"#N/A"},{"$error":"#N/A"},"Ascenseur"]
[null,null,null,null,null,null,null,null,null,null,null,null,null,null,null,null,null,null,null,null,null,null,null,null,{"$error":"#N/A"},{"$error":"#N/A"},"Ascenseur"]
[null,null,null,null,null,null,null,null,null,null,null,null,null,null,null,null,null,null,null,null,null,null,null,null,{"$error":"#N/A"},{"$error":"#N/A"},"Ascenseur"]
[null,null,null,null,null,null,null,null,null,null,null,null,null,null,null,null,null,null,null,null,null,null,null,null,{"$error":"#N/A"},{"$error":"#N/A"},"Ascenseur"]
[null,null,null,null,null,null,null,null,null,null,null,null,null,null,null,null,null,null,null,null,null,null,null,null,{"$error":"#N/A"},{"$error":"#N/A"},"Ascenseur"]
[null,null,null,null,null,null,null,null,null,null,null,null,null,null,null,null,null,null,null,null,null,null,null,null,{"$error":"#N/A"},{"$error":"#N/A"},"Ascenseur"]
[null,null,null,null,null,null,null,null,null,null,null,null,null,null,null,null,null,null,null,null,null,null,null,null,{"$error":"#N/A"},{"$error":"#N/A"},"Ascenseur"]
[null,null,null,null,null,null,null,null,null,null,null,null,null,null,null,null,null,null,null,null,null,null,null,null,{"$error":"#N/A"},{"$error":"#N/A"},"Ascenseur"]
[null,null,null,null,null,null,null,null,null,null,null,null,null,null,null,null,null,null,null,null,null,null,null,null,{"$error":"#N/A"},{"$error":"#N/A"},"Ascenseur"]
[null,null,null,null,null,null,null,null,null,null,null,null,null,null,null,null,null,null,null,null,null,null,null,null,{"$error":"#N/A"},{"$error":"#N/A"},"Ascenseur"]
[null,null,null,null,null,null,null,null,null,null,null,null,null,null,null,null,null,null,null,null,null,null,null,null,{"$error":"#N/A"},{"$error":"#N/A"},"Ascenseur"]
[null,null,null,null,null,null,null,null,null,null,null,null,null,null,null,null,null,null,null,null,null,null,null,null,{"$error":"#N/A"},{"$error":"#N/A"},"Ascenseur"]
[null,null,null,null,null,null,null,null,null,null,null,null,null,null,null,null,null,null,null,null,null,null,null,null,{"$error":"#N/A"},{"$error":"#N/A"},"Ascenseur"]
[null,null,null,null,null,null,null,null,null,null,null,null,null,null,null,null,null,null,null,null,null,null,null,null,{"$error":"#N/A"},{"$error":"#N/A"},"Ascenseur"]
[null,null,null,null,null,null,null,null,null,null,null,null,null,null,null,null,null,null,null,null,null,null,null,null,{"$error":"#N/A"},{"$error":"#N/A"},"Ascenseur"]
[null,null,null,null,null,null,null,null,null,null,null,null,null,null,null,null,null,null,null,null,null,null,null,null,{"$error":"#N/A"},{"$error":"#N/A"},"Ascenseur"]
[null,null,null,null,null,null,null,null,null,null,null,null,null,null,null,null,null,null,null,null,null,null,null,null,{"$error":"#N/A"},{"$error":"#N/A"},"Ascenseur"]
[null,null,null,null,null,null,null,null,null,null,null,null,null,null,null,null,null,null,null,null,null,null,null,null,{"$error":"#N/A"},{"$error":"#N/A"},"Ascenseur"]
[null,null,null,null,null,null,null,null,null,null,null,null,null,null,null,null,null,null,null,null,null,null,null,null,{"$error":"#N/A"},{"$error":"#N/A"},"Ascenseur"]
[null,null,null,null,null,null,null,null,null,null,null,null,null,null,null,null,null,null,null,null,null,null,null,null,{"$error":"#N/A"},{"$error":"#N/A"},"Ascenseur"]
[null,null,null,null,null,null,null,null,null,null,null,null,null,null,null,null,null,null,null,null,null,null,null,null,{"$error":"#N/A"},{"$error":"#N/A"},"Ascenseur"]
[null,null,null,null,null,null,null,null,null,null,null,null,null,null,null,null,null,null,null,null,null,null,null,null,{"$error":"#N/A"},{"$error":"#N/A"},"Ascenseur"]
[null,null,null,null,null,null,null,null,null,null,null,null,null,null,null,null,null,null,null,null,null,null,null,null,{"$error":"#N/A"},{"$error":"#N/A"},"Ascenseur"]
[null,null,null,null,null,null,null,null,null,null,null,null,null,null,null,null,null,null,null,null,null,null,null,null,{"$error":"#N/A"},{"$error":"#N/A"},"Ascenseur"]
[null,null,null,null,null,null,null,null,null,null,null,null,null,null,null,null,null,null,null,null,null,null,null,null,{"$error":"#N/A"},{"$error":"#N/A"},"Ascenseur"]
[null,null,null,null,null,null,null,null,null,null,null,null,null,null,null,null,null,null,null,null,null,null,null,null,{"$error":"#N/A"},{"$error":"#N/A"},"Ascenseur"]
[null,null,null,null,null,null,null,null,null,null,null,null,null,null,null,null,null,null,null,null,null,null,null,null,{"$error":"#N/A"},{"$error":"#N/A"},"Ascenseur"]
[null,null,null,null,null,null,null,null,null,null,null,null,null,null,null,null,null,null,null,null,null,null,null,null,{"$error":"#N/A"},{"$error":"#N/A"},"Ascenseur"]
[null,null,null,null,null,null,null,null,null,null,null,null,null,null,null,null,null,null,null,null,null,null,null,null,{"$error":"#N/A"},{"$error":"#N/A"},"Ascenseur"]
[null,null,null,null,null,null,null,null,null,null,null,null,null,null,null,null,null,null,null,null,null,null,null,null,{"$error":"#N/A"},{"$error":"#N/A"},"Ascenseur"]
[null,null,null,null,null,null,null,null,null,null,null,null,null,null,null,null,null,null,null,null,null,null,null,null,{"$error":"#N/A"},{"$error":"#N/A"},"Ascenseur"]
[null,null,null,null,null,null,null,null,null,null,null,null,null,null,null,null,null,null,null,null,null,null,null,null,{"$error":"#N/A"},{"$error":"#N/A"},"Ascenseur"]
[null,null,null,null,null,null,null,null,null,null,null,null,null,null,null,null,null,null,null,null,null,null,null,null,{"$error":"#N/A"},{"$error":"#N/A"},"Ascenseur"]
[null,null,null,null,null,null,null,null,null,null,null,null,null,null,null,null,null,null,null,null,null,null,null,null,{"$error":"#N/A"},{"$error":"#N/A"},"Ascenseur"]
[null,null,null,null,null,null,null,null,null,null,null,null,null,null,null,null,null,null,null,null,null,null,null,null,{"$error":"#N/A"},{"$error":"#N/A"},"Ascenseur"]
[null,null,null,null,null,null,null,null,null,null,null,null,null,null,null,null,null,null,null,null,null,null,null,null,{"$error":"#N/A"},{"$error":"#N/A"},"Ascenseur"]
[null,null,null,null,null,null,null,null,null,null,null,null,null,null,null,null,null,null,null,null,null,null,null,null,{"$error":"#N/A"},{"$error":"#N/A"},"Ascenseur"]
[null,null,null,null,null,null,null,null,null,null,null,null,null,null,null,null,null,null,null,null,null,null,null,null,{"$error":"#N/A"},{"$error":"#N/A"},"Ascenseur"]
[null,null,null,null,null,null,null,null,null,null,null,null,null,null,null,null,null,null,null,null,null,null,null,null,{"$error":"#N/A"},{"$error":"#N/A"},"Ascenseur"]
[null,null,null,null,null,null,null,null,null,null,null,null,null,null,null,null,null,null,null,null,null,null,null,null,{"$error":"#N/A"},{"$error":"#N/A"},"Ascenseur"]
[null,null,null,null,null,null,null,null,null,null,null,null,null,null,null,null,null,null,null,null,null,null,null,null,{"$error":"#N/A"},{"$error":"#N/A"},"Ascenseur"]
[null,null,null,null,null,null,null,null,null,null,null,null,null,null,null,null,null,null,null,null,null,null,null,null,{"$error":"#N/A"},{"$error":"#N/A"},"Ascenseur"]
[null,null,null,null,null,null,null,null,null,null,null,null,null,null,null,null,null,null,null,null,null,null,null,null,{"$error":"#N/A"},{"$error":"#N/A"},"Ascenseur"]
[null,null,null,null,null,null,null,null,null,null,null,null,null,null,null,null,null,null,null,null,null,null,null,null,{"$error":"#N/A"},{"$error":"#N/A"},"Ascenseur"]
[null,null,null,null,null,null,null,null,null,null,null,null,null,null,null,null,null,null,null,null,null,null,null,null,{"$error":"#N/A"},{"$error":"#N/A"},"Ascenseur"]
[null,null,null,null,null,null,null,null,null,null,null,null,null,null,null,null,null,null,null,null,null,null,null,null,{"$error":"#N/A"},{"$error":"#N/A"},"Ascenseur"]
[null,null,null,null,null,null,null,null,null,null,null,null,null,null,null,null,null,null,null,null,null,null,null,null,{"$error":"#N/A"},{"$error":"#N/A"},"Ascenseur"]
[null,null,null,null,null,null,null,null,null,null,null,null,null,null,null,null,null,null,null,null,null,null,null,null,{"$error":"#N/A"},{"$error":"#N/A"},"Ascenseur"]
[null,null,null,null,null,null,null,null,null,null,null,null,null,null,null,null,null,null,null,null,null,null,null,null,{"$error":"#N/A"},{"$error":"#N/A"},"Ascenseur"]
[null,null,null,null,null,null,null,null,null,null,null,null,null,null,null,null,null,null,null,null,null,null,null,null,{"$error":"#N/A"},{"$error":"#N/A"},"Ascenseur"]
[null,null,null,null,null,null,null,null,null,null,null,null,null,null,null,null,null,null,null,null,null,null,null,null,{"$error":"#N/A"},{"$error":"#N/A"},"Ascenseur"]
[null,null,null,null,null,null,null,null,null,null,null,null,null,null,null,null,null,null,null,null,null,null,null,null,{"$error":"#N/A"},{"$error":"#N/A"},"Ascenseur"]
[null,null,null,null,null,null,null,null,null,null,null,null,null,null,null,null,null,null,null,null,null,null,null,null,{"$error":"#N/A"},{"$error":"#N/A"},"Ascenseur"]
[null,null,null,null,null,null,null,null,null,null,null,null,null,null,null,null,null,null,null,null,null,null,null,null,{"$error":"#N/A"},{"$error":"#N/A"},"Ascenseur"]
[null,null,null,null,null,null,null,null,null,null,null,null,null,null,null,null,null,null,null,null,null,null,null,null,{"$error":"#N/A"},{"$error":"#N/A"},"Ascenseur"]
[null,null,null,null,null,null,null,null,null,null,null,null,null,null,null,null,null,null,null,null,null,null,null,null,{"$error":"#N/A"},{"$error":"#N/A"},"Ascenseur"]
[null,null,null,null,null,null,null,null,null,null,null,null,null,null,null,null,null,null,null,null,null,null,null,null,{"$error":"#N/A"},{"$error":"#N/A"},"Ascenseur"]
[null,null,null,null,null,null,null,null,null,null,null,null,null,null,null,null,null,null,null,null,null,null,null,null,{"$error":"#N/A"},{"$error":"#N/A"},"Ascenseur"]
[null,null,null,null,null,null,null,null,null,null,null,null,null,null,null,null,null,null,null,null,null,null,null,null,{"$error":"#N/A"},{"$error":"#N/A"},"Ascenseur"]
[null,null,null,null,null,null,null,null,null,null,null,null,null,null,null,null,null,null,null,null,null,null,null,null,{"$error":"#N/A"},{"$error":"#N/A"},"Ascenseur"]
[null,null,null,null,null,null,null,null,null,null,null,null,null,null,null,null,null,null,null,null,null,null,null,null,{"$error":"#N/A"},{"$error":"#N/A"},"Ascenseur"]
[null,null,null,null,null,null,null,null,null,null,null,null,null,null,null,null,null,null,null,null,null,null,null,null,{"$error":"#N/A"},{"$error":"#N/A"},"Ascenseur"]
[null,null,null,null,null,null,null,null,null,null,null,null,null,null,null,null,null,null,null,null,null,null,null,null,{"$error":"#N/A"},{"$error":"#N/A"},"Ascenseur"]
[null,null,null,null,null,null,null,null,null,null,null,null,null,null,null,null,null,null,null,null,null,null,null,null,{"$error":"#N/A"},{"$error":"#N/A"},"Ascenseur"]
[null,null,null,null,null,null,null,null,null,null,null,null,null,null,null,null,null,null,null,null,null,null,null,null,{"$error":"#N/A"},{"$error":"#N/A"},"Ascenseur"]
[null,null,null,null,null,null,null,null,null,null,null,null,null,null,null,null,null,null,null,null,null,null,null,null,{"$error":"#N/A"},{"$error":"#N/A"},"Ascenseur"]
[null,null,null,null,null,null,null,null,null,null,null,null,null,null,null,null,null,null,null,null,null,null,null,null,{"$error":"#N/A"},{"$error":"#N/A"},"Ascenseur"]
[null,null,null,null,null,null,null,null,null,null,null,null,null,null,null,null,null,null,null,null,null,null,null,null,{"$error":"#N/A"},{"$error":"#N/A"},"Ascenseur"]
[null,null,null,null,null,null,null,null,null,null,null,null,null,null,null,null,null,null,null,null,null,null,null,null,{"$error":"#N/A"},{"$error":"#N/A"},"Ascenseur"]
[null,null,null,null,null,null,null,null,null,null,null,null,null,null,null,null,null,null,null,null,null,null,null,null,{"$error":"#N/A"},{"$error":"#N/A"},"Ascenseur"]
[null,null,null,null,null,null,null,null,null,null,null,null,null,null,null,null,null,null,null,null,null,null,null,null,{"$error":"#N/A"},{"$error":"#N/A"},"Ascenseur"]
[null,null,null,null,null,null,null,null,null,null,null,null,null,null,null,null,null,null,null,null,null,null,null,null,{"$error":"#N/A"},{"$error":"#N/A"},"Ascenseur"]
[null,null,null,null,null,null,null,null,null,null,null,null,null,null,null,null,null,null,null,null,null,null,null,null,{"$error":"#N/A"},{"$error":"#N/A"},"Ascenseur"]
[null,null,null,null,null,null,null,null,null,null,null,null,null,null,null,null,null,null,null,null,null,null,null,null,{"$error":"#N/A"},{"$error":"#N/A"},"Ascenseur"]
[null,null,null,null,null,null,null,null,null,null,null,null,null,null,null,null,null,null,null,null,null,null,null,null,{"$error":"#N/A"},{"$error":"#N/A"},"Ascenseur"]
[null,null,null,null,null,null,null,null,null,null,null,null,null,null,null,null,null,null,null,null,null,null,null,null,{"$error":"#N/A"},{"$error":"#N/A"},"Ascenseur"]
[null,null,null,null,null,null,null,null,null,null,null,null,null,null,null,null,null,null,null,null,null,null,null,null,{"$error":"#N/A"},{"$error":"#N/A"},"Ascenseur"]
[null,null,null,null,null,null,null,null,null,null,null,null,null,null,null,null,null,null,null,null,null,null,null,null,{"$error":"#N/A"},{"$error":"#N/A"},"Ascenseur"]
[null,null,null,null,null,null,null,null,null,null,null,null,null,null,null,null,null,null,null,null,null,null,null,null,{"$error":"#N/A"},{"$error":"#N/A"},"Ascenseur"]
[null,null,null,null,null,null,null,null,null,null,null,null,null,null,null,null,null,null,null,null,null,null,null,null,{"$error":"#N/A"},{"$error":"#N/A"},"Ascenseur"]
[null,null,null,null,null,null,null,null,null,null,null,null,null,null,null,null,null,null,null,null,null,null,null,null,{"$error":"#N/A"},{"$error":"#N/A"},"Ascenseur"]
[null,null,null,null,null,null,null,null,null,null,null,null,null,null,null,null,null,null,null,null,null,null,null,null,{"$error":"#N/A"},{"$error":"#N/A"},"Ascenseur"]
[null,null,null,null,null,null,null,null,null,null,null,null,null,null,null,null,null,null,null,null,null,null,null,null,{"$error":"#N/A"},{"$error":"#N/A"},"Ascenseur"]
[null,null,null,null,null,null,null,null,null,null,null,null,null,null,null,null,null,null,null,null,null,null,null,null,{"$error":"#N/A"},{"$error":"#N/A"},"Ascenseur"]
[null,null,null,null,null,null,null,null,null,null,null,null,null,null,null,null,null,null,null,null,null,null,null,null,{"$error":"#N/A"},{"$error":"#N/A"},"Ascenseur"]
[null,null,null,null,null,null,null,null,null,null,null,null,null,null,null,null,null,null,null,null,null,null,null,null,{"$error":"#N/A"},{"$error":"#N/A"},"Ascenseur"]
[null,null,null,null,null,null,null,null,null,null,null,null,null,null,null,null,null,null,null,null,null,null,null,null,{"$error":"#N/A"},{"$error":"#N/A"},"Ascenseur"]
[null,null,null,null,null,null,null,null,null,null,null,null,null,null,null,null,null,null,null,null,null,null,null,null,{"$error":"#N/A"},{"$error":"#N/A"},"Ascenseur"]
[null,null,null,null,null,null,null,null,null,null,null,null,null,null,null,null,null,null,null,null,null,null,null,null,{"$error":"#N/A"},{"$error":"#N/A"},"Ascenseur"]
[null,null,null,null,null,null,null,null,null,null,null,null,null,null,null,null,null,null,null,null,null,null,null,null,{"$error":"#N/A"},{"$error":"#N/A"},"Ascenseur"]
[null,null,null,null,null,null,null,null,null,null,null,null,null,null,null,null,null,null,null,null,null,null,null,null,{"$error":"#N/A"},{"$error":"#N/A"},"Ascenseur"]
[null,null,null,null,null,null,null,null,null,null,null,null,null,null,null,null,null,null,null,null,null,null,null,null,{"$error":"#N/A"},{"$error":"#N/A"},"Ascenseur"]
[null,null,null,null,null,null,null,null,null,null,null,null,null,null,null,null,null,null,null,null,null,null,null,null,{"$error":"#N/A"},{"$error":"#N/A"},"Ascenseur"]
[null,null,null,null,null,null,null,null,null,null,null,null,null,null,null,null,null,null,null,null,null,null,null,null,{"$error":"#N/A"},{"$error":"#N/A"},"Ascenseur"]
[null,null,null,null,null,null,null,null,null,null,null,null,null,null,null,null,null,null,null,null,null,null,null,null,{"$error":"#N/A"},{"$error":"#N/A"},"Ascenseur"]
[null,null,null,null,null,null,null,null,null,null,null,null,null,null,null,null,null,null,null,null,null,null,null,null,{"$error":"#N/A"},{"$error":"#N/A"},"Ascenseur"]
[null,null,null,null,null,null,null,null,null,null,null,null,null,null,null,null,null,null,null,null,null,null,null,null,{"$error":"#N/A"},{"$error":"#N/A"},"Ascenseur"]
[null,null,null,null,null,null,null,null,null,null,null,null,null,null,null,null,null,null,null,null,null,null,null,null,{"$error":"#N/A"},{"$error":"#N/A"},""]

{"sheet":"Cahier de charges CLIENT","index":1,"n_rows":36,"n_cols":1,"rows_kept":36,"cut":false,"hidden":false,"merged":[[12,0,12,6],[35,0,35,6],[0,0,0,7],[1,0,1,7],[2,0,2,7]]}
["Société"]
["Rue - NPA localité"]
["Cahier des charges - V_x - jj.mm.aaaa"]
[]
[]
[]
[]
[]
[]
[]
[]
[]
["Cahier de  charges par local"]
[]
["Hall d'entrée"]
["Vider les poubelles à papier"]
["Lavage manuel"]
["Local sanitaire"]
["Ramasser les déchets au sol si besoin"]
["Douche"]
["Vider les poubelles à déchets"]
["Vestiaires"]
["Vider les poubelles à déchets"]
["Couloirs"]
["Vider les poubelles à déchets"]
["Salle de conférence"]
["Balayage humide"]
["Ascenseur"]
["Récurage à l'eau avec monobrosse"]
["Nettoyer les parties vitrées"]
[]
[]
["Visa"]
[]
[]
["Particularités"]